Workbook

Sheet Menu
B1: MENU GÉNÉRAL COMPTES
B3: Compte courant
B10: Compte LES
H24: Ne fonctionne pas en filtre | L24: Ne fonctionne pas en filtre | P24: Ne fonctionne pas en filtre

Sheet Formulaire
E1: Formulaire de saisie
E3: Compte courant
E6: Mouvements | T6: Libellés
E7: ='Liste choisir'!G2 -> 01-Chèque | T7: ='Liste choisir'!B2 -> 01-Salaire | V7: ='Liste choisir'!B22 -> 21-
E8: ='Liste choisir'!G3 -> 02-Carte | T8: ='Liste choisir'!B3 -> 02- | V8: ='Liste choisir'!B23 -> 22-
E9: ='Liste choisir'!G4 -> 03-Prélèvement | T9: ='Liste choisir'!B4 -> 03- | V9: ='Liste choisir'!B24 -> 23-High-tech, outils, etc
E10: ='Liste choisir'!G5 -> 04-Internet - PayPal - TIP | T10: ='Liste choisir'!B5 -> 04- | V10: ='Liste choisir'!B25 -> 24-
E11: ='Liste choisir'!G6 -> 05-Virement reçu | T11: ='Liste choisir'!B6 -> 05-Loyer | V11: ='Liste choisir'!B26 -> 25-
E12: ='Liste choisir'!G7 -> 06-Remise | L12: =IF(J12=0,"",VLOOKUP(J12,'Liste choisir'!$F$2:$G$10,2)) ->  | T12: ='Liste choisir'!B7 -> 06-Frais de banque | V12: ='Liste choisir'!B27 -> 26-Automobile
E13: ='Liste choisir'!G8 -> 07-Retrait distributeur | T13: ='Liste choisir'!B8 -> 07-Cotisation carte bleue | V13: ='Liste choisir'!B28 -> 27-
E14: ='Liste choisir'!G9 -> 08-PROVISIONS | T14: ='Liste choisir'!B9 -> 08-Nourriture - Frais de vie | V14: ='Liste choisir'!B29 -> 28-Impôts foncier
T15: ='Liste choisir'!B10 -> 9- | V15: ='Liste choisir'!B30 -> 29-
T16: ='Liste choisir'!B11 -> 10-Assurances | V16: ='Liste choisir'!B31 -> 30-
T17: ='Liste choisir'!B12 -> 11-Mutuelle | V17: ='Liste choisir'!B32 -> 31-Vacances
T18: ='Liste choisir'!B13 -> 12- | V18: ='Liste choisir'!B33 -> 32-
T19: ='Liste choisir'!B14 -> 13-Santé health | V19: ='Liste choisir'!B34 -> 33-Vêtements - linge
L20: =IF(J20=0,"",VLOOKUP(J20,'Liste choisir'!$A$2:$B$41,2)) ->  | T20: ='Liste choisir'!B15 -> 14-Internet | V20: ='Liste choisir'!B35 -> 34-Ameublement
T21: ='Liste choisir'!B16 -> 15-Téléphone | V21: ='Liste choisir'!B36 -> 35-Autres
T22: ='Liste choisir'!B17 -> 16-Carburant | V22: ='Liste choisir'!B37 -> 36-
T23: ='Liste choisir'!B18 -> 17-EDF | V23: ='Liste choisir'!B38 -> 0
T24: ='Liste choisir'!B19 -> 18-EAU | V24: ='Liste choisir'!B39 -> 38-
T25: ='Liste choisir'!B20 -> 19- | V25: ='Liste choisir'!B40 -> 0
T26: ='Liste choisir'!B21 -> 20-Autoroute - Transport | V26: ='Liste choisir'!B41 -> 0
AC38: 0.96

Sheet Saisie
A1: Largeur des colonnes
A2: 9.43 | B2: 3 | C2: 23 | D2: 8.86 | E2: 3 | F2: zéro | G2: zéro | H2: 24.14 | I2: 11.57 | J2: 11.57 | K2: zéro | L2: zéro | M2: zéro | N2: zéro | O2: 2 | P2: zéro | Q2: 69.57 | R2: 14.29
A3: Totaux des colonnes
A4: Formule initiale colonne L11 >>> SI(B13=7;"";(E13*100+(ANNEE($A13)+MOIS($A13)+MOIS($A13)))/((ANNEE($A13)))) - (Afin de ne pas avoir les provisions dans le tableau Cumul) | G4: =SUM(G12:G1395) -> -648 | I4: =SUM(I12:I1395) -> 149944.94 | J4: =SUM(J12:J1395) -> 149294.53 | P4: =SUM(P12:P1395) -> -988.17
C5: Pointé en banque | D5: =(P4+'Changement d''année'!E3-G4) -> 316.6 | H5: Compte courant | I5: Provisions | J5: =Cumul!J54 -> 648 | T5: LES | U5: D:\DOSSIER GILLES\COMPTES\CRÉDIT AGRICOLE MURVIEL\LES Livret Engagé Sociétaire.xlsm
H6: All | T6: LDD | U6: D:\DOSSIER GILLES\COMPTES\CRÉDIT AGRICOLE MURVIEL\LDD.xlsm
A7: Disponible sur le compte hors provisions | D7: =D5+((J4-I4)-(P4-G4)) -> 6.36 | T7: LEP | U7: D:\DOSSIER GILLES\COMPTES\CRÉDIT AGRICOLE MURVIEL\LEP.xlsm
A8: Disponible sur le compte avec provisions | D8: =J5+D7 -> 654.36 | G8: =SUM(G12:G314) -> -648 | H8: =SUMIF($H$11:$H$2049,H6,$J$11:$J$2049)-SUMIF($H$11:$H$2049,H6,$I$11:$I$2049) -> 0 | T8: CSL | U8: D:\DOSSIER GILLES\COMPTES\CRÉDIT AGRICOLE MURVIEL\CSL Livret Compte Sur Livret (sans plafond).xlsm
A9: DATES | B9: > | C9: MOUVEMENT | D9: N° chèque | F9: Prévisions | G9: Cumul prévis | I9: DEBIT | K9: 1 auto prévis | L9: Cumul | M9: pointé débit | N9: pointé crédit | O9: 0.5 | P9: tous pointés | T9: Livret A | U9: D:\DOSSIER GILLES\COMPTES\CRÉDIT AGRICOLE MURVIEL\Livret A.xlsm
A12: 2023-01-01 | B12: 8 | C12: =IF(B12="","",VLOOKUP(B12,'Liste choisir'!$F$2:$I$9,2)) -> 08-PROVISIONS | E12: 17 | F12: =IF(B12='Liste choisir'!$F$9,'Liste choisir'!$F$9*E12*100+MONTH($A12),0) -> 13601 | G12: =IF(B12='Liste choisir'!$F$9,J12-I12,0) -> -220 | H12: =IF(E12="","",VLOOKUP(E12,'Liste choisir'!$A$2:$B$41,2)) -> 17-EDF | I12: 220 | K12: =IF($B12='Liste choisir'!$F$9,1,0) -> 1 | L12: =IF(I12+J12=0,"",(E12*100+(YEAR($A12)+MONTH($A12)+MONTH($A12)))/((YEAR($A12)))) -> 1.841324765 | M12: =IF(O12+K12>0,I12,"") -> 220 | N12: =IF(O12+K12>0,J12,"") -> 0 | P12: =IF(O12+K12=0,"",(J12-I12)) -> -220
A13: 2023-01-02 | B13: 8 | C13: =IF(B13="","",VLOOKUP(B13,'Liste choisir'!$F$2:$I$9,2)) -> 08-PROVISIONS | E13: 18 | F13: =IF(B13='Liste choisir'!$F$9,'Liste choisir'!$F$9*E13*100+MONTH($A13),0) -> 14401 | G13: =IF(B13='Liste choisir'!$F$9,J13-I13,0) -> -50 | H13: =IF(E13="","",VLOOKUP(E13,'Liste choisir'!$A$2:$B$41,2)) -> 18-EAU | I13: 50 | K13: =IF($B13='Liste choisir'!$F$9,1,0) -> 1 | L13: =IF(I13+J13=0,"",(E13*100+(YEAR($A13)+MONTH($A13)+MONTH($A13)))/((YEAR($A13)))) -> 1.890756303 | M13: 50 | N13: 0 | P13: -50
A14: 2023-01-04 | B14: 8 | C14: =IF(B14="","",VLOOKUP(B14,'Liste choisir'!$F$2:$I$9,2)) -> 08-PROVISIONS | E14: 9 | F14: =IF(B14='Liste choisir'!$F$9,'Liste choisir'!$F$9*E14*100+MONTH($A14),0) -> 7201 | G14: =IF(B14='Liste choisir'!$F$9,J14-I14,0) -> -45 | H14: =IF(E14="","",VLOOKUP(E14,'Liste choisir'!$A$2:$B$41,2)) -> 9- | I14: 45 | K14: =IF($B14='Liste choisir'!$F$9,1,0) -> 1 | L14: =IF(I14+J14=0,"",(E14*100+(YEAR($A14)+MONTH($A14)+MONTH($A14)))/((YEAR($A14)))) -> 1.445872467 | M14: 45 | N14: 0 | P14: -45
A15: 2023-01-05 | B15: 8 | C15: =IF(B15="","",VLOOKUP(B15,'Liste choisir'!$F$2:$I$9,2)) -> 08-PROVISIONS | E15: 20 | F15: =IF(B15='Liste choisir'!$F$9,'Liste choisir'!$F$9*E15*100+MONTH($A15),0) -> 16001 | G15: =IF(B15='Liste choisir'!$F$9,J15-I15,0) -> -50 | H15: =IF(E15="","",VLOOKUP(E15,'Liste choisir'!$A$2:$B$41,2)) -> 20-Autoroute - Transport | I15: 50 | K15: =IF($B15='Liste choisir'!$F$9,1,0) -> 1 | L15: =IF(I15+J15=0,"",(E15*100+(YEAR($A15)+MONTH($A15)+MONTH($A15)))/((YEAR($A15)))) -> 1.989619377 | M15: 50 | N15: 0 | P15: -50
A16: 2023-01-06 | B16: 8 | C16: =IF(B16="","",VLOOKUP(B16,'Liste choisir'!$F$2:$I$9,2)) -> 08-PROVISIONS | E16: 16 | F16: =IF(B16='Liste choisir'!$F$9,'Liste choisir'!$F$9*E16*100+MONTH($A16),0) -> 12801 | G16: =IF(B16='Liste choisir'!$F$9,J16-I16,0) -> 0 | H16: =IF(E16="","",VLOOKUP(E16,'Liste choisir'!$A$2:$B$41,2)) -> 16-Carburant | K16: =IF($B16='Liste choisir'!$F$9,1,0) -> 1 | L16: =IF(I16+J16=0,"",(E16*100+(YEAR($A16)+MONTH($A16)+MONTH($A16)))/((YEAR($A16)))) ->  | M16: 0 | N16: 0 | P16: 0
A17: 2023-05-02 | B17: 8 | C17: =IF(B17="","",VLOOKUP(B17,'Liste choisir'!$F$2:$I$9,2)) -> 08-PROVISIONS | E17: 19 | F17: =IF(B17='Liste choisir'!$F$9,'Liste choisir'!$F$9*E17*100+MONTH($A17),0) -> 15205 | G17: =IF(B17='Liste choisir'!$F$9,J17-I17,0) -> -30 | H17: =IF(E17="","",VLOOKUP(E17,'Liste choisir'!$A$2:$B$41,2)) -> 19- | I17: 30 | K17: =IF($B17='Liste choisir'!$F$9,1,0) -> 1 | L17: =IF(B17=7,"",(E17*100+(YEAR($A17)+MONTH($A17)+MONTH($A17)))/((YEAR($A17)))) -> 1.944142363 | M17: 30 | N17: 0 | P17: -30
A18: 2023-05-03 | B18: 8 | C18: =IF(B18="","",VLOOKUP(B18,'Liste choisir'!$F$2:$I$9,2)) -> 08-PROVISIONS | E18: 8 | F18: =IF(B18='Liste choisir'!$F$9,'Liste choisir'!$F$9*E18*100+MONTH($A18),0) -> 6405 | G18: =IF(B18='Liste choisir'!$F$9,J18-I18,0) -> -80 | H18: =IF(E18="","",VLOOKUP(E18,'Liste choisir'!$A$2:$B$41,2)) -> 08-Nourriture - Frais de vie | I18: 80 | K18: =IF($B18='Liste choisir'!$F$9,1,0) -> 1 | L18: 1.400395452 | M18: 80 | N18: 0 | P18: -80
A19: 2023-05-03 | B19: 8 | C19: =IF(B19="","",VLOOKUP(B19,'Liste choisir'!$F$2:$I$9,2)) -> 08-PROVISIONS | E19: 16 | F19: =IF(B19='Liste choisir'!$F$9,'Liste choisir'!$F$9*E19*100+MONTH($A19),0) -> 12805 | G19: =IF(B19='Liste choisir'!$F$9,J19-I19,0) -> -40 | H19: =IF(E19="","",VLOOKUP(E19,'Liste choisir'!$A$2:$B$41,2)) -> 16-Carburant | I19: 40 | K19: =IF($B19='Liste choisir'!$F$9,1,0) -> 1 | L19: 1.795847751 | M19: 40 | N19: 0 | P19: -40
A20: 2023-05-03 | B20: 8 | C20: =IF(B20="","",VLOOKUP(B20,'Liste choisir'!$F$2:$I$9,2)) -> 08-PROVISIONS | E20: 19 | F20: =IF(B20='Liste choisir'!$F$9,'Liste choisir'!$F$9*E20*100+MONTH($A20),0) -> 15205 | G20: =IF(B20='Liste choisir'!$F$9,J20-I20,0) -> -80 | H20: =IF(E20="","",VLOOKUP(E20,'Liste choisir'!$A$2:$B$41,2)) -> 19- | I20: 80 | K20: =IF($B20='Liste choisir'!$F$9,1,0) -> 1 | L20: 1.944142363 | M20: 80 | N20: 0 | P20: -80
A21: 2023-05-03 | B21: 8 | C21: =IF(B21="","",VLOOKUP(B21,'Liste choisir'!$F$2:$I$9,2)) -> 08-PROVISIONS | E21: 21 | F21: =IF(B21='Liste choisir'!$F$9,'Liste choisir'!$F$9*E21*100+MONTH($A21),0) -> 16805 | G21: =IF(B21='Liste choisir'!$F$9,J21-I21,0) -> -23 | H21: =IF(E21="","",VLOOKUP(E21,'Liste choisir'!$A$2:$B$41,2)) -> 21- | I21: 23 | K21: =IF($B21='Liste choisir'!$F$9,1,0) -> 1 | L21: 2.043005437 | M21: 23 | N21: 0 | P21: -23
A22: 2023-05-03 | B22: 8 | C22: =IF(B22="","",VLOOKUP(B22,'Liste choisir'!$F$2:$I$9,2)) -> 08-PROVISIONS | E22: 35 | F22: =IF(B22='Liste choisir'!$F$9,'Liste choisir'!$F$9*E22*100+MONTH($A22),0) -> 28005 | G22: =IF(B22='Liste choisir'!$F$9,J22-I22,0) -> -30 | H22: =IF(E22="","",VLOOKUP(E22,'Liste choisir'!$A$2:$B$41,2)) -> 35-Autres | I22: 30 | K22: =IF($B22='Liste choisir'!$F$9,1,0) -> 1 | L22: 2.73504696 | M22: 30 | N22: 0 | P22: -30
A23: 2023-12-31 | B23: 8 | C23: =IF(B23="","",VLOOKUP(B23,'Liste choisir'!$F$2:$I$9,2)) -> 08-PROVISIONS | F23: =IF(B23='Liste choisir'!$F$9,'Liste choisir'!$F$9*E23*100+MONTH($A23),0) -> 12 | G23: =IF(B23='Liste choisir'!$F$9,J23-I23,0) -> 0 | H23: =IF(E23="","",VLOOKUP(E23,'Liste choisir'!$A$2:$B$41,2)) ->  | K23: =IF($B23='Liste choisir'!$F$9,1,0) -> 1 | L23: =IF(I23+J23=0,"",(E23*100+(YEAR($A23)+MONTH($A23)+MONTH($A23)))/((YEAR($A23)))) ->  | M23: 0 | N23: 0 | P23: 0
A24: 2023-01-01 | B24: 5 | C24: =IF(B24="","",VLOOKUP(B24,'Liste choisir'!$F$2:$I$9,2)) -> 05-Virement reçu | E24: 1 | F24: =IF(B24='Liste choisir'!$F$9,'Liste choisir'!$F$9*E24*100+MONTH($A24),0) -> 0 | G24: =IF(B24='Liste choisir'!$F$9,J24-I24,0) -> 0 | H24: =IF(E24="","",VLOOKUP(E24,'Liste choisir'!$A$2:$B$41,2)) -> 01-Salaire | J24: 1332.18 | K24: =IF($B24='Liste choisir'!$F$9,1,0) -> 0 | L24: 1.050420168 | M24: 0 | N24: 1332.18 | O24: 1 | P24: 1332.18
A25: 2023-01-01 | B25: 5 | C25: =IF(B25="","",VLOOKUP(B25,'Liste choisir'!$F$2:$I$9,2)) -> 05-Virement reçu | E25: 2 | F25: =IF(B25='Liste choisir'!$F$9,'Liste choisir'!$F$9*E25*100+MONTH($A25),0) -> 0 | G25: =IF(B25='Liste choisir'!$F$9,J25-I25,0) -> 0 | H25: =IF(E25="","",VLOOKUP(E25,'Liste choisir'!$A$2:$B$41,2)) -> 02- | J25: 699.94 | K25: =IF($B25='Liste choisir'!$F$9,1,0) -> 0 | L25: 1.099851705 | M25: 0 | N25: 699.94 | O25: 1 | P25: 699.94
A26: 2023-01-01 | B26: 3 | C26: =IF(B26="","",VLOOKUP(B26,'Liste choisir'!$F$2:$I$9,2)) -> 03-Prélèvement | E26: 11 | F26: =IF(B26='Liste choisir'!$F$9,'Liste choisir'!$F$9*E26*100+MONTH($A26),0) -> 0 | G26: =IF(B26='Liste choisir'!$F$9,J26-I26,0) -> 0 | H26: =IF(E26="","",VLOOKUP(E26,'Liste choisir'!$A$2:$B$41,2)) -> 11-Mutuelle | I26: 30 | K26: =IF($B26='Liste choisir'!$F$9,1,0) -> 0 | L26: 1.544735541 | M26: 30 | N26: 0 | O26: 1 | P26: -30
A27: 2023-01-01 | B27: 2 | C27: =IF(B27="","",VLOOKUP(B27,'Liste choisir'!$F$2:$I$9,2)) -> 02-Carte | E27: 16 | F27: =IF(B27='Liste choisir'!$F$9,'Liste choisir'!$F$9*E27*100+MONTH($A27),0) -> 0 | G27: =IF(B27='Liste choisir'!$F$9,J27-I27,0) -> 0 | H27: =IF(E27="","",VLOOKUP(E27,'Liste choisir'!$A$2:$B$41,2)) -> 16-Carburant | I27: 46.01 | K27: =IF($B27='Liste choisir'!$F$9,1,0) -> 0 | L27: 1.791893228 | M27: 46.01 | N27: 0 | O27: 1 | P27: -46.01
A28: 2023-01-02 | B28: 2 | C28: =IF(B28="","",VLOOKUP(B28,'Liste choisir'!$F$2:$I$9,2)) -> 02-Carte | E28: 8 | F28: =IF(B28='Liste choisir'!$F$9,'Liste choisir'!$F$9*E28*100+MONTH($A28),0) -> 0 | G28: =IF(B28='Liste choisir'!$F$9,J28-I28,0) -> 0 | H28: =IF(E28="","",VLOOKUP(E28,'Liste choisir'!$A$2:$B$41,2)) -> 08-Nourriture - Frais de vie | I28: 16.5 | K28: =IF($B28='Liste choisir'!$F$9,1,0) -> 0 | L28: 1.396440929 | M28: 16.5 | N28: 0 | O28: 1 | P28: -16.5
A29: 2023-01-02 | B29: 2 | C29: =IF(B29="","",VLOOKUP(B29,'Liste choisir'!$F$2:$I$9,2)) -> 02-Carte | E29: 16 | F29: =IF(B29='Liste choisir'!$F$9,'Liste choisir'!$F$9*E29*100+MONTH($A29),0) -> 0 | G29: =IF(B29='Liste choisir'!$F$9,J29-I29,0) -> 0 | H29: =IF(E29="","",VLOOKUP(E29,'Liste choisir'!$A$2:$B$41,2)) -> 16-Carburant | I29: 46.01 | K29: =IF($B29='Liste choisir'!$F$9,1,0) -> 0 | L29: 1.791893228 | M29: 46.01 | N29: 0 | O29: 1 | P29: -46.01
A30: 2023-01-02 | B30: 3 | C30: =IF(B30="","",VLOOKUP(B30,'Liste choisir'!$F$2:$I$9,2)) -> 03-Prélèvement | E30: 35 | F30: =IF(B30='Liste choisir'!$F$9,'Liste choisir'!$F$9*E30*100+MONTH($A30),0) -> 0 | G30: =IF(B30='Liste choisir'!$F$9,J30-I30,0) -> 0 | H30: =IF(E30="","",VLOOKUP(E30,'Liste choisir'!$A$2:$B$41,2)) -> 35-Autres | I30: 50.39 | K30: =IF($B30='Liste choisir'!$F$9,1,0) -> 0 | L30: 2.731092437 | M30: 50.39 | N30: 0 | O30: 1 | P30: -50.39
A31: 2023-01-02 | B31: 3 | C31: =IF(B31="","",VLOOKUP(B31,'Liste choisir'!$F$2:$I$9,2)) -> 03-Prélèvement | E31: 38 | F31: =IF(B31='Liste choisir'!$F$9,'Liste choisir'!$F$9*E31*100+MONTH($A31),0) -> 0 | G31: =IF(B31='Liste choisir'!$F$9,J31-I31,0) -> 0 | H31: =IF(E31="","",VLOOKUP(E31,'Liste choisir'!$A$2:$B$41,2)) -> 38- | I31: 30 | K31: =IF($B31='Liste choisir'!$F$9,1,0) -> 0 | L31: 2.879387049 | M31: 30 | N31: 0 | O31: 1 | P31: -30
A32: 2023-01-03 | B32: 5 | C32: =IF(B32="","",VLOOKUP(B32,'Liste choisir'!$F$2:$I$9,2)) -> 05-Virement reçu | E32: 3 | F32: =IF(B32='Liste choisir'!$F$9,'Liste choisir'!$F$9*E32*100+MONTH($A32),0) -> 0 | G32: =IF(B32='Liste choisir'!$F$9,J32-I32,0) -> 0 | H32: =IF(E32="","",VLOOKUP(E32,'Liste choisir'!$A$2:$B$41,2)) -> 03- | J32: 7.5 | K32: =IF($B32='Liste choisir'!$F$9,1,0) -> 0 | L32: 1.149283243 | M32: 0 | N32: 7.5 | O32: 1 | P32: 7.5
A33: 2023-01-03 | B33: 5 | C33: =IF(B33="","",VLOOKUP(B33,'Liste choisir'!$F$2:$I$9,2)) -> 05-Virement reçu | E33: 3 | F33: =IF(B33='Liste choisir'!$F$9,'Liste choisir'!$F$9*E33*100+MONTH($A33),0) -> 0 | G33: =IF(B33='Liste choisir'!$F$9,J33-I33,0) -> 0 | H33: =IF(E33="","",VLOOKUP(E33,'Liste choisir'!$A$2:$B$41,2)) -> 03- | J33: 1200 | K33: =IF($B33='Liste choisir'!$F$9,1,0) -> 0 | L33: 1.149283243 | M33: 0 | N33: 1200 | O33: 1 | P33: 1200
A34: 2023-01-04 | B34: 2 | C34: =IF(B34="","",VLOOKUP(B34,'Liste choisir'!$F$2:$I$9,2)) -> 02-Carte | E34: 38 | F34: =IF(B34='Liste choisir'!$F$9,'Liste choisir'!$F$9*E34*100+MONTH($A34),0) -> 0 | G34: =IF(B34='Liste choisir'!$F$9,J34-I34,0) -> 0 | H34: =IF(E34="","",VLOOKUP(E34,'Liste choisir'!$A$2:$B$41,2)) -> 38- | I34: 3.9 | K34: =IF($B34='Liste choisir'!$F$9,1,0) -> 0 | L34: 2.879387049 | M34: 3.9 | N34: 0 | O34: 1 | P34: -3.9
A35: 2023-01-04 | B35: 2 | C35: =IF(B35="","",VLOOKUP(B35,'Liste choisir'!$F$2:$I$9,2)) -> 02-Carte | E35: 38 | F35: =IF(B35='Liste choisir'!$F$9,'Liste choisir'!$F$9*E35*100+MONTH($A35),0) -> 0 | G35: =IF(B35='Liste choisir'!$F$9,J35-I35,0) -> 0 | H35: =IF(E35="","",VLOOKUP(E35,'Liste choisir'!$A$2:$B$41,2)) -> 38- | I35: 8.19 | K35: =IF($B35='Liste choisir'!$F$9,1,0) -> 0 | L35: 2.879387049 | M35: 8.19 | N35: 0 | O35: 1 | P35: -8.19
A36: 2023-01-04 | B36: 2 | C36: =IF(B36="","",VLOOKUP(B36,'Liste choisir'!$F$2:$I$9,2)) -> 02-Carte | E36: 38 | F36: =IF(B36='Liste choisir'!$F$9,'Liste choisir'!$F$9*E36*100+MONTH($A36),0) -> 0 | G36: =IF(B36='Liste choisir'!$F$9,J36-I36,0) -> 0 | H36: =IF(E36="","",VLOOKUP(E36,'Liste choisir'!$A$2:$B$41,2)) -> 38- | I36: 84.56 | K36: =IF($B36='Liste choisir'!$F$9,1,0) -> 0 | L36: 2.879387049 | M36: 84.56 | N36: 0 | O36: 1 | P36: -84.56
A37: 2023-01-04 | B37: 2 | C37: =IF(B37="","",VLOOKUP(B37,'Liste choisir'!$F$2:$I$9,2)) -> 02-Carte | E37: 38 | F37: =IF(B37='Liste choisir'!$F$9,'Liste choisir'!$F$9*E37*100+MONTH($A37),0) -> 0 | G37: =IF(B37='Liste choisir'!$F$9,J37-I37,0) -> 0 | H37: =IF(E37="","",VLOOKUP(E37,'Liste choisir'!$A$2:$B$41,2)) -> 38- | I37: 18.7 | K37: =IF($B37='Liste choisir'!$F$9,1,0) -> 0 | L37: 2.879387049 | M37: 18.7 | N37: 0 | O37: 1 | P37: -18.7
A38: 2023-01-04 | B38: 2 | C38: =IF(B38="","",VLOOKUP(B38,'Liste choisir'!$F$2:$I$9,2)) -> 02-Carte | E38: 38 | F38: =IF(B38='Liste choisir'!$F$9,'Liste choisir'!$F$9*E38*100+MONTH($A38),0) -> 0 | G38: =IF(B38='Liste choisir'!$F$9,J38-I38,0) -> 0 | H38: =IF(E38="","",VLOOKUP(E38,'Liste choisir'!$A$2:$B$41,2)) -> 38- | I38: 17.4 | K38: =IF($B38='Liste choisir'!$F$9,1,0) -> 0 | L38: 2.879387049 | M38: 17.4 | N38: 0 | O38: 1 | P38: -17.4
A39: 2023-01-05 | B39: 3 | C39: =IF(B39="","",VLOOKUP(B39,'Liste choisir'!$F$2:$I$9,2)) -> 03-Prélèvement | E39: 3 | F39: =IF(B39='Liste choisir'!$F$9,'Liste choisir'!$F$9*E39*100+MONTH($A39),0) -> 0 | G39: =IF(B39='Liste choisir'!$F$9,J39-I39,0) -> 0 | H39: =IF(E39="","",VLOOKUP(E39,'Liste choisir'!$A$2:$B$41,2)) -> 03- | I39: 1200 | K39: =IF($B39='Liste choisir'!$F$9,1,0) -> 0 | L39: 1.149283243 | M39: 1200 | N39: 0 | O39: 1 | P39: -1200
A40: 2023-01-05 | B40: 2 | C40: =IF(B40="","",VLOOKUP(B40,'Liste choisir'!$F$2:$I$9,2)) -> 02-Carte | E40: 8 | F40: =IF(B40='Liste choisir'!$F$9,'Liste choisir'!$F$9*E40*100+MONTH($A40),0) -> 0 | G40: =IF(B40='Liste choisir'!$F$9,J40-I40,0) -> 0 | H40: =IF(E40="","",VLOOKUP(E40,'Liste choisir'!$A$2:$B$41,2)) -> 08-Nourriture - Frais de vie | I40: 47.62 | K40: =IF($B40='Liste choisir'!$F$9,1,0) -> 0 | L40: 1.396440929 | M40: 47.62 | N40: 0 | O40: 1 | P40: -47.62
A41: 2023-01-05 | B41: 2 | C41: =IF(B41="","",VLOOKUP(B41,'Liste choisir'!$F$2:$I$9,2)) -> 02-Carte | E41: 8 | F41: =IF(B41='Liste choisir'!$F$9,'Liste choisir'!$F$9*E41*100+MONTH($A41),0) -> 0 | G41: =IF(B41='Liste choisir'!$F$9,J41-I41,0) -> 0 | H41: =IF(E41="","",VLOOKUP(E41,'Liste choisir'!$A$2:$B$41,2)) -> 08-Nourriture - Frais de vie | I41: 9.71 | K41: =IF($B41='Liste choisir'!$F$9,1,0) -> 0 | L41: 1.396440929 | M41: 9.71 | N41: 0 | O41: 1 | P41: -9.71
A42: 2023-01-05 | B42: 2 | C42: =IF(B42="","",VLOOKUP(B42,'Liste choisir'!$F$2:$I$9,2)) -> 02-Carte | E42: 35 | F42: =IF(B42='Liste choisir'!$F$9,'Liste choisir'!$F$9*E42*100+MONTH($A42),0) -> 0 | G42: =IF(B42='Liste choisir'!$F$9,J42-I42,0) -> 0 | H42: =IF(E42="","",VLOOKUP(E42,'Liste choisir'!$A$2:$B$41,2)) -> 35-Autres | I42: 4 | K42: =IF($B42='Liste choisir'!$F$9,1,0) -> 0 | L42: 2.731092437 | M42: 4 | N42: 0 | O42: 1 | P42: -4
A43: 2023-01-05 | B43: 2 | C43: =IF(B43="","",VLOOKUP(B43,'Liste choisir'!$F$2:$I$9,2)) -> 02-Carte | E43: 35 | F43: =IF(B43='Liste choisir'!$F$9,'Liste choisir'!$F$9*E43*100+MONTH($A43),0) -> 0 | G43: =IF(B43='Liste choisir'!$F$9,J43-I43,0) -> 0 | H43: =IF(E43="","",VLOOKUP(E43,'Liste choisir'!$A$2:$B$41,2)) -> 35-Autres | I43: 4 | K43: =IF($B43='Liste choisir'!$F$9,1,0) -> 0 | L43: 2.731092437 | M43: 4 | N43: 0 | O43: 1 | P43: -4
A44: 2023-01-05 | B44: 2 | C44: =IF(B44="","",VLOOKUP(B44,'Liste choisir'!$F$2:$I$9,2)) -> 02-Carte | E44: 38 | F44: =IF(B44='Liste choisir'!$F$9,'Liste choisir'!$F$9*E44*100+MONTH($A44),0) -> 0 | G44: =IF(B44='Liste choisir'!$F$9,J44-I44,0) -> 0 | H44: =IF(E44="","",VLOOKUP(E44,'Liste choisir'!$A$2:$B$41,2)) -> 38- | I44: 26.71 | K44: =IF($B44='Liste choisir'!$F$9,1,0) -> 0 | L44: 2.879387049 | M44: 26.71 | N44: 0 | O44: 1 | P44: -26.71
A45: 2023-01-05 | B45: 2 | C45: =IF(B45="","",VLOOKUP(B45,'Liste choisir'!$F$2:$I$9,2)) -> 02-Carte | E45: 38 | F45: =IF(B45='Liste choisir'!$F$9,'Liste choisir'!$F$9*E45*100+MONTH($A45),0) -> 0 | G45: =IF(B45='Liste choisir'!$F$9,J45-I45,0) -> 0 | H45: =IF(E45="","",VLOOKUP(E45,'Liste choisir'!$A$2:$B$41,2)) -> 38- | I45: 20.08 | K45: =IF($B45='Liste choisir'!$F$9,1,0) -> 0 | L45: 2.879387049 | M45: 20.08 | N45: 0 | O45: 1 | P45: -20.08
A46: 2023-01-06 | B46: 3 | C46: =IF(B46="","",VLOOKUP(B46,'Liste choisir'!$F$2:$I$9,2)) -> 03-Prélèvement | E46: 3 | F46: =IF(B46='Liste choisir'!$F$9,'Liste choisir'!$F$9*E46*100+MONTH($A46),0) -> 0 | G46: =IF(B46='Liste choisir'!$F$9,J46-I46,0) -> 0 | H46: =IF(E46="","",VLOOKUP(E46,'Liste choisir'!$A$2:$B$41,2)) -> 03- | I46: 11988.64 | K46: =IF($B46='Liste choisir'!$F$9,1,0) -> 0 | L46: 1.149283243 | M46: 11988.64 | N46: 0 | O46: 1 | P46: -11988.64
A47: 2023-01-06 | B47: 3 | C47: =IF(B47="","",VLOOKUP(B47,'Liste choisir'!$F$2:$I$9,2)) -> 03-Prélèvement | E47: 3 | F47: =IF(B47='Liste choisir'!$F$9,'Liste choisir'!$F$9*E47*100+MONTH($A47),0) -> 0 | G47: =IF(B47='Liste choisir'!$F$9,J47-I47,0) -> 0 | H47: =IF(E47="","",VLOOKUP(E47,'Liste choisir'!$A$2:$B$41,2)) -> 03- | I47: 5000 | K47: =IF($B47='Liste choisir'!$F$9,1,0) -> 0 | L47: 1.149283243 | M47: 5000 | N47: 0 | O47: 1 | P47: -5000
A48: 2023-01-06 | B48: 3 | C48: =IF(B48="","",VLOOKUP(B48,'Liste choisir'!$F$2:$I$9,2)) -> 03-Prélèvement | E48: 3 | F48: =IF(B48='Liste choisir'!$F$9,'Liste choisir'!$F$9*E48*100+MONTH($A48),0) -> 0 | G48: =IF(B48='Liste choisir'!$F$9,J48-I48,0) -> 0 | H48: =IF(E48="","",VLOOKUP(E48,'Liste choisir'!$A$2:$B$41,2)) -> 03- | I48: 5000 | K48: =IF($B48='Liste choisir'!$F$9,1,0) -> 0 | L48: 1.149283243 | M48: 5000 | N48: 0 | O48: 1 | P48: -5000
A49: 2023-01-06 | B49: 5 | C49: =IF(B49="","",VLOOKUP(B49,'Liste choisir'!$F$2:$I$9,2)) -> 05-Virement reçu | E49: 3 | F49: =IF(B49='Liste choisir'!$F$9,'Liste choisir'!$F$9*E49*100+MONTH($A49),0) -> 0 | G49: =IF(B49='Liste choisir'!$F$9,J49-I49,0) -> 0 | H49: =IF(E49="","",VLOOKUP(E49,'Liste choisir'!$A$2:$B$41,2)) -> 03- | J49: 22242.21 | K49: =IF($B49='Liste choisir'!$F$9,1,0) -> 0 | L49: 1.149283243 | M49: 0 | N49: 22242.21 | O49: 1 | P49: 22242.21
A50: 2023-01-07 | B50: 2 | C50: =IF(B50="","",VLOOKUP(B50,'Liste choisir'!$F$2:$I$9,2)) -> 02-Carte | E50: 8 | F50: =IF(B50='Liste choisir'!$F$9,'Liste choisir'!$F$9*E50*100+MONTH($A50),0) -> 0 | G50: =IF(B50='Liste choisir'!$F$9,J50-I50,0) -> 0 | H50: =IF(E50="","",VLOOKUP(E50,'Liste choisir'!$A$2:$B$41,2)) -> 08-Nourriture - Frais de vie | I50: 14.45 | K50: =IF($B50='Liste choisir'!$F$9,1,0) -> 0 | L50: 1.396440929 | M50: 14.45 | N50: 0 | O50: 1 | P50: -14.45
A51: 2023-01-07 | B51: 2 | C51: =IF(B51="","",VLOOKUP(B51,'Liste choisir'!$F$2:$I$9,2)) -> 02-Carte | E51: 16 | F51: =IF(B51='Liste choisir'!$F$9,'Liste choisir'!$F$9*E51*100+MONTH($A51),0) -> 0 | G51: =IF(B51='Liste choisir'!$F$9,J51-I51,0) -> 0 | H51: =IF(E51="","",VLOOKUP(E51,'Liste choisir'!$A$2:$B$41,2)) -> 16-Carburant | I51: 74.35 | K51: =IF($B51='Liste choisir'!$F$9,1,0) -> 0 | L51: 1.791893228 | M51: 74.35 | N51: 0 | O51: 1 | P51: -74.35
A52: 2023-01-07 | B52: 2 | C52: =IF(B52="","",VLOOKUP(B52,'Liste choisir'!$F$2:$I$9,2)) -> 02-Carte | E52: 26 | F52: =IF(B52='Liste choisir'!$F$9,'Liste choisir'!$F$9*E52*100+MONTH($A52),0) -> 0 | G52: =IF(B52='Liste choisir'!$F$9,J52-I52,0) -> 0 | H52: =IF(E52="","",VLOOKUP(E52,'Liste choisir'!$A$2:$B$41,2)) -> 26-Automobile | I52: 35.18 | K52: =IF($B52='Liste choisir'!$F$9,1,0) -> 0 | L52: 2.286208601 | M52: 35.18 | N52: 0 | O52: 1 | P52: -35.18
A53: 2023-01-07 | B53: 5 | C53: =IF(B53="","",VLOOKUP(B53,'Liste choisir'!$F$2:$I$9,2)) -> 05-Virement reçu | E53: 34 | F53: =IF(B53='Liste choisir'!$F$9,'Liste choisir'!$F$9*E53*100+MONTH($A53),0) -> 0 | G53: =IF(B53='Liste choisir'!$F$9,J53-I53,0) -> 0 | H53: =IF(E53="","",VLOOKUP(E53,'Liste choisir'!$A$2:$B$41,2)) -> 34-Ameublement | J53: 100 | K53: =IF($B53='Liste choisir'!$F$9,1,0) -> 0 | L53: 2.6816609 | M53: 0 | N53: 100 | O53: 1 | P53: 100
A54: 2023-01-07 | B54: 5 | C54: =IF(B54="","",VLOOKUP(B54,'Liste choisir'!$F$2:$I$9,2)) -> 05-Virement reçu | E54: 38 | F54: =IF(B54='Liste choisir'!$F$9,'Liste choisir'!$F$9*E54*100+MONTH($A54),0) -> 0 | G54: =IF(B54='Liste choisir'!$F$9,J54-I54,0) -> 0 | H54: =IF(E54="","",VLOOKUP(E54,'Liste choisir'!$A$2:$B$41,2)) -> 38- | J54: 183 | K54: =IF($B54='Liste choisir'!$F$9,1,0) -> 0 | L54: 2.879387049 | M54: 0 | N54: 183 | O54: 1 | P54: 183
A55: 2023-01-08 | B55: 4 | C55: =IF(B55="","",VLOOKUP(B55,'Liste choisir'!$F$2:$I$9,2)) -> 04-Internet - PayPal - TIP | E55: 35 | F55: =IF(B55='Liste choisir'!$F$9,'Liste choisir'!$F$9*E55*100+MONTH($A55),0) -> 0 | G55: =IF(B55='Liste choisir'!$F$9,J55-I55,0) -> 0 | H55: =IF(E55="","",VLOOKUP(E55,'Liste choisir'!$A$2:$B$41,2)) -> 35-Autres | I55: 44.99 | K55: =IF($B55='Liste choisir'!$F$9,1,0) -> 0 | L55: 2.731092437 | M55: 44.99 | N55: 0 | O55: 1 | P55: -44.99
A56: 2023-01-09 | B56: 5 | C56: =IF(B56="","",VLOOKUP(B56,'Liste choisir'!$F$2:$I$9,2)) -> 05-Virement reçu | E56: 3 | F56: =IF(B56='Liste choisir'!$F$9,'Liste choisir'!$F$9*E56*100+MONTH($A56),0) -> 0 | G56: =IF(B56='Liste choisir'!$F$9,J56-I56,0) -> 0 | H56: =IF(E56="","",VLOOKUP(E56,'Liste choisir'!$A$2:$B$41,2)) -> 03- | J56: 36 | K56: =IF($B56='Liste choisir'!$F$9,1,0) -> 0 | L56: 1.149283243 | M56: 0 | N56: 36 | O56: 1 | P56: 36
A57: 2023-01-09 | B57: 5 | C57: =IF(B57="","",VLOOKUP(B57,'Liste choisir'!$F$2:$I$9,2)) -> 05-Virement reçu | E57: 3 | F57: =IF(B57='Liste choisir'!$F$9,'Liste choisir'!$F$9*E57*100+MONTH($A57),0) -> 0 | G57: =IF(B57='Liste choisir'!$F$9,J57-I57,0) -> 0 | H57: =IF(E57="","",VLOOKUP(E57,'Liste choisir'!$A$2:$B$41,2)) -> 03- | J57: 618 | K57: =IF($B57='Liste choisir'!$F$9,1,0) -> 0 | L57: 1.149283243 | M57: 0 | N57: 618 | O57: 1 | P57: 618
A58: 2023-01-09 | B58: 1 | C58: =IF(B58="","",VLOOKUP(B58,'Liste choisir'!$F$2:$I$9,2)) -> 01-Chèque | D58: 7715096 | E58: 5 | F58: =IF(B58='Liste choisir'!$F$9,'Liste choisir'!$F$9*E58*100+MONTH($A58),0) -> 0 | G58: =IF(B58='Liste choisir'!$F$9,J58-I58,0) -> 0 | H58: =IF(E58="","",VLOOKUP(E58,'Liste choisir'!$A$2:$B$41,2)) -> 05-Loyer | I58: 600 | K58: =IF($B58='Liste choisir'!$F$9,1,0) -> 0 | L58: 1.248146317 | M58: 600 | N58: 0 | O58: 1 | P58: -600
A59: 2023-01-09 | B59: 3 | C59: =IF(B59="","",VLOOKUP(B59,'Liste choisir'!$F$2:$I$9,2)) -> 03-Prélèvement | D59: 318 | E59: 7 | F59: =IF(B59='Liste choisir'!$F$9,'Liste choisir'!$F$9*E59*100+MONTH($A59),0) -> 0 | G59: =IF(B59='Liste choisir'!$F$9,J59-I59,0) -> 0 | H59: =IF(E59="","",VLOOKUP(E59,'Liste choisir'!$A$2:$B$41,2)) -> 07-Cotisation carte bleue | I59: 3 | K59: =IF($B59='Liste choisir'!$F$9,1,0) -> 0 | L59: 1.347009392 | M59: 3 | N59: 0 | O59: 1 | P59: -3
A60: 2023-01-09 | B60: 2 | C60: =IF(B60="","",VLOOKUP(B60,'Liste choisir'!$F$2:$I$9,2)) -> 02-Carte | E60: 8 | F60: =IF(B60='Liste choisir'!$F$9,'Liste choisir'!$F$9*E60*100+MONTH($A60),0) -> 0 | G60: =IF(B60='Liste choisir'!$F$9,J60-I60,0) -> 0 | H60: =IF(E60="","",VLOOKUP(E60,'Liste choisir'!$A$2:$B$41,2)) -> 08-Nourriture - Frais de vie | I60: 23.64 | K60: =IF($B60='Liste choisir'!$F$9,1,0) -> 0 | L60: 1.396440929 | M60: 23.64 | N60: 0 | O60: 1 | P60: -23.64
A61: 2023-01-09 | B61: 2 | C61: =IF(B61="","",VLOOKUP(B61,'Liste choisir'!$F$2:$I$9,2)) -> 02-Carte | E61: 8 | F61: =IF(B61='Liste choisir'!$F$9,'Liste choisir'!$F$9*E61*100+MONTH($A61),0) -> 0 | G61: =IF(B61='Liste choisir'!$F$9,J61-I61,0) -> 0 | H61: =IF(E61="","",VLOOKUP(E61,'Liste choisir'!$A$2:$B$41,2)) -> 08-Nourriture - Frais de vie | I61: 4.27 | K61: =IF($B61='Liste choisir'!$F$9,1,0) -> 0 | L61: 1.396440929 | M61: 4.27 | N61: 0 | O61: 1 | P61: -4.27
A62: 2023-01-09 | B62: 3 | C62: =IF(B62="","",VLOOKUP(B62,'Liste choisir'!$F$2:$I$9,2)) -> 03-Prélèvement | E62: 10 | F62: =IF(B62='Liste choisir'!$F$9,'Liste choisir'!$F$9*E62*100+MONTH($A62),0) -> 0 | G62: =IF(B62='Liste choisir'!$F$9,J62-I62,0) -> 0 | H62: =IF(E62="","",VLOOKUP(E62,'Liste choisir'!$A$2:$B$41,2)) -> 10-Assurances | I62: 617.55 | K62: =IF($B62='Liste choisir'!$F$9,1,0) -> 0 | L62: 1.495304004 | M62: 617.55 | N62: 0 | O62: 1 | P62: -617.55
A63: 2023-01-09 | B63: 3 | C63: =IF(B63="","",VLOOKUP(B63,'Liste choisir'!$F$2:$I$9,2)) -> 03-Prélèvement | D63: 318 | E63: 10 | F63: =IF(B63='Liste choisir'!$F$9,'Liste choisir'!$F$9*E63*100+MONTH($A63),0) -> 0 | G63: =IF(B63='Liste choisir'!$F$9,J63-I63,0) -> 0 | H63: =IF(E63="","",VLOOKUP(E63,'Liste choisir'!$A$2:$B$41,2)) -> 10-Assurances | I63: 71 | K63: =IF($B63='Liste choisir'!$F$9,1,0) -> 0 | L63: 1.495304004 | M63: 71 | N63: 0 | O63: 1 | P63: -71
A64: 2023-01-09 | B64: 3 | C64: =IF(B64="","",VLOOKUP(B64,'Liste choisir'!$F$2:$I$9,2)) -> 03-Prélèvement | D64: 318 | E64: 12 | F64: =IF(B64='Liste choisir'!$F$9,'Liste choisir'!$F$9*E64*100+MONTH($A64),0) -> 0 | G64: =IF(B64='Liste choisir'!$F$9,J64-I64,0) -> 0 | H64: =IF(E64="","",VLOOKUP(E64,'Liste choisir'!$A$2:$B$41,2)) -> 12- | I64: 5 | K64: =IF($B64='Liste choisir'!$F$9,1,0) -> 0 | L64: 1.594167079 | M64: 5 | N64: 0 | O64: 1 | P64: -5
A65: 2023-01-09 | B65: 3 | C65: =IF(B65="","",VLOOKUP(B65,'Liste choisir'!$F$2:$I$9,2)) -> 03-Prélèvement | D65: 318 | E65: 24 | F65: =IF(B65='Liste choisir'!$F$9,'Liste choisir'!$F$9*E65*100+MONTH($A65),0) -> 0 | G65: =IF(B65='Liste choisir'!$F$9,J65-I65,0) -> 0 | H65: =IF(E65="","",VLOOKUP(E65,'Liste choisir'!$A$2:$B$41,2)) -> 24- | I65: 34 | K65: =IF($B65='Liste choisir'!$F$9,1,0) -> 0 | L65: 2.187345526 | M65: 34 | N65: 0 | O65: 1 | P65: -34
A66: 2023-01-09 | B66: 3 | C66: =IF(B66="","",VLOOKUP(B66,'Liste choisir'!$F$2:$I$9,2)) -> 03-Prélèvement | D66: 318 | E66: 25 | F66: =IF(B66='Liste choisir'!$F$9,'Liste choisir'!$F$9*E66*100+MONTH($A66),0) -> 0 | G66: =IF(B66='Liste choisir'!$F$9,J66-I66,0) -> 0 | H66: =IF(E66="","",VLOOKUP(E66,'Liste choisir'!$A$2:$B$41,2)) -> 25- | I66: 30 | K66: =IF($B66='Liste choisir'!$F$9,1,0) -> 0 | L66: 2.236777064 | M66: 30 | N66: 0 | O66: 1 | P66: -30
A67: 2023-01-09 | B67: 3 | C67: =IF(B67="","",VLOOKUP(B67,'Liste choisir'!$F$2:$I$9,2)) -> 03-Prélèvement | D67: 318 | E67: 26 | F67: =IF(B67='Liste choisir'!$F$9,'Liste choisir'!$F$9*E67*100+MONTH($A67),0) -> 0 | G67: =IF(B67='Liste choisir'!$F$9,J67-I67,0) -> 0 | H67: =IF(E67="","",VLOOKUP(E67,'Liste choisir'!$A$2:$B$41,2)) -> 26-Automobile | I67: 25 | K67: =IF($B67='Liste choisir'!$F$9,1,0) -> 0 | L67: 2.286208601 | M67: 25 | N67: 0 | O67: 1 | P67: -25
A68: 2023-01-09 | B68: 3 | C68: =IF(B68="","",VLOOKUP(B68,'Liste choisir'!$F$2:$I$9,2)) -> 03-Prélèvement | D68: 318 | E68: 31 | F68: =IF(B68='Liste choisir'!$F$9,'Liste choisir'!$F$9*E68*100+MONTH($A68),0) -> 0 | G68: =IF(B68='Liste choisir'!$F$9,J68-I68,0) -> 0 | H68: =IF(E68="","",VLOOKUP(E68,'Liste choisir'!$A$2:$B$41,2)) -> 31-Vacances | I68: 100 | K68: =IF($B68='Liste choisir'!$F$9,1,0) -> 0 | L68: 2.533366288 | M68: 100 | N68: 0 | O68: 1 | P68: -100
A69: 2023-01-09 | B69: 3 | C69: =IF(B69="","",VLOOKUP(B69,'Liste choisir'!$F$2:$I$9,2)) -> 03-Prélèvement | D69: 318 | E69: 31 | F69: =IF(B69='Liste choisir'!$F$9,'Liste choisir'!$F$9*E69*100+MONTH($A69),0) -> 0 | G69: =IF(B69='Liste choisir'!$F$9,J69-I69,0) -> 0 | H69: =IF(E69="","",VLOOKUP(E69,'Liste choisir'!$A$2:$B$41,2)) -> 31-Vacances | I69: 50 | K69: =IF($B69='Liste choisir'!$F$9,1,0) -> 0 | L69: 2.533366288 | M69: 50 | N69: 0 | O69: 1 | P69: -50
A70: 2023-01-10 | B70: 2 | C70: =IF(B70="","",VLOOKUP(B70,'Liste choisir'!$F$2:$I$9,2)) -> 02-Carte | E70: 35 | F70: =IF(B70='Liste choisir'!$F$9,'Liste choisir'!$F$9*E70*100+MONTH($A70),0) -> 0 | G70: =IF(B70='Liste choisir'!$F$9,J70-I70,0) -> 0 | H70: =IF(E70="","",VLOOKUP(E70,'Liste choisir'!$A$2:$B$41,2)) -> 35-Autres | I70: 4 | K70: =IF($B70='Liste choisir'!$F$9,1,0) -> 0 | L70: 2.731092437 | M70: 4 | N70: 0 | O70: 1 | P70: -4
A71: 2023-01-10 | B71: 2 | C71: =IF(B71="","",VLOOKUP(B71,'Liste choisir'!$F$2:$I$9,2)) -> 02-Carte | E71: 35 | F71: =IF(B71='Liste choisir'!$F$9,'Liste choisir'!$F$9*E71*100+MONTH($A71),0) -> 0 | G71: =IF(B71='Liste choisir'!$F$9,J71-I71,0) -> 0 | H71: =IF(E71="","",VLOOKUP(E71,'Liste choisir'!$A$2:$B$41,2)) -> 35-Autres | I71: 4 | K71: =IF($B71='Liste choisir'!$F$9,1,0) -> 0 | L71: 2.731092437 | M71: 4 | N71: 0 | O71: 1 | P71: -4
A72: 2023-01-11 | B72: 3 | C72: =IF(B72="","",VLOOKUP(B72,'Liste choisir'!$F$2:$I$9,2)) -> 03-Prélèvement | E72: 6 | F72: =IF(B72='Liste choisir'!$F$9,'Liste choisir'!$F$9*E72*100+MONTH($A72),0) -> 0 | G72: =IF(B72='Liste choisir'!$F$9,J72-I72,0) -> 0 | H72: =IF(E72="","",VLOOKUP(E72,'Liste choisir'!$A$2:$B$41,2)) -> 06-Frais de banque | I72: 44 | K72: =IF($B72='Liste choisir'!$F$9,1,0) -> 0 | L72: 1.297577855 | M72: 44 | N72: 0 | O72: 1 | P72: -44
A73: 2023-01-11 | B73: 3 | C73: =IF(B73="","",VLOOKUP(B73,'Liste choisir'!$F$2:$I$9,2)) -> 03-Prélèvement | E73: 34 | F73: =IF(B73='Liste choisir'!$F$9,'Liste choisir'!$F$9*E73*100+MONTH($A73),0) -> 0 | G73: =IF(B73='Liste choisir'!$F$9,J73-I73,0) -> 0 | H73: =IF(E73="","",VLOOKUP(E73,'Liste choisir'!$A$2:$B$41,2)) -> 34-Ameublement | I73: 80 | K73: =IF($B73='Liste choisir'!$F$9,1,0) -> 0 | L73: 2.6816609 | M73: 80 | N73: 0 | O73: 1 | P73: -80
A74: 2023-01-11 | B74: 3 | C74: =IF(B74="","",VLOOKUP(B74,'Liste choisir'!$F$2:$I$9,2)) -> 03-Prélèvement | E74: 34 | F74: =IF(B74='Liste choisir'!$F$9,'Liste choisir'!$F$9*E74*100+MONTH($A74),0) -> 0 | G74: =IF(B74='Liste choisir'!$F$9,J74-I74,0) -> 0 | H74: =IF(E74="","",VLOOKUP(E74,'Liste choisir'!$A$2:$B$41,2)) -> 34-Ameublement | I74: 100 | K74: =IF($B74='Liste choisir'!$F$9,1,0) -> 0 | L74: 2.6816609 | M74: 100 | N74: 0 | O74: 1 | P74: -100
A75: 2023-01-11 | B75: 5 | C75: =IF(B75="","",VLOOKUP(B75,'Liste choisir'!$F$2:$I$9,2)) -> 05-Virement reçu | E75: 34 | F75: =IF(B75='Liste choisir'!$F$9,'Liste choisir'!$F$9*E75*100+MONTH($A75),0) -> 0 | G75: =IF(B75='Liste choisir'!$F$9,J75-I75,0) -> 0 | H75: =IF(E75="","",VLOOKUP(E75,'Liste choisir'!$A$2:$B$41,2)) -> 34-Ameublement | J75: 180 | K75: =IF($B75='Liste choisir'!$F$9,1,0) -> 0 | L75: 2.6816609 | M75: 0 | N75: 180 | O75: 1 | P75: 180
A76: 2023-01-12 | B76: 3 | C76: =IF(B76="","",VLOOKUP(B76,'Liste choisir'!$F$2:$I$9,2)) -> 03-Prélèvement | E76: 3 | F76: =IF(B76='Liste choisir'!$F$9,'Liste choisir'!$F$9*E76*100+MONTH($A76),0) -> 0 | G76: =IF(B76='Liste choisir'!$F$9,J76-I76,0) -> 0 | H76: =IF(E76="","",VLOOKUP(E76,'Liste choisir'!$A$2:$B$41,2)) -> 03- | I76: 65272 | K76: =IF($B76='Liste choisir'!$F$9,1,0) -> 0 | L76: 1.149283243 | M76: =IF(O76+K76>0,I76,"") -> 65272 | N76: =IF(O76+K76>0,J76,"") -> 0 | O76: 1 | P76: =IF(O76+K76=0,"",(J76-I76)) -> -65272
A77: 2023-01-12 | B77: 3 | C77: =IF(B77="","",VLOOKUP(B77,'Liste choisir'!$F$2:$I$9,2)) -> 03-Prélèvement | E77: 3 | F77: =IF(B77='Liste choisir'!$F$9,'Liste choisir'!$F$9*E77*100+MONTH($A77),0) -> 0 | G77: =IF(B77='Liste choisir'!$F$9,J77-I77,0) -> 0 | H77: =IF(E77="","",VLOOKUP(E77,'Liste choisir'!$A$2:$B$41,2)) -> 03- | I77: 40000 | K77: =IF($B77='Liste choisir'!$F$9,1,0) -> 0 | L77: 1.149283243 | M77: 40000 | N77: 0 | O77: 1 | P77: -40000
A78: 2023-01-12 | B78: 3 | C78: =IF(B78="","",VLOOKUP(B78,'Liste choisir'!$F$2:$I$9,2)) -> 03-Prélèvement | E78: 3 | F78: =IF(B78='Liste choisir'!$F$9,'Liste choisir'!$F$9*E78*100+MONTH($A78),0) -> 0 | G78: =IF(B78='Liste choisir'!$F$9,J78-I78,0) -> 0 | H78: =IF(E78="","",VLOOKUP(E78,'Liste choisir'!$A$2:$B$41,2)) -> 03- | I78: 6607.94 | K78: =IF($B78='Liste choisir'!$F$9,1,0) -> 0 | L78: 1.149283243 | M78: 6607.94 | N78: 0 | O78: 1 | P78: -6607.94
A79: 2023-01-12 | B79: 5 | C79: =IF(B79="","",VLOOKUP(B79,'Liste choisir'!$F$2:$I$9,2)) -> 05-Virement reçu | E79: 3 | F79: =IF(B79='Liste choisir'!$F$9,'Liste choisir'!$F$9*E79*100+MONTH($A79),0) -> 0 | G79: =IF(B79='Liste choisir'!$F$9,J79-I79,0) -> 0 | H79: =IF(E79="","",VLOOKUP(E79,'Liste choisir'!$A$2:$B$41,2)) -> 03- | J79: 111879.14 | K79: =IF($B79='Liste choisir'!$F$9,1,0) -> 0 | L79: 1.149283243 | M79: 0 | N79: 111879.14 | O79: 1 | P79: 111879.14
A80: 2023-01-12 | B80: 3 | C80: =IF(B80="","",VLOOKUP(B80,'Liste choisir'!$F$2:$I$9,2)) -> 03-Prélèvement | E80: 6 | F80: =IF(B80='Liste choisir'!$F$9,'Liste choisir'!$F$9*E80*100+MONTH($A80),0) -> 0 | G80: =IF(B80='Liste choisir'!$F$9,J80-I80,0) -> 0 | H80: =IF(E80="","",VLOOKUP(E80,'Liste choisir'!$A$2:$B$41,2)) -> 06-Frais de banque | I80: 4.73 | K80: =IF($B80='Liste choisir'!$F$9,1,0) -> 0 | L80: 1.297577855 | M80: 4.73 | N80: 0 | O80: 1 | P80: -4.73
A81: 2023-01-12 | B81: 2 | C81: =IF(B81="","",VLOOKUP(B81,'Liste choisir'!$F$2:$I$9,2)) -> 02-Carte | E81: 8 | F81: =IF(B81='Liste choisir'!$F$9,'Liste choisir'!$F$9*E81*100+MONTH($A81),0) -> 0 | G81: =IF(B81='Liste choisir'!$F$9,J81-I81,0) -> 0 | H81: =IF(E81="","",VLOOKUP(E81,'Liste choisir'!$A$2:$B$41,2)) -> 08-Nourriture - Frais de vie | I81: 22.12 | K81: =IF($B81='Liste choisir'!$F$9,1,0) -> 0 | L81: 1.396440929 | M81: 22.12 | N81: 0 | O81: 1 | P81: -22.12
A82: 2023-01-12 | B82: 2 | C82: =IF(B82="","",VLOOKUP(B82,'Liste choisir'!$F$2:$I$9,2)) -> 02-Carte | E82: 8 | F82: =IF(B82='Liste choisir'!$F$9,'Liste choisir'!$F$9*E82*100+MONTH($A82),0) -> 0 | G82: =IF(B82='Liste choisir'!$F$9,J82-I82,0) -> 0 | H82: =IF(E82="","",VLOOKUP(E82,'Liste choisir'!$A$2:$B$41,2)) -> 08-Nourriture - Frais de vie | I82: 3.94 | K82: =IF($B82='Liste choisir'!$F$9,1,0) -> 0 | L82: 1.396440929 | M82: 3.94 | N82: 0 | O82: 1 | P82: -3.94
A83: 2023-01-12 | B83: 2 | C83: =IF(B83="","",VLOOKUP(B83,'Liste choisir'!$F$2:$I$9,2)) -> 02-Carte | E83: 23 | F83: =IF(B83='Liste choisir'!$F$9,'Liste choisir'!$F$9*E83*100+MONTH($A83),0) -> 0 | G83: =IF(B83='Liste choisir'!$F$9,J83-I83,0) -> 0 | H83: =IF(E83="","",VLOOKUP(E83,'Liste choisir'!$A$2:$B$41,2)) -> 23-High-tech, outils, etc | I83: 1.99 | K83: =IF($B83='Liste choisir'!$F$9,1,0) -> 0 | L83: 2.137913989 | M83: 1.99 | N83: 0 | O83: 1 | P83: -1.99
A84: 2023-01-13 | B84: 5 | C84: =IF(B84="","",VLOOKUP(B84,'Liste choisir'!$F$2:$I$9,2)) -> 05-Virement reçu | E84: 3 | F84: =IF(B84='Liste choisir'!$F$9,'Liste choisir'!$F$9*E84*100+MONTH($A84),0) -> 0 | G84: =IF(B84='Liste choisir'!$F$9,J84-I84,0) -> 0 | H84: =IF(E84="","",VLOOKUP(E84,'Liste choisir'!$A$2:$B$41,2)) -> 03- | J84: 35 | K84: =IF($B84='Liste choisir'!$F$9,1,0) -> 0 | L84: 1.149283243 | M84: 0 | N84: 35 | O84: 1 | P84: 35
A85: 2023-01-13 | B85: 3 | C85: =IF(B85="","",VLOOKUP(B85,'Liste choisir'!$F$2:$I$9,2)) -> 03-Prélèvement | E85: 34 | F85: =IF(B85='Liste choisir'!$F$9,'Liste choisir'!$F$9*E85*100+MONTH($A85),0) -> 0 | G85: =IF(B85='Liste choisir'!$F$9,J85-I85,0) -> 0 | H85: =IF(E85="","",VLOOKUP(E85,'Liste choisir'!$A$2:$B$41,2)) -> 34-Ameublement | I85: 100 | K85: =IF($B85='Liste choisir'!$F$9,1,0) -> 0 | L85: 2.6816609 | M85: 100 | N85: 0 | O85: 1 | P85: -100
A86: 2023-01-14 | B86: 2 | C86: =IF(B86="","",VLOOKUP(B86,'Liste choisir'!$F$2:$I$9,2)) -> 02-Carte | E86: 8 | F86: =IF(B86='Liste choisir'!$F$9,'Liste choisir'!$F$9*E86*100+MONTH($A86),0) -> 0 | G86: =IF(B86='Liste choisir'!$F$9,J86-I86,0) -> 0 | H86: =IF(E86="","",VLOOKUP(E86,'Liste choisir'!$A$2:$B$41,2)) -> 08-Nourriture - Frais de vie | I86: 19.38 | K86: =IF($B86='Liste choisir'!$F$9,1,0) -> 0 | L86: 1.396440929 | M86: 19.38 | N86: 0 | O86: 1 | P86: -19.38
A87: 2023-01-14 | B87: 2 | C87: =IF(B87="","",VLOOKUP(B87,'Liste choisir'!$F$2:$I$9,2)) -> 02-Carte | E87: 16 | F87: =IF(B87='Liste choisir'!$F$9,'Liste choisir'!$F$9*E87*100+MONTH($A87),0) -> 0 | G87: =IF(B87='Liste choisir'!$F$9,J87-I87,0) -> 0 | H87: =IF(E87="","",VLOOKUP(E87,'Liste choisir'!$A$2:$B$41,2)) -> 16-Carburant | I87: 31.51 | K87: =IF($B87='Liste choisir'!$F$9,1,0) -> 0 | L87: =IF(I87+J87=0,"",(E87*100+(YEAR($A87)+MONTH($A87)+MONTH($A87)))/((YEAR($A87)))) -> 1.791893228 | M87: 31.51 | N87: 0 | O87: 1 | P87: -31.51
A88: 2023-01-14 | B88: 2 | C88: =IF(B88="","",VLOOKUP(B88,'Liste choisir'!$F$2:$I$9,2)) -> 02-Carte | E88: 26 | F88: =IF(B88='Liste choisir'!$F$9,'Liste choisir'!$F$9*E88*100+MONTH($A88),0) -> 0 | G88: =IF(B88='Liste choisir'!$F$9,J88-I88,0) -> 0 | H88: =IF(E88="","",VLOOKUP(E88,'Liste choisir'!$A$2:$B$41,2)) -> 26-Automobile | I88: 8 | K88: =IF($B88='Liste choisir'!$F$9,1,0) -> 0 | L88: 2.286208601 | M88: 8 | N88: 0 | O88: 1 | P88: -8
A89: 2023-01-16 | B89: 2 | C89: =IF(B89="","",VLOOKUP(B89,'Liste choisir'!$F$2:$I$9,2)) -> 02-Carte | E89: 8 | F89: =IF(B89='Liste choisir'!$F$9,'Liste choisir'!$F$9*E89*100+MONTH($A89),0) -> 0 | G89: =IF(B89='Liste choisir'!$F$9,J89-I89,0) -> 0 | H89: =IF(E89="","",VLOOKUP(E89,'Liste choisir'!$A$2:$B$41,2)) -> 08-Nourriture - Frais de vie | I89: 37.37 | K89: =IF($B89='Liste choisir'!$F$9,1,0) -> 0 | L89: 1.396440929 | M89: 37.37 | N89: 0 | O89: 1 | P89: -37.37
A90: 2023-01-16 | B90: 2 | C90: =IF(B90="","",VLOOKUP(B90,'Liste choisir'!$F$2:$I$9,2)) -> 02-Carte | E90: 8 | F90: =IF(B90='Liste choisir'!$F$9,'Liste choisir'!$F$9*E90*100+MONTH($A90),0) -> 0 | G90: =IF(B90='Liste choisir'!$F$9,J90-I90,0) -> 0 | H90: =IF(E90="","",VLOOKUP(E90,'Liste choisir'!$A$2:$B$41,2)) -> 08-Nourriture - Frais de vie | I90: 16.01 | K90: =IF($B90='Liste choisir'!$F$9,1,0) -> 0 | L90: 1.396440929 | M90: 16.01 | N90: 0 | O90: 1 | P90: -16.01
A91: 2023-01-17 | B91: 2 | C91: =IF(B91="","",VLOOKUP(B91,'Liste choisir'!$F$2:$I$9,2)) -> 02-Carte | E91: 16 | F91: =IF(B91='Liste choisir'!$F$9,'Liste choisir'!$F$9*E91*100+MONTH($A91),0) -> 0 | G91: =IF(B91='Liste choisir'!$F$9,J91-I91,0) -> 0 | H91: =IF(E91="","",VLOOKUP(E91,'Liste choisir'!$A$2:$B$41,2)) -> 16-Carburant | I91: 22.04 | K91: =IF($B91='Liste choisir'!$F$9,1,0) -> 0 | L91: 1.791893228 | M91: 22.04 | N91: 0 | O91: 1 | P91: -22.04
A92: 2023-01-18 | B92: 4 | C92: =IF(B92="","",VLOOKUP(B92,'Liste choisir'!$F$2:$I$9,2)) -> 04-Internet - PayPal - TIP | E92: 17 | F92: =IF(B92='Liste choisir'!$F$9,'Liste choisir'!$F$9*E92*100+MONTH($A92),0) -> 0 | G92: =IF(B92='Liste choisir'!$F$9,J92-I92,0) -> 0 | H92: =IF(E92="","",VLOOKUP(E92,'Liste choisir'!$A$2:$B$41,2)) -> 17-EDF | I92: 102.46 | K92: =IF($B92='Liste choisir'!$F$9,1,0) -> 0 | L92: 1.841324765 | M92: 102.46 | N92: 0 | O92: 1 | P92: -102.46
A93: 2023-01-18 | B93: 4 | C93: =IF(B93="","",VLOOKUP(B93,'Liste choisir'!$F$2:$I$9,2)) -> 04-Internet - PayPal - TIP | E93: 38 | F93: =IF(B93='Liste choisir'!$F$9,'Liste choisir'!$F$9*E93*100+MONTH($A93),0) -> 0 | G93: =IF(B93='Liste choisir'!$F$9,J93-I93,0) -> 0 | H93: =IF(E93="","",VLOOKUP(E93,'Liste choisir'!$A$2:$B$41,2)) -> 38- | I93: 159.08 | K93: =IF($B93='Liste choisir'!$F$9,1,0) -> 0 | L93: 2.879387049 | M93: 159.08 | N93: 0 | O93: 1 | P93: -159.08
A94: 2023-01-19 | B94: 2 | C94: =IF(B94="","",VLOOKUP(B94,'Liste choisir'!$F$2:$I$9,2)) -> 02-Carte | E94: 8 | F94: =IF(B94='Liste choisir'!$F$9,'Liste choisir'!$F$9*E94*100+MONTH($A94),0) -> 0 | G94: =IF(B94='Liste choisir'!$F$9,J94-I94,0) -> 0 | H94: =IF(E94="","",VLOOKUP(E94,'Liste choisir'!$A$2:$B$41,2)) -> 08-Nourriture - Frais de vie | I94: 13.01 | K94: =IF($B94='Liste choisir'!$F$9,1,0) -> 0 | L94: 1.396440929 | M94: 13.01 | N94: 0 | O94: 1 | P94: -13.01
A95: 2023-01-19 | B95: 2 | C95: =IF(B95="","",VLOOKUP(B95,'Liste choisir'!$F$2:$I$9,2)) -> 02-Carte | E95: 9 | F95: =IF(B95='Liste choisir'!$F$9,'Liste choisir'!$F$9*E95*100+MONTH($A95),0) -> 0 | G95: =IF(B95='Liste choisir'!$F$9,J95-I95,0) -> 0 | H95: =IF(E95="","",VLOOKUP(E95,'Liste choisir'!$A$2:$B$41,2)) -> 9- | I95: 8.54 | K95: =IF($B95='Liste choisir'!$F$9,1,0) -> 0 | L95: 1.445872467 | M95: 8.54 | N95: 0 | O95: 1 | P95: -8.54
A96: 2023-01-19 | B96: 2 | C96: =IF(B96="","",VLOOKUP(B96,'Liste choisir'!$F$2:$I$9,2)) -> 02-Carte | E96: 13 | F96: =IF(B96='Liste choisir'!$F$9,'Liste choisir'!$F$9*E96*100+MONTH($A96),0) -> 0 | G96: =IF(B96='Liste choisir'!$F$9,J96-I96,0) -> 0 | H96: =IF(E96="","",VLOOKUP(E96,'Liste choisir'!$A$2:$B$41,2)) -> 13-Santé health | I96: 4.99 | K96: =IF($B96='Liste choisir'!$F$9,1,0) -> 0 | L96: 1.643598616 | M96: 4.99 | N96: 0 | O96: 1 | P96: -4.99
A97: 2023-01-20 | B97: 5 | C97: =IF(B97="","",VLOOKUP(B97,'Liste choisir'!$F$2:$I$9,2)) -> 05-Virement reçu | E97: 3 | F97: =IF(B97='Liste choisir'!$F$9,'Liste choisir'!$F$9*E97*100+MONTH($A97),0) -> 0 | G97: =IF(B97='Liste choisir'!$F$9,J97-I97,0) -> 0 | H97: =IF(E97="","",VLOOKUP(E97,'Liste choisir'!$A$2:$B$41,2)) -> 03- | J97: 100 | K97: =IF($B97='Liste choisir'!$F$9,1,0) -> 0 | L97: 1.149283243 | M97: 0 | N97: 100 | O97: 1 | P97: 100
A98: 2023-01-20 | B98: 3 | C98: =IF(B98="","",VLOOKUP(B98,'Liste choisir'!$F$2:$I$9,2)) -> 03-Prélèvement | E98: 20 | F98: =IF(B98='Liste choisir'!$F$9,'Liste choisir'!$F$9*E98*100+MONTH($A98),0) -> 0 | G98: =IF(B98='Liste choisir'!$F$9,J98-I98,0) -> 0 | H98: =IF(E98="","",VLOOKUP(E98,'Liste choisir'!$A$2:$B$41,2)) -> 20-Autoroute - Transport | I98: 61.1 | K98: =IF($B98='Liste choisir'!$F$9,1,0) -> 0 | L98: 1.989619377 | M98: 61.1 | N98: 0 | O98: 1 | P98: -61.1
A99: 2023-01-20 | B99: 2 | C99: =IF(B99="","",VLOOKUP(B99,'Liste choisir'!$F$2:$I$9,2)) -> 02-Carte | E99: 21 | F99: =IF(B99='Liste choisir'!$F$9,'Liste choisir'!$F$9*E99*100+MONTH($A99),0) -> 0 | G99: =IF(B99='Liste choisir'!$F$9,J99-I99,0) -> 0 | H99: =IF(E99="","",VLOOKUP(E99,'Liste choisir'!$A$2:$B$41,2)) -> 21- | I99: 22 | K99: =IF($B99='Liste choisir'!$F$9,1,0) -> 0 | L99: 2.039050914 | M99: 22 | N99: 0 | O99: 1 | P99: -22
A100: 2023-01-20 | B100: 5 | C100: =IF(B100="","",VLOOKUP(B100,'Liste choisir'!$F$2:$I$9,2)) -> 05-Virement reçu | E100: 34 | F100: =IF(B100='Liste choisir'!$F$9,'Liste choisir'!$F$9*E100*100+MONTH($A100),0) -> 0 | G100: =IF(B100='Liste choisir'!$F$9,J100-I100,0) -> 0 | H100: =IF(E100="","",VLOOKUP(E100,'Liste choisir'!$A$2:$B$41,2)) -> 34-Ameublement | J100: 100 | K100: =IF($B100='Liste choisir'!$F$9,1,0) -> 0 | L100: 2.6816609 | M100: 0 | N100: 100 | O100: 1 | P100: 100
A101: 2023-01-23 | B101: 3 | C101: =IF(B101="","",VLOOKUP(B101,'Liste choisir'!$F$2:$I$9,2)) -> 03-Prélèvement | E101: 5 | F101: =IF(B101='Liste choisir'!$F$9,'Liste choisir'!$F$9*E101*100+MONTH($A101),0) -> 0 | G101: =IF(B101='Liste choisir'!$F$9,J101-I101,0) -> 0 | H101: =IF(E101="","",VLOOKUP(E101,'Liste choisir'!$A$2:$B$41,2)) -> 05-Loyer | I101: 710 | K101: =IF($B101='Liste choisir'!$F$9,1,0) -> 0 | L101: 1.248146317 | M101: 710 | N101: 0 | O101: 1 | P101: -710
A102: 2023-01-24 | B102: 2 | C102: =IF(B102="","",VLOOKUP(B102,'Liste choisir'!$F$2:$I$9,2)) -> 02-Carte | E102: 8 | F102: =IF(B102='Liste choisir'!$F$9,'Liste choisir'!$F$9*E102*100+MONTH($A102),0) -> 0 | G102: =IF(B102='Liste choisir'!$F$9,J102-I102,0) -> 0 | H102: =IF(E102="","",VLOOKUP(E102,'Liste choisir'!$A$2:$B$41,2)) -> 08-Nourriture - Frais de vie | I102: 21.66 | K102: =IF($B102='Liste choisir'!$F$9,1,0) -> 0 | L102: 1.396440929 | M102: 21.66 | N102: 0 | O102: 1 | P102: -21.66
A103: 2023-01-24 | B103: 2 | C103: =IF(B103="","",VLOOKUP(B103,'Liste choisir'!$F$2:$I$9,2)) -> 02-Carte | E103: 9 | F103: =IF(B103='Liste choisir'!$F$9,'Liste choisir'!$F$9*E103*100+MONTH($A103),0) -> 0 | G103: =IF(B103='Liste choisir'!$F$9,J103-I103,0) -> 0 | H103: =IF(E103="","",VLOOKUP(E103,'Liste choisir'!$A$2:$B$41,2)) -> 9- | I103: 20 | K103: =IF($B103='Liste choisir'!$F$9,1,0) -> 0 | L103: 1.445872467 | M103: 20 | N103: 0 | O103: 1 | P103: -20
A104: 2023-01-24 | B104: 4 | C104: =IF(B104="","",VLOOKUP(B104,'Liste choisir'!$F$2:$I$9,2)) -> 04-Internet - PayPal - TIP | E104: 33 | F104: =IF(B104='Liste choisir'!$F$9,'Liste choisir'!$F$9*E104*100+MONTH($A104),0) -> 0 | G104: =IF(B104='Liste choisir'!$F$9,J104-I104,0) -> 0 | H104: =IF(E104="","",VLOOKUP(E104,'Liste choisir'!$A$2:$B$41,2)) -> 33-Vêtements - linge | I104: 14.2 | K104: =IF($B104='Liste choisir'!$F$9,1,0) -> 0 | L104: 2.632229362 | M104: 14.2 | N104: 0 | O104: 1 | P104: -14.2
A105: 2023-01-26 | B105: 5 | C105: =IF(B105="","",VLOOKUP(B105,'Liste choisir'!$F$2:$I$9,2)) -> 05-Virement reçu | E105: 3 | F105: =IF(B105='Liste choisir'!$F$9,'Liste choisir'!$F$9*E105*100+MONTH($A105),0) -> 0 | G105: =IF(B105='Liste choisir'!$F$9,J105-I105,0) -> 0 | H105: =IF(E105="","",VLOOKUP(E105,'Liste choisir'!$A$2:$B$41,2)) -> 03- | J105: 159 | K105: =IF($B105='Liste choisir'!$F$9,1,0) -> 0 | L105: 1.149283243 | M105: 0 | N105: 159 | O105: 1 | P105: 159
A106: 2023-01-26 | B106: 5 | C106: =IF(B106="","",VLOOKUP(B106,'Liste choisir'!$F$2:$I$9,2)) -> 05-Virement reçu | E106: 3 | F106: =IF(B106='Liste choisir'!$F$9,'Liste choisir'!$F$9*E106*100+MONTH($A106),0) -> 0 | G106: =IF(B106='Liste choisir'!$F$9,J106-I106,0) -> 0 | H106: =IF(E106="","",VLOOKUP(E106,'Liste choisir'!$A$2:$B$41,2)) -> 03- | J106: 801 | K106: =IF($B106='Liste choisir'!$F$9,1,0) -> 0 | L106: 1.149283243 | M106: 0 | N106: 801 | O106: 1 | P106: 801
A107: 2023-01-26 | B107: 4 | C107: =IF(B107="","",VLOOKUP(B107,'Liste choisir'!$F$2:$I$9,2)) -> 04-Internet - PayPal - TIP | E107: 22 | F107: =IF(B107='Liste choisir'!$F$9,'Liste choisir'!$F$9*E107*100+MONTH($A107),0) -> 0 | G107: =IF(B107='Liste choisir'!$F$9,J107-I107,0) -> 0 | H107: =IF(E107="","",VLOOKUP(E107,'Liste choisir'!$A$2:$B$41,2)) -> 22- | I107: 29.2 | K107: =IF($B107='Liste choisir'!$F$9,1,0) -> 0 | L107: 2.088482452 | M107: 29.2 | N107: 0 | O107: 1 | P107: -29.2
A108: 2023-01-27 | B108: 2 | C108: =IF(B108="","",VLOOKUP(B108,'Liste choisir'!$F$2:$I$9,2)) -> 02-Carte | E108: 8 | F108: =IF(B108='Liste choisir'!$F$9,'Liste choisir'!$F$9*E108*100+MONTH($A108),0) -> 0 | G108: =IF(B108='Liste choisir'!$F$9,J108-I108,0) -> 0 | H108: =IF(E108="","",VLOOKUP(E108,'Liste choisir'!$A$2:$B$41,2)) -> 08-Nourriture - Frais de vie | I108: 17.47 | K108: =IF($B108='Liste choisir'!$F$9,1,0) -> 0 | L108: 1.396440929 | M108: 17.47 | N108: 0 | O108: 1 | P108: -17.47
A109: 2023-01-27 | B109: 3 | C109: =IF(B109="","",VLOOKUP(B109,'Liste choisir'!$F$2:$I$9,2)) -> 03-Prélèvement | E109: 14 | F109: =IF(B109='Liste choisir'!$F$9,'Liste choisir'!$F$9*E109*100+MONTH($A109),0) -> 0 | G109: =IF(B109='Liste choisir'!$F$9,J109-I109,0) -> 0 | H109: =IF(E109="","",VLOOKUP(E109,'Liste choisir'!$A$2:$B$41,2)) -> 14-Internet | I109: 20.99 | K109: =IF($B109='Liste choisir'!$F$9,1,0) -> 0 | L109: 1.693030153 | M109: 20.99 | N109: 0 | O109: 1 | P109: -20.99
A110: 2023-01-27 | B110: 2 | C110: =IF(B110="","",VLOOKUP(B110,'Liste choisir'!$F$2:$I$9,2)) -> 02-Carte | E110: 16 | F110: =IF(B110='Liste choisir'!$F$9,'Liste choisir'!$F$9*E110*100+MONTH($A110),0) -> 0 | G110: =IF(B110='Liste choisir'!$F$9,J110-I110,0) -> 0 | H110: =IF(E110="","",VLOOKUP(E110,'Liste choisir'!$A$2:$B$41,2)) -> 16-Carburant | I110: 37.99 | K110: =IF($B110='Liste choisir'!$F$9,1,0) -> 0 | L110: 1.791893228 | M110: 37.99 | N110: 0 | O110: 1 | P110: -37.99
A111: 2023-01-27 | B111: 2 | C111: =IF(B111="","",VLOOKUP(B111,'Liste choisir'!$F$2:$I$9,2)) -> 02-Carte | E111: 22 | F111: =IF(B111='Liste choisir'!$F$9,'Liste choisir'!$F$9*E111*100+MONTH($A111),0) -> 0 | G111: =IF(B111='Liste choisir'!$F$9,J111-I111,0) -> 0 | H111: =IF(E111="","",VLOOKUP(E111,'Liste choisir'!$A$2:$B$41,2)) -> 22- | I111: 5.9 | K111: =IF($B111='Liste choisir'!$F$9,1,0) -> 0 | L111: 2.088482452 | M111: 5.9 | N111: 0 | O111: 1 | P111: -5.9
A112: 2023-01-27 | B112: 2 | C112: =IF(B112="","",VLOOKUP(B112,'Liste choisir'!$F$2:$I$9,2)) -> 02-Carte | E112: 33 | F112: =IF(B112='Liste choisir'!$F$9,'Liste choisir'!$F$9*E112*100+MONTH($A112),0) -> 0 | G112: =IF(B112='Liste choisir'!$F$9,J112-I112,0) -> 0 | H112: =IF(E112="","",VLOOKUP(E112,'Liste choisir'!$A$2:$B$41,2)) -> 33-Vêtements - linge | I112: 15 | K112: =IF($B112='Liste choisir'!$F$9,1,0) -> 0 | L112: 2.632229362 | M112: 15 | N112: 0 | O112: 1 | P112: -15
A113: 2023-01-27 | B113: 7 | C113: =IF(B113="","",VLOOKUP(B113,'Liste choisir'!$F$2:$I$9,2)) -> 07-Retrait distributeur | E113: 34 | F113: =IF(B113='Liste choisir'!$F$9,'Liste choisir'!$F$9*E113*100+MONTH($A113),0) -> 0 | G113: =IF(B113='Liste choisir'!$F$9,J113-I113,0) -> 0 | H113: =IF(E113="","",VLOOKUP(E113,'Liste choisir'!$A$2:$B$41,2)) -> 34-Ameublement | I113: 750 | K113: =IF($B113='Liste choisir'!$F$9,1,0) -> 0 | L113: 2.6816609 | M113: 750 | N113: 0 | O113: 1 | P113: -750
A114: 2023-01-27 | B114: 4 | C114: =IF(B114="","",VLOOKUP(B114,'Liste choisir'!$F$2:$I$9,2)) -> 04-Internet - PayPal - TIP | E114: 38 | F114: =IF(B114='Liste choisir'!$F$9,'Liste choisir'!$F$9*E114*100+MONTH($A114),0) -> 0 | G114: =IF(B114='Liste choisir'!$F$9,J114-I114,0) -> 0 | H114: =IF(E114="","",VLOOKUP(E114,'Liste choisir'!$A$2:$B$41,2)) -> 38- | I114: 40 | K114: =IF($B114='Liste choisir'!$F$9,1,0) -> 0 | L114: 2.879387049 | M114: 40 | N114: 0 | O114: 1 | P114: -40
A115: 2023-01-29 | B115: 2 | C115: =IF(B115="","",VLOOKUP(B115,'Liste choisir'!$F$2:$I$9,2)) -> 02-Carte | E115: 38 | F115: =IF(B115='Liste choisir'!$F$9,'Liste choisir'!$F$9*E115*100+MONTH($A115),0) -> 0 | G115: =IF(B115='Liste choisir'!$F$9,J115-I115,0) -> 0 | H115: =IF(E115="","",VLOOKUP(E115,'Liste choisir'!$A$2:$B$41,2)) -> 38- | I115: 12.6 | K115: =IF($B115='Liste choisir'!$F$9,1,0) -> 0 | L115: 2.879387049 | M115: 12.6 | N115: 0 | O115: 1 | P115: -12.6
A116: 2023-01-29 | B116: 2 | C116: =IF(B116="","",VLOOKUP(B116,'Liste choisir'!$F$2:$I$9,2)) -> 02-Carte | E116: 38 | F116: =IF(B116='Liste choisir'!$F$9,'Liste choisir'!$F$9*E116*100+MONTH($A116),0) -> 0 | G116: =IF(B116='Liste choisir'!$F$9,J116-I116,0) -> 0 | H116: =IF(E116="","",VLOOKUP(E116,'Liste choisir'!$A$2:$B$41,2)) -> 38- | I116: 3.9 | K116: =IF($B116='Liste choisir'!$F$9,1,0) -> 0 | L116: 2.879387049 | M116: 3.9 | N116: 0 | O116: 1 | P116: -3.9
A117: 2023-01-29 | B117: 2 | C117: =IF(B117="","",VLOOKUP(B117,'Liste choisir'!$F$2:$I$9,2)) -> 02-Carte | E117: 38 | F117: =IF(B117='Liste choisir'!$F$9,'Liste choisir'!$F$9*E117*100+MONTH($A117),0) -> 0 | G117: =IF(B117='Liste choisir'!$F$9,J117-I117,0) -> 0 | H117: =IF(E117="","",VLOOKUP(E117,'Liste choisir'!$A$2:$B$41,2)) -> 38- | I117: 3.9 | K117: =IF($B117='Liste choisir'!$F$9,1,0) -> 0 | L117: 2.879387049 | M117: 3.9 | N117: 0 | O117: 1 | P117: -3.9
A118: 2023-01-30 | B118: 5 | C118: =IF(B118="","",VLOOKUP(B118,'Liste choisir'!$F$2:$I$9,2)) -> 05-Virement reçu | E118: 3 | F118: =IF(B118='Liste choisir'!$F$9,'Liste choisir'!$F$9*E118*100+MONTH($A118),0) -> 0 | G118: =IF(B118='Liste choisir'!$F$9,J118-I118,0) -> 0 | H118: =IF(E118="","",VLOOKUP(E118,'Liste choisir'!$A$2:$B$41,2)) -> 03- | J118: 140 | K118: =IF($B118='Liste choisir'!$F$9,1,0) -> 0 | L118: 1.149283243 | M118: 0 | N118: 140 | O118: 1 | P118: 140
A119: 2023-01-30 | B119: 1 | C119: =IF(B119="","",VLOOKUP(B119,'Liste choisir'!$F$2:$I$9,2)) -> 01-Chèque | D119: 7715098 | E119: 17 | F119: =IF(B119='Liste choisir'!$F$9,'Liste choisir'!$F$9*E119*100+MONTH($A119),0) -> 0 | G119: =IF(B119='Liste choisir'!$F$9,J119-I119,0) -> 0 | H119: =IF(E119="","",VLOOKUP(E119,'Liste choisir'!$A$2:$B$41,2)) -> 17-EDF | I119: 93 | K119: =IF($B119='Liste choisir'!$F$9,1,0) -> 0 | L119: 1.841324765 | M119: 93 | N119: 0 | O119: 1 | P119: -93
A120: 2023-01-30 | B120: 4 | C120: =IF(B120="","",VLOOKUP(B120,'Liste choisir'!$F$2:$I$9,2)) -> 04-Internet - PayPal - TIP | E120: 34 | F120: =IF(B120='Liste choisir'!$F$9,'Liste choisir'!$F$9*E120*100+MONTH($A120),0) -> 0 | G120: =IF(B120='Liste choisir'!$F$9,J120-I120,0) -> 0 | H120: =IF(E120="","",VLOOKUP(E120,'Liste choisir'!$A$2:$B$41,2)) -> 34-Ameublement | I120: 27.97 | K120: =IF($B120='Liste choisir'!$F$9,1,0) -> 0 | L120: 2.6816609 | M120: 27.97 | N120: 0 | O120: 1 | P120: -27.97
A121: 2023-01-30 | B121: 2 | C121: =IF(B121="","",VLOOKUP(B121,'Liste choisir'!$F$2:$I$9,2)) -> 02-Carte | E121: 38 | F121: =IF(B121='Liste choisir'!$F$9,'Liste choisir'!$F$9*E121*100+MONTH($A121),0) -> 0 | G121: =IF(B121='Liste choisir'!$F$9,J121-I121,0) -> 0 | H121: =IF(E121="","",VLOOKUP(E121,'Liste choisir'!$A$2:$B$41,2)) -> 38- | I121: 77.97 | K121: =IF($B121='Liste choisir'!$F$9,1,0) -> 0 | L121: 2.879387049 | M121: 77.97 | N121: 0 | O121: 1 | P121: -77.97
A122: 2023-02-01 | B122: 5 | C122: =IF(B122="","",VLOOKUP(B122,'Liste choisir'!$F$2:$I$9,2)) -> 05-Virement reçu | E122: 1 | F122: =IF(B122='Liste choisir'!$F$9,'Liste choisir'!$F$9*E122*100+MONTH($A122),0) -> 0 | G122: =IF(B122='Liste choisir'!$F$9,J122-I122,0) -> 0 | H122: =IF(E122="","",VLOOKUP(E122,'Liste choisir'!$A$2:$B$41,2)) -> 01-Salaire | J122: 1367.37 | K122: =IF($B122='Liste choisir'!$F$9,1,0) -> 0 | L122: 1.051408799 | M122: 0 | N122: 1367.37 | O122: 1 | P122: 1367.37
A123: 2023-02-01 | B123: 5 | C123: =IF(B123="","",VLOOKUP(B123,'Liste choisir'!$F$2:$I$9,2)) -> 05-Virement reçu | E123: 2 | F123: =IF(B123='Liste choisir'!$F$9,'Liste choisir'!$F$9*E123*100+MONTH($A123),0) -> 0 | G123: =IF(B123='Liste choisir'!$F$9,J123-I123,0) -> 0 | H123: =IF(E123="","",VLOOKUP(E123,'Liste choisir'!$A$2:$B$41,2)) -> 02- | J123: 699.94 | K123: =IF($B123='Liste choisir'!$F$9,1,0) -> 0 | L123: 1.100840336 | M123: 0 | N123: 699.94 | O123: 1 | P123: 699.94
A124: 2023-02-01 | B124: 3 | C124: =IF(B124="","",VLOOKUP(B124,'Liste choisir'!$F$2:$I$9,2)) -> 03-Prélèvement | E124: 5 | F124: =IF(B124='Liste choisir'!$F$9,'Liste choisir'!$F$9*E124*100+MONTH($A124),0) -> 0 | G124: =IF(B124='Liste choisir'!$F$9,J124-I124,0) -> 0 | H124: =IF(E124="","",VLOOKUP(E124,'Liste choisir'!$A$2:$B$41,2)) -> 05-Loyer | I124: 710 | K124: =IF($B124='Liste choisir'!$F$9,1,0) -> 0 | L124: 1.249134948 | M124: 710 | N124: 0 | O124: 1 | P124: -710
A125: 2023-02-01 | B125: 2 | C125: =IF(B125="","",VLOOKUP(B125,'Liste choisir'!$F$2:$I$9,2)) -> 02-Carte | E125: 8 | F125: =IF(B125='Liste choisir'!$F$9,'Liste choisir'!$F$9*E125*100+MONTH($A125),0) -> 0 | G125: =IF(B125='Liste choisir'!$F$9,J125-I125,0) -> 0 | H125: =IF(E125="","",VLOOKUP(E125,'Liste choisir'!$A$2:$B$41,2)) -> 08-Nourriture - Frais de vie | I125: 54.26 | K125: =IF($B125='Liste choisir'!$F$9,1,0) -> 0 | L125: 1.39742956 | M125: 54.26 | N125: 0 | O125: 1 | P125: -54.26
A126: 2023-02-03 | B126: 2 | C126: =IF(B126="","",VLOOKUP(B126,'Liste choisir'!$F$2:$I$9,2)) -> 02-Carte | E126: 8 | F126: =IF(B126='Liste choisir'!$F$9,'Liste choisir'!$F$9*E126*100+MONTH($A126),0) -> 0 | G126: =IF(B126='Liste choisir'!$F$9,J126-I126,0) -> 0 | H126: =IF(E126="","",VLOOKUP(E126,'Liste choisir'!$A$2:$B$41,2)) -> 08-Nourriture - Frais de vie | I126: 13.43 | K126: =IF($B126='Liste choisir'!$F$9,1,0) -> 0 | L126: 1.39742956 | M126: 13.43 | N126: 0 | O126: 1 | P126: -13.43
A127: 2023-02-03 | B127: 2 | C127: =IF(B127="","",VLOOKUP(B127,'Liste choisir'!$F$2:$I$9,2)) -> 02-Carte | E127: 8 | F127: =IF(B127='Liste choisir'!$F$9,'Liste choisir'!$F$9*E127*100+MONTH($A127),0) -> 0 | G127: =IF(B127='Liste choisir'!$F$9,J127-I127,0) -> 0 | H127: =IF(E127="","",VLOOKUP(E127,'Liste choisir'!$A$2:$B$41,2)) -> 08-Nourriture - Frais de vie | I127: 34.86 | K127: =IF($B127='Liste choisir'!$F$9,1,0) -> 0 | L127: 1.39742956 | M127: 34.86 | N127: 0 | O127: 1 | P127: -34.86
A128: 2023-02-03 | B128: 4 | C128: =IF(B128="","",VLOOKUP(B128,'Liste choisir'!$F$2:$I$9,2)) -> 04-Internet - PayPal - TIP | E128: 23 | F128: =IF(B128='Liste choisir'!$F$9,'Liste choisir'!$F$9*E128*100+MONTH($A128),0) -> 0 | G128: =IF(B128='Liste choisir'!$F$9,J128-I128,0) -> 0 | H128: =IF(E128="","",VLOOKUP(E128,'Liste choisir'!$A$2:$B$41,2)) -> 23-High-tech, outils, etc | I128: 39.99 | K128: =IF($B128='Liste choisir'!$F$9,1,0) -> 0 | L128: 2.13890262 | M128: 39.99 | N128: 0 | O128: 1 | P128: -39.99
A129: 2023-02-03 | B129: 2 | C129: =IF(B129="","",VLOOKUP(B129,'Liste choisir'!$F$2:$I$9,2)) -> 02-Carte | E129: 34 | F129: =IF(B129='Liste choisir'!$F$9,'Liste choisir'!$F$9*E129*100+MONTH($A129),0) -> 0 | G129: =IF(B129='Liste choisir'!$F$9,J129-I129,0) -> 0 | H129: =IF(E129="","",VLOOKUP(E129,'Liste choisir'!$A$2:$B$41,2)) -> 34-Ameublement | I129: 8.24 | K129: =IF($B129='Liste choisir'!$F$9,1,0) -> 0 | L129: 2.68264953 | M129: 8.24 | N129: 0 | O129: 1 | P129: -8.24
A130: 2023-02-03 | B130: 4 | C130: =IF(B130="","",VLOOKUP(B130,'Liste choisir'!$F$2:$I$9,2)) -> 04-Internet - PayPal - TIP | E130: 34 | F130: =IF(B130='Liste choisir'!$F$9,'Liste choisir'!$F$9*E130*100+MONTH($A130),0) -> 0 | G130: =IF(B130='Liste choisir'!$F$9,J130-I130,0) -> 0 | H130: =IF(E130="","",VLOOKUP(E130,'Liste choisir'!$A$2:$B$41,2)) -> 34-Ameublement | I130: 17.9 | K130: =IF($B130='Liste choisir'!$F$9,1,0) -> 0 | L130: 2.68264953 | M130: 17.9 | N130: 0 | O130: 1 | P130: -17.9
A131: 2023-02-04 | B131: 2 | C131: =IF(B131="","",VLOOKUP(B131,'Liste choisir'!$F$2:$I$9,2)) -> 02-Carte | E131: 9 | F131: =IF(B131='Liste choisir'!$F$9,'Liste choisir'!$F$9*E131*100+MONTH($A131),0) -> 0 | G131: =IF(B131='Liste choisir'!$F$9,J131-I131,0) -> 0 | H131: =IF(E131="","",VLOOKUP(E131,'Liste choisir'!$A$2:$B$41,2)) -> 9- | I131: 17.17 | K131: =IF($B131='Liste choisir'!$F$9,1,0) -> 0 | L131: 1.446861097 | M131: 17.17 | N131: 0 | O131: 1 | P131: -17.17
A132: 2023-02-04 | B132: 2 | C132: =IF(B132="","",VLOOKUP(B132,'Liste choisir'!$F$2:$I$9,2)) -> 02-Carte | E132: 23 | F132: =IF(B132='Liste choisir'!$F$9,'Liste choisir'!$F$9*E132*100+MONTH($A132),0) -> 0 | G132: =IF(B132='Liste choisir'!$F$9,J132-I132,0) -> 0 | H132: =IF(E132="","",VLOOKUP(E132,'Liste choisir'!$A$2:$B$41,2)) -> 23-High-tech, outils, etc | I132: 7.08 | K132: =IF($B132='Liste choisir'!$F$9,1,0) -> 0 | L132: 2.13890262 | M132: 7.08 | N132: 0 | O132: 1 | P132: -7.08
A133: 2023-02-04 | B133: 2 | C133: =IF(B133="","",VLOOKUP(B133,'Liste choisir'!$F$2:$I$9,2)) -> 02-Carte | E133: 34 | F133: =IF(B133='Liste choisir'!$F$9,'Liste choisir'!$F$9*E133*100+MONTH($A133),0) -> 0 | G133: =IF(B133='Liste choisir'!$F$9,J133-I133,0) -> 0 | H133: =IF(E133="","",VLOOKUP(E133,'Liste choisir'!$A$2:$B$41,2)) -> 34-Ameublement | I133: 6.97 | K133: =IF($B133='Liste choisir'!$F$9,1,0) -> 0 | L133: 2.68264953 | M133: 6.97 | N133: 0 | O133: 1 | P133: -6.97
A134: 2023-02-04 | B134: 4 | C134: =IF(B134="","",VLOOKUP(B134,'Liste choisir'!$F$2:$I$9,2)) -> 04-Internet - PayPal - TIP | E134: 34 | F134: =IF(B134='Liste choisir'!$F$9,'Liste choisir'!$F$9*E134*100+MONTH($A134),0) -> 0 | G134: =IF(B134='Liste choisir'!$F$9,J134-I134,0) -> 0 | H134: =IF(E134="","",VLOOKUP(E134,'Liste choisir'!$A$2:$B$41,2)) -> 34-Ameublement | I134: 199.95 | K134: =IF($B134='Liste choisir'!$F$9,1,0) -> 0 | L134: 2.68264953 | M134: 199.95 | N134: 0 | O134: 1 | P134: -199.95
A135: 2023-02-05 | B135: 2 | C135: =IF(B135="","",VLOOKUP(B135,'Liste choisir'!$F$2:$I$9,2)) -> 02-Carte | E135: 27 | F135: =IF(B135='Liste choisir'!$F$9,'Liste choisir'!$F$9*E135*100+MONTH($A135),0) -> 0 | G135: =IF(B135='Liste choisir'!$F$9,J135-I135,0) -> 0 | H135: =IF(E135="","",VLOOKUP(E135,'Liste choisir'!$A$2:$B$41,2)) -> 27- | I135: 163.2 | K135: =IF($B135='Liste choisir'!$F$9,1,0) -> 0 | L135: 2.336628769 | M135: 163.2 | N135: 0 | O135: 1 | P135: -163.2
A136: 2023-02-06 | B136: 5 | C136: =IF(B136="","",VLOOKUP(B136,'Liste choisir'!$F$2:$I$9,2)) -> 05-Virement reçu | E136: 3 | F136: =IF(B136='Liste choisir'!$F$9,'Liste choisir'!$F$9*E136*100+MONTH($A136),0) -> 0 | G136: =IF(B136='Liste choisir'!$F$9,J136-I136,0) -> 0 | H136: =IF(E136="","",VLOOKUP(E136,'Liste choisir'!$A$2:$B$41,2)) -> 03- | J136: 255 | K136: =IF($B136='Liste choisir'!$F$9,1,0) -> 0 | L136: 1.150271873 | M136: 0 | N136: 255 | O136: 1 | P136: 255
A137: 2023-02-06 | B137: 2 | C137: =IF(B137="","",VLOOKUP(B137,'Liste choisir'!$F$2:$I$9,2)) -> 02-Carte | E137: 8 | F137: =IF(B137='Liste choisir'!$F$9,'Liste choisir'!$F$9*E137*100+MONTH($A137),0) -> 0 | G137: =IF(B137='Liste choisir'!$F$9,J137-I137,0) -> 0 | H137: =IF(E137="","",VLOOKUP(E137,'Liste choisir'!$A$2:$B$41,2)) -> 08-Nourriture - Frais de vie | I137: 19.44 | K137: =IF($B137='Liste choisir'!$F$9,1,0) -> 0 | L137: 1.39742956 | M137: 19.44 | N137: 0 | O137: 1 | P137: -19.44
A138: 2023-02-06 | B138: 2 | C138: =IF(B138="","",VLOOKUP(B138,'Liste choisir'!$F$2:$I$9,2)) -> 02-Carte | E138: 27 | F138: =IF(B138='Liste choisir'!$F$9,'Liste choisir'!$F$9*E138*100+MONTH($A138),0) -> 0 | G138: =IF(B138='Liste choisir'!$F$9,J138-I138,0) -> 0 | H138: =IF(E138="","",VLOOKUP(E138,'Liste choisir'!$A$2:$B$41,2)) -> 27- | I138: 38.44 | K138: =IF($B138='Liste choisir'!$F$9,1,0) -> 0 | L138: 2.336628769 | M138: 38.44 | N138: 0 | O138: 1 | P138: -38.44
A139: 2023-02-06 | B139: 2 | C139: =IF(B139="","",VLOOKUP(B139,'Liste choisir'!$F$2:$I$9,2)) -> 02-Carte | E139: 27 | F139: =IF(B139='Liste choisir'!$F$9,'Liste choisir'!$F$9*E139*100+MONTH($A139),0) -> 0 | G139: =IF(B139='Liste choisir'!$F$9,J139-I139,0) -> 0 | H139: =IF(E139="","",VLOOKUP(E139,'Liste choisir'!$A$2:$B$41,2)) -> 27- | I139: 22.99 | K139: =IF($B139='Liste choisir'!$F$9,1,0) -> 0 | L139: 2.336628769 | M139: 22.99 | N139: 0 | O139: 1 | P139: -22.99
A140: 2023-02-06 | B140: 4 | C140: =IF(B140="","",VLOOKUP(B140,'Liste choisir'!$F$2:$I$9,2)) -> 04-Internet - PayPal - TIP | E140: 27 | F140: =IF(B140='Liste choisir'!$F$9,'Liste choisir'!$F$9*E140*100+MONTH($A140),0) -> 0 | G140: =IF(B140='Liste choisir'!$F$9,J140-I140,0) -> 0 | H140: =IF(E140="","",VLOOKUP(E140,'Liste choisir'!$A$2:$B$41,2)) -> 27- | I140: 26 | K140: =IF($B140='Liste choisir'!$F$9,1,0) -> 0 | L140: 2.336628769 | M140: =IF(O140+K140>0,I140,"") -> 26 | N140: =IF(O140+K140>0,J140,"") -> 0 | O140: 1 | P140: =IF(O140+K140=0,"",(J140-I140)) -> -26
A141: 2023-02-08 | B141: 2 | C141: =IF(B141="","",VLOOKUP(B141,'Liste choisir'!$F$2:$I$9,2)) -> 02-Carte | E141: 16 | F141: =IF(B141='Liste choisir'!$F$9,'Liste choisir'!$F$9*E141*100+MONTH($A141),0) -> 0 | G141: =IF(B141='Liste choisir'!$F$9,J141-I141,0) -> 0 | H141: =IF(E141="","",VLOOKUP(E141,'Liste choisir'!$A$2:$B$41,2)) -> 16-Carburant | I141: 50.01 | K141: =IF($B141='Liste choisir'!$F$9,1,0) -> 0 | L141: 1.792881859 | M141: 50.01 | N141: 0 | O141: 1 | P141: -50.01
A142: 2023-02-10 | B142: 3 | C142: =IF(B142="","",VLOOKUP(B142,'Liste choisir'!$F$2:$I$9,2)) -> 03-Prélèvement | E142: 6 | F142: =IF(B142='Liste choisir'!$F$9,'Liste choisir'!$F$9*E142*100+MONTH($A142),0) -> 0 | G142: =IF(B142='Liste choisir'!$F$9,J142-I142,0) -> 0 | H142: =IF(E142="","",VLOOKUP(E142,'Liste choisir'!$A$2:$B$41,2)) -> 06-Frais de banque | I142: 4.73 | K142: =IF($B142='Liste choisir'!$F$9,1,0) -> 0 | L142: 1.298566485 | M142: 4.73 | N142: 0 | O142: 1 | P142: -4.73
A143: 2023-02-10 | B143: 3 | C143: =IF(B143="","",VLOOKUP(B143,'Liste choisir'!$F$2:$I$9,2)) -> 03-Prélèvement | D143: 269 | E143: 7 | F143: =IF(B143='Liste choisir'!$F$9,'Liste choisir'!$F$9*E143*100+MONTH($A143),0) -> 0 | G143: =IF(B143='Liste choisir'!$F$9,J143-I143,0) -> 0 | H143: =IF(E143="","",VLOOKUP(E143,'Liste choisir'!$A$2:$B$41,2)) -> 07-Cotisation carte bleue | I143: 3 | K143: =IF($B143='Liste choisir'!$F$9,1,0) -> 0 | L143: 1.347998023 | M143: 3 | N143: 0 | O143: 1 | P143: -3
A144: 2023-02-10 | B144: 2 | C144: =IF(B144="","",VLOOKUP(B144,'Liste choisir'!$F$2:$I$9,2)) -> 02-Carte | E144: 8 | F144: =IF(B144='Liste choisir'!$F$9,'Liste choisir'!$F$9*E144*100+MONTH($A144),0) -> 0 | G144: =IF(B144='Liste choisir'!$F$9,J144-I144,0) -> 0 | H144: =IF(E144="","",VLOOKUP(E144,'Liste choisir'!$A$2:$B$41,2)) -> 08-Nourriture - Frais de vie | I144: 48.22 | K144: =IF($B144='Liste choisir'!$F$9,1,0) -> 0 | L144: 1.39742956 | M144: 48.22 | N144: 0 | O144: 1 | P144: -48.22
A145: 2023-02-10 | B145: 3 | C145: =IF(B145="","",VLOOKUP(B145,'Liste choisir'!$F$2:$I$9,2)) -> 03-Prélèvement | D145: 269 | E145: 10 | F145: =IF(B145='Liste choisir'!$F$9,'Liste choisir'!$F$9*E145*100+MONTH($A145),0) -> 0 | G145: =IF(B145='Liste choisir'!$F$9,J145-I145,0) -> 0 | H145: =IF(E145="","",VLOOKUP(E145,'Liste choisir'!$A$2:$B$41,2)) -> 10-Assurances | I145: 72 | K145: =IF($B145='Liste choisir'!$F$9,1,0) -> 0 | L145: 1.496292635 | M145: 72 | N145: 0 | O145: 1 | P145: -72
A146: 2023-02-10 | B146: 3 | C146: =IF(B146="","",VLOOKUP(B146,'Liste choisir'!$F$2:$I$9,2)) -> 03-Prélèvement | E146: 11 | F146: =IF(B146='Liste choisir'!$F$9,'Liste choisir'!$F$9*E146*100+MONTH($A146),0) -> 0 | G146: =IF(B146='Liste choisir'!$F$9,J146-I146,0) -> 0 | H146: =IF(E146="","",VLOOKUP(E146,'Liste choisir'!$A$2:$B$41,2)) -> 11-Mutuelle | I146: 30 | K146: =IF($B146='Liste choisir'!$F$9,1,0) -> 0 | L146: 1.545724172 | M146: 30 | N146: 0 | O146: 1 | P146: -30
A147: 2023-02-10 | B147: 3 | C147: =IF(B147="","",VLOOKUP(B147,'Liste choisir'!$F$2:$I$9,2)) -> 03-Prélèvement | D147: 269 | E147: 12 | F147: =IF(B147='Liste choisir'!$F$9,'Liste choisir'!$F$9*E147*100+MONTH($A147),0) -> 0 | G147: =IF(B147='Liste choisir'!$F$9,J147-I147,0) -> 0 | H147: =IF(E147="","",VLOOKUP(E147,'Liste choisir'!$A$2:$B$41,2)) -> 12- | I147: 5 | K147: =IF($B147='Liste choisir'!$F$9,1,0) -> 0 | L147: 1.595155709 | M147: 5 | N147: 0 | O147: 1 | P147: -5
A148: 2023-02-10 | B148: 3 | C148: =IF(B148="","",VLOOKUP(B148,'Liste choisir'!$F$2:$I$9,2)) -> 03-Prélèvement | D148: 269 | E148: 24 | F148: =IF(B148='Liste choisir'!$F$9,'Liste choisir'!$F$9*E148*100+MONTH($A148),0) -> 0 | G148: =IF(B148='Liste choisir'!$F$9,J148-I148,0) -> 0 | H148: =IF(E148="","",VLOOKUP(E148,'Liste choisir'!$A$2:$B$41,2)) -> 24- | I148: 34 | K148: =IF($B148='Liste choisir'!$F$9,1,0) -> 0 | L148: 2.188334157 | M148: 34 | N148: 0 | O148: 1 | P148: -34
A149: 2023-02-10 | B149: 3 | C149: =IF(B149="","",VLOOKUP(B149,'Liste choisir'!$F$2:$I$9,2)) -> 03-Prélèvement | D149: 269 | E149: 25 | F149: =IF(B149='Liste choisir'!$F$9,'Liste choisir'!$F$9*E149*100+MONTH($A149),0) -> 0 | G149: =IF(B149='Liste choisir'!$F$9,J149-I149,0) -> 0 | H149: =IF(E149="","",VLOOKUP(E149,'Liste choisir'!$A$2:$B$41,2)) -> 25- | I149: 30 | K149: =IF($B149='Liste choisir'!$F$9,1,0) -> 0 | L149: 2.237765695 | M149: 30 | N149: 0 | O149: 1 | P149: -30
A150: 2023-02-10 | B150: 3 | C150: =IF(B150="","",VLOOKUP(B150,'Liste choisir'!$F$2:$I$9,2)) -> 03-Prélèvement | D150: 269 | E150: 26 | F150: =IF(B150='Liste choisir'!$F$9,'Liste choisir'!$F$9*E150*100+MONTH($A150),0) -> 0 | G150: =IF(B150='Liste choisir'!$F$9,J150-I150,0) -> 0 | H150: =IF(E150="","",VLOOKUP(E150,'Liste choisir'!$A$2:$B$41,2)) -> 26-Automobile | I150: 25 | K150: =IF($B150='Liste choisir'!$F$9,1,0) -> 0 | L150: 2.287197232 | M150: 25 | N150: 0 | O150: 1 | P150: -25
A151: 2023-02-10 | B151: 3 | C151: =IF(B151="","",VLOOKUP(B151,'Liste choisir'!$F$2:$I$9,2)) -> 03-Prélèvement | D151: 269 | E151: 31 | F151: =IF(B151='Liste choisir'!$F$9,'Liste choisir'!$F$9*E151*100+MONTH($A151),0) -> 0 | G151: =IF(B151='Liste choisir'!$F$9,J151-I151,0) -> 0 | H151: =IF(E151="","",VLOOKUP(E151,'Liste choisir'!$A$2:$B$41,2)) -> 31-Vacances | I151: 100 | K151: =IF($B151='Liste choisir'!$F$9,1,0) -> 0 | L151: =IF(I151+J151=0,"",(E151*100+(YEAR($A151)+MONTH($A151)+MONTH($A151)))/((YEAR($A151)))) -> 2.534354918 | M151: 100 | N151: 0 | O151: 1 | P151: -100
A152: 2023-02-10 | B152: 2 | C152: =IF(B152="","",VLOOKUP(B152,'Liste choisir'!$F$2:$I$9,2)) -> 02-Carte | E152: 34 | F152: =IF(B152='Liste choisir'!$F$9,'Liste choisir'!$F$9*E152*100+MONTH($A152),0) -> 0 | G152: =IF(B152='Liste choisir'!$F$9,J152-I152,0) -> 0 | H152: =IF(E152="","",VLOOKUP(E152,'Liste choisir'!$A$2:$B$41,2)) -> 34-Ameublement | I152: 37.96 | K152: =IF($B152='Liste choisir'!$F$9,1,0) -> 0 | L152: 2.68264953 | M152: 37.96 | N152: 0 | O152: 1 | P152: -37.96
A153: 2023-02-13 | B153: 4 | C153: =IF(B153="","",VLOOKUP(B153,'Liste choisir'!$F$2:$I$9,2)) -> 04-Internet - PayPal - TIP | E153: 17 | F153: =IF(B153='Liste choisir'!$F$9,'Liste choisir'!$F$9*E153*100+MONTH($A153),0) -> 0 | G153: =IF(B153='Liste choisir'!$F$9,J153-I153,0) -> 0 | H153: =IF(E153="","",VLOOKUP(E153,'Liste choisir'!$A$2:$B$41,2)) -> 17-EDF | I153: 33.56 | K153: =IF($B153='Liste choisir'!$F$9,1,0) -> 0 | L153: 1.842313396 | M153: 33.56 | N153: 0 | O153: 1 | P153: -33.56
A154: 2023-02-13 | B154: 4 | C154: =IF(B154="","",VLOOKUP(B154,'Liste choisir'!$F$2:$I$9,2)) -> 04-Internet - PayPal - TIP | E154: 18 | F154: =IF(B154='Liste choisir'!$F$9,'Liste choisir'!$F$9*E154*100+MONTH($A154),0) -> 0 | G154: =IF(B154='Liste choisir'!$F$9,J154-I154,0) -> 0 | H154: =IF(E154="","",VLOOKUP(E154,'Liste choisir'!$A$2:$B$41,2)) -> 18-EAU | I154: 115.12 | K154: =IF($B154='Liste choisir'!$F$9,1,0) -> 0 | L154: 1.891744933 | M154: 115.12 | N154: 0 | O154: 1 | P154: -115.12
A155: 2023-02-13 | B155: 2 | C155: =IF(B155="","",VLOOKUP(B155,'Liste choisir'!$F$2:$I$9,2)) -> 02-Carte | E155: 23 | F155: =IF(B155='Liste choisir'!$F$9,'Liste choisir'!$F$9*E155*100+MONTH($A155),0) -> 0 | G155: =IF(B155='Liste choisir'!$F$9,J155-I155,0) -> 0 | H155: =IF(E155="","",VLOOKUP(E155,'Liste choisir'!$A$2:$B$41,2)) -> 23-High-tech, outils, etc | I155: 3.9 | K155: =IF($B155='Liste choisir'!$F$9,1,0) -> 0 | L155: 2.13890262 | M155: 3.9 | N155: 0 | O155: 1 | P155: -3.9
A156: 2023-02-14 | B156: 5 | C156: =IF(B156="","",VLOOKUP(B156,'Liste choisir'!$F$2:$I$9,2)) -> 05-Virement reçu | E156: 3 | F156: =IF(B156='Liste choisir'!$F$9,'Liste choisir'!$F$9*E156*100+MONTH($A156),0) -> 0 | G156: =IF(B156='Liste choisir'!$F$9,J156-I156,0) -> 0 | H156: =IF(E156="","",VLOOKUP(E156,'Liste choisir'!$A$2:$B$41,2)) -> 03- | J156: 16 | K156: =IF($B156='Liste choisir'!$F$9,1,0) -> 0 | L156: 1.150271873 | M156: 0 | N156: 16 | O156: 1 | P156: 16
A157: 2023-02-14 | B157: 2 | C157: =IF(B157="","",VLOOKUP(B157,'Liste choisir'!$F$2:$I$9,2)) -> 02-Carte | E157: 8 | F157: =IF(B157='Liste choisir'!$F$9,'Liste choisir'!$F$9*E157*100+MONTH($A157),0) -> 0 | G157: =IF(B157='Liste choisir'!$F$9,J157-I157,0) -> 0 | H157: =IF(E157="","",VLOOKUP(E157,'Liste choisir'!$A$2:$B$41,2)) -> 08-Nourriture - Frais de vie | I157: 48.06 | K157: =IF($B157='Liste choisir'!$F$9,1,0) -> 0 | L157: 1.39742956 | M157: 48.06 | N157: 0 | O157: 1 | P157: -48.06
A158: 2023-02-14 | B158: 2 | C158: =IF(B158="","",VLOOKUP(B158,'Liste choisir'!$F$2:$I$9,2)) -> 02-Carte | E158: 8 | F158: =IF(B158='Liste choisir'!$F$9,'Liste choisir'!$F$9*E158*100+MONTH($A158),0) -> 0 | G158: =IF(B158='Liste choisir'!$F$9,J158-I158,0) -> 0 | H158: =IF(E158="","",VLOOKUP(E158,'Liste choisir'!$A$2:$B$41,2)) -> 08-Nourriture - Frais de vie | I158: 10.65 | K158: =IF($B158='Liste choisir'!$F$9,1,0) -> 0 | L158: 1.39742956 | M158: 10.65 | N158: 0 | O158: 1 | P158: -10.65
A159: 2023-02-14 | B159: 2 | C159: =IF(B159="","",VLOOKUP(B159,'Liste choisir'!$F$2:$I$9,2)) -> 02-Carte | E159: 13 | F159: =IF(B159='Liste choisir'!$F$9,'Liste choisir'!$F$9*E159*100+MONTH($A159),0) -> 0 | G159: =IF(B159='Liste choisir'!$F$9,J159-I159,0) -> 0 | H159: =IF(E159="","",VLOOKUP(E159,'Liste choisir'!$A$2:$B$41,2)) -> 13-Santé health | I159: 15.48 | K159: =IF($B159='Liste choisir'!$F$9,1,0) -> 0 | L159: 1.644587247 | M159: 15.48 | N159: 0 | O159: 1 | P159: -15.48
A160: 2023-02-15 | B160: 4 | C160: =IF(B160="","",VLOOKUP(B160,'Liste choisir'!$F$2:$I$9,2)) -> 04-Internet - PayPal - TIP | E160: 23 | F160: =IF(B160='Liste choisir'!$F$9,'Liste choisir'!$F$9*E160*100+MONTH($A160),0) -> 0 | G160: =IF(B160='Liste choisir'!$F$9,J160-I160,0) -> 0 | H160: =IF(E160="","",VLOOKUP(E160,'Liste choisir'!$A$2:$B$41,2)) -> 23-High-tech, outils, etc | I160: 29.56 | K160: =IF($B160='Liste choisir'!$F$9,1,0) -> 0 | L160: 2.13890262 | M160: 29.56 | N160: 0 | O160: 1 | P160: -29.56
A161: 2023-02-20 | B161: 3 | C161: =IF(B161="","",VLOOKUP(B161,'Liste choisir'!$F$2:$I$9,2)) -> 03-Prélèvement | E161: 20 | F161: =IF(B161='Liste choisir'!$F$9,'Liste choisir'!$F$9*E161*100+MONTH($A161),0) -> 0 | G161: =IF(B161='Liste choisir'!$F$9,J161-I161,0) -> 0 | H161: =IF(E161="","",VLOOKUP(E161,'Liste choisir'!$A$2:$B$41,2)) -> 20-Autoroute - Transport | I161: 82.3 | K161: =IF($B161='Liste choisir'!$F$9,1,0) -> 0 | L161: 1.990608008 | M161: 82.3 | N161: 0 | O161: 1 | P161: -82.3
A162: 2023-02-21 | B162: 2 | C162: =IF(B162="","",VLOOKUP(B162,'Liste choisir'!$F$2:$I$9,2)) -> 02-Carte | E162: 8 | F162: =IF(B162='Liste choisir'!$F$9,'Liste choisir'!$F$9*E162*100+MONTH($A162),0) -> 0 | G162: =IF(B162='Liste choisir'!$F$9,J162-I162,0) -> 0 | H162: =IF(E162="","",VLOOKUP(E162,'Liste choisir'!$A$2:$B$41,2)) -> 08-Nourriture - Frais de vie | I162: 36.91 | K162: =IF($B162='Liste choisir'!$F$9,1,0) -> 0 | L162: 1.39742956 | M162: 36.91 | N162: 0 | O162: 1 | P162: -36.91
A163: 2023-02-21 | B163: 2 | C163: =IF(B163="","",VLOOKUP(B163,'Liste choisir'!$F$2:$I$9,2)) -> 02-Carte | E163: 8 | F163: =IF(B163='Liste choisir'!$F$9,'Liste choisir'!$F$9*E163*100+MONTH($A163),0) -> 0 | G163: =IF(B163='Liste choisir'!$F$9,J163-I163,0) -> 0 | H163: =IF(E163="","",VLOOKUP(E163,'Liste choisir'!$A$2:$B$41,2)) -> 08-Nourriture - Frais de vie | I163: 31.38 | K163: =IF($B163='Liste choisir'!$F$9,1,0) -> 0 | L163: 1.39742956 | M163: 31.38 | N163: 0 | O163: 1 | P163: -31.38
A164: 2023-02-21 | B164: 3 | C164: =IF(B164="","",VLOOKUP(B164,'Liste choisir'!$F$2:$I$9,2)) -> 03-Prélèvement | E164: 14 | F164: =IF(B164='Liste choisir'!$F$9,'Liste choisir'!$F$9*E164*100+MONTH($A164),0) -> 0 | G164: =IF(B164='Liste choisir'!$F$9,J164-I164,0) -> 0 | H164: =IF(E164="","",VLOOKUP(E164,'Liste choisir'!$A$2:$B$41,2)) -> 14-Internet | I164: 28.99 | K164: =IF($B164='Liste choisir'!$F$9,1,0) -> 0 | L164: 1.694018784 | M164: 28.99 | N164: 0 | O164: 1 | P164: -28.99
A165: 2023-02-24 | B165: 2 | C165: =IF(B165="","",VLOOKUP(B165,'Liste choisir'!$F$2:$I$9,2)) -> 02-Carte | E165: 13 | F165: =IF(B165='Liste choisir'!$F$9,'Liste choisir'!$F$9*E165*100+MONTH($A165),0) -> 0 | G165: =IF(B165='Liste choisir'!$F$9,J165-I165,0) -> 0 | H165: =IF(E165="","",VLOOKUP(E165,'Liste choisir'!$A$2:$B$41,2)) -> 13-Santé health | I165: 25 | K165: =IF($B165='Liste choisir'!$F$9,1,0) -> 0 | L165: 1.644587247 | M165: 25 | N165: 0 | O165: 1 | P165: -25
A166: 2023-02-25 | B166: 3 | C166: =IF(B166="","",VLOOKUP(B166,'Liste choisir'!$F$2:$I$9,2)) -> 03-Prélèvement | E166: 15 | F166: =IF(B166='Liste choisir'!$F$9,'Liste choisir'!$F$9*E166*100+MONTH($A166),0) -> 0 | G166: =IF(B166='Liste choisir'!$F$9,J166-I166,0) -> 0 | H166: =IF(E166="","",VLOOKUP(E166,'Liste choisir'!$A$2:$B$41,2)) -> 15-Téléphone | I166: 15.32 | K166: =IF($B166='Liste choisir'!$F$9,1,0) -> 0 | L166: 1.743450321 | M166: 15.32 | N166: 0 | O166: 1 | P166: -15.32
A167: 2023-02-27 | B167: 4 | C167: =IF(B167="","",VLOOKUP(B167,'Liste choisir'!$F$2:$I$9,2)) -> 04-Internet - PayPal - TIP | E167: 9 | F167: =IF(B167='Liste choisir'!$F$9,'Liste choisir'!$F$9*E167*100+MONTH($A167),0) -> 0 | G167: =IF(B167='Liste choisir'!$F$9,J167-I167,0) -> 0 | H167: =IF(E167="","",VLOOKUP(E167,'Liste choisir'!$A$2:$B$41,2)) -> 9- | I167: 1 | K167: =IF($B167='Liste choisir'!$F$9,1,0) -> 0 | L167: 1.446861097 | M167: 1 | N167: 0 | O167: 1 | P167: -1
A168: 2023-02-28 | B168: 2 | C168: =IF(B168="","",VLOOKUP(B168,'Liste choisir'!$F$2:$I$9,2)) -> 02-Carte | E168: 8 | F168: =IF(B168='Liste choisir'!$F$9,'Liste choisir'!$F$9*E168*100+MONTH($A168),0) -> 0 | G168: =IF(B168='Liste choisir'!$F$9,J168-I168,0) -> 0 | H168: =IF(E168="","",VLOOKUP(E168,'Liste choisir'!$A$2:$B$41,2)) -> 08-Nourriture - Frais de vie | I168: 54.59 | K168: =IF($B168='Liste choisir'!$F$9,1,0) -> 0 | L168: 1.39742956 | M168: 54.59 | N168: 0 | O168: 1 | P168: -54.59
A169: 2023-02-28 | B169: 2 | C169: =IF(B169="","",VLOOKUP(B169,'Liste choisir'!$F$2:$I$9,2)) -> 02-Carte | E169: 8 | F169: =IF(B169='Liste choisir'!$F$9,'Liste choisir'!$F$9*E169*100+MONTH($A169),0) -> 0 | G169: =IF(B169='Liste choisir'!$F$9,J169-I169,0) -> 0 | H169: =IF(E169="","",VLOOKUP(E169,'Liste choisir'!$A$2:$B$41,2)) -> 08-Nourriture - Frais de vie | I169: 24.76 | K169: =IF($B169='Liste choisir'!$F$9,1,0) -> 0 | L169: 1.39742956 | M169: 24.76 | N169: 0 | O169: 1 | P169: -24.76
A170: 2023-03-01 | B170: 5 | C170: =IF(B170="","",VLOOKUP(B170,'Liste choisir'!$F$2:$I$9,2)) -> 05-Virement reçu | E170: 1 | F170: =IF(B170='Liste choisir'!$F$9,'Liste choisir'!$F$9*E170*100+MONTH($A170),0) -> 0 | G170: =IF(B170='Liste choisir'!$F$9,J170-I170,0) -> 0 | H170: =IF(E170="","",VLOOKUP(E170,'Liste choisir'!$A$2:$B$41,2)) -> 01-Salaire | J170: 1367.37 | K170: =IF($B170='Liste choisir'!$F$9,1,0) -> 0 | L170: 1.05239743 | M170: 0 | N170: 1367.37 | O170: 1 | P170: 1367.37
A171: 2023-03-01 | B171: 5 | C171: =IF(B171="","",VLOOKUP(B171,'Liste choisir'!$F$2:$I$9,2)) -> 05-Virement reçu | E171: 2 | F171: =IF(B171='Liste choisir'!$F$9,'Liste choisir'!$F$9*E171*100+MONTH($A171),0) -> 0 | G171: =IF(B171='Liste choisir'!$F$9,J171-I171,0) -> 0 | H171: =IF(E171="","",VLOOKUP(E171,'Liste choisir'!$A$2:$B$41,2)) -> 02- | J171: 777.72 | K171: =IF($B171='Liste choisir'!$F$9,1,0) -> 0 | L171: 1.101828967 | M171: 0 | N171: 777.72 | O171: 1 | P171: 777.72
A172: 2023-03-01 | B172: 2 | C172: =IF(B172="","",VLOOKUP(B172,'Liste choisir'!$F$2:$I$9,2)) -> 02-Carte | E172: 9 | F172: =IF(B172='Liste choisir'!$F$9,'Liste choisir'!$F$9*E172*100+MONTH($A172),0) -> 0 | G172: =IF(B172='Liste choisir'!$F$9,J172-I172,0) -> 0 | H172: =IF(E172="","",VLOOKUP(E172,'Liste choisir'!$A$2:$B$41,2)) -> 9- | I172: 2.99 | K172: =IF($B172='Liste choisir'!$F$9,1,0) -> 0 | L172: 1.447849728 | M172: 2.99 | N172: 0 | O172: 1 | P172: -2.99
A173: 2023-03-01 | B173: 5 | C173: =IF(B173="","",VLOOKUP(B173,'Liste choisir'!$F$2:$I$9,2)) -> 05-Virement reçu | E173: 10 | F173: =IF(B173='Liste choisir'!$F$9,'Liste choisir'!$F$9*E173*100+MONTH($A173),0) -> 0 | G173: =IF(B173='Liste choisir'!$F$9,J173-I173,0) -> 0 | H173: =IF(E173="","",VLOOKUP(E173,'Liste choisir'!$A$2:$B$41,2)) -> 10-Assurances | J173: 26.33 | K173: =IF($B173='Liste choisir'!$F$9,1,0) -> 0 | L173: 1.497281265 | M173: 0 | N173: 26.33 | O173: 1 | P173: 26.33
A174: 2023-03-01 | B174: 3 | C174: =IF(B174="","",VLOOKUP(B174,'Liste choisir'!$F$2:$I$9,2)) -> 03-Prélèvement | E174: 11 | F174: =IF(B174='Liste choisir'!$F$9,'Liste choisir'!$F$9*E174*100+MONTH($A174),0) -> 0 | G174: =IF(B174='Liste choisir'!$F$9,J174-I174,0) -> 0 | H174: =IF(E174="","",VLOOKUP(E174,'Liste choisir'!$A$2:$B$41,2)) -> 11-Mutuelle | I174: 30 | K174: =IF($B174='Liste choisir'!$F$9,1,0) -> 0 | L174: 1.546712803 | M174: 30 | N174: 0 | O174: 1 | P174: -30
A175: 2023-03-01 | B175: 5 | C175: =IF(B175="","",VLOOKUP(B175,'Liste choisir'!$F$2:$I$9,2)) -> 05-Virement reçu | E175: 13 | F175: =IF(B175='Liste choisir'!$F$9,'Liste choisir'!$F$9*E175*100+MONTH($A175),0) -> 0 | G175: =IF(B175='Liste choisir'!$F$9,J175-I175,0) -> 0 | H175: =IF(E175="","",VLOOKUP(E175,'Liste choisir'!$A$2:$B$41,2)) -> 13-Santé health | J175: 1.98 | K175: =IF($B175='Liste choisir'!$F$9,1,0) -> 0 | L175: 1.645575877 | M175: 0 | N175: 1.98 | O175: 1 | P175: 1.98
A176: 2023-03-01 | B176: 4 | C176: =IF(B176="","",VLOOKUP(B176,'Liste choisir'!$F$2:$I$9,2)) -> 04-Internet - PayPal - TIP | E176: 23 | F176: =IF(B176='Liste choisir'!$F$9,'Liste choisir'!$F$9*E176*100+MONTH($A176),0) -> 0 | G176: =IF(B176='Liste choisir'!$F$9,J176-I176,0) -> 0 | H176: =IF(E176="","",VLOOKUP(E176,'Liste choisir'!$A$2:$B$41,2)) -> 23-High-tech, outils, etc | I176: 15.61 | K176: =IF($B176='Liste choisir'!$F$9,1,0) -> 0 | L176: 2.139891251 | M176: 15.61 | N176: 0 | O176: 1 | P176: -15.61
A177: 2023-03-01 | B177: 4 | C177: =IF(B177="","",VLOOKUP(B177,'Liste choisir'!$F$2:$I$9,2)) -> 04-Internet - PayPal - TIP | E177: 23 | F177: =IF(B177='Liste choisir'!$F$9,'Liste choisir'!$F$9*E177*100+MONTH($A177),0) -> 0 | G177: =IF(B177='Liste choisir'!$F$9,J177-I177,0) -> 0 | H177: =IF(E177="","",VLOOKUP(E177,'Liste choisir'!$A$2:$B$41,2)) -> 23-High-tech, outils, etc | I177: 7.01 | K177: =IF($B177='Liste choisir'!$F$9,1,0) -> 0 | L177: 2.139891251 | M177: 7.01 | N177: 0 | O177: 1 | P177: -7.01
A178: 2023-03-03 | B178: 2 | C178: =IF(B178="","",VLOOKUP(B178,'Liste choisir'!$F$2:$I$9,2)) -> 02-Carte | E178: 8 | F178: =IF(B178='Liste choisir'!$F$9,'Liste choisir'!$F$9*E178*100+MONTH($A178),0) -> 0 | G178: =IF(B178='Liste choisir'!$F$9,J178-I178,0) -> 0 | H178: =IF(E178="","",VLOOKUP(E178,'Liste choisir'!$A$2:$B$41,2)) -> 08-Nourriture - Frais de vie | I178: 14.26 | K178: =IF($B178='Liste choisir'!$F$9,1,0) -> 0 | L178: 1.398418191 | M178: 14.26 | N178: 0 | O178: 1 | P178: -14.26
A179: 2023-03-04 | B179: 3 | C179: =IF(B179="","",VLOOKUP(B179,'Liste choisir'!$F$2:$I$9,2)) -> 03-Prélèvement | E179: 5 | F179: =IF(B179='Liste choisir'!$F$9,'Liste choisir'!$F$9*E179*100+MONTH($A179),0) -> 0 | G179: =IF(B179='Liste choisir'!$F$9,J179-I179,0) -> 0 | H179: =IF(E179="","",VLOOKUP(E179,'Liste choisir'!$A$2:$B$41,2)) -> 05-Loyer | I179: 710 | K179: =IF($B179='Liste choisir'!$F$9,1,0) -> 0 | L179: 1.250123579 | M179: 710 | N179: 0 | O179: 1 | P179: -710
A180: 2023-03-04 | B180: 2 | C180: =IF(B180="","",VLOOKUP(B180,'Liste choisir'!$F$2:$I$9,2)) -> 02-Carte | E180: 16 | F180: =IF(B180='Liste choisir'!$F$9,'Liste choisir'!$F$9*E180*100+MONTH($A180),0) -> 0 | G180: =IF(B180='Liste choisir'!$F$9,J180-I180,0) -> 0 | H180: =IF(E180="","",VLOOKUP(E180,'Liste choisir'!$A$2:$B$41,2)) -> 16-Carburant | I180: 63.56 | K180: =IF($B180='Liste choisir'!$F$9,1,0) -> 0 | L180: 1.793870489 | M180: 63.56 | N180: 0 | O180: 1 | P180: -63.56
A181: 2023-03-04 | B181: 2 | C181: =IF(B181="","",VLOOKUP(B181,'Liste choisir'!$F$2:$I$9,2)) -> 02-Carte | E181: 23 | F181: =IF(B181='Liste choisir'!$F$9,'Liste choisir'!$F$9*E181*100+MONTH($A181),0) -> 0 | G181: =IF(B181='Liste choisir'!$F$9,J181-I181,0) -> 0 | H181: =IF(E181="","",VLOOKUP(E181,'Liste choisir'!$A$2:$B$41,2)) -> 23-High-tech, outils, etc | I181: 9.17 | K181: =IF($B181='Liste choisir'!$F$9,1,0) -> 0 | L181: 2.139891251 | M181: 9.17 | N181: 0 | O181: 1 | P181: -9.17
A182: 2023-03-05 | B182: 4 | C182: =IF(B182="","",VLOOKUP(B182,'Liste choisir'!$F$2:$I$9,2)) -> 04-Internet - PayPal - TIP | E182: 23 | F182: =IF(B182='Liste choisir'!$F$9,'Liste choisir'!$F$9*E182*100+MONTH($A182),0) -> 0 | G182: =IF(B182='Liste choisir'!$F$9,J182-I182,0) -> 0 | H182: =IF(E182="","",VLOOKUP(E182,'Liste choisir'!$A$2:$B$41,2)) -> 23-High-tech, outils, etc | I182: 3.98 | K182: =IF($B182='Liste choisir'!$F$9,1,0) -> 0 | L182: 2.139891251 | M182: 3.98 | N182: 0 | O182: 1 | P182: -3.98
A183: 2023-03-05 | B183: 4 | C183: =IF(B183="","",VLOOKUP(B183,'Liste choisir'!$F$2:$I$9,2)) -> 04-Internet - PayPal - TIP | E183: 23 | F183: =IF(B183='Liste choisir'!$F$9,'Liste choisir'!$F$9*E183*100+MONTH($A183),0) -> 0 | G183: =IF(B183='Liste choisir'!$F$9,J183-I183,0) -> 0 | H183: =IF(E183="","",VLOOKUP(E183,'Liste choisir'!$A$2:$B$41,2)) -> 23-High-tech, outils, etc | I183: 41.39 | K183: =IF($B183='Liste choisir'!$F$9,1,0) -> 0 | L183: 2.139891251 | M183: 41.39 | N183: 0 | O183: 1 | P183: -41.39
A184: 2023-03-06 | B184: 5 | C184: =IF(B184="","",VLOOKUP(B184,'Liste choisir'!$F$2:$I$9,2)) -> 05-Virement reçu | E184: 13 | F184: =IF(B184='Liste choisir'!$F$9,'Liste choisir'!$F$9*E184*100+MONTH($A184),0) -> 0 | G184: =IF(B184='Liste choisir'!$F$9,J184-I184,0) -> 0 | H184: =IF(E184="","",VLOOKUP(E184,'Liste choisir'!$A$2:$B$41,2)) -> 13-Santé health | J184: 7.5 | K184: =IF($B184='Liste choisir'!$F$9,1,0) -> 0 | L184: 1.645575877 | M184: 0 | N184: 7.5 | O184: 1 | P184: 7.5
A185: 2023-03-07 | B185: 5 | C185: =IF(B185="","",VLOOKUP(B185,'Liste choisir'!$F$2:$I$9,2)) -> 05-Virement reçu | E185: 23 | F185: =IF(B185='Liste choisir'!$F$9,'Liste choisir'!$F$9*E185*100+MONTH($A185),0) -> 0 | G185: =IF(B185='Liste choisir'!$F$9,J185-I185,0) -> 0 | H185: =IF(E185="","",VLOOKUP(E185,'Liste choisir'!$A$2:$B$41,2)) -> 23-High-tech, outils, etc | J185: 29.56 | K185: =IF($B185='Liste choisir'!$F$9,1,0) -> 0 | L185: 2.139891251 | M185: 0 | N185: 29.56 | O185: 1 | P185: 29.56
A186: 2023-03-08 | B186: 2 | C186: =IF(B186="","",VLOOKUP(B186,'Liste choisir'!$F$2:$I$9,2)) -> 02-Carte | E186: 8 | F186: =IF(B186='Liste choisir'!$F$9,'Liste choisir'!$F$9*E186*100+MONTH($A186),0) -> 0 | G186: =IF(B186='Liste choisir'!$F$9,J186-I186,0) -> 0 | H186: =IF(E186="","",VLOOKUP(E186,'Liste choisir'!$A$2:$B$41,2)) -> 08-Nourriture - Frais de vie | I186: 25.07 | K186: =IF($B186='Liste choisir'!$F$9,1,0) -> 0 | L186: 1.398418191 | M186: 25.07 | N186: 0 | O186: 1 | P186: -25.07
A187: 2023-03-08 | B187: 2 | C187: =IF(B187="","",VLOOKUP(B187,'Liste choisir'!$F$2:$I$9,2)) -> 02-Carte | E187: 8 | F187: =IF(B187='Liste choisir'!$F$9,'Liste choisir'!$F$9*E187*100+MONTH($A187),0) -> 0 | G187: =IF(B187='Liste choisir'!$F$9,J187-I187,0) -> 0 | H187: =IF(E187="","",VLOOKUP(E187,'Liste choisir'!$A$2:$B$41,2)) -> 08-Nourriture - Frais de vie | I187: 45.65 | K187: =IF($B187='Liste choisir'!$F$9,1,0) -> 0 | L187: 1.398418191 | M187: 45.65 | N187: 0 | O187: 1 | P187: -45.65
A188: 2023-03-08 | B188: 2 | C188: =IF(B188="","",VLOOKUP(B188,'Liste choisir'!$F$2:$I$9,2)) -> 02-Carte | E188: 8 | F188: =IF(B188='Liste choisir'!$F$9,'Liste choisir'!$F$9*E188*100+MONTH($A188),0) -> 0 | G188: =IF(B188='Liste choisir'!$F$9,J188-I188,0) -> 0 | H188: =IF(E188="","",VLOOKUP(E188,'Liste choisir'!$A$2:$B$41,2)) -> 08-Nourriture - Frais de vie | I188: 17.03 | K188: =IF($B188='Liste choisir'!$F$9,1,0) -> 0 | L188: 1.398418191 | M188: 17.03 | N188: 0 | O188: 1 | P188: -17.03
A189: 2023-03-09 | B189: 2 | C189: =IF(B189="","",VLOOKUP(B189,'Liste choisir'!$F$2:$I$9,2)) -> 02-Carte | E189: 21 | F189: =IF(B189='Liste choisir'!$F$9,'Liste choisir'!$F$9*E189*100+MONTH($A189),0) -> 0 | G189: =IF(B189='Liste choisir'!$F$9,J189-I189,0) -> 0 | H189: =IF(E189="","",VLOOKUP(E189,'Liste choisir'!$A$2:$B$41,2)) -> 21- | I189: 24 | K189: =IF($B189='Liste choisir'!$F$9,1,0) -> 0 | L189: 2.041028176 | M189: 24 | N189: 0 | O189: 1 | P189: -24
A190: 2023-03-10 | B190: 3 | C190: =IF(B190="","",VLOOKUP(B190,'Liste choisir'!$F$2:$I$9,2)) -> 03-Prélèvement | D190: 530 | E190: 4 | F190: =IF(B190='Liste choisir'!$F$9,'Liste choisir'!$F$9*E190*100+MONTH($A190),0) -> 0 | G190: =IF(B190='Liste choisir'!$F$9,J190-I190,0) -> 0 | H190: =IF(E190="","",VLOOKUP(E190,'Liste choisir'!$A$2:$B$41,2)) -> 04- | I190: 100 | K190: =IF($B190='Liste choisir'!$F$9,1,0) -> 0 | L190: 1.200692042 | M190: 100 | N190: 0 | O190: 1 | P190: -100
A191: 2023-03-10 | B191: 3 | C191: =IF(B191="","",VLOOKUP(B191,'Liste choisir'!$F$2:$I$9,2)) -> 03-Prélèvement | E191: 6 | F191: =IF(B191='Liste choisir'!$F$9,'Liste choisir'!$F$9*E191*100+MONTH($A191),0) -> 0 | G191: =IF(B191='Liste choisir'!$F$9,J191-I191,0) -> 0 | H191: =IF(E191="","",VLOOKUP(E191,'Liste choisir'!$A$2:$B$41,2)) -> 06-Frais de banque | I191: 4.73 | K191: =IF($B191='Liste choisir'!$F$9,1,0) -> 0 | L191: 1.299555116 | M191: 4.73 | N191: 0 | O191: 1 | P191: -4.73
A192: 2023-03-10 | B192: 3 | C192: =IF(B192="","",VLOOKUP(B192,'Liste choisir'!$F$2:$I$9,2)) -> 03-Prélèvement | D192: 530 | E192: 7 | F192: =IF(B192='Liste choisir'!$F$9,'Liste choisir'!$F$9*E192*100+MONTH($A192),0) -> 0 | G192: =IF(B192='Liste choisir'!$F$9,J192-I192,0) -> 0 | H192: =IF(E192="","",VLOOKUP(E192,'Liste choisir'!$A$2:$B$41,2)) -> 07-Cotisation carte bleue | I192: 4 | K192: =IF($B192='Liste choisir'!$F$9,1,0) -> 0 | L192: 1.348986653 | M192: 4 | N192: 0 | O192: 1 | P192: -4
A193: 2023-03-10 | B193: 2 | C193: =IF(B193="","",VLOOKUP(B193,'Liste choisir'!$F$2:$I$9,2)) -> 02-Carte | E193: 8 | F193: =IF(B193='Liste choisir'!$F$9,'Liste choisir'!$F$9*E193*100+MONTH($A193),0) -> 0 | G193: =IF(B193='Liste choisir'!$F$9,J193-I193,0) -> 0 | H193: =IF(E193="","",VLOOKUP(E193,'Liste choisir'!$A$2:$B$41,2)) -> 08-Nourriture - Frais de vie | I193: 9.86 | K193: =IF($B193='Liste choisir'!$F$9,1,0) -> 0 | L193: 1.398418191 | M193: 9.86 | N193: 0 | O193: 1 | P193: -9.86
A194: 2023-03-10 | B194: 2 | C194: =IF(B194="","",VLOOKUP(B194,'Liste choisir'!$F$2:$I$9,2)) -> 02-Carte | E194: 8 | F194: =IF(B194='Liste choisir'!$F$9,'Liste choisir'!$F$9*E194*100+MONTH($A194),0) -> 0 | G194: =IF(B194='Liste choisir'!$F$9,J194-I194,0) -> 0 | H194: =IF(E194="","",VLOOKUP(E194,'Liste choisir'!$A$2:$B$41,2)) -> 08-Nourriture - Frais de vie | I194: 2.6 | K194: =IF($B194='Liste choisir'!$F$9,1,0) -> 0 | L194: 1.398418191 | M194: 2.6 | N194: 0 | O194: 1 | P194: -2.6
A195: 2023-03-10 | B195: 3 | C195: =IF(B195="","",VLOOKUP(B195,'Liste choisir'!$F$2:$I$9,2)) -> 03-Prélèvement | D195: 530 | E195: 10 | F195: =IF(B195='Liste choisir'!$F$9,'Liste choisir'!$F$9*E195*100+MONTH($A195),0) -> 0 | G195: =IF(B195='Liste choisir'!$F$9,J195-I195,0) -> 0 | H195: =IF(E195="","",VLOOKUP(E195,'Liste choisir'!$A$2:$B$41,2)) -> 10-Assurances | I195: 72 | K195: =IF($B195='Liste choisir'!$F$9,1,0) -> 0 | L195: 1.497281265 | M195: 72 | N195: 0 | O195: 1 | P195: -72
A196: 2023-03-10 | B196: 3 | C196: =IF(B196="","",VLOOKUP(B196,'Liste choisir'!$F$2:$I$9,2)) -> 03-Prélèvement | D196: 530 | E196: 12 | F196: =IF(B196='Liste choisir'!$F$9,'Liste choisir'!$F$9*E196*100+MONTH($A196),0) -> 0 | G196: =IF(B196='Liste choisir'!$F$9,J196-I196,0) -> 0 | H196: =IF(E196="","",VLOOKUP(E196,'Liste choisir'!$A$2:$B$41,2)) -> 12- | I196: 10 | K196: =IF($B196='Liste choisir'!$F$9,1,0) -> 0 | L196: 1.59614434 | M196: 10 | N196: 0 | O196: 1 | P196: -10
A197: 2023-03-10 | B197: 2 | C197: =IF(B197="","",VLOOKUP(B197,'Liste choisir'!$F$2:$I$9,2)) -> 02-Carte | E197: 13 | F197: =IF(B197='Liste choisir'!$F$9,'Liste choisir'!$F$9*E197*100+MONTH($A197),0) -> 0 | G197: =IF(B197='Liste choisir'!$F$9,J197-I197,0) -> 0 | H197: =IF(E197="","",VLOOKUP(E197,'Liste choisir'!$A$2:$B$41,2)) -> 13-Santé health | I197: 110 | K197: =IF($B197='Liste choisir'!$F$9,1,0) -> 0 | L197: 1.645575877 | M197: 110 | N197: 0 | O197: 1 | P197: -110
A198: 2023-03-10 | B198: 2 | C198: =IF(B198="","",VLOOKUP(B198,'Liste choisir'!$F$2:$I$9,2)) -> 02-Carte | E198: 16 | F198: =IF(B198='Liste choisir'!$F$9,'Liste choisir'!$F$9*E198*100+MONTH($A198),0) -> 0 | G198: =IF(B198='Liste choisir'!$F$9,J198-I198,0) -> 0 | H198: =IF(E198="","",VLOOKUP(E198,'Liste choisir'!$A$2:$B$41,2)) -> 16-Carburant | I198: 21.46 | K198: =IF($B198='Liste choisir'!$F$9,1,0) -> 0 | L198: 1.793870489 | M198: 21.46 | N198: 0 | O198: 1 | P198: -21.46
A199: 2023-03-10 | B199: 4 | C199: =IF(B199="","",VLOOKUP(B199,'Liste choisir'!$F$2:$I$9,2)) -> 04-Internet - PayPal - TIP | E199: 23 | F199: =IF(B199='Liste choisir'!$F$9,'Liste choisir'!$F$9*E199*100+MONTH($A199),0) -> 0 | G199: =IF(B199='Liste choisir'!$F$9,J199-I199,0) -> 0 | H199: =IF(E199="","",VLOOKUP(E199,'Liste choisir'!$A$2:$B$41,2)) -> 23-High-tech, outils, etc | I199: 1.19 | K199: =IF($B199='Liste choisir'!$F$9,1,0) -> 0 | L199: 2.139891251 | M199: 1.19 | N199: 0 | O199: 1 | P199: -1.19
A200: 2023-03-10 | B200: 3 | C200: =IF(B200="","",VLOOKUP(B200,'Liste choisir'!$F$2:$I$9,2)) -> 03-Prélèvement | D200: 530 | E200: 24 | F200: =IF(B200='Liste choisir'!$F$9,'Liste choisir'!$F$9*E200*100+MONTH($A200),0) -> 0 | G200: =IF(B200='Liste choisir'!$F$9,J200-I200,0) -> 0 | H200: =IF(E200="","",VLOOKUP(E200,'Liste choisir'!$A$2:$B$41,2)) -> 24- | I200: 34 | K200: =IF($B200='Liste choisir'!$F$9,1,0) -> 0 | L200: 2.189322788 | M200: 34 | N200: 0 | O200: 1 | P200: -34
A201: 2023-03-10 | B201: 3 | C201: =IF(B201="","",VLOOKUP(B201,'Liste choisir'!$F$2:$I$9,2)) -> 03-Prélèvement | D201: 530 | E201: 25 | F201: =IF(B201='Liste choisir'!$F$9,'Liste choisir'!$F$9*E201*100+MONTH($A201),0) -> 0 | G201: =IF(B201='Liste choisir'!$F$9,J201-I201,0) -> 0 | H201: =IF(E201="","",VLOOKUP(E201,'Liste choisir'!$A$2:$B$41,2)) -> 25- | I201: 30 | K201: =IF($B201='Liste choisir'!$F$9,1,0) -> 0 | L201: 2.238754325 | M201: 30 | N201: 0 | O201: 1 | P201: -30
A202: 2023-03-10 | B202: 3 | C202: =IF(B202="","",VLOOKUP(B202,'Liste choisir'!$F$2:$I$9,2)) -> 03-Prélèvement | D202: 530 | E202: 26 | F202: =IF(B202='Liste choisir'!$F$9,'Liste choisir'!$F$9*E202*100+MONTH($A202),0) -> 0 | G202: =IF(B202='Liste choisir'!$F$9,J202-I202,0) -> 0 | H202: =IF(E202="","",VLOOKUP(E202,'Liste choisir'!$A$2:$B$41,2)) -> 26-Automobile | I202: 20 | K202: =IF($B202='Liste choisir'!$F$9,1,0) -> 0 | L202: 2.288185863 | M202: 20 | N202: 0 | O202: 1 | P202: -20
... 135 more rows

Sheet Cumul
X4: 75% portable 90% bureau
C5: COMPTE COURANT
B6: Cumul de l'année | E6: =E10+E11 -> 2032.12 | F6: =F10+F11 -> 2067.31 | G6: =G10+G11 -> 2145.09 | H6: 2145.09 | I6: 2145.09 | J6: 0 | K6: 0 | L6: 0 | M6: 0 | N6: 0 | O6: 0 | P6: 0 | T6: =Saisie!$I$4 -> 149944.94 | AJ6: Pour calcul du tableau des provisions
E7: =E5 -> 0
B8: 2023-01-01 | E8: 2006-01-01 | F8: 2006-02-01 | G8: 2006-03-01 | H8: 2006-04-01 | I8: 2006-05-01 | J8: 2006-06-01 | K8: 2006-07-01 | L8: 2006-08-01 | M8: 2006-09-01 | N8: 2006-10-01 | O8: 2006-11-01 | P8: 2006-12-01 | R8: CUMUL | S8: MOYENNE | T8: % | U8: Moyennes | V8: Total cumul | W8: Moy/mois | AJ8: 1 | AK8: =AJ8+1 -> 2 | AL8: =AK8+1 -> 3 | AM8: 4 | AN8: 5 | AO8: 6 | AP8: 7 | AQ8: 8 | AR8: =AQ8+1 -> 9 | AS8: 10 | AT8: 11 | AU8: 12 | AV8: Cumul
B10: ='Liste choisir'!A2 -> 1 | C10: ='Liste choisir'!B2 -> 01-Salaire | E10: =SUM(IF(($B10*100+YEAR($B$8)+MONTH(E$8)+MONTH(E$8))/(YEAR($B$8))=Saisie!$L$12:$L$1391,(Saisie!$J$12:$J$1391-Saisie!$I$12:$I$1391))) -> 1332.18 | F10: =SUM(IF(($B10*100+YEAR($B$8)+MONTH(F$8)+MONTH(F$8))/(YEAR($B$8))=Saisie!$L$12:$L$1391,(Saisie!$J$12:$J$1391-Saisie!$I$12:$I$1391))) -> 1367.37 | G10: =SUM(IF(($B10*100+YEAR($B$8)+MONTH(G$8)+MONTH(G$8))/(YEAR($B$8))=Saisie!$L$12:$L$1391,(Saisie!$J$12:$J$1391-Saisie!$I$12:$I$1391))) -> 1367.37 | H10: =SUM(IF(($B10*100+YEAR($B$8)+MONTH(H$8)+MONTH(H$8))/(YEAR($B$8))=Saisie!$L$12:$L$1391,(Saisie!$J$12:$J$1391-Saisie!$I$12:$I$1391))) -> 1367.37 | I10: =SUM(IF(($B10*100+YEAR($B$8)+MONTH(I$8)+MONTH(I$8))/(YEAR($B$8))=Saisie!$L$12:$L$1391,(Saisie!$J$12:$J$1391-Saisie!$I$12:$I$1391))) -> 1367.37 | J10: =SUM(IF(($B10*100+YEAR($B$8)+MONTH(J$8)+MONTH(J$8))/(YEAR($B$8))=Saisie!$L$12:$L$1391,(Saisie!$J$12:$J$1391-Saisie!$I$12:$I$1391))) -> 0 | K10: =SUM(IF(($B10*100+YEAR($B$8)+MONTH(K$8)+MONTH(K$8))/(YEAR($B$8))=Saisie!$L$12:$L$1391,(Saisie!$J$12:$J$1391-Saisie!$I$12:$I$1391))) -> 0 | L10: =SUM(IF(($B10*100+YEAR($B$8)+MONTH(L$8)+MONTH(L$8))/(YEAR($B$8))=Saisie!$L$12:$L$1391,(Saisie!$J$12:$J$1391-Saisie!$I$12:$I$1391))) -> 0 | M10: =SUM(IF(($B10*100+YEAR($B$8)+MONTH(M$8)+MONTH(M$8))/(YEAR($B$8))=Saisie!$L$12:$L$1391,(Saisie!$J$12:$J$1391-Saisie!$I$12:$I$1391))) -> 0 | N10: =SUM(IF(($B10*100+YEAR($B$8)+MONTH(N$8)+MONTH(N$8))/(YEAR($B$8))=Saisie!$L$12:$L$1391,(Saisie!$J$12:$J$1391-Saisie!$I$12:$I$1391))) -> 0 | O10: =SUM(IF(($B10*100+YEAR($B$8)+MONTH(O$8)+MONTH(O$8))/(YEAR($B$8))=Saisie!$L$12:$L$1391,(Saisie!$J$12:$J$1391-Saisie!$I$12:$I$1391))) -> 0 | P10: =SUM(IF(($B10*100+YEAR($B$8)+MONTH(P$8)+MONTH(P$8))/(YEAR($B$8))=Saisie!$L$12:$L$1391,(Saisie!$J$12:$J$1391-Saisie!$I$12:$I$1391))) -> 0 | R10: =SUM(E10:P10) -> 6801.66 | U10: =IF(R10=0,"",AVERAGE(IF(E10:P10<>0,E10:P10))) -> 1360.332 | V10: =R10+R11 -> 10534.7 | W10: =U10+U11 -> 2106.94 | X10: SOMME(E10:P10)/NB.SI(E10:P10;"<>0")+SOMME(E11:P11)/NB.SI(E11:P11;"<>0") | AI10: =C10 -> 01-Salaire | AJ10: =SUM(IF('Liste choisir'!$F$9*$B10*100+(AJ$8)=Saisie!$F$12:$F$1395,(Saisie!$G$12:$G$1395))) -> 0 | AK10: =SUM(IF('Liste choisir'!$F$9*$B10*100+(AK$8)=Saisie!$F$12:$F$1395,(Saisie!$G$12:$G$1395))) -> 0 | AL10: =SUM(IF('Liste choisir'!$F$9*$B10*100+(AL$8)=Saisie!$F$12:$F$1395,(Saisie!$G$12:$G$1395))) -> 0 | AM10: =SUM(IF('Liste choisir'!$F$9*$B10*100+(AM$8)=Saisie!$F$12:$F$1395,(Saisie!$G$12:$G$1395))) -> 0 | AN10: =SUM(IF('Liste choisir'!$F$9*$B10*100+(AN$8)=Saisie!$F$12:$F$1395,(Saisie!$G$12:$G$1395))) -> 0 | AO10: =SUM(IF('Liste choisir'!$F$9*$B10*100+(AO$8)=Saisie!$F$12:$F$1395,(Saisie!$G$12:$G$1395))) -> 0 | AP10: =SUM(IF('Liste choisir'!$F$9*$B10*100+(AP$8)=Saisie!$F$12:$F$1395,(Saisie!$G$12:$G$1395))) -> 0 | AQ10: =SUM(IF('Liste choisir'!$F$9*$B10*100+(AQ$8)=Saisie!$F$12:$F$1395,(Saisie!$G$12:$G$1395))) -> 0 | AR10: =SUM(IF('Liste choisir'!$F$9*$B10*100+(AR$8)=Saisie!$F$12:$F$1395,(Saisie!$G$12:$G$1395))) -> 0 | AS10: =SUM(IF('Liste choisir'!$F$9*$B10*100+(AS$8)=Saisie!$F$12:$F$1395,(Saisie!$G$12:$G$1395))) -> 0 | AT10: =SUM(IF('Liste choisir'!$F$9*$B10*100+(AT$8)=Saisie!$F$12:$F$1395,(Saisie!$G$12:$G$1395))) -> 0 | AU10: =SUM(IF('Liste choisir'!$F$9*$B10*100+(AU$8)=Saisie!$F$12:$F$1395,(Saisie!$G$12:$G$1395))) -> 0 | AV10: =SUM(AJ10:AU10) -> 0
B11: ='Liste choisir'!A3 -> 2 | C11: ='Liste choisir'!B3 -> 02- | E11: =SUM(IF(($B11*100+YEAR($B$8)+MONTH(E$8)+MONTH(E$8))/(YEAR($B$8))=Saisie!$L$12:$L$1391,(Saisie!$J$12:$J$1391-Saisie!$I$12:$I$1391))) -> 699.94 | F11: =SUM(IF(($B11*100+YEAR($B$8)+MONTH(F$8)+MONTH(F$8))/(YEAR($B$8))=Saisie!$L$12:$L$1391,(Saisie!$J$12:$J$1391-Saisie!$I$12:$I$1391))) -> 699.94 | G11: =SUM(IF(($B11*100+YEAR($B$8)+MONTH(G$8)+MONTH(G$8))/(YEAR($B$8))=Saisie!$L$12:$L$1391,(Saisie!$J$12:$J$1391-Saisie!$I$12:$I$1391))) -> 777.72 | H11: =SUM(IF(($B11*100+YEAR($B$8)+MONTH(H$8)+MONTH(H$8))/(YEAR($B$8))=Saisie!$L$12:$L$1391,(Saisie!$J$12:$J$1391-Saisie!$I$12:$I$1391))) -> 777.72 | I11: =SUM(IF(($B11*100+YEAR($B$8)+MONTH(I$8)+MONTH(I$8))/(YEAR($B$8))=Saisie!$L$12:$L$1391,(Saisie!$J$12:$J$1391-Saisie!$I$12:$I$1391))) -> 777.72 | J11: =SUM(IF(($B11*100+YEAR($B$8)+MONTH(J$8)+MONTH(J$8))/(YEAR($B$8))=Saisie!$L$12:$L$1391,(Saisie!$J$12:$J$1391-Saisie!$I$12:$I$1391))) -> 0 | K11: =SUM(IF(($B11*100+YEAR($B$8)+MONTH(K$8)+MONTH(K$8))/(YEAR($B$8))=Saisie!$L$12:$L$1391,(Saisie!$J$12:$J$1391-Saisie!$I$12:$I$1391))) -> 0 | L11: =SUM(IF(($B11*100+YEAR($B$8)+MONTH(L$8)+MONTH(L$8))/(YEAR($B$8))=Saisie!$L$12:$L$1391,(Saisie!$J$12:$J$1391-Saisie!$I$12:$I$1391))) -> 0 | M11: =SUM(IF(($B11*100+YEAR($B$8)+MONTH(M$8)+MONTH(M$8))/(YEAR($B$8))=Saisie!$L$12:$L$1391,(Saisie!$J$12:$J$1391-Saisie!$I$12:$I$1391))) -> 0 | N11: =SUM(IF(($B11*100+YEAR($B$8)+MONTH(N$8)+MONTH(N$8))/(YEAR($B$8))=Saisie!$L$12:$L$1391,(Saisie!$J$12:$J$1391-Saisie!$I$12:$I$1391))) -> 0 | O11: =SUM(IF(($B11*100+YEAR($B$8)+MONTH(O$8)+MONTH(O$8))/(YEAR($B$8))=Saisie!$L$12:$L$1391,(Saisie!$J$12:$J$1391-Saisie!$I$12:$I$1391))) -> 0 | P11: =SUM(IF(($B11*100+YEAR($B$8)+MONTH(P$8)+MONTH(P$8))/(YEAR($B$8))=Saisie!$L$12:$L$1391,(Saisie!$J$12:$J$1391-Saisie!$I$12:$I$1391))) -> 0 | R11: 3733.04 | U11: =IF(R11=0,"",AVERAGE(IF(E11:P11<>0,E11:P11))) -> 746.608 | W11: SOMME(E10:P10)/NB.SI(E10:P10;"<>0")+SOMME(E11:P11)/NB.SI(E11:P11;"<>0") | X11: SOMME(E10:P10)/NB.SI(E10:P10;"<>0")+SOMME(E11:P11)/NB.SI(E11:P11;"<>0") | AI11: =C11 -> 02- | AJ11: =SUM(IF('Liste choisir'!$F$9*$B11*100+(AJ$8)=Saisie!$F$12:$F$1395,(Saisie!$G$12:$G$1395))) -> 0 | AK11: =SUM(IF('Liste choisir'!$F$9*$B11*100+(AK$8)=Saisie!$F$12:$F$1395,(Saisie!$G$12:$G$1395))) -> 0 | AL11: =SUM(IF('Liste choisir'!$F$9*$B11*100+(AL$8)=Saisie!$F$12:$F$1395,(Saisie!$G$12:$G$1395))) -> 0 | AM11: =SUM(IF('Liste choisir'!$F$9*$B11*100+(AM$8)=Saisie!$F$12:$F$1395,(Saisie!$G$12:$G$1395))) -> 0 | AN11: =SUM(IF('Liste choisir'!$F$9*$B11*100+(AN$8)=Saisie!$F$12:$F$1395,(Saisie!$G$12:$G$1395))) -> 0 | AO11: =SUM(IF('Liste choisir'!$F$9*$B11*100+(AO$8)=Saisie!$F$12:$F$1395,(Saisie!$G$12:$G$1395))) -> 0 | AP11: =SUM(IF('Liste choisir'!$F$9*$B11*100+(AP$8)=Saisie!$F$12:$F$1395,(Saisie!$G$12:$G$1395))) -> 0 | AQ11: =SUM(IF('Liste choisir'!$F$9*$B11*100+(AQ$8)=Saisie!$F$12:$F$1395,(Saisie!$G$12:$G$1395))) -> 0 | AR11: =SUM(IF('Liste choisir'!$F$9*$B11*100+(AR$8)=Saisie!$F$12:$F$1395,(Saisie!$G$12:$G$1395))) -> 0 | AS11: =SUM(IF('Liste choisir'!$F$9*$B11*100+(AS$8)=Saisie!$F$12:$F$1395,(Saisie!$G$12:$G$1395))) -> 0 | AT11: =SUM(IF('Liste choisir'!$F$9*$B11*100+(AT$8)=Saisie!$F$12:$F$1395,(Saisie!$G$12:$G$1395))) -> 0 | AU11: =SUM(IF('Liste choisir'!$F$9*$B11*100+(AU$8)=Saisie!$F$12:$F$1395,(Saisie!$G$12:$G$1395))) -> 0 | AV11: =SUM(AJ11:AU11) -> 0
B12: ='Liste choisir'!A4 -> 3 | C12: ='Liste choisir'!B4 -> 03- | E12: =SUM(IF(($B12*100+YEAR($B$8)+MONTH(E$8)+MONTH(E$8))/(YEAR($B$8))=Saisie!$L$12:$L$1391,(Saisie!$J$12:$J$1391-Saisie!$I$12:$I$1391))) -> 2149.27 | F12: =SUM(IF(($B12*100+YEAR($B$8)+MONTH(F$8)+MONTH(F$8))/(YEAR($B$8))=Saisie!$L$12:$L$1391,(Saisie!$J$12:$J$1391-Saisie!$I$12:$I$1391))) -> 271 | G12: =SUM(IF(($B12*100+YEAR($B$8)+MONTH(G$8)+MONTH(G$8))/(YEAR($B$8))=Saisie!$L$12:$L$1391,(Saisie!$J$12:$J$1391-Saisie!$I$12:$I$1391))) -> 0 | H12: =SUM(IF(($B12*100+YEAR($B$8)+MONTH(H$8)+MONTH(H$8))/(YEAR($B$8))=Saisie!$L$12:$L$1391,(Saisie!$J$12:$J$1391-Saisie!$I$12:$I$1391))) -> 265 | I12: =SUM(IF(($B12*100+YEAR($B$8)+MONTH(I$8)+MONTH(I$8))/(YEAR($B$8))=Saisie!$L$12:$L$1391,(Saisie!$J$12:$J$1391-Saisie!$I$12:$I$1391))) -> 0 | J12: =SUM(IF(($B12*100+YEAR($B$8)+MONTH(J$8)+MONTH(J$8))/(YEAR($B$8))=Saisie!$L$12:$L$1391,(Saisie!$J$12:$J$1391-Saisie!$I$12:$I$1391))) -> 0 | K12: =SUM(IF(($B12*100+YEAR($B$8)+MONTH(K$8)+MONTH(K$8))/(YEAR($B$8))=Saisie!$L$12:$L$1391,(Saisie!$J$12:$J$1391-Saisie!$I$12:$I$1391))) -> 0 | L12: =SUM(IF(($B12*100+YEAR($B$8)+MONTH(L$8)+MONTH(L$8))/(YEAR($B$8))=Saisie!$L$12:$L$1391,(Saisie!$J$12:$J$1391-Saisie!$I$12:$I$1391))) -> 0 | M12: =SUM(IF(($B12*100+YEAR($B$8)+MONTH(M$8)+MONTH(M$8))/(YEAR($B$8))=Saisie!$L$12:$L$1391,(Saisie!$J$12:$J$1391-Saisie!$I$12:$I$1391))) -> 0 | N12: =SUM(IF(($B12*100+YEAR($B$8)+MONTH(N$8)+MONTH(N$8))/(YEAR($B$8))=Saisie!$L$12:$L$1391,(Saisie!$J$12:$J$1391-Saisie!$I$12:$I$1391))) -> 0 | O12: =SUM(IF(($B12*100+YEAR($B$8)+MONTH(O$8)+MONTH(O$8))/(YEAR($B$8))=Saisie!$L$12:$L$1391,(Saisie!$J$12:$J$1391-Saisie!$I$12:$I$1391))) -> 0 | P12: =SUM(IF(($B12*100+YEAR($B$8)+MONTH(P$8)+MONTH(P$8))/(YEAR($B$8))=Saisie!$L$12:$L$1391,(Saisie!$J$12:$J$1391-Saisie!$I$12:$I$1391))) -> 0 | R12: =SUM(E12:P12) -> 2685.27 | T12: =(R12-R12-R12)/($R$10+$R$11)*100% -> -0.254897624 | U12: =IF(R12=0,"",AVERAGE(IF(E12:P12<>0,E12:P12))) -> 895.09 | V12: =C12 -> 03- | AI12: =C12 -> 03- | AJ12: =SUM(IF('Liste choisir'!$F$9*$B12*100+(AJ$8)=Saisie!$F$12:$F$1395,(Saisie!$G$12:$G$1395))) -> 0 | AK12: =SUM(IF('Liste choisir'!$F$9*$B12*100+(AK$8)=Saisie!$F$12:$F$1395,(Saisie!$G$12:$G$1395))) -> 0 | AL12: =SUM(IF('Liste choisir'!$F$9*$B12*100+(AL$8)=Saisie!$F$12:$F$1395,(Saisie!$G$12:$G$1395))) -> 0 | AM12: =SUM(IF('Liste choisir'!$F$9*$B12*100+(AM$8)=Saisie!$F$12:$F$1395,(Saisie!$G$12:$G$1395))) -> 0 | AN12: =SUM(IF('Liste choisir'!$F$9*$B12*100+(AN$8)=Saisie!$F$12:$F$1395,(Saisie!$G$12:$G$1395))) -> 0 | AO12: =SUM(IF('Liste choisir'!$F$9*$B12*100+(AO$8)=Saisie!$F$12:$F$1395,(Saisie!$G$12:$G$1395))) -> 0 | AP12: =SUM(IF('Liste choisir'!$F$9*$B12*100+(AP$8)=Saisie!$F$12:$F$1395,(Saisie!$G$12:$G$1395))) -> 0 | AQ12: =SUM(IF('Liste choisir'!$F$9*$B12*100+(AQ$8)=Saisie!$F$12:$F$1395,(Saisie!$G$12:$G$1395))) -> 0 | AR12: =SUM(IF('Liste choisir'!$F$9*$B12*100+(AR$8)=Saisie!$F$12:$F$1395,(Saisie!$G$12:$G$1395))) -> 0 | AS12: =SUM(IF('Liste choisir'!$F$9*$B12*100+(AS$8)=Saisie!$F$12:$F$1395,(Saisie!$G$12:$G$1395))) -> 0 | AT12: =SUM(IF('Liste choisir'!$F$9*$B12*100+(AT$8)=Saisie!$F$12:$F$1395,(Saisie!$G$12:$G$1395))) -> 0 | AU12: =SUM(IF('Liste choisir'!$F$9*$B12*100+(AU$8)=Saisie!$F$12:$F$1395,(Saisie!$G$12:$G$1395))) -> 0 | AV12: =SUM(AJ12:AU12) -> 0
B13: ='Liste choisir'!A5 -> 4 | C13: ='Liste choisir'!B5 -> 04- | E13: =SUM(IF(($B13*100+YEAR($B$8)+MONTH(E$8)+MONTH(E$8))/(YEAR($B$8))=Saisie!$L$12:$L$1391,(Saisie!$J$12:$J$1391-Saisie!$I$12:$I$1391))) -> 0 | F13: =SUM(IF(($B13*100+YEAR($B$8)+MONTH(F$8)+MONTH(F$8))/(YEAR($B$8))=Saisie!$L$12:$L$1391,(Saisie!$J$12:$J$1391-Saisie!$I$12:$I$1391))) -> 0 | G13: =SUM(IF(($B13*100+YEAR($B$8)+MONTH(G$8)+MONTH(G$8))/(YEAR($B$8))=Saisie!$L$12:$L$1391,(Saisie!$J$12:$J$1391-Saisie!$I$12:$I$1391))) -> -100 | H13: =SUM(IF(($B13*100+YEAR($B$8)+MONTH(H$8)+MONTH(H$8))/(YEAR($B$8))=Saisie!$L$12:$L$1391,(Saisie!$J$12:$J$1391-Saisie!$I$12:$I$1391))) -> -100 | I13: =SUM(IF(($B13*100+YEAR($B$8)+MONTH(I$8)+MONTH(I$8))/(YEAR($B$8))=Saisie!$L$12:$L$1391,(Saisie!$J$12:$J$1391-Saisie!$I$12:$I$1391))) -> -100 | J13: =SUM(IF(($B13*100+YEAR($B$8)+MONTH(J$8)+MONTH(J$8))/(YEAR($B$8))=Saisie!$L$12:$L$1391,(Saisie!$J$12:$J$1391-Saisie!$I$12:$I$1391))) -> 0 | K13: =SUM(IF(($B13*100+YEAR($B$8)+MONTH(K$8)+MONTH(K$8))/(YEAR($B$8))=Saisie!$L$12:$L$1391,(Saisie!$J$12:$J$1391-Saisie!$I$12:$I$1391))) -> 0 | L13: =SUM(IF(($B13*100+YEAR($B$8)+MONTH(L$8)+MONTH(L$8))/(YEAR($B$8))=Saisie!$L$12:$L$1391,(Saisie!$J$12:$J$1391-Saisie!$I$12:$I$1391))) -> 0 | M13: =SUM(IF(($B13*100+YEAR($B$8)+MONTH(M$8)+MONTH(M$8))/(YEAR($B$8))=Saisie!$L$12:$L$1391,(Saisie!$J$12:$J$1391-Saisie!$I$12:$I$1391))) -> 0 | N13: =SUM(IF(($B13*100+YEAR($B$8)+MONTH(N$8)+MONTH(N$8))/(YEAR($B$8))=Saisie!$L$12:$L$1391,(Saisie!$J$12:$J$1391-Saisie!$I$12:$I$1391))) -> 0 | O13: =SUM(IF(($B13*100+YEAR($B$8)+MONTH(O$8)+MONTH(O$8))/(YEAR($B$8))=Saisie!$L$12:$L$1391,(Saisie!$J$12:$J$1391-Saisie!$I$12:$I$1391))) -> 0 | P13: =SUM(IF(($B13*100+YEAR($B$8)+MONTH(P$8)+MONTH(P$8))/(YEAR($B$8))=Saisie!$L$12:$L$1391,(Saisie!$J$12:$J$1391-Saisie!$I$12:$I$1391))) -> 0 | R13: -300 | T13: 0.02847731782 | U13: =IF(R13=0,"",AVERAGE(IF(E13:P13<>0,E13:P13))) -> -100 | V13: 04- | AI13: =C13 -> 04- | AJ13: =SUM(IF('Liste choisir'!$F$9*$B13*100+(AJ$8)=Saisie!$F$12:$F$1395,(Saisie!$G$12:$G$1395))) -> 0 | AK13: =SUM(IF('Liste choisir'!$F$9*$B13*100+(AK$8)=Saisie!$F$12:$F$1395,(Saisie!$G$12:$G$1395))) -> 0 | AL13: =SUM(IF('Liste choisir'!$F$9*$B13*100+(AL$8)=Saisie!$F$12:$F$1395,(Saisie!$G$12:$G$1395))) -> 0 | AM13: =SUM(IF('Liste choisir'!$F$9*$B13*100+(AM$8)=Saisie!$F$12:$F$1395,(Saisie!$G$12:$G$1395))) -> 0 | AN13: =SUM(IF('Liste choisir'!$F$9*$B13*100+(AN$8)=Saisie!$F$12:$F$1395,(Saisie!$G$12:$G$1395))) -> 0 | AO13: =SUM(IF('Liste choisir'!$F$9*$B13*100+(AO$8)=Saisie!$F$12:$F$1395,(Saisie!$G$12:$G$1395))) -> 0 | AP13: =SUM(IF('Liste choisir'!$F$9*$B13*100+(AP$8)=Saisie!$F$12:$F$1395,(Saisie!$G$12:$G$1395))) -> 0 | AQ13: =SUM(IF('Liste choisir'!$F$9*$B13*100+(AQ$8)=Saisie!$F$12:$F$1395,(Saisie!$G$12:$G$1395))) -> 0 | AR13: =SUM(IF('Liste choisir'!$F$9*$B13*100+(AR$8)=Saisie!$F$12:$F$1395,(Saisie!$G$12:$G$1395))) -> 0 | AS13: =SUM(IF('Liste choisir'!$F$9*$B13*100+(AS$8)=Saisie!$F$12:$F$1395,(Saisie!$G$12:$G$1395))) -> 0 | AT13: =SUM(IF('Liste choisir'!$F$9*$B13*100+(AT$8)=Saisie!$F$12:$F$1395,(Saisie!$G$12:$G$1395))) -> 0 | AU13: =SUM(IF('Liste choisir'!$F$9*$B13*100+(AU$8)=Saisie!$F$12:$F$1395,(Saisie!$G$12:$G$1395))) -> 0 | AV13: =SUM(AJ13:AU13) -> 0
B14: ='Liste choisir'!A6 -> 5 | C14: ='Liste choisir'!B6 -> 05-Loyer | E14: =SUM(IF(($B14*100+YEAR($B$8)+MONTH(E$8)+MONTH(E$8))/(YEAR($B$8))=Saisie!$L$12:$L$1391,(Saisie!$J$12:$J$1391-Saisie!$I$12:$I$1391))) -> -1310 | F14: =SUM(IF(($B14*100+YEAR($B$8)+MONTH(F$8)+MONTH(F$8))/(YEAR($B$8))=Saisie!$L$12:$L$1391,(Saisie!$J$12:$J$1391-Saisie!$I$12:$I$1391))) -> -710 | G14: =SUM(IF(($B14*100+YEAR($B$8)+MONTH(G$8)+MONTH(G$8))/(YEAR($B$8))=Saisie!$L$12:$L$1391,(Saisie!$J$12:$J$1391-Saisie!$I$12:$I$1391))) -> -710 | H14: =SUM(IF(($B14*100+YEAR($B$8)+MONTH(H$8)+MONTH(H$8))/(YEAR($B$8))=Saisie!$L$12:$L$1391,(Saisie!$J$12:$J$1391-Saisie!$I$12:$I$1391))) -> -710 | I14: =SUM(IF(($B14*100+YEAR($B$8)+MONTH(I$8)+MONTH(I$8))/(YEAR($B$8))=Saisie!$L$12:$L$1391,(Saisie!$J$12:$J$1391-Saisie!$I$12:$I$1391))) -> -710 | J14: =SUM(IF(($B14*100+YEAR($B$8)+MONTH(J$8)+MONTH(J$8))/(YEAR($B$8))=Saisie!$L$12:$L$1391,(Saisie!$J$12:$J$1391-Saisie!$I$12:$I$1391))) -> 0 | K14: =SUM(IF(($B14*100+YEAR($B$8)+MONTH(K$8)+MONTH(K$8))/(YEAR($B$8))=Saisie!$L$12:$L$1391,(Saisie!$J$12:$J$1391-Saisie!$I$12:$I$1391))) -> 0 | L14: =SUM(IF(($B14*100+YEAR($B$8)+MONTH(L$8)+MONTH(L$8))/(YEAR($B$8))=Saisie!$L$12:$L$1391,(Saisie!$J$12:$J$1391-Saisie!$I$12:$I$1391))) -> 0 | M14: =SUM(IF(($B14*100+YEAR($B$8)+MONTH(M$8)+MONTH(M$8))/(YEAR($B$8))=Saisie!$L$12:$L$1391,(Saisie!$J$12:$J$1391-Saisie!$I$12:$I$1391))) -> 0 | N14: =SUM(IF(($B14*100+YEAR($B$8)+MONTH(N$8)+MONTH(N$8))/(YEAR($B$8))=Saisie!$L$12:$L$1391,(Saisie!$J$12:$J$1391-Saisie!$I$12:$I$1391))) -> 0 | O14: =SUM(IF(($B14*100+YEAR($B$8)+MONTH(O$8)+MONTH(O$8))/(YEAR($B$8))=Saisie!$L$12:$L$1391,(Saisie!$J$12:$J$1391-Saisie!$I$12:$I$1391))) -> 0 | P14: =SUM(IF(($B14*100+YEAR($B$8)+MONTH(P$8)+MONTH(P$8))/(YEAR($B$8))=Saisie!$L$12:$L$1391,(Saisie!$J$12:$J$1391-Saisie!$I$12:$I$1391))) -> 0 | R14: -4150 | T14: 0.3939362298 | U14: =IF(R14=0,"",AVERAGE(IF(E14:P14<>0,E14:P14))) -> -830 | V14: 05-Loyer | AI14: =C14 -> 05-Loyer | AJ14: =SUM(IF('Liste choisir'!$F$9*$B14*100+(AJ$8)=Saisie!$F$12:$F$1395,(Saisie!$G$12:$G$1395))) -> 0 | AK14: =SUM(IF('Liste choisir'!$F$9*$B14*100+(AK$8)=Saisie!$F$12:$F$1395,(Saisie!$G$12:$G$1395))) -> 0 | AL14: =SUM(IF('Liste choisir'!$F$9*$B14*100+(AL$8)=Saisie!$F$12:$F$1395,(Saisie!$G$12:$G$1395))) -> 0 | AM14: =SUM(IF('Liste choisir'!$F$9*$B14*100+(AM$8)=Saisie!$F$12:$F$1395,(Saisie!$G$12:$G$1395))) -> 0 | AN14: =SUM(IF('Liste choisir'!$F$9*$B14*100+(AN$8)=Saisie!$F$12:$F$1395,(Saisie!$G$12:$G$1395))) -> 0 | AO14: =SUM(IF('Liste choisir'!$F$9*$B14*100+(AO$8)=Saisie!$F$12:$F$1395,(Saisie!$G$12:$G$1395))) -> 0 | AP14: =SUM(IF('Liste choisir'!$F$9*$B14*100+(AP$8)=Saisie!$F$12:$F$1395,(Saisie!$G$12:$G$1395))) -> 0 | AQ14: =SUM(IF('Liste choisir'!$F$9*$B14*100+(AQ$8)=Saisie!$F$12:$F$1395,(Saisie!$G$12:$G$1395))) -> 0 | AR14: =SUM(IF('Liste choisir'!$F$9*$B14*100+(AR$8)=Saisie!$F$12:$F$1395,(Saisie!$G$12:$G$1395))) -> 0 | AS14: =SUM(IF('Liste choisir'!$F$9*$B14*100+(AS$8)=Saisie!$F$12:$F$1395,(Saisie!$G$12:$G$1395))) -> 0 | AT14: =SUM(IF('Liste choisir'!$F$9*$B14*100+(AT$8)=Saisie!$F$12:$F$1395,(Saisie!$G$12:$G$1395))) -> 0 | AU14: =SUM(IF('Liste choisir'!$F$9*$B14*100+(AU$8)=Saisie!$F$12:$F$1395,(Saisie!$G$12:$G$1395))) -> 0 | AV14: =SUM(AJ14:AU14) -> 0
B15: ='Liste choisir'!A7 -> 6 | C15: ='Liste choisir'!B7 -> 06-Frais de banque | E15: =SUM(IF(($B15*100+YEAR($B$8)+MONTH(E$8)+MONTH(E$8))/(YEAR($B$8))=Saisie!$L$12:$L$1391,(Saisie!$J$12:$J$1391-Saisie!$I$12:$I$1391))) -> -48.73 | F15: =SUM(IF(($B15*100+YEAR($B$8)+MONTH(F$8)+MONTH(F$8))/(YEAR($B$8))=Saisie!$L$12:$L$1391,(Saisie!$J$12:$J$1391-Saisie!$I$12:$I$1391))) -> -4.73 | G15: =SUM(IF(($B15*100+YEAR($B$8)+MONTH(G$8)+MONTH(G$8))/(YEAR($B$8))=Saisie!$L$12:$L$1391,(Saisie!$J$12:$J$1391-Saisie!$I$12:$I$1391))) -> -4.73 | H15: =SUM(IF(($B15*100+YEAR($B$8)+MONTH(H$8)+MONTH(H$8))/(YEAR($B$8))=Saisie!$L$12:$L$1391,(Saisie!$J$12:$J$1391-Saisie!$I$12:$I$1391))) -> -4.73 | I15: =SUM(IF(($B15*100+YEAR($B$8)+MONTH(I$8)+MONTH(I$8))/(YEAR($B$8))=Saisie!$L$12:$L$1391,(Saisie!$J$12:$J$1391-Saisie!$I$12:$I$1391))) -> -4.73 | J15: =SUM(IF(($B15*100+YEAR($B$8)+MONTH(J$8)+MONTH(J$8))/(YEAR($B$8))=Saisie!$L$12:$L$1391,(Saisie!$J$12:$J$1391-Saisie!$I$12:$I$1391))) -> 0 | K15: =SUM(IF(($B15*100+YEAR($B$8)+MONTH(K$8)+MONTH(K$8))/(YEAR($B$8))=Saisie!$L$12:$L$1391,(Saisie!$J$12:$J$1391-Saisie!$I$12:$I$1391))) -> 0 | L15: =SUM(IF(($B15*100+YEAR($B$8)+MONTH(L$8)+MONTH(L$8))/(YEAR($B$8))=Saisie!$L$12:$L$1391,(Saisie!$J$12:$J$1391-Saisie!$I$12:$I$1391))) -> 0 | M15: =SUM(IF(($B15*100+YEAR($B$8)+MONTH(M$8)+MONTH(M$8))/(YEAR($B$8))=Saisie!$L$12:$L$1391,(Saisie!$J$12:$J$1391-Saisie!$I$12:$I$1391))) -> 0 | N15: =SUM(IF(($B15*100+YEAR($B$8)+MONTH(N$8)+MONTH(N$8))/(YEAR($B$8))=Saisie!$L$12:$L$1391,(Saisie!$J$12:$J$1391-Saisie!$I$12:$I$1391))) -> 0 | O15: =SUM(IF(($B15*100+YEAR($B$8)+MONTH(O$8)+MONTH(O$8))/(YEAR($B$8))=Saisie!$L$12:$L$1391,(Saisie!$J$12:$J$1391-Saisie!$I$12:$I$1391))) -> 0 | P15: =SUM(IF(($B15*100+YEAR($B$8)+MONTH(P$8)+MONTH(P$8))/(YEAR($B$8))=Saisie!$L$12:$L$1391,(Saisie!$J$12:$J$1391-Saisie!$I$12:$I$1391))) -> 0 | R15: -67.65 | T15: 0.006421635168 | U15: =IF(R15=0,"",AVERAGE(IF(E15:P15<>0,E15:P15))) -> -13.53 | V15: 06-Frais de banque | AI15: =C15 -> 06-Frais de banque | AJ15: =SUM(IF('Liste choisir'!$F$9*$B15*100+(AJ$8)=Saisie!$F$12:$F$1395,(Saisie!$G$12:$G$1395))) -> 0 | AK15: =SUM(IF('Liste choisir'!$F$9*$B15*100+(AK$8)=Saisie!$F$12:$F$1395,(Saisie!$G$12:$G$1395))) -> 0 | AL15: =SUM(IF('Liste choisir'!$F$9*$B15*100+(AL$8)=Saisie!$F$12:$F$1395,(Saisie!$G$12:$G$1395))) -> 0 | AM15: =SUM(IF('Liste choisir'!$F$9*$B15*100+(AM$8)=Saisie!$F$12:$F$1395,(Saisie!$G$12:$G$1395))) -> 0 | AN15: =SUM(IF('Liste choisir'!$F$9*$B15*100+(AN$8)=Saisie!$F$12:$F$1395,(Saisie!$G$12:$G$1395))) -> 0 | AO15: =SUM(IF('Liste choisir'!$F$9*$B15*100+(AO$8)=Saisie!$F$12:$F$1395,(Saisie!$G$12:$G$1395))) -> 0 | AP15: =SUM(IF('Liste choisir'!$F$9*$B15*100+(AP$8)=Saisie!$F$12:$F$1395,(Saisie!$G$12:$G$1395))) -> 0 | AQ15: =SUM(IF('Liste choisir'!$F$9*$B15*100+(AQ$8)=Saisie!$F$12:$F$1395,(Saisie!$G$12:$G$1395))) -> 0 | AR15: =SUM(IF('Liste choisir'!$F$9*$B15*100+(AR$8)=Saisie!$F$12:$F$1395,(Saisie!$G$12:$G$1395))) -> 0 | AS15: =SUM(IF('Liste choisir'!$F$9*$B15*100+(AS$8)=Saisie!$F$12:$F$1395,(Saisie!$G$12:$G$1395))) -> 0 | AT15: =SUM(IF('Liste choisir'!$F$9*$B15*100+(AT$8)=Saisie!$F$12:$F$1395,(Saisie!$G$12:$G$1395))) -> 0 | AU15: =SUM(IF('Liste choisir'!$F$9*$B15*100+(AU$8)=Saisie!$F$12:$F$1395,(Saisie!$G$12:$G$1395))) -> 0 | AV15: 0
B16: ='Liste choisir'!A8 -> 7 | C16: ='Liste choisir'!B8 -> 07-Cotisation carte bleue | E16: =SUM(IF(($B16*100+YEAR($B$8)+MONTH(E$8)+MONTH(E$8))/(YEAR($B$8))=Saisie!$L$12:$L$1391,(Saisie!$J$12:$J$1391-Saisie!$I$12:$I$1391))) -> -3 | F16: =SUM(IF(($B16*100+YEAR($B$8)+MONTH(F$8)+MONTH(F$8))/(YEAR($B$8))=Saisie!$L$12:$L$1391,(Saisie!$J$12:$J$1391-Saisie!$I$12:$I$1391))) -> -3 | G16: =SUM(IF(($B16*100+YEAR($B$8)+MONTH(G$8)+MONTH(G$8))/(YEAR($B$8))=Saisie!$L$12:$L$1391,(Saisie!$J$12:$J$1391-Saisie!$I$12:$I$1391))) -> -4 | H16: =SUM(IF(($B16*100+YEAR($B$8)+MONTH(H$8)+MONTH(H$8))/(YEAR($B$8))=Saisie!$L$12:$L$1391,(Saisie!$J$12:$J$1391-Saisie!$I$12:$I$1391))) -> -4 | I16: =SUM(IF(($B16*100+YEAR($B$8)+MONTH(I$8)+MONTH(I$8))/(YEAR($B$8))=Saisie!$L$12:$L$1391,(Saisie!$J$12:$J$1391-Saisie!$I$12:$I$1391))) -> -4 | J16: =SUM(IF(($B16*100+YEAR($B$8)+MONTH(J$8)+MONTH(J$8))/(YEAR($B$8))=Saisie!$L$12:$L$1391,(Saisie!$J$12:$J$1391-Saisie!$I$12:$I$1391))) -> 0 | K16: =SUM(IF(($B16*100+YEAR($B$8)+MONTH(K$8)+MONTH(K$8))/(YEAR($B$8))=Saisie!$L$12:$L$1391,(Saisie!$J$12:$J$1391-Saisie!$I$12:$I$1391))) -> 0 | L16: =SUM(IF(($B16*100+YEAR($B$8)+MONTH(L$8)+MONTH(L$8))/(YEAR($B$8))=Saisie!$L$12:$L$1391,(Saisie!$J$12:$J$1391-Saisie!$I$12:$I$1391))) -> 0 | M16: =SUM(IF(($B16*100+YEAR($B$8)+MONTH(M$8)+MONTH(M$8))/(YEAR($B$8))=Saisie!$L$12:$L$1391,(Saisie!$J$12:$J$1391-Saisie!$I$12:$I$1391))) -> 0 | N16: =SUM(IF(($B16*100+YEAR($B$8)+MONTH(N$8)+MONTH(N$8))/(YEAR($B$8))=Saisie!$L$12:$L$1391,(Saisie!$J$12:$J$1391-Saisie!$I$12:$I$1391))) -> 0 | O16: =SUM(IF(($B16*100+YEAR($B$8)+MONTH(O$8)+MONTH(O$8))/(YEAR($B$8))=Saisie!$L$12:$L$1391,(Saisie!$J$12:$J$1391-Saisie!$I$12:$I$1391))) -> 0 | P16: =SUM(IF(($B16*100+YEAR($B$8)+MONTH(P$8)+MONTH(P$8))/(YEAR($B$8))=Saisie!$L$12:$L$1391,(Saisie!$J$12:$J$1391-Saisie!$I$12:$I$1391))) -> 0 | R16: -18 | T16: 0.001708639069 | U16: =IF(R16=0,"",AVERAGE(IF(E16:P16<>0,E16:P16))) -> -3.6 | V16: 07-Cotisation carte bleue | AI16: 07-Cotisation carte bleue | AJ16: =SUM(IF('Liste choisir'!$F$9*$B16*100+(AJ$8)=Saisie!$F$12:$F$1395,(Saisie!$G$12:$G$1395))) -> 0 | AK16: =SUM(IF('Liste choisir'!$F$9*$B16*100+(AK$8)=Saisie!$F$12:$F$1395,(Saisie!$G$12:$G$1395))) -> 0 | AL16: =SUM(IF('Liste choisir'!$F$9*$B16*100+(AL$8)=Saisie!$F$12:$F$1395,(Saisie!$G$12:$G$1395))) -> 0 | AM16: =SUM(IF('Liste choisir'!$F$9*$B16*100+(AM$8)=Saisie!$F$12:$F$1395,(Saisie!$G$12:$G$1395))) -> 0 | AN16: =SUM(IF('Liste choisir'!$F$9*$B16*100+(AN$8)=Saisie!$F$12:$F$1395,(Saisie!$G$12:$G$1395))) -> 0 | AO16: =SUM(IF('Liste choisir'!$F$9*$B16*100+(AO$8)=Saisie!$F$12:$F$1395,(Saisie!$G$12:$G$1395))) -> 0 | AP16: =SUM(IF('Liste choisir'!$F$9*$B16*100+(AP$8)=Saisie!$F$12:$F$1395,(Saisie!$G$12:$G$1395))) -> 0 | AQ16: =SUM(IF('Liste choisir'!$F$9*$B16*100+(AQ$8)=Saisie!$F$12:$F$1395,(Saisie!$G$12:$G$1395))) -> 0 | AR16: =SUM(IF('Liste choisir'!$F$9*$B16*100+(AR$8)=Saisie!$F$12:$F$1395,(Saisie!$G$12:$G$1395))) -> 0 | AS16: =SUM(IF('Liste choisir'!$F$9*$B16*100+(AS$8)=Saisie!$F$12:$F$1395,(Saisie!$G$12:$G$1395))) -> 0 | AT16: =SUM(IF('Liste choisir'!$F$9*$B16*100+(AT$8)=Saisie!$F$12:$F$1395,(Saisie!$G$12:$G$1395))) -> 0 | AU16: =SUM(IF('Liste choisir'!$F$9*$B16*100+(AU$8)=Saisie!$F$12:$F$1395,(Saisie!$G$12:$G$1395))) -> 0 | AV16: 0
B17: ='Liste choisir'!A9 -> 8 | C17: ='Liste choisir'!B9 -> 08-Nourriture - Frais de vie | E17: =SUM(IF(($B17*100+YEAR($B$8)+MONTH(E$8)+MONTH(E$8))/(YEAR($B$8))=Saisie!$L$12:$L$1391,(Saisie!$J$12:$J$1391-Saisie!$I$12:$I$1391))) -> -267.15 | F17: =SUM(IF(($B17*100+YEAR($B$8)+MONTH(F$8)+MONTH(F$8))/(YEAR($B$8))=Saisie!$L$12:$L$1391,(Saisie!$J$12:$J$1391-Saisie!$I$12:$I$1391))) -> -376.56 | G17: =SUM(IF(($B17*100+YEAR($B$8)+MONTH(G$8)+MONTH(G$8))/(YEAR($B$8))=Saisie!$L$12:$L$1391,(Saisie!$J$12:$J$1391-Saisie!$I$12:$I$1391))) -> -254.25 | H17: =SUM(IF(($B17*100+YEAR($B$8)+MONTH(H$8)+MONTH(H$8))/(YEAR($B$8))=Saisie!$L$12:$L$1391,(Saisie!$J$12:$J$1391-Saisie!$I$12:$I$1391))) -> -303 | I17: =SUM(IF(($B17*100+YEAR($B$8)+MONTH(I$8)+MONTH(I$8))/(YEAR($B$8))=Saisie!$L$12:$L$1391,(Saisie!$J$12:$J$1391-Saisie!$I$12:$I$1391))) -> -247.9 | J17: =SUM(IF(($B17*100+YEAR($B$8)+MONTH(J$8)+MONTH(J$8))/(YEAR($B$8))=Saisie!$L$12:$L$1391,(Saisie!$J$12:$J$1391-Saisie!$I$12:$I$1391))) -> 0 | K17: =SUM(IF(($B17*100+YEAR($B$8)+MONTH(K$8)+MONTH(K$8))/(YEAR($B$8))=Saisie!$L$12:$L$1391,(Saisie!$J$12:$J$1391-Saisie!$I$12:$I$1391))) -> 0 | L17: =SUM(IF(($B17*100+YEAR($B$8)+MONTH(L$8)+MONTH(L$8))/(YEAR($B$8))=Saisie!$L$12:$L$1391,(Saisie!$J$12:$J$1391-Saisie!$I$12:$I$1391))) -> 0 | M17: =SUM(IF(($B17*100+YEAR($B$8)+MONTH(M$8)+MONTH(M$8))/(YEAR($B$8))=Saisie!$L$12:$L$1391,(Saisie!$J$12:$J$1391-Saisie!$I$12:$I$1391))) -> 0 | N17: =SUM(IF(($B17*100+YEAR($B$8)+MONTH(N$8)+MONTH(N$8))/(YEAR($B$8))=Saisie!$L$12:$L$1391,(Saisie!$J$12:$J$1391-Saisie!$I$12:$I$1391))) -> 0 | O17: =SUM(IF(($B17*100+YEAR($B$8)+MONTH(O$8)+MONTH(O$8))/(YEAR($B$8))=Saisie!$L$12:$L$1391,(Saisie!$J$12:$J$1391-Saisie!$I$12:$I$1391))) -> 0 | P17: =SUM(IF(($B17*100+YEAR($B$8)+MONTH(P$8)+MONTH(P$8))/(YEAR($B$8))=Saisie!$L$12:$L$1391,(Saisie!$J$12:$J$1391-Saisie!$I$12:$I$1391))) -> 0 | R17: -1448.86 | T17: 0.1375321556 | U17: =IF(R17=0,"",AVERAGE(IF(E17:P17<>0,E17:P17))) -> -289.772 | V17: 08-Nourriture - Frais de vie | AI17: 08-Nourriture - Frais de vie | AJ17: =SUM(IF('Liste choisir'!$F$9*$B17*100+(AJ$8)=Saisie!$F$12:$F$1395,(Saisie!$G$12:$G$1395))) -> 0 | AK17: =SUM(IF('Liste choisir'!$F$9*$B17*100+(AK$8)=Saisie!$F$12:$F$1395,(Saisie!$G$12:$G$1395))) -> 0 | AL17: =SUM(IF('Liste choisir'!$F$9*$B17*100+(AL$8)=Saisie!$F$12:$F$1395,(Saisie!$G$12:$G$1395))) -> 0 | AM17: =SUM(IF('Liste choisir'!$F$9*$B17*100+(AM$8)=Saisie!$F$12:$F$1395,(Saisie!$G$12:$G$1395))) -> 0 | AN17: =SUM(IF('Liste choisir'!$F$9*$B17*100+(AN$8)=Saisie!$F$12:$F$1395,(Saisie!$G$12:$G$1395))) -> -80 | AO17: =SUM(IF('Liste choisir'!$F$9*$B17*100+(AO$8)=Saisie!$F$12:$F$1395,(Saisie!$G$12:$G$1395))) -> 0 | AP17: =SUM(IF('Liste choisir'!$F$9*$B17*100+(AP$8)=Saisie!$F$12:$F$1395,(Saisie!$G$12:$G$1395))) -> 0 | AQ17: =SUM(IF('Liste choisir'!$F$9*$B17*100+(AQ$8)=Saisie!$F$12:$F$1395,(Saisie!$G$12:$G$1395))) -> 0 | AR17: =SUM(IF('Liste choisir'!$F$9*$B17*100+(AR$8)=Saisie!$F$12:$F$1395,(Saisie!$G$12:$G$1395))) -> 0 | AS17: =SUM(IF('Liste choisir'!$F$9*$B17*100+(AS$8)=Saisie!$F$12:$F$1395,(Saisie!$G$12:$G$1395))) -> 0 | AT17: =SUM(IF('Liste choisir'!$F$9*$B17*100+(AT$8)=Saisie!$F$12:$F$1395,(Saisie!$G$12:$G$1395))) -> 0 | AU17: =SUM(IF('Liste choisir'!$F$9*$B17*100+(AU$8)=Saisie!$F$12:$F$1395,(Saisie!$G$12:$G$1395))) -> 0 | AV17: -80
B18: ='Liste choisir'!A10 -> 9 | C18: ='Liste choisir'!B10 -> 9- | E18: =SUM(IF(($B18*100+YEAR($B$8)+MONTH(E$8)+MONTH(E$8))/(YEAR($B$8))=Saisie!$L$12:$L$1391,(Saisie!$J$12:$J$1391-Saisie!$I$12:$I$1391))) -> -73.54 | F18: =SUM(IF(($B18*100+YEAR($B$8)+MONTH(F$8)+MONTH(F$8))/(YEAR($B$8))=Saisie!$L$12:$L$1391,(Saisie!$J$12:$J$1391-Saisie!$I$12:$I$1391))) -> -18.17 | G18: =SUM(IF(($B18*100+YEAR($B$8)+MONTH(G$8)+MONTH(G$8))/(YEAR($B$8))=Saisie!$L$12:$L$1391,(Saisie!$J$12:$J$1391-Saisie!$I$12:$I$1391))) -> -47.92 | H18: =SUM(IF(($B18*100+YEAR($B$8)+MONTH(H$8)+MONTH(H$8))/(YEAR($B$8))=Saisie!$L$12:$L$1391,(Saisie!$J$12:$J$1391-Saisie!$I$12:$I$1391))) -> -82.03 | I18: =SUM(IF(($B18*100+YEAR($B$8)+MONTH(I$8)+MONTH(I$8))/(YEAR($B$8))=Saisie!$L$12:$L$1391,(Saisie!$J$12:$J$1391-Saisie!$I$12:$I$1391))) -> 0 | J18: =SUM(IF(($B18*100+YEAR($B$8)+MONTH(J$8)+MONTH(J$8))/(YEAR($B$8))=Saisie!$L$12:$L$1391,(Saisie!$J$12:$J$1391-Saisie!$I$12:$I$1391))) -> 0 | K18: =SUM(IF(($B18*100+YEAR($B$8)+MONTH(K$8)+MONTH(K$8))/(YEAR($B$8))=Saisie!$L$12:$L$1391,(Saisie!$J$12:$J$1391-Saisie!$I$12:$I$1391))) -> 0 | L18: =SUM(IF(($B18*100+YEAR($B$8)+MONTH(L$8)+MONTH(L$8))/(YEAR($B$8))=Saisie!$L$12:$L$1391,(Saisie!$J$12:$J$1391-Saisie!$I$12:$I$1391))) -> 0 | M18: =SUM(IF(($B18*100+YEAR($B$8)+MONTH(M$8)+MONTH(M$8))/(YEAR($B$8))=Saisie!$L$12:$L$1391,(Saisie!$J$12:$J$1391-Saisie!$I$12:$I$1391))) -> 0 | N18: =SUM(IF(($B18*100+YEAR($B$8)+MONTH(N$8)+MONTH(N$8))/(YEAR($B$8))=Saisie!$L$12:$L$1391,(Saisie!$J$12:$J$1391-Saisie!$I$12:$I$1391))) -> 0 | O18: =SUM(IF(($B18*100+YEAR($B$8)+MONTH(O$8)+MONTH(O$8))/(YEAR($B$8))=Saisie!$L$12:$L$1391,(Saisie!$J$12:$J$1391-Saisie!$I$12:$I$1391))) -> 0 | P18: =SUM(IF(($B18*100+YEAR($B$8)+MONTH(P$8)+MONTH(P$8))/(YEAR($B$8))=Saisie!$L$12:$L$1391,(Saisie!$J$12:$J$1391-Saisie!$I$12:$I$1391))) -> 0 | R18: -221.66 | T18: 0.02104094089 | U18: =IF(R18=0,"",AVERAGE(IF(E18:P18<>0,E18:P18))) -> -55.415 | V18: 9- | AI18: 9- | AJ18: =SUM(IF('Liste choisir'!$F$9*$B18*100+(AJ$8)=Saisie!$F$12:$F$1395,(Saisie!$G$12:$G$1395))) -> -45 | AK18: =SUM(IF('Liste choisir'!$F$9*$B18*100+(AK$8)=Saisie!$F$12:$F$1395,(Saisie!$G$12:$G$1395))) -> 0 | AL18: =SUM(IF('Liste choisir'!$F$9*$B18*100+(AL$8)=Saisie!$F$12:$F$1395,(Saisie!$G$12:$G$1395))) -> 0 | AM18: =SUM(IF('Liste choisir'!$F$9*$B18*100+(AM$8)=Saisie!$F$12:$F$1395,(Saisie!$G$12:$G$1395))) -> 0 | AN18: =SUM(IF('Liste choisir'!$F$9*$B18*100+(AN$8)=Saisie!$F$12:$F$1395,(Saisie!$G$12:$G$1395))) -> 0 | AO18: =SUM(IF('Liste choisir'!$F$9*$B18*100+(AO$8)=Saisie!$F$12:$F$1395,(Saisie!$G$12:$G$1395))) -> 0 | AP18: =SUM(IF('Liste choisir'!$F$9*$B18*100+(AP$8)=Saisie!$F$12:$F$1395,(Saisie!$G$12:$G$1395))) -> 0 | AQ18: =SUM(IF('Liste choisir'!$F$9*$B18*100+(AQ$8)=Saisie!$F$12:$F$1395,(Saisie!$G$12:$G$1395))) -> 0 | AR18: =SUM(IF('Liste choisir'!$F$9*$B18*100+(AR$8)=Saisie!$F$12:$F$1395,(Saisie!$G$12:$G$1395))) -> 0 | AS18: =SUM(IF('Liste choisir'!$F$9*$B18*100+(AS$8)=Saisie!$F$12:$F$1395,(Saisie!$G$12:$G$1395))) -> 0 | AT18: =SUM(IF('Liste choisir'!$F$9*$B18*100+(AT$8)=Saisie!$F$12:$F$1395,(Saisie!$G$12:$G$1395))) -> 0 | AU18: =SUM(IF('Liste choisir'!$F$9*$B18*100+(AU$8)=Saisie!$F$12:$F$1395,(Saisie!$G$12:$G$1395))) -> 0 | AV18: -45
B19: ='Liste choisir'!A11 -> 10 | C19: ='Liste choisir'!B11 -> 10-Assurances | E19: =SUM(IF(($B19*100+YEAR($B$8)+MONTH(E$8)+MONTH(E$8))/(YEAR($B$8))=Saisie!$L$12:$L$1391,(Saisie!$J$12:$J$1391-Saisie!$I$12:$I$1391))) -> -688.55 | F19: =SUM(IF(($B19*100+YEAR($B$8)+MONTH(F$8)+MONTH(F$8))/(YEAR($B$8))=Saisie!$L$12:$L$1391,(Saisie!$J$12:$J$1391-Saisie!$I$12:$I$1391))) -> -72 | G19: =SUM(IF(($B19*100+YEAR($B$8)+MONTH(G$8)+MONTH(G$8))/(YEAR($B$8))=Saisie!$L$12:$L$1391,(Saisie!$J$12:$J$1391-Saisie!$I$12:$I$1391))) -> -45.67 | H19: =SUM(IF(($B19*100+YEAR($B$8)+MONTH(H$8)+MONTH(H$8))/(YEAR($B$8))=Saisie!$L$12:$L$1391,(Saisie!$J$12:$J$1391-Saisie!$I$12:$I$1391))) -> -72 | I19: =SUM(IF(($B19*100+YEAR($B$8)+MONTH(I$8)+MONTH(I$8))/(YEAR($B$8))=Saisie!$L$12:$L$1391,(Saisie!$J$12:$J$1391-Saisie!$I$12:$I$1391))) -> -72 | J19: =SUM(IF(($B19*100+YEAR($B$8)+MONTH(J$8)+MONTH(J$8))/(YEAR($B$8))=Saisie!$L$12:$L$1391,(Saisie!$J$12:$J$1391-Saisie!$I$12:$I$1391))) -> 0 | K19: =SUM(IF(($B19*100+YEAR($B$8)+MONTH(K$8)+MONTH(K$8))/(YEAR($B$8))=Saisie!$L$12:$L$1391,(Saisie!$J$12:$J$1391-Saisie!$I$12:$I$1391))) -> 0 | L19: =SUM(IF(($B19*100+YEAR($B$8)+MONTH(L$8)+MONTH(L$8))/(YEAR($B$8))=Saisie!$L$12:$L$1391,(Saisie!$J$12:$J$1391-Saisie!$I$12:$I$1391))) -> 0 | M19: =SUM(IF(($B19*100+YEAR($B$8)+MONTH(M$8)+MONTH(M$8))/(YEAR($B$8))=Saisie!$L$12:$L$1391,(Saisie!$J$12:$J$1391-Saisie!$I$12:$I$1391))) -> 0 | N19: =SUM(IF(($B19*100+YEAR($B$8)+MONTH(N$8)+MONTH(N$8))/(YEAR($B$8))=Saisie!$L$12:$L$1391,(Saisie!$J$12:$J$1391-Saisie!$I$12:$I$1391))) -> 0 | O19: =SUM(IF(($B19*100+YEAR($B$8)+MONTH(O$8)+MONTH(O$8))/(YEAR($B$8))=Saisie!$L$12:$L$1391,(Saisie!$J$12:$J$1391-Saisie!$I$12:$I$1391))) -> 0 | P19: =SUM(IF(($B19*100+YEAR($B$8)+MONTH(P$8)+MONTH(P$8))/(YEAR($B$8))=Saisie!$L$12:$L$1391,(Saisie!$J$12:$J$1391-Saisie!$I$12:$I$1391))) -> 0 | R19: -950.22 | T19: 0.09019905645 | U19: =IF(R19=0,"",AVERAGE(IF(E19:P19<>0,E19:P19))) -> -190.044 | V19: 10-Assurances | AI19: 10-Assurances | AJ19: =SUM(IF('Liste choisir'!$F$9*$B19*100+(AJ$8)=Saisie!$F$12:$F$1395,(Saisie!$G$12:$G$1395))) -> 0 | AK19: =SUM(IF('Liste choisir'!$F$9*$B19*100+(AK$8)=Saisie!$F$12:$F$1395,(Saisie!$G$12:$G$1395))) -> 0 | AL19: =SUM(IF('Liste choisir'!$F$9*$B19*100+(AL$8)=Saisie!$F$12:$F$1395,(Saisie!$G$12:$G$1395))) -> 0 | AM19: =SUM(IF('Liste choisir'!$F$9*$B19*100+(AM$8)=Saisie!$F$12:$F$1395,(Saisie!$G$12:$G$1395))) -> 0 | AN19: =SUM(IF('Liste choisir'!$F$9*$B19*100+(AN$8)=Saisie!$F$12:$F$1395,(Saisie!$G$12:$G$1395))) -> 0 | AO19: =SUM(IF('Liste choisir'!$F$9*$B19*100+(AO$8)=Saisie!$F$12:$F$1395,(Saisie!$G$12:$G$1395))) -> 0 | AP19: =SUM(IF('Liste choisir'!$F$9*$B19*100+(AP$8)=Saisie!$F$12:$F$1395,(Saisie!$G$12:$G$1395))) -> 0 | AQ19: =SUM(IF('Liste choisir'!$F$9*$B19*100+(AQ$8)=Saisie!$F$12:$F$1395,(Saisie!$G$12:$G$1395))) -> 0 | AR19: =SUM(IF('Liste choisir'!$F$9*$B19*100+(AR$8)=Saisie!$F$12:$F$1395,(Saisie!$G$12:$G$1395))) -> 0 | AS19: =SUM(IF('Liste choisir'!$F$9*$B19*100+(AS$8)=Saisie!$F$12:$F$1395,(Saisie!$G$12:$G$1395))) -> 0 | AT19: =SUM(IF('Liste choisir'!$F$9*$B19*100+(AT$8)=Saisie!$F$12:$F$1395,(Saisie!$G$12:$G$1395))) -> 0 | AU19: =SUM(IF('Liste choisir'!$F$9*$B19*100+(AU$8)=Saisie!$F$12:$F$1395,(Saisie!$G$12:$G$1395))) -> 0 | AV19: 0
B20: ='Liste choisir'!A12 -> 11 | C20: ='Liste choisir'!B12 -> 11-Mutuelle | E20: =SUM(IF(($B20*100+YEAR($B$8)+MONTH(E$8)+MONTH(E$8))/(YEAR($B$8))=Saisie!$L$12:$L$1391,(Saisie!$J$12:$J$1391-Saisie!$I$12:$I$1391))) -> -30 | F20: =SUM(IF(($B20*100+YEAR($B$8)+MONTH(F$8)+MONTH(F$8))/(YEAR($B$8))=Saisie!$L$12:$L$1391,(Saisie!$J$12:$J$1391-Saisie!$I$12:$I$1391))) -> -30 | G20: =SUM(IF(($B20*100+YEAR($B$8)+MONTH(G$8)+MONTH(G$8))/(YEAR($B$8))=Saisie!$L$12:$L$1391,(Saisie!$J$12:$J$1391-Saisie!$I$12:$I$1391))) -> -30 | H20: =SUM(IF(($B20*100+YEAR($B$8)+MONTH(H$8)+MONTH(H$8))/(YEAR($B$8))=Saisie!$L$12:$L$1391,(Saisie!$J$12:$J$1391-Saisie!$I$12:$I$1391))) -> -30 | I20: =SUM(IF(($B20*100+YEAR($B$8)+MONTH(I$8)+MONTH(I$8))/(YEAR($B$8))=Saisie!$L$12:$L$1391,(Saisie!$J$12:$J$1391-Saisie!$I$12:$I$1391))) -> -30 | J20: =SUM(IF(($B20*100+YEAR($B$8)+MONTH(J$8)+MONTH(J$8))/(YEAR($B$8))=Saisie!$L$12:$L$1391,(Saisie!$J$12:$J$1391-Saisie!$I$12:$I$1391))) -> 0 | K20: =SUM(IF(($B20*100+YEAR($B$8)+MONTH(K$8)+MONTH(K$8))/(YEAR($B$8))=Saisie!$L$12:$L$1391,(Saisie!$J$12:$J$1391-Saisie!$I$12:$I$1391))) -> 0 | L20: =SUM(IF(($B20*100+YEAR($B$8)+MONTH(L$8)+MONTH(L$8))/(YEAR($B$8))=Saisie!$L$12:$L$1391,(Saisie!$J$12:$J$1391-Saisie!$I$12:$I$1391))) -> 0 | M20: =SUM(IF(($B20*100+YEAR($B$8)+MONTH(M$8)+MONTH(M$8))/(YEAR($B$8))=Saisie!$L$12:$L$1391,(Saisie!$J$12:$J$1391-Saisie!$I$12:$I$1391))) -> 0 | N20: =SUM(IF(($B20*100+YEAR($B$8)+MONTH(N$8)+MONTH(N$8))/(YEAR($B$8))=Saisie!$L$12:$L$1391,(Saisie!$J$12:$J$1391-Saisie!$I$12:$I$1391))) -> 0 | O20: =SUM(IF(($B20*100+YEAR($B$8)+MONTH(O$8)+MONTH(O$8))/(YEAR($B$8))=Saisie!$L$12:$L$1391,(Saisie!$J$12:$J$1391-Saisie!$I$12:$I$1391))) -> 0 | P20: =SUM(IF(($B20*100+YEAR($B$8)+MONTH(P$8)+MONTH(P$8))/(YEAR($B$8))=Saisie!$L$12:$L$1391,(Saisie!$J$12:$J$1391-Saisie!$I$12:$I$1391))) -> 0 | R20: -150 | T20: 0.01423865891 | U20: =IF(R20=0,"",AVERAGE(IF(E20:P20<>0,E20:P20))) -> -30 | V20: 11-Mutuelle | AI20: 11-Mutuelle | AJ20: =SUM(IF('Liste choisir'!$F$9*$B20*100+(AJ$8)=Saisie!$F$12:$F$1395,(Saisie!$G$12:$G$1395))) -> 0 | AK20: =SUM(IF('Liste choisir'!$F$9*$B20*100+(AK$8)=Saisie!$F$12:$F$1395,(Saisie!$G$12:$G$1395))) -> 0 | AL20: =SUM(IF('Liste choisir'!$F$9*$B20*100+(AL$8)=Saisie!$F$12:$F$1395,(Saisie!$G$12:$G$1395))) -> 0 | AM20: =SUM(IF('Liste choisir'!$F$9*$B20*100+(AM$8)=Saisie!$F$12:$F$1395,(Saisie!$G$12:$G$1395))) -> 0 | AN20: =SUM(IF('Liste choisir'!$F$9*$B20*100+(AN$8)=Saisie!$F$12:$F$1395,(Saisie!$G$12:$G$1395))) -> 0 | AO20: =SUM(IF('Liste choisir'!$F$9*$B20*100+(AO$8)=Saisie!$F$12:$F$1395,(Saisie!$G$12:$G$1395))) -> 0 | AP20: =SUM(IF('Liste choisir'!$F$9*$B20*100+(AP$8)=Saisie!$F$12:$F$1395,(Saisie!$G$12:$G$1395))) -> 0 | AQ20: =SUM(IF('Liste choisir'!$F$9*$B20*100+(AQ$8)=Saisie!$F$12:$F$1395,(Saisie!$G$12:$G$1395))) -> 0 | AR20: =SUM(IF('Liste choisir'!$F$9*$B20*100+(AR$8)=Saisie!$F$12:$F$1395,(Saisie!$G$12:$G$1395))) -> 0 | AS20: =SUM(IF('Liste choisir'!$F$9*$B20*100+(AS$8)=Saisie!$F$12:$F$1395,(Saisie!$G$12:$G$1395))) -> 0 | AT20: =SUM(IF('Liste choisir'!$F$9*$B20*100+(AT$8)=Saisie!$F$12:$F$1395,(Saisie!$G$12:$G$1395))) -> 0 | AU20: =SUM(IF('Liste choisir'!$F$9*$B20*100+(AU$8)=Saisie!$F$12:$F$1395,(Saisie!$G$12:$G$1395))) -> 0 | AV20: 0
B21: ='Liste choisir'!A13 -> 12 | C21: ='Liste choisir'!B13 -> 12- | E21: =SUM(IF(($B21*100+YEAR($B$8)+MONTH(E$8)+MONTH(E$8))/(YEAR($B$8))=Saisie!$L$12:$L$1391,(Saisie!$J$12:$J$1391-Saisie!$I$12:$I$1391))) -> -5 | F21: =SUM(IF(($B21*100+YEAR($B$8)+MONTH(F$8)+MONTH(F$8))/(YEAR($B$8))=Saisie!$L$12:$L$1391,(Saisie!$J$12:$J$1391-Saisie!$I$12:$I$1391))) -> -5 | G21: =SUM(IF(($B21*100+YEAR($B$8)+MONTH(G$8)+MONTH(G$8))/(YEAR($B$8))=Saisie!$L$12:$L$1391,(Saisie!$J$12:$J$1391-Saisie!$I$12:$I$1391))) -> -10 | H21: =SUM(IF(($B21*100+YEAR($B$8)+MONTH(H$8)+MONTH(H$8))/(YEAR($B$8))=Saisie!$L$12:$L$1391,(Saisie!$J$12:$J$1391-Saisie!$I$12:$I$1391))) -> -10 | I21: =SUM(IF(($B21*100+YEAR($B$8)+MONTH(I$8)+MONTH(I$8))/(YEAR($B$8))=Saisie!$L$12:$L$1391,(Saisie!$J$12:$J$1391-Saisie!$I$12:$I$1391))) -> -10 | J21: =SUM(IF(($B21*100+YEAR($B$8)+MONTH(J$8)+MONTH(J$8))/(YEAR($B$8))=Saisie!$L$12:$L$1391,(Saisie!$J$12:$J$1391-Saisie!$I$12:$I$1391))) -> 0 | K21: =SUM(IF(($B21*100+YEAR($B$8)+MONTH(K$8)+MONTH(K$8))/(YEAR($B$8))=Saisie!$L$12:$L$1391,(Saisie!$J$12:$J$1391-Saisie!$I$12:$I$1391))) -> 0 | L21: =SUM(IF(($B21*100+YEAR($B$8)+MONTH(L$8)+MONTH(L$8))/(YEAR($B$8))=Saisie!$L$12:$L$1391,(Saisie!$J$12:$J$1391-Saisie!$I$12:$I$1391))) -> 0 | M21: =SUM(IF(($B21*100+YEAR($B$8)+MONTH(M$8)+MONTH(M$8))/(YEAR($B$8))=Saisie!$L$12:$L$1391,(Saisie!$J$12:$J$1391-Saisie!$I$12:$I$1391))) -> 0 | N21: =SUM(IF(($B21*100+YEAR($B$8)+MONTH(N$8)+MONTH(N$8))/(YEAR($B$8))=Saisie!$L$12:$L$1391,(Saisie!$J$12:$J$1391-Saisie!$I$12:$I$1391))) -> 0 | O21: =SUM(IF(($B21*100+YEAR($B$8)+MONTH(O$8)+MONTH(O$8))/(YEAR($B$8))=Saisie!$L$12:$L$1391,(Saisie!$J$12:$J$1391-Saisie!$I$12:$I$1391))) -> 0 | P21: =SUM(IF(($B21*100+YEAR($B$8)+MONTH(P$8)+MONTH(P$8))/(YEAR($B$8))=Saisie!$L$12:$L$1391,(Saisie!$J$12:$J$1391-Saisie!$I$12:$I$1391))) -> 0 | R21: -40 | T21: 0.003796975709 | U21: =IF(R21=0,"",AVERAGE(IF(E21:P21<>0,E21:P21))) -> -8 | V21: 12- | AI21: 12- | AJ21: =SUM(IF('Liste choisir'!$F$9*$B21*100+(AJ$8)=Saisie!$F$12:$F$1395,(Saisie!$G$12:$G$1395))) -> 0 | AK21: =SUM(IF('Liste choisir'!$F$9*$B21*100+(AK$8)=Saisie!$F$12:$F$1395,(Saisie!$G$12:$G$1395))) -> 0 | AL21: =SUM(IF('Liste choisir'!$F$9*$B21*100+(AL$8)=Saisie!$F$12:$F$1395,(Saisie!$G$12:$G$1395))) -> 0 | AM21: =SUM(IF('Liste choisir'!$F$9*$B21*100+(AM$8)=Saisie!$F$12:$F$1395,(Saisie!$G$12:$G$1395))) -> 0 | AN21: =SUM(IF('Liste choisir'!$F$9*$B21*100+(AN$8)=Saisie!$F$12:$F$1395,(Saisie!$G$12:$G$1395))) -> 0 | AO21: =SUM(IF('Liste choisir'!$F$9*$B21*100+(AO$8)=Saisie!$F$12:$F$1395,(Saisie!$G$12:$G$1395))) -> 0 | AP21: =SUM(IF('Liste choisir'!$F$9*$B21*100+(AP$8)=Saisie!$F$12:$F$1395,(Saisie!$G$12:$G$1395))) -> 0 | AQ21: =SUM(IF('Liste choisir'!$F$9*$B21*100+(AQ$8)=Saisie!$F$12:$F$1395,(Saisie!$G$12:$G$1395))) -> 0 | AR21: =SUM(IF('Liste choisir'!$F$9*$B21*100+(AR$8)=Saisie!$F$12:$F$1395,(Saisie!$G$12:$G$1395))) -> 0 | AS21: =SUM(IF('Liste choisir'!$F$9*$B21*100+(AS$8)=Saisie!$F$12:$F$1395,(Saisie!$G$12:$G$1395))) -> 0 | AT21: =SUM(IF('Liste choisir'!$F$9*$B21*100+(AT$8)=Saisie!$F$12:$F$1395,(Saisie!$G$12:$G$1395))) -> 0 | AU21: =SUM(IF('Liste choisir'!$F$9*$B21*100+(AU$8)=Saisie!$F$12:$F$1395,(Saisie!$G$12:$G$1395))) -> 0 | AV21: 0
B22: ='Liste choisir'!A14 -> 13 | C22: ='Liste choisir'!B14 -> 13-Santé health | E22: =SUM(IF(($B22*100+YEAR($B$8)+MONTH(E$8)+MONTH(E$8))/(YEAR($B$8))=Saisie!$L$12:$L$1391,(Saisie!$J$12:$J$1391-Saisie!$I$12:$I$1391))) -> -4.99 | F22: =SUM(IF(($B22*100+YEAR($B$8)+MONTH(F$8)+MONTH(F$8))/(YEAR($B$8))=Saisie!$L$12:$L$1391,(Saisie!$J$12:$J$1391-Saisie!$I$12:$I$1391))) -> -40.48 | G22: =SUM(IF(($B22*100+YEAR($B$8)+MONTH(G$8)+MONTH(G$8))/(YEAR($B$8))=Saisie!$L$12:$L$1391,(Saisie!$J$12:$J$1391-Saisie!$I$12:$I$1391))) -> 11.09 | H22: =SUM(IF(($B22*100+YEAR($B$8)+MONTH(H$8)+MONTH(H$8))/(YEAR($B$8))=Saisie!$L$12:$L$1391,(Saisie!$J$12:$J$1391-Saisie!$I$12:$I$1391))) -> -13.38 | I22: =SUM(IF(($B22*100+YEAR($B$8)+MONTH(I$8)+MONTH(I$8))/(YEAR($B$8))=Saisie!$L$12:$L$1391,(Saisie!$J$12:$J$1391-Saisie!$I$12:$I$1391))) -> 0 | J22: =SUM(IF(($B22*100+YEAR($B$8)+MONTH(J$8)+MONTH(J$8))/(YEAR($B$8))=Saisie!$L$12:$L$1391,(Saisie!$J$12:$J$1391-Saisie!$I$12:$I$1391))) -> 0 | K22: =SUM(IF(($B22*100+YEAR($B$8)+MONTH(K$8)+MONTH(K$8))/(YEAR($B$8))=Saisie!$L$12:$L$1391,(Saisie!$J$12:$J$1391-Saisie!$I$12:$I$1391))) -> 0 | L22: =SUM(IF(($B22*100+YEAR($B$8)+MONTH(L$8)+MONTH(L$8))/(YEAR($B$8))=Saisie!$L$12:$L$1391,(Saisie!$J$12:$J$1391-Saisie!$I$12:$I$1391))) -> 0 | M22: =SUM(IF(($B22*100+YEAR($B$8)+MONTH(M$8)+MONTH(M$8))/(YEAR($B$8))=Saisie!$L$12:$L$1391,(Saisie!$J$12:$J$1391-Saisie!$I$12:$I$1391))) -> 0 | N22: =SUM(IF(($B22*100+YEAR($B$8)+MONTH(N$8)+MONTH(N$8))/(YEAR($B$8))=Saisie!$L$12:$L$1391,(Saisie!$J$12:$J$1391-Saisie!$I$12:$I$1391))) -> 0 | O22: =SUM(IF(($B22*100+YEAR($B$8)+MONTH(O$8)+MONTH(O$8))/(YEAR($B$8))=Saisie!$L$12:$L$1391,(Saisie!$J$12:$J$1391-Saisie!$I$12:$I$1391))) -> 0 | P22: =SUM(IF(($B22*100+YEAR($B$8)+MONTH(P$8)+MONTH(P$8))/(YEAR($B$8))=Saisie!$L$12:$L$1391,(Saisie!$J$12:$J$1391-Saisie!$I$12:$I$1391))) -> 0 | R22: -47.76 | T22: 0.004533588996 | U22: =IF(R22=0,"",AVERAGE(IF(E22:P22<>0,E22:P22))) -> -11.94 | V22: 13-Santé health | AI22: 13-Santé health | AJ22: =SUM(IF('Liste choisir'!$F$9*$B22*100+(AJ$8)=Saisie!$F$12:$F$1395,(Saisie!$G$12:$G$1395))) -> 0 | AK22: =SUM(IF('Liste choisir'!$F$9*$B22*100+(AK$8)=Saisie!$F$12:$F$1395,(Saisie!$G$12:$G$1395))) -> 0 | AL22: =SUM(IF('Liste choisir'!$F$9*$B22*100+(AL$8)=Saisie!$F$12:$F$1395,(Saisie!$G$12:$G$1395))) -> 0 | AM22: =SUM(IF('Liste choisir'!$F$9*$B22*100+(AM$8)=Saisie!$F$12:$F$1395,(Saisie!$G$12:$G$1395))) -> 0 | AN22: =SUM(IF('Liste choisir'!$F$9*$B22*100+(AN$8)=Saisie!$F$12:$F$1395,(Saisie!$G$12:$G$1395))) -> 0 | AO22: =SUM(IF('Liste choisir'!$F$9*$B22*100+(AO$8)=Saisie!$F$12:$F$1395,(Saisie!$G$12:$G$1395))) -> 0 | AP22: =SUM(IF('Liste choisir'!$F$9*$B22*100+(AP$8)=Saisie!$F$12:$F$1395,(Saisie!$G$12:$G$1395))) -> 0 | AQ22: =SUM(IF('Liste choisir'!$F$9*$B22*100+(AQ$8)=Saisie!$F$12:$F$1395,(Saisie!$G$12:$G$1395))) -> 0 | AR22: =SUM(IF('Liste choisir'!$F$9*$B22*100+(AR$8)=Saisie!$F$12:$F$1395,(Saisie!$G$12:$G$1395))) -> 0 | AS22: =SUM(IF('Liste choisir'!$F$9*$B22*100+(AS$8)=Saisie!$F$12:$F$1395,(Saisie!$G$12:$G$1395))) -> 0 | AT22: =SUM(IF('Liste choisir'!$F$9*$B22*100+(AT$8)=Saisie!$F$12:$F$1395,(Saisie!$G$12:$G$1395))) -> 0 | AU22: =SUM(IF('Liste choisir'!$F$9*$B22*100+(AU$8)=Saisie!$F$12:$F$1395,(Saisie!$G$12:$G$1395))) -> 0 | AV22: 0
B23: ='Liste choisir'!A15 -> 14 | C23: ='Liste choisir'!B15 -> 14-Internet | E23: =SUM(IF(($B23*100+YEAR($B$8)+MONTH(E$8)+MONTH(E$8))/(YEAR($B$8))=Saisie!$L$12:$L$1391,(Saisie!$J$12:$J$1391-Saisie!$I$12:$I$1391))) -> -20.99 | F23: =SUM(IF(($B23*100+YEAR($B$8)+MONTH(F$8)+MONTH(F$8))/(YEAR($B$8))=Saisie!$L$12:$L$1391,(Saisie!$J$12:$J$1391-Saisie!$I$12:$I$1391))) -> -28.99 | G23: =SUM(IF(($B23*100+YEAR($B$8)+MONTH(G$8)+MONTH(G$8))/(YEAR($B$8))=Saisie!$L$12:$L$1391,(Saisie!$J$12:$J$1391-Saisie!$I$12:$I$1391))) -> -24.99 | H23: =SUM(IF(($B23*100+YEAR($B$8)+MONTH(H$8)+MONTH(H$8))/(YEAR($B$8))=Saisie!$L$12:$L$1391,(Saisie!$J$12:$J$1391-Saisie!$I$12:$I$1391))) -> -24.99 | I23: =SUM(IF(($B23*100+YEAR($B$8)+MONTH(I$8)+MONTH(I$8))/(YEAR($B$8))=Saisie!$L$12:$L$1391,(Saisie!$J$12:$J$1391-Saisie!$I$12:$I$1391))) -> -24.99 | J23: =SUM(IF(($B23*100+YEAR($B$8)+MONTH(J$8)+MONTH(J$8))/(YEAR($B$8))=Saisie!$L$12:$L$1391,(Saisie!$J$12:$J$1391-Saisie!$I$12:$I$1391))) -> 0 | K23: =SUM(IF(($B23*100+YEAR($B$8)+MONTH(K$8)+MONTH(K$8))/(YEAR($B$8))=Saisie!$L$12:$L$1391,(Saisie!$J$12:$J$1391-Saisie!$I$12:$I$1391))) -> 0 | L23: =SUM(IF(($B23*100+YEAR($B$8)+MONTH(L$8)+MONTH(L$8))/(YEAR($B$8))=Saisie!$L$12:$L$1391,(Saisie!$J$12:$J$1391-Saisie!$I$12:$I$1391))) -> 0 | M23: =SUM(IF(($B23*100+YEAR($B$8)+MONTH(M$8)+MONTH(M$8))/(YEAR($B$8))=Saisie!$L$12:$L$1391,(Saisie!$J$12:$J$1391-Saisie!$I$12:$I$1391))) -> 0 | N23: =SUM(IF(($B23*100+YEAR($B$8)+MONTH(N$8)+MONTH(N$8))/(YEAR($B$8))=Saisie!$L$12:$L$1391,(Saisie!$J$12:$J$1391-Saisie!$I$12:$I$1391))) -> 0 | O23: =SUM(IF(($B23*100+YEAR($B$8)+MONTH(O$8)+MONTH(O$8))/(YEAR($B$8))=Saisie!$L$12:$L$1391,(Saisie!$J$12:$J$1391-Saisie!$I$12:$I$1391))) -> 0 | P23: =SUM(IF(($B23*100+YEAR($B$8)+MONTH(P$8)+MONTH(P$8))/(YEAR($B$8))=Saisie!$L$12:$L$1391,(Saisie!$J$12:$J$1391-Saisie!$I$12:$I$1391))) -> 0 | R23: -124.95 | T23: 0.01186080287 | U23: =IF(R23=0,"",AVERAGE(IF(E23:P23<>0,E23:P23))) -> -24.99 | V23: 14-Internet | AI23: 14-Internet | AJ23: =SUM(IF('Liste choisir'!$F$9*$B23*100+(AJ$8)=Saisie!$F$12:$F$1395,(Saisie!$G$12:$G$1395))) -> 0 | AK23: =SUM(IF('Liste choisir'!$F$9*$B23*100+(AK$8)=Saisie!$F$12:$F$1395,(Saisie!$G$12:$G$1395))) -> 0 | AL23: =SUM(IF('Liste choisir'!$F$9*$B23*100+(AL$8)=Saisie!$F$12:$F$1395,(Saisie!$G$12:$G$1395))) -> 0 | AM23: =SUM(IF('Liste choisir'!$F$9*$B23*100+(AM$8)=Saisie!$F$12:$F$1395,(Saisie!$G$12:$G$1395))) -> 0 | AN23: =SUM(IF('Liste choisir'!$F$9*$B23*100+(AN$8)=Saisie!$F$12:$F$1395,(Saisie!$G$12:$G$1395))) -> 0 | AO23: =SUM(IF('Liste choisir'!$F$9*$B23*100+(AO$8)=Saisie!$F$12:$F$1395,(Saisie!$G$12:$G$1395))) -> 0 | AP23: =SUM(IF('Liste choisir'!$F$9*$B23*100+(AP$8)=Saisie!$F$12:$F$1395,(Saisie!$G$12:$G$1395))) -> 0 | AQ23: =SUM(IF('Liste choisir'!$F$9*$B23*100+(AQ$8)=Saisie!$F$12:$F$1395,(Saisie!$G$12:$G$1395))) -> 0 | AR23: =SUM(IF('Liste choisir'!$F$9*$B23*100+(AR$8)=Saisie!$F$12:$F$1395,(Saisie!$G$12:$G$1395))) -> 0 | AS23: =SUM(IF('Liste choisir'!$F$9*$B23*100+(AS$8)=Saisie!$F$12:$F$1395,(Saisie!$G$12:$G$1395))) -> 0 | AT23: =SUM(IF('Liste choisir'!$F$9*$B23*100+(AT$8)=Saisie!$F$12:$F$1395,(Saisie!$G$12:$G$1395))) -> 0 | AU23: =SUM(IF('Liste choisir'!$F$9*$B23*100+(AU$8)=Saisie!$F$12:$F$1395,(Saisie!$G$12:$G$1395))) -> 0 | AV23: =SUM(AJ23:AU23) -> 0
B24: ='Liste choisir'!A16 -> 15 | C24: ='Liste choisir'!B16 -> 15-Téléphone | E24: =SUM(IF(($B24*100+YEAR($B$8)+MONTH(E$8)+MONTH(E$8))/(YEAR($B$8))=Saisie!$L$12:$L$1391,(Saisie!$J$12:$J$1391-Saisie!$I$12:$I$1391))) -> 0 | F24: =SUM(IF(($B24*100+YEAR($B$8)+MONTH(F$8)+MONTH(F$8))/(YEAR($B$8))=Saisie!$L$12:$L$1391,(Saisie!$J$12:$J$1391-Saisie!$I$12:$I$1391))) -> -15.32 | G24: =SUM(IF(($B24*100+YEAR($B$8)+MONTH(G$8)+MONTH(G$8))/(YEAR($B$8))=Saisie!$L$12:$L$1391,(Saisie!$J$12:$J$1391-Saisie!$I$12:$I$1391))) -> -15.99 | H24: =SUM(IF(($B24*100+YEAR($B$8)+MONTH(H$8)+MONTH(H$8))/(YEAR($B$8))=Saisie!$L$12:$L$1391,(Saisie!$J$12:$J$1391-Saisie!$I$12:$I$1391))) -> -16.99 | I24: =SUM(IF(($B24*100+YEAR($B$8)+MONTH(I$8)+MONTH(I$8))/(YEAR($B$8))=Saisie!$L$12:$L$1391,(Saisie!$J$12:$J$1391-Saisie!$I$12:$I$1391))) -> -16.99 | J24: =SUM(IF(($B24*100+YEAR($B$8)+MONTH(J$8)+MONTH(J$8))/(YEAR($B$8))=Saisie!$L$12:$L$1391,(Saisie!$J$12:$J$1391-Saisie!$I$12:$I$1391))) -> 0 | K24: =SUM(IF(($B24*100+YEAR($B$8)+MONTH(K$8)+MONTH(K$8))/(YEAR($B$8))=Saisie!$L$12:$L$1391,(Saisie!$J$12:$J$1391-Saisie!$I$12:$I$1391))) -> 0 | L24: =SUM(IF(($B24*100+YEAR($B$8)+MONTH(L$8)+MONTH(L$8))/(YEAR($B$8))=Saisie!$L$12:$L$1391,(Saisie!$J$12:$J$1391-Saisie!$I$12:$I$1391))) -> 0 | M24: =SUM(IF(($B24*100+YEAR($B$8)+MONTH(M$8)+MONTH(M$8))/(YEAR($B$8))=Saisie!$L$12:$L$1391,(Saisie!$J$12:$J$1391-Saisie!$I$12:$I$1391))) -> 0 | N24: =SUM(IF(($B24*100+YEAR($B$8)+MONTH(N$8)+MONTH(N$8))/(YEAR($B$8))=Saisie!$L$12:$L$1391,(Saisie!$J$12:$J$1391-Saisie!$I$12:$I$1391))) -> 0 | O24: =SUM(IF(($B24*100+YEAR($B$8)+MONTH(O$8)+MONTH(O$8))/(YEAR($B$8))=Saisie!$L$12:$L$1391,(Saisie!$J$12:$J$1391-Saisie!$I$12:$I$1391))) -> 0 | P24: =SUM(IF(($B24*100+YEAR($B$8)+MONTH(P$8)+MONTH(P$8))/(YEAR($B$8))=Saisie!$L$12:$L$1391,(Saisie!$J$12:$J$1391-Saisie!$I$12:$I$1391))) -> 0 | R24: -65.29 | T24: 0.006197613601 | U24: =IF(R24=0,"",AVERAGE(IF(E24:P24<>0,E24:P24))) -> -16.3225 | V24: 15-Téléphone | AI24: 15-Téléphone | AJ24: =SUM(IF('Liste choisir'!$F$9*$B24*100+(AJ$8)=Saisie!$F$12:$F$1395,(Saisie!$G$12:$G$1395))) -> 0 | AK24: =SUM(IF('Liste choisir'!$F$9*$B24*100+(AK$8)=Saisie!$F$12:$F$1395,(Saisie!$G$12:$G$1395))) -> 0 | AL24: =SUM(IF('Liste choisir'!$F$9*$B24*100+(AL$8)=Saisie!$F$12:$F$1395,(Saisie!$G$12:$G$1395))) -> 0 | AM24: =SUM(IF('Liste choisir'!$F$9*$B24*100+(AM$8)=Saisie!$F$12:$F$1395,(Saisie!$G$12:$G$1395))) -> 0 | AN24: =SUM(IF('Liste choisir'!$F$9*$B24*100+(AN$8)=Saisie!$F$12:$F$1395,(Saisie!$G$12:$G$1395))) -> 0 | AO24: =SUM(IF('Liste choisir'!$F$9*$B24*100+(AO$8)=Saisie!$F$12:$F$1395,(Saisie!$G$12:$G$1395))) -> 0 | AP24: =SUM(IF('Liste choisir'!$F$9*$B24*100+(AP$8)=Saisie!$F$12:$F$1395,(Saisie!$G$12:$G$1395))) -> 0 | AQ24: =SUM(IF('Liste choisir'!$F$9*$B24*100+(AQ$8)=Saisie!$F$12:$F$1395,(Saisie!$G$12:$G$1395))) -> 0 | AR24: =SUM(IF('Liste choisir'!$F$9*$B24*100+(AR$8)=Saisie!$F$12:$F$1395,(Saisie!$G$12:$G$1395))) -> 0 | AS24: =SUM(IF('Liste choisir'!$F$9*$B24*100+(AS$8)=Saisie!$F$12:$F$1395,(Saisie!$G$12:$G$1395))) -> 0 | AT24: =SUM(IF('Liste choisir'!$F$9*$B24*100+(AT$8)=Saisie!$F$12:$F$1395,(Saisie!$G$12:$G$1395))) -> 0 | AU24: =SUM(IF('Liste choisir'!$F$9*$B24*100+(AU$8)=Saisie!$F$12:$F$1395,(Saisie!$G$12:$G$1395))) -> 0 | AV24: =SUM(AJ24:AU24) -> 0
B25: ='Liste choisir'!A17 -> 16 | C25: ='Liste choisir'!B17 -> 16-Carburant | E25: =SUM(IF(($B25*100+YEAR($B$8)+MONTH(E$8)+MONTH(E$8))/(YEAR($B$8))=Saisie!$L$12:$L$1391,(Saisie!$J$12:$J$1391-Saisie!$I$12:$I$1391))) -> -257.91 | F25: =SUM(IF(($B25*100+YEAR($B$8)+MONTH(F$8)+MONTH(F$8))/(YEAR($B$8))=Saisie!$L$12:$L$1391,(Saisie!$J$12:$J$1391-Saisie!$I$12:$I$1391))) -> -50.01 | G25: =SUM(IF(($B25*100+YEAR($B$8)+MONTH(G$8)+MONTH(G$8))/(YEAR($B$8))=Saisie!$L$12:$L$1391,(Saisie!$J$12:$J$1391-Saisie!$I$12:$I$1391))) -> -150.04 | H25: =SUM(IF(($B25*100+YEAR($B$8)+MONTH(H$8)+MONTH(H$8))/(YEAR($B$8))=Saisie!$L$12:$L$1391,(Saisie!$J$12:$J$1391-Saisie!$I$12:$I$1391))) -> -148.87 | I25: =SUM(IF(($B25*100+YEAR($B$8)+MONTH(I$8)+MONTH(I$8))/(YEAR($B$8))=Saisie!$L$12:$L$1391,(Saisie!$J$12:$J$1391-Saisie!$I$12:$I$1391))) -> -185.5 | J25: =SUM(IF(($B25*100+YEAR($B$8)+MONTH(J$8)+MONTH(J$8))/(YEAR($B$8))=Saisie!$L$12:$L$1391,(Saisie!$J$12:$J$1391-Saisie!$I$12:$I$1391))) -> 0 | K25: =SUM(IF(($B25*100+YEAR($B$8)+MONTH(K$8)+MONTH(K$8))/(YEAR($B$8))=Saisie!$L$12:$L$1391,(Saisie!$J$12:$J$1391-Saisie!$I$12:$I$1391))) -> 0 | L25: =SUM(IF(($B25*100+YEAR($B$8)+MONTH(L$8)+MONTH(L$8))/(YEAR($B$8))=Saisie!$L$12:$L$1391,(Saisie!$J$12:$J$1391-Saisie!$I$12:$I$1391))) -> 0 | M25: =SUM(IF(($B25*100+YEAR($B$8)+MONTH(M$8)+MONTH(M$8))/(YEAR($B$8))=Saisie!$L$12:$L$1391,(Saisie!$J$12:$J$1391-Saisie!$I$12:$I$1391))) -> 0 | N25: =SUM(IF(($B25*100+YEAR($B$8)+MONTH(N$8)+MONTH(N$8))/(YEAR($B$8))=Saisie!$L$12:$L$1391,(Saisie!$J$12:$J$1391-Saisie!$I$12:$I$1391))) -> 0 | O25: =SUM(IF(($B25*100+YEAR($B$8)+MONTH(O$8)+MONTH(O$8))/(YEAR($B$8))=Saisie!$L$12:$L$1391,(Saisie!$J$12:$J$1391-Saisie!$I$12:$I$1391))) -> 0 | P25: =SUM(IF(($B25*100+YEAR($B$8)+MONTH(P$8)+MONTH(P$8))/(YEAR($B$8))=Saisie!$L$12:$L$1391,(Saisie!$J$12:$J$1391-Saisie!$I$12:$I$1391))) -> 0 | R25: -792.33 | T25: 0.07521144408 | U25: =IF(R25=0,"",AVERAGE(IF(E25:P25<>0,E25:P25))) -> -158.466 | V25: 16-Carburant | AI25: 16-Carburant | AJ25: =SUM(IF('Liste choisir'!$F$9*$B25*100+(AJ$8)=Saisie!$F$12:$F$1395,(Saisie!$G$12:$G$1395))) -> 0 | AK25: =SUM(IF('Liste choisir'!$F$9*$B25*100+(AK$8)=Saisie!$F$12:$F$1395,(Saisie!$G$12:$G$1395))) -> 0 | AL25: =SUM(IF('Liste choisir'!$F$9*$B25*100+(AL$8)=Saisie!$F$12:$F$1395,(Saisie!$G$12:$G$1395))) -> 0 | AM25: =SUM(IF('Liste choisir'!$F$9*$B25*100+(AM$8)=Saisie!$F$12:$F$1395,(Saisie!$G$12:$G$1395))) -> 0 | AN25: =SUM(IF('Liste choisir'!$F$9*$B25*100+(AN$8)=Saisie!$F$12:$F$1395,(Saisie!$G$12:$G$1395))) -> -40 | AO25: =SUM(IF('Liste choisir'!$F$9*$B25*100+(AO$8)=Saisie!$F$12:$F$1395,(Saisie!$G$12:$G$1395))) -> 0 | AP25: =SUM(IF('Liste choisir'!$F$9*$B25*100+(AP$8)=Saisie!$F$12:$F$1395,(Saisie!$G$12:$G$1395))) -> 0 | AQ25: =SUM(IF('Liste choisir'!$F$9*$B25*100+(AQ$8)=Saisie!$F$12:$F$1395,(Saisie!$G$12:$G$1395))) -> 0 | AR25: =SUM(IF('Liste choisir'!$F$9*$B25*100+(AR$8)=Saisie!$F$12:$F$1395,(Saisie!$G$12:$G$1395))) -> 0 | AS25: =SUM(IF('Liste choisir'!$F$9*$B25*100+(AS$8)=Saisie!$F$12:$F$1395,(Saisie!$G$12:$G$1395))) -> 0 | AT25: =SUM(IF('Liste choisir'!$F$9*$B25*100+(AT$8)=Saisie!$F$12:$F$1395,(Saisie!$G$12:$G$1395))) -> 0 | AU25: =SUM(IF('Liste choisir'!$F$9*$B25*100+(AU$8)=Saisie!$F$12:$F$1395,(Saisie!$G$12:$G$1395))) -> 0 | AV25: -40
B26: ='Liste choisir'!A18 -> 17 | C26: ='Liste choisir'!B18 -> 17-EDF | E26: =SUM(IF(($B26*100+YEAR($B$8)+MONTH(E$8)+MONTH(E$8))/(YEAR($B$8))=Saisie!$L$12:$L$1391,(Saisie!$J$12:$J$1391-Saisie!$I$12:$I$1391))) -> -415.46 | F26: =SUM(IF(($B26*100+YEAR($B$8)+MONTH(F$8)+MONTH(F$8))/(YEAR($B$8))=Saisie!$L$12:$L$1391,(Saisie!$J$12:$J$1391-Saisie!$I$12:$I$1391))) -> -33.56 | G26: =SUM(IF(($B26*100+YEAR($B$8)+MONTH(G$8)+MONTH(G$8))/(YEAR($B$8))=Saisie!$L$12:$L$1391,(Saisie!$J$12:$J$1391-Saisie!$I$12:$I$1391))) -> 0 | H26: =SUM(IF(($B26*100+YEAR($B$8)+MONTH(H$8)+MONTH(H$8))/(YEAR($B$8))=Saisie!$L$12:$L$1391,(Saisie!$J$12:$J$1391-Saisie!$I$12:$I$1391))) -> -167.15 | I26: =SUM(IF(($B26*100+YEAR($B$8)+MONTH(I$8)+MONTH(I$8))/(YEAR($B$8))=Saisie!$L$12:$L$1391,(Saisie!$J$12:$J$1391-Saisie!$I$12:$I$1391))) -> 0 | J26: =SUM(IF(($B26*100+YEAR($B$8)+MONTH(J$8)+MONTH(J$8))/(YEAR($B$8))=Saisie!$L$12:$L$1391,(Saisie!$J$12:$J$1391-Saisie!$I$12:$I$1391))) -> 0 | K26: =SUM(IF(($B26*100+YEAR($B$8)+MONTH(K$8)+MONTH(K$8))/(YEAR($B$8))=Saisie!$L$12:$L$1391,(Saisie!$J$12:$J$1391-Saisie!$I$12:$I$1391))) -> 0 | L26: =SUM(IF(($B26*100+YEAR($B$8)+MONTH(L$8)+MONTH(L$8))/(YEAR($B$8))=Saisie!$L$12:$L$1391,(Saisie!$J$12:$J$1391-Saisie!$I$12:$I$1391))) -> 0 | M26: =SUM(IF(($B26*100+YEAR($B$8)+MONTH(M$8)+MONTH(M$8))/(YEAR($B$8))=Saisie!$L$12:$L$1391,(Saisie!$J$12:$J$1391-Saisie!$I$12:$I$1391))) -> 0 | N26: =SUM(IF(($B26*100+YEAR($B$8)+MONTH(N$8)+MONTH(N$8))/(YEAR($B$8))=Saisie!$L$12:$L$1391,(Saisie!$J$12:$J$1391-Saisie!$I$12:$I$1391))) -> 0 | O26: =SUM(IF(($B26*100+YEAR($B$8)+MONTH(O$8)+MONTH(O$8))/(YEAR($B$8))=Saisie!$L$12:$L$1391,(Saisie!$J$12:$J$1391-Saisie!$I$12:$I$1391))) -> 0 | P26: =SUM(IF(($B26*100+YEAR($B$8)+MONTH(P$8)+MONTH(P$8))/(YEAR($B$8))=Saisie!$L$12:$L$1391,(Saisie!$J$12:$J$1391-Saisie!$I$12:$I$1391))) -> 0 | R26: -616.17 | T26: 0.05848956306 | U26: =IF(R26=0,"",AVERAGE(IF(E26:P26<>0,E26:P26))) -> -205.39 | V26: 17-EDF | AI26: 17-EDF | AJ26: =SUM(IF('Liste choisir'!$F$9*$B26*100+(AJ$8)=Saisie!$F$12:$F$1395,(Saisie!$G$12:$G$1395))) -> -220 | AK26: =SUM(IF('Liste choisir'!$F$9*$B26*100+(AK$8)=Saisie!$F$12:$F$1395,(Saisie!$G$12:$G$1395))) -> 0 | AL26: =SUM(IF('Liste choisir'!$F$9*$B26*100+(AL$8)=Saisie!$F$12:$F$1395,(Saisie!$G$12:$G$1395))) -> 0 | AM26: =SUM(IF('Liste choisir'!$F$9*$B26*100+(AM$8)=Saisie!$F$12:$F$1395,(Saisie!$G$12:$G$1395))) -> 0 | AN26: =SUM(IF('Liste choisir'!$F$9*$B26*100+(AN$8)=Saisie!$F$12:$F$1395,(Saisie!$G$12:$G$1395))) -> 0 | AO26: =SUM(IF('Liste choisir'!$F$9*$B26*100+(AO$8)=Saisie!$F$12:$F$1395,(Saisie!$G$12:$G$1395))) -> 0 | AP26: =SUM(IF('Liste choisir'!$F$9*$B26*100+(AP$8)=Saisie!$F$12:$F$1395,(Saisie!$G$12:$G$1395))) -> 0 | AQ26: =SUM(IF('Liste choisir'!$F$9*$B26*100+(AQ$8)=Saisie!$F$12:$F$1395,(Saisie!$G$12:$G$1395))) -> 0 | AR26: =SUM(IF('Liste choisir'!$F$9*$B26*100+(AR$8)=Saisie!$F$12:$F$1395,(Saisie!$G$12:$G$1395))) -> 0 | AS26: =SUM(IF('Liste choisir'!$F$9*$B26*100+(AS$8)=Saisie!$F$12:$F$1395,(Saisie!$G$12:$G$1395))) -> 0 | AT26: =SUM(IF('Liste choisir'!$F$9*$B26*100+(AT$8)=Saisie!$F$12:$F$1395,(Saisie!$G$12:$G$1395))) -> 0 | AU26: =SUM(IF('Liste choisir'!$F$9*$B26*100+(AU$8)=Saisie!$F$12:$F$1395,(Saisie!$G$12:$G$1395))) -> 0 | AV26: -220
B27: ='Liste choisir'!A19 -> 18 | C27: ='Liste choisir'!B19 -> 18-EAU | E27: =SUM(IF(($B27*100+YEAR($B$8)+MONTH(E$8)+MONTH(E$8))/(YEAR($B$8))=Saisie!$L$12:$L$1391,(Saisie!$J$12:$J$1391-Saisie!$I$12:$I$1391))) -> -50 | F27: =SUM(IF(($B27*100+YEAR($B$8)+MONTH(F$8)+MONTH(F$8))/(YEAR($B$8))=Saisie!$L$12:$L$1391,(Saisie!$J$12:$J$1391-Saisie!$I$12:$I$1391))) -> -115.12 | G27: =SUM(IF(($B27*100+YEAR($B$8)+MONTH(G$8)+MONTH(G$8))/(YEAR($B$8))=Saisie!$L$12:$L$1391,(Saisie!$J$12:$J$1391-Saisie!$I$12:$I$1391))) -> 0 | H27: =SUM(IF(($B27*100+YEAR($B$8)+MONTH(H$8)+MONTH(H$8))/(YEAR($B$8))=Saisie!$L$12:$L$1391,(Saisie!$J$12:$J$1391-Saisie!$I$12:$I$1391))) -> 0 | I27: =SUM(IF(($B27*100+YEAR($B$8)+MONTH(I$8)+MONTH(I$8))/(YEAR($B$8))=Saisie!$L$12:$L$1391,(Saisie!$J$12:$J$1391-Saisie!$I$12:$I$1391))) -> 0 | J27: =SUM(IF(($B27*100+YEAR($B$8)+MONTH(J$8)+MONTH(J$8))/(YEAR($B$8))=Saisie!$L$12:$L$1391,(Saisie!$J$12:$J$1391-Saisie!$I$12:$I$1391))) -> 0 | K27: =SUM(IF(($B27*100+YEAR($B$8)+MONTH(K$8)+MONTH(K$8))/(YEAR($B$8))=Saisie!$L$12:$L$1391,(Saisie!$J$12:$J$1391-Saisie!$I$12:$I$1391))) -> 0 | L27: =SUM(IF(($B27*100+YEAR($B$8)+MONTH(L$8)+MONTH(L$8))/(YEAR($B$8))=Saisie!$L$12:$L$1391,(Saisie!$J$12:$J$1391-Saisie!$I$12:$I$1391))) -> 0 | M27: =SUM(IF(($B27*100+YEAR($B$8)+MONTH(M$8)+MONTH(M$8))/(YEAR($B$8))=Saisie!$L$12:$L$1391,(Saisie!$J$12:$J$1391-Saisie!$I$12:$I$1391))) -> 0 | N27: =SUM(IF(($B27*100+YEAR($B$8)+MONTH(N$8)+MONTH(N$8))/(YEAR($B$8))=Saisie!$L$12:$L$1391,(Saisie!$J$12:$J$1391-Saisie!$I$12:$I$1391))) -> 0 | O27: =SUM(IF(($B27*100+YEAR($B$8)+MONTH(O$8)+MONTH(O$8))/(YEAR($B$8))=Saisie!$L$12:$L$1391,(Saisie!$J$12:$J$1391-Saisie!$I$12:$I$1391))) -> 0 | P27: =SUM(IF(($B27*100+YEAR($B$8)+MONTH(P$8)+MONTH(P$8))/(YEAR($B$8))=Saisie!$L$12:$L$1391,(Saisie!$J$12:$J$1391-Saisie!$I$12:$I$1391))) -> 0 | R27: -165.12 | T27: 0.01567391573 | U27: =IF(R27=0,"",AVERAGE(IF(E27:P27<>0,E27:P27))) -> -82.56 | V27: 18-EAU | AI27: 18-EAU | AJ27: =SUM(IF('Liste choisir'!$F$9*$B27*100+(AJ$8)=Saisie!$F$12:$F$1395,(Saisie!$G$12:$G$1395))) -> -50 | AK27: =SUM(IF('Liste choisir'!$F$9*$B27*100+(AK$8)=Saisie!$F$12:$F$1395,(Saisie!$G$12:$G$1395))) -> 0 | AL27: =SUM(IF('Liste choisir'!$F$9*$B27*100+(AL$8)=Saisie!$F$12:$F$1395,(Saisie!$G$12:$G$1395))) -> 0 | AM27: =SUM(IF('Liste choisir'!$F$9*$B27*100+(AM$8)=Saisie!$F$12:$F$1395,(Saisie!$G$12:$G$1395))) -> 0 | AN27: =SUM(IF('Liste choisir'!$F$9*$B27*100+(AN$8)=Saisie!$F$12:$F$1395,(Saisie!$G$12:$G$1395))) -> 0 | AO27: =SUM(IF('Liste choisir'!$F$9*$B27*100+(AO$8)=Saisie!$F$12:$F$1395,(Saisie!$G$12:$G$1395))) -> 0 | AP27: =SUM(IF('Liste choisir'!$F$9*$B27*100+(AP$8)=Saisie!$F$12:$F$1395,(Saisie!$G$12:$G$1395))) -> 0 | AQ27: =SUM(IF('Liste choisir'!$F$9*$B27*100+(AQ$8)=Saisie!$F$12:$F$1395,(Saisie!$G$12:$G$1395))) -> 0 | AR27: =SUM(IF('Liste choisir'!$F$9*$B27*100+(AR$8)=Saisie!$F$12:$F$1395,(Saisie!$G$12:$G$1395))) -> 0 | AS27: =SUM(IF('Liste choisir'!$F$9*$B27*100+(AS$8)=Saisie!$F$12:$F$1395,(Saisie!$G$12:$G$1395))) -> 0 | AT27: =SUM(IF('Liste choisir'!$F$9*$B27*100+(AT$8)=Saisie!$F$12:$F$1395,(Saisie!$G$12:$G$1395))) -> 0 | AU27: =SUM(IF('Liste choisir'!$F$9*$B27*100+(AU$8)=Saisie!$F$12:$F$1395,(Saisie!$G$12:$G$1395))) -> 0 | AV27: -50
B28: ='Liste choisir'!A20 -> 19 | C28: ='Liste choisir'!B20 -> 19- | E28: =SUM(IF(($B28*100+YEAR($B$8)+MONTH(E$8)+MONTH(E$8))/(YEAR($B$8))=Saisie!$L$12:$L$1391,(Saisie!$J$12:$J$1391-Saisie!$I$12:$I$1391))) -> 0 | F28: =SUM(IF(($B28*100+YEAR($B$8)+MONTH(F$8)+MONTH(F$8))/(YEAR($B$8))=Saisie!$L$12:$L$1391,(Saisie!$J$12:$J$1391-Saisie!$I$12:$I$1391))) -> 0 | G28: =SUM(IF(($B28*100+YEAR($B$8)+MONTH(G$8)+MONTH(G$8))/(YEAR($B$8))=Saisie!$L$12:$L$1391,(Saisie!$J$12:$J$1391-Saisie!$I$12:$I$1391))) -> -106.9 | H28: =SUM(IF(($B28*100+YEAR($B$8)+MONTH(H$8)+MONTH(H$8))/(YEAR($B$8))=Saisie!$L$12:$L$1391,(Saisie!$J$12:$J$1391-Saisie!$I$12:$I$1391))) -> -295.98 | I28: =SUM(IF(($B28*100+YEAR($B$8)+MONTH(I$8)+MONTH(I$8))/(YEAR($B$8))=Saisie!$L$12:$L$1391,(Saisie!$J$12:$J$1391-Saisie!$I$12:$I$1391))) -> -149.8 | J28: =SUM(IF(($B28*100+YEAR($B$8)+MONTH(J$8)+MONTH(J$8))/(YEAR($B$8))=Saisie!$L$12:$L$1391,(Saisie!$J$12:$J$1391-Saisie!$I$12:$I$1391))) -> 0 | K28: =SUM(IF(($B28*100+YEAR($B$8)+MONTH(K$8)+MONTH(K$8))/(YEAR($B$8))=Saisie!$L$12:$L$1391,(Saisie!$J$12:$J$1391-Saisie!$I$12:$I$1391))) -> 0 | L28: =SUM(IF(($B28*100+YEAR($B$8)+MONTH(L$8)+MONTH(L$8))/(YEAR($B$8))=Saisie!$L$12:$L$1391,(Saisie!$J$12:$J$1391-Saisie!$I$12:$I$1391))) -> 0 | M28: =SUM(IF(($B28*100+YEAR($B$8)+MONTH(M$8)+MONTH(M$8))/(YEAR($B$8))=Saisie!$L$12:$L$1391,(Saisie!$J$12:$J$1391-Saisie!$I$12:$I$1391))) -> 0 | N28: =SUM(IF(($B28*100+YEAR($B$8)+MONTH(N$8)+MONTH(N$8))/(YEAR($B$8))=Saisie!$L$12:$L$1391,(Saisie!$J$12:$J$1391-Saisie!$I$12:$I$1391))) -> 0 | O28: =SUM(IF(($B28*100+YEAR($B$8)+MONTH(O$8)+MONTH(O$8))/(YEAR($B$8))=Saisie!$L$12:$L$1391,(Saisie!$J$12:$J$1391-Saisie!$I$12:$I$1391))) -> 0 | P28: =SUM(IF(($B28*100+YEAR($B$8)+MONTH(P$8)+MONTH(P$8))/(YEAR($B$8))=Saisie!$L$12:$L$1391,(Saisie!$J$12:$J$1391-Saisie!$I$12:$I$1391))) -> 0 | R28: -552.68 | T28: 0.05246281337 | U28: =IF(R28=0,"",AVERAGE(IF(E28:P28<>0,E28:P28))) -> -184.2266667 | V28: 19- | AI28: 19- | AJ28: =SUM(IF('Liste choisir'!$F$9*$B28*100+(AJ$8)=Saisie!$F$12:$F$1395,(Saisie!$G$12:$G$1395))) -> 0 | AK28: =SUM(IF('Liste choisir'!$F$9*$B28*100+(AK$8)=Saisie!$F$12:$F$1395,(Saisie!$G$12:$G$1395))) -> 0 | AL28: =SUM(IF('Liste choisir'!$F$9*$B28*100+(AL$8)=Saisie!$F$12:$F$1395,(Saisie!$G$12:$G$1395))) -> 0 | AM28: =SUM(IF('Liste choisir'!$F$9*$B28*100+(AM$8)=Saisie!$F$12:$F$1395,(Saisie!$G$12:$G$1395))) -> 0 | AN28: =SUM(IF('Liste choisir'!$F$9*$B28*100+(AN$8)=Saisie!$F$12:$F$1395,(Saisie!$G$12:$G$1395))) -> -110 | AO28: =SUM(IF('Liste choisir'!$F$9*$B28*100+(AO$8)=Saisie!$F$12:$F$1395,(Saisie!$G$12:$G$1395))) -> 0 | AP28: =SUM(IF('Liste choisir'!$F$9*$B28*100+(AP$8)=Saisie!$F$12:$F$1395,(Saisie!$G$12:$G$1395))) -> 0 | AQ28: =SUM(IF('Liste choisir'!$F$9*$B28*100+(AQ$8)=Saisie!$F$12:$F$1395,(Saisie!$G$12:$G$1395))) -> 0 | AR28: =SUM(IF('Liste choisir'!$F$9*$B28*100+(AR$8)=Saisie!$F$12:$F$1395,(Saisie!$G$12:$G$1395))) -> 0 | AS28: =SUM(IF('Liste choisir'!$F$9*$B28*100+(AS$8)=Saisie!$F$12:$F$1395,(Saisie!$G$12:$G$1395))) -> 0 | AT28: =SUM(IF('Liste choisir'!$F$9*$B28*100+(AT$8)=Saisie!$F$12:$F$1395,(Saisie!$G$12:$G$1395))) -> 0 | AU28: =SUM(IF('Liste choisir'!$F$9*$B28*100+(AU$8)=Saisie!$F$12:$F$1395,(Saisie!$G$12:$G$1395))) -> 0 | AV28: -110
B29: ='Liste choisir'!A21 -> 20 | C29: ='Liste choisir'!B21 -> 20-Autoroute - Transport | E29: =SUM(IF(($B29*100+YEAR($B$8)+MONTH(E$8)+MONTH(E$8))/(YEAR($B$8))=Saisie!$L$12:$L$1391,(Saisie!$J$12:$J$1391-Saisie!$I$12:$I$1391))) -> -111.1 | F29: =SUM(IF(($B29*100+YEAR($B$8)+MONTH(F$8)+MONTH(F$8))/(YEAR($B$8))=Saisie!$L$12:$L$1391,(Saisie!$J$12:$J$1391-Saisie!$I$12:$I$1391))) -> -82.3 | G29: =SUM(IF(($B29*100+YEAR($B$8)+MONTH(G$8)+MONTH(G$8))/(YEAR($B$8))=Saisie!$L$12:$L$1391,(Saisie!$J$12:$J$1391-Saisie!$I$12:$I$1391))) -> 0 | H29: =SUM(IF(($B29*100+YEAR($B$8)+MONTH(H$8)+MONTH(H$8))/(YEAR($B$8))=Saisie!$L$12:$L$1391,(Saisie!$J$12:$J$1391-Saisie!$I$12:$I$1391))) -> -23.2 | I29: =SUM(IF(($B29*100+YEAR($B$8)+MONTH(I$8)+MONTH(I$8))/(YEAR($B$8))=Saisie!$L$12:$L$1391,(Saisie!$J$12:$J$1391-Saisie!$I$12:$I$1391))) -> -34.5 | J29: =SUM(IF(($B29*100+YEAR($B$8)+MONTH(J$8)+MONTH(J$8))/(YEAR($B$8))=Saisie!$L$12:$L$1391,(Saisie!$J$12:$J$1391-Saisie!$I$12:$I$1391))) -> 0 | K29: =SUM(IF(($B29*100+YEAR($B$8)+MONTH(K$8)+MONTH(K$8))/(YEAR($B$8))=Saisie!$L$12:$L$1391,(Saisie!$J$12:$J$1391-Saisie!$I$12:$I$1391))) -> 0 | L29: =SUM(IF(($B29*100+YEAR($B$8)+MONTH(L$8)+MONTH(L$8))/(YEAR($B$8))=Saisie!$L$12:$L$1391,(Saisie!$J$12:$J$1391-Saisie!$I$12:$I$1391))) -> 0 | M29: =SUM(IF(($B29*100+YEAR($B$8)+MONTH(M$8)+MONTH(M$8))/(YEAR($B$8))=Saisie!$L$12:$L$1391,(Saisie!$J$12:$J$1391-Saisie!$I$12:$I$1391))) -> 0 | N29: =SUM(IF(($B29*100+YEAR($B$8)+MONTH(N$8)+MONTH(N$8))/(YEAR($B$8))=Saisie!$L$12:$L$1391,(Saisie!$J$12:$J$1391-Saisie!$I$12:$I$1391))) -> 0 | O29: =SUM(IF(($B29*100+YEAR($B$8)+MONTH(O$8)+MONTH(O$8))/(YEAR($B$8))=Saisie!$L$12:$L$1391,(Saisie!$J$12:$J$1391-Saisie!$I$12:$I$1391))) -> 0 | P29: =SUM(IF(($B29*100+YEAR($B$8)+MONTH(P$8)+MONTH(P$8))/(YEAR($B$8))=Saisie!$L$12:$L$1391,(Saisie!$J$12:$J$1391-Saisie!$I$12:$I$1391))) -> 0 | R29: -251.1 | T29: 0.02383551501 | U29: =IF(R29=0,"",AVERAGE(IF(E29:P29<>0,E29:P29))) -> -62.775 | V29: 20-Autoroute - Transport | AI29: 20-Autoroute - Transport | AJ29: =SUM(IF('Liste choisir'!$F$9*$B29*100+(AJ$8)=Saisie!$F$12:$F$1395,(Saisie!$G$12:$G$1395))) -> -50 | AK29: =SUM(IF('Liste choisir'!$F$9*$B29*100+(AK$8)=Saisie!$F$12:$F$1395,(Saisie!$G$12:$G$1395))) -> 0 | AL29: =SUM(IF('Liste choisir'!$F$9*$B29*100+(AL$8)=Saisie!$F$12:$F$1395,(Saisie!$G$12:$G$1395))) -> 0 | AM29: =SUM(IF('Liste choisir'!$F$9*$B29*100+(AM$8)=Saisie!$F$12:$F$1395,(Saisie!$G$12:$G$1395))) -> 0 | AN29: =SUM(IF('Liste choisir'!$F$9*$B29*100+(AN$8)=Saisie!$F$12:$F$1395,(Saisie!$G$12:$G$1395))) -> 0 | AO29: =SUM(IF('Liste choisir'!$F$9*$B29*100+(AO$8)=Saisie!$F$12:$F$1395,(Saisie!$G$12:$G$1395))) -> 0 | AP29: =SUM(IF('Liste choisir'!$F$9*$B29*100+(AP$8)=Saisie!$F$12:$F$1395,(Saisie!$G$12:$G$1395))) -> 0 | AQ29: =SUM(IF('Liste choisir'!$F$9*$B29*100+(AQ$8)=Saisie!$F$12:$F$1395,(Saisie!$G$12:$G$1395))) -> 0 | AR29: =SUM(IF('Liste choisir'!$F$9*$B29*100+(AR$8)=Saisie!$F$12:$F$1395,(Saisie!$G$12:$G$1395))) -> 0 | AS29: =SUM(IF('Liste choisir'!$F$9*$B29*100+(AS$8)=Saisie!$F$12:$F$1395,(Saisie!$G$12:$G$1395))) -> 0 | AT29: =SUM(IF('Liste choisir'!$F$9*$B29*100+(AT$8)=Saisie!$F$12:$F$1395,(Saisie!$G$12:$G$1395))) -> 0 | AU29: =SUM(IF('Liste choisir'!$F$9*$B29*100+(AU$8)=Saisie!$F$12:$F$1395,(Saisie!$G$12:$G$1395))) -> 0 | AV29: -50
B30: ='Liste choisir'!A22 -> 21 | C30: ='Liste choisir'!B22 -> 21- | E30: =SUM(IF(($B30*100+YEAR($B$8)+MONTH(E$8)+MONTH(E$8))/(YEAR($B$8))=Saisie!$L$12:$L$1391,(Saisie!$J$12:$J$1391-Saisie!$I$12:$I$1391))) -> -22 | F30: =SUM(IF(($B30*100+YEAR($B$8)+MONTH(F$8)+MONTH(F$8))/(YEAR($B$8))=Saisie!$L$12:$L$1391,(Saisie!$J$12:$J$1391-Saisie!$I$12:$I$1391))) -> 0 | G30: =SUM(IF(($B30*100+YEAR($B$8)+MONTH(G$8)+MONTH(G$8))/(YEAR($B$8))=Saisie!$L$12:$L$1391,(Saisie!$J$12:$J$1391-Saisie!$I$12:$I$1391))) -> -24 | H30: =SUM(IF(($B30*100+YEAR($B$8)+MONTH(H$8)+MONTH(H$8))/(YEAR($B$8))=Saisie!$L$12:$L$1391,(Saisie!$J$12:$J$1391-Saisie!$I$12:$I$1391))) -> -19 | I30: =SUM(IF(($B30*100+YEAR($B$8)+MONTH(I$8)+MONTH(I$8))/(YEAR($B$8))=Saisie!$L$12:$L$1391,(Saisie!$J$12:$J$1391-Saisie!$I$12:$I$1391))) -> -23 | J30: =SUM(IF(($B30*100+YEAR($B$8)+MONTH(J$8)+MONTH(J$8))/(YEAR($B$8))=Saisie!$L$12:$L$1391,(Saisie!$J$12:$J$1391-Saisie!$I$12:$I$1391))) -> 0 | K30: =SUM(IF(($B30*100+YEAR($B$8)+MONTH(K$8)+MONTH(K$8))/(YEAR($B$8))=Saisie!$L$12:$L$1391,(Saisie!$J$12:$J$1391-Saisie!$I$12:$I$1391))) -> 0 | L30: =SUM(IF(($B30*100+YEAR($B$8)+MONTH(L$8)+MONTH(L$8))/(YEAR($B$8))=Saisie!$L$12:$L$1391,(Saisie!$J$12:$J$1391-Saisie!$I$12:$I$1391))) -> 0 | M30: =SUM(IF(($B30*100+YEAR($B$8)+MONTH(M$8)+MONTH(M$8))/(YEAR($B$8))=Saisie!$L$12:$L$1391,(Saisie!$J$12:$J$1391-Saisie!$I$12:$I$1391))) -> 0 | N30: =SUM(IF(($B30*100+YEAR($B$8)+MONTH(N$8)+MONTH(N$8))/(YEAR($B$8))=Saisie!$L$12:$L$1391,(Saisie!$J$12:$J$1391-Saisie!$I$12:$I$1391))) -> 0 | O30: =SUM(IF(($B30*100+YEAR($B$8)+MONTH(O$8)+MONTH(O$8))/(YEAR($B$8))=Saisie!$L$12:$L$1391,(Saisie!$J$12:$J$1391-Saisie!$I$12:$I$1391))) -> 0 | P30: =SUM(IF(($B30*100+YEAR($B$8)+MONTH(P$8)+MONTH(P$8))/(YEAR($B$8))=Saisie!$L$12:$L$1391,(Saisie!$J$12:$J$1391-Saisie!$I$12:$I$1391))) -> 0 | R30: -88 | T30: 0.008353346559 | U30: =IF(R30=0,"",AVERAGE(IF(E30:P30<>0,E30:P30))) -> -22 | V30: 21- | AI30: 21- | AJ30: =SUM(IF('Liste choisir'!$F$9*$B30*100+(AJ$8)=Saisie!$F$12:$F$1395,(Saisie!$G$12:$G$1395))) -> 0 | AK30: =SUM(IF('Liste choisir'!$F$9*$B30*100+(AK$8)=Saisie!$F$12:$F$1395,(Saisie!$G$12:$G$1395))) -> 0 | AL30: =SUM(IF('Liste choisir'!$F$9*$B30*100+(AL$8)=Saisie!$F$12:$F$1395,(Saisie!$G$12:$G$1395))) -> 0 | AM30: =SUM(IF('Liste choisir'!$F$9*$B30*100+(AM$8)=Saisie!$F$12:$F$1395,(Saisie!$G$12:$G$1395))) -> 0 | AN30: =SUM(IF('Liste choisir'!$F$9*$B30*100+(AN$8)=Saisie!$F$12:$F$1395,(Saisie!$G$12:$G$1395))) -> -23 | AO30: =SUM(IF('Liste choisir'!$F$9*$B30*100+(AO$8)=Saisie!$F$12:$F$1395,(Saisie!$G$12:$G$1395))) -> 0 | AP30: =SUM(IF('Liste choisir'!$F$9*$B30*100+(AP$8)=Saisie!$F$12:$F$1395,(Saisie!$G$12:$G$1395))) -> 0 | AQ30: =SUM(IF('Liste choisir'!$F$9*$B30*100+(AQ$8)=Saisie!$F$12:$F$1395,(Saisie!$G$12:$G$1395))) -> 0 | AR30: =SUM(IF('Liste choisir'!$F$9*$B30*100+(AR$8)=Saisie!$F$12:$F$1395,(Saisie!$G$12:$G$1395))) -> 0 | AS30: =SUM(IF('Liste choisir'!$F$9*$B30*100+(AS$8)=Saisie!$F$12:$F$1395,(Saisie!$G$12:$G$1395))) -> 0 | AT30: =SUM(IF('Liste choisir'!$F$9*$B30*100+(AT$8)=Saisie!$F$12:$F$1395,(Saisie!$G$12:$G$1395))) -> 0 | AU30: =SUM(IF('Liste choisir'!$F$9*$B30*100+(AU$8)=Saisie!$F$12:$F$1395,(Saisie!$G$12:$G$1395))) -> 0 | AV30: -23
B31: ='Liste choisir'!A23 -> 22 | C31: ='Liste choisir'!B23 -> 22- | E31: =SUM(IF(($B31*100+YEAR($B$8)+MONTH(E$8)+MONTH(E$8))/(YEAR($B$8))=Saisie!$L$12:$L$1391,(Saisie!$J$12:$J$1391-Saisie!$I$12:$I$1391))) -> -35.1 | F31: =SUM(IF(($B31*100+YEAR($B$8)+MONTH(F$8)+MONTH(F$8))/(YEAR($B$8))=Saisie!$L$12:$L$1391,(Saisie!$J$12:$J$1391-Saisie!$I$12:$I$1391))) -> 0 | G31: =SUM(IF(($B31*100+YEAR($B$8)+MONTH(G$8)+MONTH(G$8))/(YEAR($B$8))=Saisie!$L$12:$L$1391,(Saisie!$J$12:$J$1391-Saisie!$I$12:$I$1391))) -> -102 | H31: =SUM(IF(($B31*100+YEAR($B$8)+MONTH(H$8)+MONTH(H$8))/(YEAR($B$8))=Saisie!$L$12:$L$1391,(Saisie!$J$12:$J$1391-Saisie!$I$12:$I$1391))) -> 0 | I31: =SUM(IF(($B31*100+YEAR($B$8)+MONTH(I$8)+MONTH(I$8))/(YEAR($B$8))=Saisie!$L$12:$L$1391,(Saisie!$J$12:$J$1391-Saisie!$I$12:$I$1391))) -> 0 | J31: =SUM(IF(($B31*100+YEAR($B$8)+MONTH(J$8)+MONTH(J$8))/(YEAR($B$8))=Saisie!$L$12:$L$1391,(Saisie!$J$12:$J$1391-Saisie!$I$12:$I$1391))) -> 0 | K31: =SUM(IF(($B31*100+YEAR($B$8)+MONTH(K$8)+MONTH(K$8))/(YEAR($B$8))=Saisie!$L$12:$L$1391,(Saisie!$J$12:$J$1391-Saisie!$I$12:$I$1391))) -> 0 | L31: =SUM(IF(($B31*100+YEAR($B$8)+MONTH(L$8)+MONTH(L$8))/(YEAR($B$8))=Saisie!$L$12:$L$1391,(Saisie!$J$12:$J$1391-Saisie!$I$12:$I$1391))) -> 0 | M31: =SUM(IF(($B31*100+YEAR($B$8)+MONTH(M$8)+MONTH(M$8))/(YEAR($B$8))=Saisie!$L$12:$L$1391,(Saisie!$J$12:$J$1391-Saisie!$I$12:$I$1391))) -> 0 | N31: =SUM(IF(($B31*100+YEAR($B$8)+MONTH(N$8)+MONTH(N$8))/(YEAR($B$8))=Saisie!$L$12:$L$1391,(Saisie!$J$12:$J$1391-Saisie!$I$12:$I$1391))) -> 0 | O31: =SUM(IF(($B31*100+YEAR($B$8)+MONTH(O$8)+MONTH(O$8))/(YEAR($B$8))=Saisie!$L$12:$L$1391,(Saisie!$J$12:$J$1391-Saisie!$I$12:$I$1391))) -> 0 | P31: =SUM(IF(($B31*100+YEAR($B$8)+MONTH(P$8)+MONTH(P$8))/(YEAR($B$8))=Saisie!$L$12:$L$1391,(Saisie!$J$12:$J$1391-Saisie!$I$12:$I$1391))) -> 0 | R31: -137.1 | T31: 0.01301413424 | U31: =IF(R31=0,"",AVERAGE(IF(E31:P31<>0,E31:P31))) -> -68.55 | V31: 22- | AI31: 22- | AJ31: =SUM(IF('Liste choisir'!$F$9*$B31*100+(AJ$8)=Saisie!$F$12:$F$1395,(Saisie!$G$12:$G$1395))) -> 0 | AK31: =SUM(IF('Liste choisir'!$F$9*$B31*100+(AK$8)=Saisie!$F$12:$F$1395,(Saisie!$G$12:$G$1395))) -> 0 | AL31: =SUM(IF('Liste choisir'!$F$9*$B31*100+(AL$8)=Saisie!$F$12:$F$1395,(Saisie!$G$12:$G$1395))) -> 0 | AM31: =SUM(IF('Liste choisir'!$F$9*$B31*100+(AM$8)=Saisie!$F$12:$F$1395,(Saisie!$G$12:$G$1395))) -> 0 | AN31: =SUM(IF('Liste choisir'!$F$9*$B31*100+(AN$8)=Saisie!$F$12:$F$1395,(Saisie!$G$12:$G$1395))) -> 0 | AO31: =SUM(IF('Liste choisir'!$F$9*$B31*100+(AO$8)=Saisie!$F$12:$F$1395,(Saisie!$G$12:$G$1395))) -> 0 | AP31: =SUM(IF('Liste choisir'!$F$9*$B31*100+(AP$8)=Saisie!$F$12:$F$1395,(Saisie!$G$12:$G$1395))) -> 0 | AQ31: =SUM(IF('Liste choisir'!$F$9*$B31*100+(AQ$8)=Saisie!$F$12:$F$1395,(Saisie!$G$12:$G$1395))) -> 0 | AR31: =SUM(IF('Liste choisir'!$F$9*$B31*100+(AR$8)=Saisie!$F$12:$F$1395,(Saisie!$G$12:$G$1395))) -> 0 | AS31: =SUM(IF('Liste choisir'!$F$9*$B31*100+(AS$8)=Saisie!$F$12:$F$1395,(Saisie!$G$12:$G$1395))) -> 0 | AT31: =SUM(IF('Liste choisir'!$F$9*$B31*100+(AT$8)=Saisie!$F$12:$F$1395,(Saisie!$G$12:$G$1395))) -> 0 | AU31: =SUM(IF('Liste choisir'!$F$9*$B31*100+(AU$8)=Saisie!$F$12:$F$1395,(Saisie!$G$12:$G$1395))) -> 0 | AV31: 0
B32: ='Liste choisir'!A24 -> 23 | C32: ='Liste choisir'!B24 -> 23-High-tech, outils, etc | E32: =SUM(IF(($B32*100+YEAR($B$8)+MONTH(E$8)+MONTH(E$8))/(YEAR($B$8))=Saisie!$L$12:$L$1391,(Saisie!$J$12:$J$1391-Saisie!$I$12:$I$1391))) -> -1.99 | F32: =SUM(IF(($B32*100+YEAR($B$8)+MONTH(F$8)+MONTH(F$8))/(YEAR($B$8))=Saisie!$L$12:$L$1391,(Saisie!$J$12:$J$1391-Saisie!$I$12:$I$1391))) -> -80.53 | G32: =SUM(IF(($B32*100+YEAR($B$8)+MONTH(G$8)+MONTH(G$8))/(YEAR($B$8))=Saisie!$L$12:$L$1391,(Saisie!$J$12:$J$1391-Saisie!$I$12:$I$1391))) -> -74.74 | H32: =SUM(IF(($B32*100+YEAR($B$8)+MONTH(H$8)+MONTH(H$8))/(YEAR($B$8))=Saisie!$L$12:$L$1391,(Saisie!$J$12:$J$1391-Saisie!$I$12:$I$1391))) -> -116.37 | I32: =SUM(IF(($B32*100+YEAR($B$8)+MONTH(I$8)+MONTH(I$8))/(YEAR($B$8))=Saisie!$L$12:$L$1391,(Saisie!$J$12:$J$1391-Saisie!$I$12:$I$1391))) -> -4.8 | J32: =SUM(IF(($B32*100+YEAR($B$8)+MONTH(J$8)+MONTH(J$8))/(YEAR($B$8))=Saisie!$L$12:$L$1391,(Saisie!$J$12:$J$1391-Saisie!$I$12:$I$1391))) -> 0 | K32: =SUM(IF(($B32*100+YEAR($B$8)+MONTH(K$8)+MONTH(K$8))/(YEAR($B$8))=Saisie!$L$12:$L$1391,(Saisie!$J$12:$J$1391-Saisie!$I$12:$I$1391))) -> 0 | L32: =SUM(IF(($B32*100+YEAR($B$8)+MONTH(L$8)+MONTH(L$8))/(YEAR($B$8))=Saisie!$L$12:$L$1391,(Saisie!$J$12:$J$1391-Saisie!$I$12:$I$1391))) -> 0 | M32: =SUM(IF(($B32*100+YEAR($B$8)+MONTH(M$8)+MONTH(M$8))/(YEAR($B$8))=Saisie!$L$12:$L$1391,(Saisie!$J$12:$J$1391-Saisie!$I$12:$I$1391))) -> 0 | N32: =SUM(IF(($B32*100+YEAR($B$8)+MONTH(N$8)+MONTH(N$8))/(YEAR($B$8))=Saisie!$L$12:$L$1391,(Saisie!$J$12:$J$1391-Saisie!$I$12:$I$1391))) -> 0 | O32: =SUM(IF(($B32*100+YEAR($B$8)+MONTH(O$8)+MONTH(O$8))/(YEAR($B$8))=Saisie!$L$12:$L$1391,(Saisie!$J$12:$J$1391-Saisie!$I$12:$I$1391))) -> 0 | P32: =SUM(IF(($B32*100+YEAR($B$8)+MONTH(P$8)+MONTH(P$8))/(YEAR($B$8))=Saisie!$L$12:$L$1391,(Saisie!$J$12:$J$1391-Saisie!$I$12:$I$1391))) -> 0 | R32: -278.43 | T32: 0.02642979867 | U32: =IF(R32=0,"",AVERAGE(IF(E32:P32<>0,E32:P32))) -> -55.686 | V32: 23-High-tech, outils, etc | AI32: 23-High-tech, outils, etc | AJ32: =SUM(IF('Liste choisir'!$F$9*$B32*100+(AJ$8)=Saisie!$F$12:$F$1395,(Saisie!$G$12:$G$1395))) -> 0 | AK32: =SUM(IF('Liste choisir'!$F$9*$B32*100+(AK$8)=Saisie!$F$12:$F$1395,(Saisie!$G$12:$G$1395))) -> 0 | AL32: =SUM(IF('Liste choisir'!$F$9*$B32*100+(AL$8)=Saisie!$F$12:$F$1395,(Saisie!$G$12:$G$1395))) -> 0 | AM32: =SUM(IF('Liste choisir'!$F$9*$B32*100+(AM$8)=Saisie!$F$12:$F$1395,(Saisie!$G$12:$G$1395))) -> 0 | AN32: =SUM(IF('Liste choisir'!$F$9*$B32*100+(AN$8)=Saisie!$F$12:$F$1395,(Saisie!$G$12:$G$1395))) -> 0 | AO32: =SUM(IF('Liste choisir'!$F$9*$B32*100+(AO$8)=Saisie!$F$12:$F$1395,(Saisie!$G$12:$G$1395))) -> 0 | AP32: =SUM(IF('Liste choisir'!$F$9*$B32*100+(AP$8)=Saisie!$F$12:$F$1395,(Saisie!$G$12:$G$1395))) -> 0 | AQ32: =SUM(IF('Liste choisir'!$F$9*$B32*100+(AQ$8)=Saisie!$F$12:$F$1395,(Saisie!$G$12:$G$1395))) -> 0 | AR32: =SUM(IF('Liste choisir'!$F$9*$B32*100+(AR$8)=Saisie!$F$12:$F$1395,(Saisie!$G$12:$G$1395))) -> 0 | AS32: =SUM(IF('Liste choisir'!$F$9*$B32*100+(AS$8)=Saisie!$F$12:$F$1395,(Saisie!$G$12:$G$1395))) -> 0 | AT32: =SUM(IF('Liste choisir'!$F$9*$B32*100+(AT$8)=Saisie!$F$12:$F$1395,(Saisie!$G$12:$G$1395))) -> 0 | AU32: =SUM(IF('Liste choisir'!$F$9*$B32*100+(AU$8)=Saisie!$F$12:$F$1395,(Saisie!$G$12:$G$1395))) -> 0 | AV32: 0
B33: ='Liste choisir'!A25 -> 24 | C33: ='Liste choisir'!B25 -> 24- | E33: =SUM(IF(($B33*100+YEAR($B$8)+MONTH(E$8)+MONTH(E$8))/(YEAR($B$8))=Saisie!$L$12:$L$1391,(Saisie!$J$12:$J$1391-Saisie!$I$12:$I$1391))) -> -34 | F33: =SUM(IF(($B33*100+YEAR($B$8)+MONTH(F$8)+MONTH(F$8))/(YEAR($B$8))=Saisie!$L$12:$L$1391,(Saisie!$J$12:$J$1391-Saisie!$I$12:$I$1391))) -> -34 | G33: =SUM(IF(($B33*100+YEAR($B$8)+MONTH(G$8)+MONTH(G$8))/(YEAR($B$8))=Saisie!$L$12:$L$1391,(Saisie!$J$12:$J$1391-Saisie!$I$12:$I$1391))) -> -34 | H33: =SUM(IF(($B33*100+YEAR($B$8)+MONTH(H$8)+MONTH(H$8))/(YEAR($B$8))=Saisie!$L$12:$L$1391,(Saisie!$J$12:$J$1391-Saisie!$I$12:$I$1391))) -> -34 | I33: =SUM(IF(($B33*100+YEAR($B$8)+MONTH(I$8)+MONTH(I$8))/(YEAR($B$8))=Saisie!$L$12:$L$1391,(Saisie!$J$12:$J$1391-Saisie!$I$12:$I$1391))) -> -34 | J33: =SUM(IF(($B33*100+YEAR($B$8)+MONTH(J$8)+MONTH(J$8))/(YEAR($B$8))=Saisie!$L$12:$L$1391,(Saisie!$J$12:$J$1391-Saisie!$I$12:$I$1391))) -> 0 | K33: =SUM(IF(($B33*100+YEAR($B$8)+MONTH(K$8)+MONTH(K$8))/(YEAR($B$8))=Saisie!$L$12:$L$1391,(Saisie!$J$12:$J$1391-Saisie!$I$12:$I$1391))) -> 0 | L33: =SUM(IF(($B33*100+YEAR($B$8)+MONTH(L$8)+MONTH(L$8))/(YEAR($B$8))=Saisie!$L$12:$L$1391,(Saisie!$J$12:$J$1391-Saisie!$I$12:$I$1391))) -> 0 | M33: =SUM(IF(($B33*100+YEAR($B$8)+MONTH(M$8)+MONTH(M$8))/(YEAR($B$8))=Saisie!$L$12:$L$1391,(Saisie!$J$12:$J$1391-Saisie!$I$12:$I$1391))) -> 0 | N33: =SUM(IF(($B33*100+YEAR($B$8)+MONTH(N$8)+MONTH(N$8))/(YEAR($B$8))=Saisie!$L$12:$L$1391,(Saisie!$J$12:$J$1391-Saisie!$I$12:$I$1391))) -> 0 | O33: =SUM(IF(($B33*100+YEAR($B$8)+MONTH(O$8)+MONTH(O$8))/(YEAR($B$8))=Saisie!$L$12:$L$1391,(Saisie!$J$12:$J$1391-Saisie!$I$12:$I$1391))) -> 0 | P33: =SUM(IF(($B33*100+YEAR($B$8)+MONTH(P$8)+MONTH(P$8))/(YEAR($B$8))=Saisie!$L$12:$L$1391,(Saisie!$J$12:$J$1391-Saisie!$I$12:$I$1391))) -> 0 | R33: -170 | T33: 0.01613714676 | U33: =IF(R33=0,"",AVERAGE(IF(E33:P33<>0,E33:P33))) -> -34 | V33: 24- | AI33: 24- | AJ33: =SUM(IF('Liste choisir'!$F$9*$B33*100+(AJ$8)=Saisie!$F$12:$F$1395,(Saisie!$G$12:$G$1395))) -> 0 | AK33: =SUM(IF('Liste choisir'!$F$9*$B33*100+(AK$8)=Saisie!$F$12:$F$1395,(Saisie!$G$12:$G$1395))) -> 0 | AL33: =SUM(IF('Liste choisir'!$F$9*$B33*100+(AL$8)=Saisie!$F$12:$F$1395,(Saisie!$G$12:$G$1395))) -> 0 | AM33: =SUM(IF('Liste choisir'!$F$9*$B33*100+(AM$8)=Saisie!$F$12:$F$1395,(Saisie!$G$12:$G$1395))) -> 0 | AN33: =SUM(IF('Liste choisir'!$F$9*$B33*100+(AN$8)=Saisie!$F$12:$F$1395,(Saisie!$G$12:$G$1395))) -> 0 | AO33: =SUM(IF('Liste choisir'!$F$9*$B33*100+(AO$8)=Saisie!$F$12:$F$1395,(Saisie!$G$12:$G$1395))) -> 0 | AP33: =SUM(IF('Liste choisir'!$F$9*$B33*100+(AP$8)=Saisie!$F$12:$F$1395,(Saisie!$G$12:$G$1395))) -> 0 | AQ33: =SUM(IF('Liste choisir'!$F$9*$B33*100+(AQ$8)=Saisie!$F$12:$F$1395,(Saisie!$G$12:$G$1395))) -> 0 | AR33: =SUM(IF('Liste choisir'!$F$9*$B33*100+(AR$8)=Saisie!$F$12:$F$1395,(Saisie!$G$12:$G$1395))) -> 0 | AS33: =SUM(IF('Liste choisir'!$F$9*$B33*100+(AS$8)=Saisie!$F$12:$F$1395,(Saisie!$G$12:$G$1395))) -> 0 | AT33: =SUM(IF('Liste choisir'!$F$9*$B33*100+(AT$8)=Saisie!$F$12:$F$1395,(Saisie!$G$12:$G$1395))) -> 0 | AU33: =SUM(IF('Liste choisir'!$F$9*$B33*100+(AU$8)=Saisie!$F$12:$F$1395,(Saisie!$G$12:$G$1395))) -> 0 | AV33: 0
B34: ='Liste choisir'!A26 -> 25 | C34: ='Liste choisir'!B26 -> 25- | E34: =SUM(IF(($B34*100+YEAR($B$8)+MONTH(E$8)+MONTH(E$8))/(YEAR($B$8))=Saisie!$L$12:$L$1391,(Saisie!$J$12:$J$1391-Saisie!$I$12:$I$1391))) -> -30 | F34: =SUM(IF(($B34*100+YEAR($B$8)+MONTH(F$8)+MONTH(F$8))/(YEAR($B$8))=Saisie!$L$12:$L$1391,(Saisie!$J$12:$J$1391-Saisie!$I$12:$I$1391))) -> -30 | G34: =SUM(IF(($B34*100+YEAR($B$8)+MONTH(G$8)+MONTH(G$8))/(YEAR($B$8))=Saisie!$L$12:$L$1391,(Saisie!$J$12:$J$1391-Saisie!$I$12:$I$1391))) -> -30 | H34: =SUM(IF(($B34*100+YEAR($B$8)+MONTH(H$8)+MONTH(H$8))/(YEAR($B$8))=Saisie!$L$12:$L$1391,(Saisie!$J$12:$J$1391-Saisie!$I$12:$I$1391))) -> -30 | I34: =SUM(IF(($B34*100+YEAR($B$8)+MONTH(I$8)+MONTH(I$8))/(YEAR($B$8))=Saisie!$L$12:$L$1391,(Saisie!$J$12:$J$1391-Saisie!$I$12:$I$1391))) -> -30 | J34: =SUM(IF(($B34*100+YEAR($B$8)+MONTH(J$8)+MONTH(J$8))/(YEAR($B$8))=Saisie!$L$12:$L$1391,(Saisie!$J$12:$J$1391-Saisie!$I$12:$I$1391))) -> 0 | K34: =SUM(IF(($B34*100+YEAR($B$8)+MONTH(K$8)+MONTH(K$8))/(YEAR($B$8))=Saisie!$L$12:$L$1391,(Saisie!$J$12:$J$1391-Saisie!$I$12:$I$1391))) -> 0 | L34: =SUM(IF(($B34*100+YEAR($B$8)+MONTH(L$8)+MONTH(L$8))/(YEAR($B$8))=Saisie!$L$12:$L$1391,(Saisie!$J$12:$J$1391-Saisie!$I$12:$I$1391))) -> 0 | M34: =SUM(IF(($B34*100+YEAR($B$8)+MONTH(M$8)+MONTH(M$8))/(YEAR($B$8))=Saisie!$L$12:$L$1391,(Saisie!$J$12:$J$1391-Saisie!$I$12:$I$1391))) -> 0 | N34: =SUM(IF(($B34*100+YEAR($B$8)+MONTH(N$8)+MONTH(N$8))/(YEAR($B$8))=Saisie!$L$12:$L$1391,(Saisie!$J$12:$J$1391-Saisie!$I$12:$I$1391))) -> 0 | O34: =SUM(IF(($B34*100+YEAR($B$8)+MONTH(O$8)+MONTH(O$8))/(YEAR($B$8))=Saisie!$L$12:$L$1391,(Saisie!$J$12:$J$1391-Saisie!$I$12:$I$1391))) -> 0 | P34: =SUM(IF(($B34*100+YEAR($B$8)+MONTH(P$8)+MONTH(P$8))/(YEAR($B$8))=Saisie!$L$12:$L$1391,(Saisie!$J$12:$J$1391-Saisie!$I$12:$I$1391))) -> 0 | R34: -150 | T34: 0.01423865891 | U34: =IF(R34=0,"",AVERAGE(IF(E34:P34<>0,E34:P34))) -> -30 | V34: 25- | AI34: 25- | AJ34: =SUM(IF('Liste choisir'!$F$9*$B34*100+(AJ$8)=Saisie!$F$12:$F$1395,(Saisie!$G$12:$G$1395))) -> 0 | AK34: =SUM(IF('Liste choisir'!$F$9*$B34*100+(AK$8)=Saisie!$F$12:$F$1395,(Saisie!$G$12:$G$1395))) -> 0 | AL34: =SUM(IF('Liste choisir'!$F$9*$B34*100+(AL$8)=Saisie!$F$12:$F$1395,(Saisie!$G$12:$G$1395))) -> 0 | AM34: =SUM(IF('Liste choisir'!$F$9*$B34*100+(AM$8)=Saisie!$F$12:$F$1395,(Saisie!$G$12:$G$1395))) -> 0 | AN34: =SUM(IF('Liste choisir'!$F$9*$B34*100+(AN$8)=Saisie!$F$12:$F$1395,(Saisie!$G$12:$G$1395))) -> 0 | AO34: =SUM(IF('Liste choisir'!$F$9*$B34*100+(AO$8)=Saisie!$F$12:$F$1395,(Saisie!$G$12:$G$1395))) -> 0 | AP34: =SUM(IF('Liste choisir'!$F$9*$B34*100+(AP$8)=Saisie!$F$12:$F$1395,(Saisie!$G$12:$G$1395))) -> 0 | AQ34: =SUM(IF('Liste choisir'!$F$9*$B34*100+(AQ$8)=Saisie!$F$12:$F$1395,(Saisie!$G$12:$G$1395))) -> 0 | AR34: =SUM(IF('Liste choisir'!$F$9*$B34*100+(AR$8)=Saisie!$F$12:$F$1395,(Saisie!$G$12:$G$1395))) -> 0 | AS34: =SUM(IF('Liste choisir'!$F$9*$B34*100+(AS$8)=Saisie!$F$12:$F$1395,(Saisie!$G$12:$G$1395))) -> 0 | AT34: =SUM(IF('Liste choisir'!$F$9*$B34*100+(AT$8)=Saisie!$F$12:$F$1395,(Saisie!$G$12:$G$1395))) -> 0 | AU34: =SUM(IF('Liste choisir'!$F$9*$B34*100+(AU$8)=Saisie!$F$12:$F$1395,(Saisie!$G$12:$G$1395))) -> 0 | AV34: 0
B35: ='Liste choisir'!A27 -> 26 | C35: ='Liste choisir'!B27 -> 26-Automobile | E35: =SUM(IF(($B35*100+YEAR($B$8)+MONTH(E$8)+MONTH(E$8))/(YEAR($B$8))=Saisie!$L$12:$L$1391,(Saisie!$J$12:$J$1391-Saisie!$I$12:$I$1391))) -> -68.18 | F35: =SUM(IF(($B35*100+YEAR($B$8)+MONTH(F$8)+MONTH(F$8))/(YEAR($B$8))=Saisie!$L$12:$L$1391,(Saisie!$J$12:$J$1391-Saisie!$I$12:$I$1391))) -> -25 | G35: =SUM(IF(($B35*100+YEAR($B$8)+MONTH(G$8)+MONTH(G$8))/(YEAR($B$8))=Saisie!$L$12:$L$1391,(Saisie!$J$12:$J$1391-Saisie!$I$12:$I$1391))) -> -20 | H35: =SUM(IF(($B35*100+YEAR($B$8)+MONTH(H$8)+MONTH(H$8))/(YEAR($B$8))=Saisie!$L$12:$L$1391,(Saisie!$J$12:$J$1391-Saisie!$I$12:$I$1391))) -> -20 | I35: =SUM(IF(($B35*100+YEAR($B$8)+MONTH(I$8)+MONTH(I$8))/(YEAR($B$8))=Saisie!$L$12:$L$1391,(Saisie!$J$12:$J$1391-Saisie!$I$12:$I$1391))) -> -20 | J35: =SUM(IF(($B35*100+YEAR($B$8)+MONTH(J$8)+MONTH(J$8))/(YEAR($B$8))=Saisie!$L$12:$L$1391,(Saisie!$J$12:$J$1391-Saisie!$I$12:$I$1391))) -> 0 | K35: =SUM(IF(($B35*100+YEAR($B$8)+MONTH(K$8)+MONTH(K$8))/(YEAR($B$8))=Saisie!$L$12:$L$1391,(Saisie!$J$12:$J$1391-Saisie!$I$12:$I$1391))) -> 0 | L35: =SUM(IF(($B35*100+YEAR($B$8)+MONTH(L$8)+MONTH(L$8))/(YEAR($B$8))=Saisie!$L$12:$L$1391,(Saisie!$J$12:$J$1391-Saisie!$I$12:$I$1391))) -> 0 | M35: =SUM(IF(($B35*100+YEAR($B$8)+MONTH(M$8)+MONTH(M$8))/(YEAR($B$8))=Saisie!$L$12:$L$1391,(Saisie!$J$12:$J$1391-Saisie!$I$12:$I$1391))) -> 0 | N35: =SUM(IF(($B35*100+YEAR($B$8)+MONTH(N$8)+MONTH(N$8))/(YEAR($B$8))=Saisie!$L$12:$L$1391,(Saisie!$J$12:$J$1391-Saisie!$I$12:$I$1391))) -> 0 | O35: =SUM(IF(($B35*100+YEAR($B$8)+MONTH(O$8)+MONTH(O$8))/(YEAR($B$8))=Saisie!$L$12:$L$1391,(Saisie!$J$12:$J$1391-Saisie!$I$12:$I$1391))) -> 0 | P35: =SUM(IF(($B35*100+YEAR($B$8)+MONTH(P$8)+MONTH(P$8))/(YEAR($B$8))=Saisie!$L$12:$L$1391,(Saisie!$J$12:$J$1391-Saisie!$I$12:$I$1391))) -> 0 | R35: -153.18 | T35: 0.01454051848 | U35: =IF(R35=0,"",AVERAGE(IF(E35:P35<>0,E35:P35))) -> -30.636 | V35: 26-Automobile | AI35: 26-Automobile | AJ35: =SUM(IF('Liste choisir'!$F$9*$B35*100+(AJ$8)=Saisie!$F$12:$F$1395,(Saisie!$G$12:$G$1395))) -> 0 | AK35: =SUM(IF('Liste choisir'!$F$9*$B35*100+(AK$8)=Saisie!$F$12:$F$1395,(Saisie!$G$12:$G$1395))) -> 0 | AL35: =SUM(IF('Liste choisir'!$F$9*$B35*100+(AL$8)=Saisie!$F$12:$F$1395,(Saisie!$G$12:$G$1395))) -> 0 | AM35: =SUM(IF('Liste choisir'!$F$9*$B35*100+(AM$8)=Saisie!$F$12:$F$1395,(Saisie!$G$12:$G$1395))) -> 0 | AN35: =SUM(IF('Liste choisir'!$F$9*$B35*100+(AN$8)=Saisie!$F$12:$F$1395,(Saisie!$G$12:$G$1395))) -> 0 | AO35: =SUM(IF('Liste choisir'!$F$9*$B35*100+(AO$8)=Saisie!$F$12:$F$1395,(Saisie!$G$12:$G$1395))) -> 0 | AP35: =SUM(IF('Liste choisir'!$F$9*$B35*100+(AP$8)=Saisie!$F$12:$F$1395,(Saisie!$G$12:$G$1395))) -> 0 | AQ35: =SUM(IF('Liste choisir'!$F$9*$B35*100+(AQ$8)=Saisie!$F$12:$F$1395,(Saisie!$G$12:$G$1395))) -> 0 | AR35: =SUM(IF('Liste choisir'!$F$9*$B35*100+(AR$8)=Saisie!$F$12:$F$1395,(Saisie!$G$12:$G$1395))) -> 0 | AS35: =SUM(IF('Liste choisir'!$F$9*$B35*100+(AS$8)=Saisie!$F$12:$F$1395,(Saisie!$G$12:$G$1395))) -> 0 | AT35: =SUM(IF('Liste choisir'!$F$9*$B35*100+(AT$8)=Saisie!$F$12:$F$1395,(Saisie!$G$12:$G$1395))) -> 0 | AU35: =SUM(IF('Liste choisir'!$F$9*$B35*100+(AU$8)=Saisie!$F$12:$F$1395,(Saisie!$G$12:$G$1395))) -> 0 | AV35: 0
B36: ='Liste choisir'!A28 -> 27 | C36: ='Liste choisir'!B28 -> 27- | E36: =SUM(IF(($B36*100+YEAR($B$8)+MONTH(E$8)+MONTH(E$8))/(YEAR($B$8))=Saisie!$L$12:$L$1391,(Saisie!$J$12:$J$1391-Saisie!$I$12:$I$1391))) -> 0 | F36: =SUM(IF(($B36*100+YEAR($B$8)+MONTH(F$8)+MONTH(F$8))/(YEAR($B$8))=Saisie!$L$12:$L$1391,(Saisie!$J$12:$J$1391-Saisie!$I$12:$I$1391))) -> -250.63 | G36: =SUM(IF(($B36*100+YEAR($B$8)+MONTH(G$8)+MONTH(G$8))/(YEAR($B$8))=Saisie!$L$12:$L$1391,(Saisie!$J$12:$J$1391-Saisie!$I$12:$I$1391))) -> 0 | H36: =SUM(IF(($B36*100+YEAR($B$8)+MONTH(H$8)+MONTH(H$8))/(YEAR($B$8))=Saisie!$L$12:$L$1391,(Saisie!$J$12:$J$1391-Saisie!$I$12:$I$1391))) -> 0 | I36: =SUM(IF(($B36*100+YEAR($B$8)+MONTH(I$8)+MONTH(I$8))/(YEAR($B$8))=Saisie!$L$12:$L$1391,(Saisie!$J$12:$J$1391-Saisie!$I$12:$I$1391))) -> -6.5 | J36: =SUM(IF(($B36*100+YEAR($B$8)+MONTH(J$8)+MONTH(J$8))/(YEAR($B$8))=Saisie!$L$12:$L$1391,(Saisie!$J$12:$J$1391-Saisie!$I$12:$I$1391))) -> 0 | K36: =SUM(IF(($B36*100+YEAR($B$8)+MONTH(K$8)+MONTH(K$8))/(YEAR($B$8))=Saisie!$L$12:$L$1391,(Saisie!$J$12:$J$1391-Saisie!$I$12:$I$1391))) -> 0 | L36: =SUM(IF(($B36*100+YEAR($B$8)+MONTH(L$8)+MONTH(L$8))/(YEAR($B$8))=Saisie!$L$12:$L$1391,(Saisie!$J$12:$J$1391-Saisie!$I$12:$I$1391))) -> 0 | M36: =SUM(IF(($B36*100+YEAR($B$8)+MONTH(M$8)+MONTH(M$8))/(YEAR($B$8))=Saisie!$L$12:$L$1391,(Saisie!$J$12:$J$1391-Saisie!$I$12:$I$1391))) -> 0 | N36: =SUM(IF(($B36*100+YEAR($B$8)+MONTH(N$8)+MONTH(N$8))/(YEAR($B$8))=Saisie!$L$12:$L$1391,(Saisie!$J$12:$J$1391-Saisie!$I$12:$I$1391))) -> 0 | O36: =SUM(IF(($B36*100+YEAR($B$8)+MONTH(O$8)+MONTH(O$8))/(YEAR($B$8))=Saisie!$L$12:$L$1391,(Saisie!$J$12:$J$1391-Saisie!$I$12:$I$1391))) -> 0 | P36: =SUM(IF(($B36*100+YEAR($B$8)+MONTH(P$8)+MONTH(P$8))/(YEAR($B$8))=Saisie!$L$12:$L$1391,(Saisie!$J$12:$J$1391-Saisie!$I$12:$I$1391))) -> 0 | R36: -257.13 | T36: 0.0244079091 | U36: =IF(R36=0,"",AVERAGE(IF(E36:P36<>0,E36:P36))) -> -128.565 | V36: 27- | AI36: 27- | AJ36: =SUM(IF('Liste choisir'!$F$9*$B36*100+(AJ$8)=Saisie!$F$12:$F$1395,(Saisie!$G$12:$G$1395))) -> 0 | AK36: =SUM(IF('Liste choisir'!$F$9*$B36*100+(AK$8)=Saisie!$F$12:$F$1395,(Saisie!$G$12:$G$1395))) -> 0 | AL36: =SUM(IF('Liste choisir'!$F$9*$B36*100+(AL$8)=Saisie!$F$12:$F$1395,(Saisie!$G$12:$G$1395))) -> 0 | AM36: =SUM(IF('Liste choisir'!$F$9*$B36*100+(AM$8)=Saisie!$F$12:$F$1395,(Saisie!$G$12:$G$1395))) -> 0 | AN36: =SUM(IF('Liste choisir'!$F$9*$B36*100+(AN$8)=Saisie!$F$12:$F$1395,(Saisie!$G$12:$G$1395))) -> 0 | AO36: =SUM(IF('Liste choisir'!$F$9*$B36*100+(AO$8)=Saisie!$F$12:$F$1395,(Saisie!$G$12:$G$1395))) -> 0 | AP36: =SUM(IF('Liste choisir'!$F$9*$B36*100+(AP$8)=Saisie!$F$12:$F$1395,(Saisie!$G$12:$G$1395))) -> 0 | AQ36: =SUM(IF('Liste choisir'!$F$9*$B36*100+(AQ$8)=Saisie!$F$12:$F$1395,(Saisie!$G$12:$G$1395))) -> 0 | AR36: =SUM(IF('Liste choisir'!$F$9*$B36*100+(AR$8)=Saisie!$F$12:$F$1395,(Saisie!$G$12:$G$1395))) -> 0 | AS36: =SUM(IF('Liste choisir'!$F$9*$B36*100+(AS$8)=Saisie!$F$12:$F$1395,(Saisie!$G$12:$G$1395))) -> 0 | AT36: =SUM(IF('Liste choisir'!$F$9*$B36*100+(AT$8)=Saisie!$F$12:$F$1395,(Saisie!$G$12:$G$1395))) -> 0 | AU36: =SUM(IF('Liste choisir'!$F$9*$B36*100+(AU$8)=Saisie!$F$12:$F$1395,(Saisie!$G$12:$G$1395))) -> 0 | AV36: 0
B37: ='Liste choisir'!A29 -> 28 | C37: ='Liste choisir'!B29 -> 28-Impôts foncier | E37: =SUM(IF(($B37*100+YEAR($B$8)+MONTH(E$8)+MONTH(E$8))/(YEAR($B$8))=Saisie!$L$12:$L$1391,(Saisie!$J$12:$J$1391-Saisie!$I$12:$I$1391))) -> 0 | F37: =SUM(IF(($B37*100+YEAR($B$8)+MONTH(F$8)+MONTH(F$8))/(YEAR($B$8))=Saisie!$L$12:$L$1391,(Saisie!$J$12:$J$1391-Saisie!$I$12:$I$1391))) -> 0 | G37: =SUM(IF(($B37*100+YEAR($B$8)+MONTH(G$8)+MONTH(G$8))/(YEAR($B$8))=Saisie!$L$12:$L$1391,(Saisie!$J$12:$J$1391-Saisie!$I$12:$I$1391))) -> -10 | H37: =SUM(IF(($B37*100+YEAR($B$8)+MONTH(H$8)+MONTH(H$8))/(YEAR($B$8))=Saisie!$L$12:$L$1391,(Saisie!$J$12:$J$1391-Saisie!$I$12:$I$1391))) -> -10 | I37: =SUM(IF(($B37*100+YEAR($B$8)+MONTH(I$8)+MONTH(I$8))/(YEAR($B$8))=Saisie!$L$12:$L$1391,(Saisie!$J$12:$J$1391-Saisie!$I$12:$I$1391))) -> -10 | J37: =SUM(IF(($B37*100+YEAR($B$8)+MONTH(J$8)+MONTH(J$8))/(YEAR($B$8))=Saisie!$L$12:$L$1391,(Saisie!$J$12:$J$1391-Saisie!$I$12:$I$1391))) -> 0 | K37: =SUM(IF(($B37*100+YEAR($B$8)+MONTH(K$8)+MONTH(K$8))/(YEAR($B$8))=Saisie!$L$12:$L$1391,(Saisie!$J$12:$J$1391-Saisie!$I$12:$I$1391))) -> 0 | L37: =SUM(IF(($B37*100+YEAR($B$8)+MONTH(L$8)+MONTH(L$8))/(YEAR($B$8))=Saisie!$L$12:$L$1391,(Saisie!$J$12:$J$1391-Saisie!$I$12:$I$1391))) -> 0 | M37: =SUM(IF(($B37*100+YEAR($B$8)+MONTH(M$8)+MONTH(M$8))/(YEAR($B$8))=Saisie!$L$12:$L$1391,(Saisie!$J$12:$J$1391-Saisie!$I$12:$I$1391))) -> 0 | N37: =SUM(IF(($B37*100+YEAR($B$8)+MONTH(N$8)+MONTH(N$8))/(YEAR($B$8))=Saisie!$L$12:$L$1391,(Saisie!$J$12:$J$1391-Saisie!$I$12:$I$1391))) -> 0 | O37: =SUM(IF(($B37*100+YEAR($B$8)+MONTH(O$8)+MONTH(O$8))/(YEAR($B$8))=Saisie!$L$12:$L$1391,(Saisie!$J$12:$J$1391-Saisie!$I$12:$I$1391))) -> 0 | P37: =SUM(IF(($B37*100+YEAR($B$8)+MONTH(P$8)+MONTH(P$8))/(YEAR($B$8))=Saisie!$L$12:$L$1391,(Saisie!$J$12:$J$1391-Saisie!$I$12:$I$1391))) -> 0 | R37: -30 | T37: 0.002847731782 | U37: =IF(R37=0,"",AVERAGE(IF(E37:P37<>0,E37:P37))) -> -10 | V37: 28-Impôts foncier | AI37: =C37 -> 28-Impôts foncier | AJ37: =SUM(IF('Liste choisir'!$F$9*$B37*100+(AJ$8)=Saisie!$F$12:$F$1395,(Saisie!$G$12:$G$1395))) -> 0 | AK37: =SUM(IF('Liste choisir'!$F$9*$B37*100+(AK$8)=Saisie!$F$12:$F$1395,(Saisie!$G$12:$G$1395))) -> 0 | AL37: =SUM(IF('Liste choisir'!$F$9*$B37*100+(AL$8)=Saisie!$F$12:$F$1395,(Saisie!$G$12:$G$1395))) -> 0 | AM37: =SUM(IF('Liste choisir'!$F$9*$B37*100+(AM$8)=Saisie!$F$12:$F$1395,(Saisie!$G$12:$G$1395))) -> 0 | AN37: =SUM(IF('Liste choisir'!$F$9*$B37*100+(AN$8)=Saisie!$F$12:$F$1395,(Saisie!$G$12:$G$1395))) -> 0 | AO37: =SUM(IF('Liste choisir'!$F$9*$B37*100+(AO$8)=Saisie!$F$12:$F$1395,(Saisie!$G$12:$G$1395))) -> 0 | AP37: =SUM(IF('Liste choisir'!$F$9*$B37*100+(AP$8)=Saisie!$F$12:$F$1395,(Saisie!$G$12:$G$1395))) -> 0 | AQ37: =SUM(IF('Liste choisir'!$F$9*$B37*100+(AQ$8)=Saisie!$F$12:$F$1395,(Saisie!$G$12:$G$1395))) -> 0 | AR37: =SUM(IF('Liste choisir'!$F$9*$B37*100+(AR$8)=Saisie!$F$12:$F$1395,(Saisie!$G$12:$G$1395))) -> 0 | AS37: =SUM(IF('Liste choisir'!$F$9*$B37*100+(AS$8)=Saisie!$F$12:$F$1395,(Saisie!$G$12:$G$1395))) -> 0 | AT37: =SUM(IF('Liste choisir'!$F$9*$B37*100+(AT$8)=Saisie!$F$12:$F$1395,(Saisie!$G$12:$G$1395))) -> 0 | AU37: =SUM(IF('Liste choisir'!$F$9*$B37*100+(AU$8)=Saisie!$F$12:$F$1395,(Saisie!$G$12:$G$1395))) -> 0 | AV37: =SUM(AJ37:AU37) -> 0
B38: ='Liste choisir'!A30 -> 29 | C38: ='Liste choisir'!B30 -> 29- | E38: =SUM(IF(($B38*100+YEAR($B$8)+MONTH(E$8)+MONTH(E$8))/(YEAR($B$8))=Saisie!$L$12:$L$1391,(Saisie!$J$12:$J$1391-Saisie!$I$12:$I$1391))) -> 0 | F38: =SUM(IF(($B38*100+YEAR($B$8)+MONTH(F$8)+MONTH(F$8))/(YEAR($B$8))=Saisie!$L$12:$L$1391,(Saisie!$J$12:$J$1391-Saisie!$I$12:$I$1391))) -> 0 | G38: =SUM(IF(($B38*100+YEAR($B$8)+MONTH(G$8)+MONTH(G$8))/(YEAR($B$8))=Saisie!$L$12:$L$1391,(Saisie!$J$12:$J$1391-Saisie!$I$12:$I$1391))) -> -100 | H38: =SUM(IF(($B38*100+YEAR($B$8)+MONTH(H$8)+MONTH(H$8))/(YEAR($B$8))=Saisie!$L$12:$L$1391,(Saisie!$J$12:$J$1391-Saisie!$I$12:$I$1391))) -> -100 | I38: =SUM(IF(($B38*100+YEAR($B$8)+MONTH(I$8)+MONTH(I$8))/(YEAR($B$8))=Saisie!$L$12:$L$1391,(Saisie!$J$12:$J$1391-Saisie!$I$12:$I$1391))) -> -100 | J38: =SUM(IF(($B38*100+YEAR($B$8)+MONTH(J$8)+MONTH(J$8))/(YEAR($B$8))=Saisie!$L$12:$L$1391,(Saisie!$J$12:$J$1391-Saisie!$I$12:$I$1391))) -> 0 | K38: =SUM(IF(($B38*100+YEAR($B$8)+MONTH(K$8)+MONTH(K$8))/(YEAR($B$8))=Saisie!$L$12:$L$1391,(Saisie!$J$12:$J$1391-Saisie!$I$12:$I$1391))) -> 0 | L38: =SUM(IF(($B38*100+YEAR($B$8)+MONTH(L$8)+MONTH(L$8))/(YEAR($B$8))=Saisie!$L$12:$L$1391,(Saisie!$J$12:$J$1391-Saisie!$I$12:$I$1391))) -> 0 | M38: =SUM(IF(($B38*100+YEAR($B$8)+MONTH(M$8)+MONTH(M$8))/(YEAR($B$8))=Saisie!$L$12:$L$1391,(Saisie!$J$12:$J$1391-Saisie!$I$12:$I$1391))) -> 0 | N38: =SUM(IF(($B38*100+YEAR($B$8)+MONTH(N$8)+MONTH(N$8))/(YEAR($B$8))=Saisie!$L$12:$L$1391,(Saisie!$J$12:$J$1391-Saisie!$I$12:$I$1391))) -> 0 | O38: =SUM(IF(($B38*100+YEAR($B$8)+MONTH(O$8)+MONTH(O$8))/(YEAR($B$8))=Saisie!$L$12:$L$1391,(Saisie!$J$12:$J$1391-Saisie!$I$12:$I$1391))) -> 0 | P38: =SUM(IF(($B38*100+YEAR($B$8)+MONTH(P$8)+MONTH(P$8))/(YEAR($B$8))=Saisie!$L$12:$L$1391,(Saisie!$J$12:$J$1391-Saisie!$I$12:$I$1391))) -> 0 | R38: -300 | T38: 0.02847731782 | U38: =IF(R38=0,"",AVERAGE(IF(E38:P38<>0,E38:P38))) -> -100 | V38: 29- | AI38: 29- | AJ38: =SUM(IF('Liste choisir'!$F$9*$B38*100+(AJ$8)=Saisie!$F$12:$F$1395,(Saisie!$G$12:$G$1395))) -> 0 | AK38: =SUM(IF('Liste choisir'!$F$9*$B38*100+(AK$8)=Saisie!$F$12:$F$1395,(Saisie!$G$12:$G$1395))) -> 0 | AL38: =SUM(IF('Liste choisir'!$F$9*$B38*100+(AL$8)=Saisie!$F$12:$F$1395,(Saisie!$G$12:$G$1395))) -> 0 | AM38: =SUM(IF('Liste choisir'!$F$9*$B38*100+(AM$8)=Saisie!$F$12:$F$1395,(Saisie!$G$12:$G$1395))) -> 0 | AN38: =SUM(IF('Liste choisir'!$F$9*$B38*100+(AN$8)=Saisie!$F$12:$F$1395,(Saisie!$G$12:$G$1395))) -> 0 | AO38: =SUM(IF('Liste choisir'!$F$9*$B38*100+(AO$8)=Saisie!$F$12:$F$1395,(Saisie!$G$12:$G$1395))) -> 0 | AP38: =SUM(IF('Liste choisir'!$F$9*$B38*100+(AP$8)=Saisie!$F$12:$F$1395,(Saisie!$G$12:$G$1395))) -> 0 | AQ38: =SUM(IF('Liste choisir'!$F$9*$B38*100+(AQ$8)=Saisie!$F$12:$F$1395,(Saisie!$G$12:$G$1395))) -> 0 | AR38: =SUM(IF('Liste choisir'!$F$9*$B38*100+(AR$8)=Saisie!$F$12:$F$1395,(Saisie!$G$12:$G$1395))) -> 0 | AS38: =SUM(IF('Liste choisir'!$F$9*$B38*100+(AS$8)=Saisie!$F$12:$F$1395,(Saisie!$G$12:$G$1395))) -> 0 | AT38: =SUM(IF('Liste choisir'!$F$9*$B38*100+(AT$8)=Saisie!$F$12:$F$1395,(Saisie!$G$12:$G$1395))) -> 0 | AU38: =SUM(IF('Liste choisir'!$F$9*$B38*100+(AU$8)=Saisie!$F$12:$F$1395,(Saisie!$G$12:$G$1395))) -> 0 | AV38: =SUM(AJ38:AU38) -> 0
B39: ='Liste choisir'!A31 -> 30 | C39: ='Liste choisir'!B31 -> 30- | E39: =SUM(IF(($B39*100+YEAR($B$8)+MONTH(E$8)+MONTH(E$8))/(YEAR($B$8))=Saisie!$L$12:$L$1391,(Saisie!$J$12:$J$1391-Saisie!$I$12:$I$1391))) -> 0 | F39: =SUM(IF(($B39*100+YEAR($B$8)+MONTH(F$8)+MONTH(F$8))/(YEAR($B$8))=Saisie!$L$12:$L$1391,(Saisie!$J$12:$J$1391-Saisie!$I$12:$I$1391))) -> 0 | G39: =SUM(IF(($B39*100+YEAR($B$8)+MONTH(G$8)+MONTH(G$8))/(YEAR($B$8))=Saisie!$L$12:$L$1391,(Saisie!$J$12:$J$1391-Saisie!$I$12:$I$1391))) -> 0 | H39: =SUM(IF(($B39*100+YEAR($B$8)+MONTH(H$8)+MONTH(H$8))/(YEAR($B$8))=Saisie!$L$12:$L$1391,(Saisie!$J$12:$J$1391-Saisie!$I$12:$I$1391))) -> 0 | I39: =SUM(IF(($B39*100+YEAR($B$8)+MONTH(I$8)+MONTH(I$8))/(YEAR($B$8))=Saisie!$L$12:$L$1391,(Saisie!$J$12:$J$1391-Saisie!$I$12:$I$1391))) -> 0 | J39: =SUM(IF(($B39*100+YEAR($B$8)+MONTH(J$8)+MONTH(J$8))/(YEAR($B$8))=Saisie!$L$12:$L$1391,(Saisie!$J$12:$J$1391-Saisie!$I$12:$I$1391))) -> 0 | K39: =SUM(IF(($B39*100+YEAR($B$8)+MONTH(K$8)+MONTH(K$8))/(YEAR($B$8))=Saisie!$L$12:$L$1391,(Saisie!$J$12:$J$1391-Saisie!$I$12:$I$1391))) -> 0 | L39: =SUM(IF(($B39*100+YEAR($B$8)+MONTH(L$8)+MONTH(L$8))/(YEAR($B$8))=Saisie!$L$12:$L$1391,(Saisie!$J$12:$J$1391-Saisie!$I$12:$I$1391))) -> 0 | M39: =SUM(IF(($B39*100+YEAR($B$8)+MONTH(M$8)+MONTH(M$8))/(YEAR($B$8))=Saisie!$L$12:$L$1391,(Saisie!$J$12:$J$1391-Saisie!$I$12:$I$1391))) -> 0 | N39: =SUM(IF(($B39*100+YEAR($B$8)+MONTH(N$8)+MONTH(N$8))/(YEAR($B$8))=Saisie!$L$12:$L$1391,(Saisie!$J$12:$J$1391-Saisie!$I$12:$I$1391))) -> 0 | O39: =SUM(IF(($B39*100+YEAR($B$8)+MONTH(O$8)+MONTH(O$8))/(YEAR($B$8))=Saisie!$L$12:$L$1391,(Saisie!$J$12:$J$1391-Saisie!$I$12:$I$1391))) -> 0 | P39: =SUM(IF(($B39*100+YEAR($B$8)+MONTH(P$8)+MONTH(P$8))/(YEAR($B$8))=Saisie!$L$12:$L$1391,(Saisie!$J$12:$J$1391-Saisie!$I$12:$I$1391))) -> 0 | R39: =SUM(E39:P39) -> 0 | T39: =(R39-R39-R39)/($R$10+$R$11)*100% -> 0 | U39: =IF(R39=0,"",AVERAGE(IF(E39:P39<>0,E39:P39))) ->  | V39: =C39 -> 30- | AI39: 30- | AJ39: =SUM(IF('Liste choisir'!$F$9*$B39*100+(AJ$8)=Saisie!$F$12:$F$1395,(Saisie!$G$12:$G$1395))) -> 0 | AK39: =SUM(IF('Liste choisir'!$F$9*$B39*100+(AK$8)=Saisie!$F$12:$F$1395,(Saisie!$G$12:$G$1395))) -> 0 | AL39: =SUM(IF('Liste choisir'!$F$9*$B39*100+(AL$8)=Saisie!$F$12:$F$1395,(Saisie!$G$12:$G$1395))) -> 0 | AM39: =SUM(IF('Liste choisir'!$F$9*$B39*100+(AM$8)=Saisie!$F$12:$F$1395,(Saisie!$G$12:$G$1395))) -> 0 | AN39: =SUM(IF('Liste choisir'!$F$9*$B39*100+(AN$8)=Saisie!$F$12:$F$1395,(Saisie!$G$12:$G$1395))) -> 0 | AO39: =SUM(IF('Liste choisir'!$F$9*$B39*100+(AO$8)=Saisie!$F$12:$F$1395,(Saisie!$G$12:$G$1395))) -> 0 | AP39: =SUM(IF('Liste choisir'!$F$9*$B39*100+(AP$8)=Saisie!$F$12:$F$1395,(Saisie!$G$12:$G$1395))) -> 0 | AQ39: =SUM(IF('Liste choisir'!$F$9*$B39*100+(AQ$8)=Saisie!$F$12:$F$1395,(Saisie!$G$12:$G$1395))) -> 0 | AR39: =SUM(IF('Liste choisir'!$F$9*$B39*100+(AR$8)=Saisie!$F$12:$F$1395,(Saisie!$G$12:$G$1395))) -> 0 | AS39: =SUM(IF('Liste choisir'!$F$9*$B39*100+(AS$8)=Saisie!$F$12:$F$1395,(Saisie!$G$12:$G$1395))) -> 0 | AT39: =SUM(IF('Liste choisir'!$F$9*$B39*100+(AT$8)=Saisie!$F$12:$F$1395,(Saisie!$G$12:$G$1395))) -> 0 | AU39: =SUM(IF('Liste choisir'!$F$9*$B39*100+(AU$8)=Saisie!$F$12:$F$1395,(Saisie!$G$12:$G$1395))) -> 0 | AV39: =SUM(AJ39:AU39) -> 0
B40: ='Liste choisir'!A32 -> 31 | C40: ='Liste choisir'!B32 -> 31-Vacances | E40: =SUM(IF(($B40*100+YEAR($B$8)+MONTH(E$8)+MONTH(E$8))/(YEAR($B$8))=Saisie!$L$12:$L$1391,(Saisie!$J$12:$J$1391-Saisie!$I$12:$I$1391))) -> -150 | F40: =SUM(IF(($B40*100+YEAR($B$8)+MONTH(F$8)+MONTH(F$8))/(YEAR($B$8))=Saisie!$L$12:$L$1391,(Saisie!$J$12:$J$1391-Saisie!$I$12:$I$1391))) -> -100 | G40: =SUM(IF(($B40*100+YEAR($B$8)+MONTH(G$8)+MONTH(G$8))/(YEAR($B$8))=Saisie!$L$12:$L$1391,(Saisie!$J$12:$J$1391-Saisie!$I$12:$I$1391))) -> -150 | H40: =SUM(IF(($B40*100+YEAR($B$8)+MONTH(H$8)+MONTH(H$8))/(YEAR($B$8))=Saisie!$L$12:$L$1391,(Saisie!$J$12:$J$1391-Saisie!$I$12:$I$1391))) -> -100 | I40: =SUM(IF(($B40*100+YEAR($B$8)+MONTH(I$8)+MONTH(I$8))/(YEAR($B$8))=Saisie!$L$12:$L$1391,(Saisie!$J$12:$J$1391-Saisie!$I$12:$I$1391))) -> 0 | J40: =SUM(IF(($B40*100+YEAR($B$8)+MONTH(J$8)+MONTH(J$8))/(YEAR($B$8))=Saisie!$L$12:$L$1391,(Saisie!$J$12:$J$1391-Saisie!$I$12:$I$1391))) -> 0 | K40: =SUM(IF(($B40*100+YEAR($B$8)+MONTH(K$8)+MONTH(K$8))/(YEAR($B$8))=Saisie!$L$12:$L$1391,(Saisie!$J$12:$J$1391-Saisie!$I$12:$I$1391))) -> 0 | L40: =SUM(IF(($B40*100+YEAR($B$8)+MONTH(L$8)+MONTH(L$8))/(YEAR($B$8))=Saisie!$L$12:$L$1391,(Saisie!$J$12:$J$1391-Saisie!$I$12:$I$1391))) -> 0 | M40: =SUM(IF(($B40*100+YEAR($B$8)+MONTH(M$8)+MONTH(M$8))/(YEAR($B$8))=Saisie!$L$12:$L$1391,(Saisie!$J$12:$J$1391-Saisie!$I$12:$I$1391))) -> 0 | N40: =SUM(IF(($B40*100+YEAR($B$8)+MONTH(N$8)+MONTH(N$8))/(YEAR($B$8))=Saisie!$L$12:$L$1391,(Saisie!$J$12:$J$1391-Saisie!$I$12:$I$1391))) -> 0 | O40: =SUM(IF(($B40*100+YEAR($B$8)+MONTH(O$8)+MONTH(O$8))/(YEAR($B$8))=Saisie!$L$12:$L$1391,(Saisie!$J$12:$J$1391-Saisie!$I$12:$I$1391))) -> 0 | P40: =SUM(IF(($B40*100+YEAR($B$8)+MONTH(P$8)+MONTH(P$8))/(YEAR($B$8))=Saisie!$L$12:$L$1391,(Saisie!$J$12:$J$1391-Saisie!$I$12:$I$1391))) -> 0 | R40: -500 | T40: 0.04746219636 | U40: =IF(R40=0,"",AVERAGE(IF(E40:P40<>0,E40:P40))) -> -125 | V40: 31-Vacances | AI40: 31-Vacances | AJ40: =SUM(IF('Liste choisir'!$F$9*$B40*100+(AJ$8)=Saisie!$F$12:$F$1395,(Saisie!$G$12:$G$1395))) -> 0 | AK40: =SUM(IF('Liste choisir'!$F$9*$B40*100+(AK$8)=Saisie!$F$12:$F$1395,(Saisie!$G$12:$G$1395))) -> 0 | AL40: =SUM(IF('Liste choisir'!$F$9*$B40*100+(AL$8)=Saisie!$F$12:$F$1395,(Saisie!$G$12:$G$1395))) -> 0 | AM40: =SUM(IF('Liste choisir'!$F$9*$B40*100+(AM$8)=Saisie!$F$12:$F$1395,(Saisie!$G$12:$G$1395))) -> 0 | AN40: =SUM(IF('Liste choisir'!$F$9*$B40*100+(AN$8)=Saisie!$F$12:$F$1395,(Saisie!$G$12:$G$1395))) -> 0 | AO40: =SUM(IF('Liste choisir'!$F$9*$B40*100+(AO$8)=Saisie!$F$12:$F$1395,(Saisie!$G$12:$G$1395))) -> 0 | AP40: =SUM(IF('Liste choisir'!$F$9*$B40*100+(AP$8)=Saisie!$F$12:$F$1395,(Saisie!$G$12:$G$1395))) -> 0 | AQ40: =SUM(IF('Liste choisir'!$F$9*$B40*100+(AQ$8)=Saisie!$F$12:$F$1395,(Saisie!$G$12:$G$1395))) -> 0 | AR40: =SUM(IF('Liste choisir'!$F$9*$B40*100+(AR$8)=Saisie!$F$12:$F$1395,(Saisie!$G$12:$G$1395))) -> 0 | AS40: =SUM(IF('Liste choisir'!$F$9*$B40*100+(AS$8)=Saisie!$F$12:$F$1395,(Saisie!$G$12:$G$1395))) -> 0 | AT40: =SUM(IF('Liste choisir'!$F$9*$B40*100+(AT$8)=Saisie!$F$12:$F$1395,(Saisie!$G$12:$G$1395))) -> 0 | AU40: =SUM(IF('Liste choisir'!$F$9*$B40*100+(AU$8)=Saisie!$F$12:$F$1395,(Saisie!$G$12:$G$1395))) -> 0 | AV40: 0
B41: ='Liste choisir'!A33 -> 32 | C41: ='Liste choisir'!B33 -> 32- | E41: =SUM(IF(($B41*100+YEAR($B$8)+MONTH(E$8)+MONTH(E$8))/(YEAR($B$8))=Saisie!$L$12:$L$1391,(Saisie!$J$12:$J$1391-Saisie!$I$12:$I$1391))) -> 0 | F41: =SUM(IF(($B41*100+YEAR($B$8)+MONTH(F$8)+MONTH(F$8))/(YEAR($B$8))=Saisie!$L$12:$L$1391,(Saisie!$J$12:$J$1391-Saisie!$I$12:$I$1391))) -> 0 | G41: =SUM(IF(($B41*100+YEAR($B$8)+MONTH(G$8)+MONTH(G$8))/(YEAR($B$8))=Saisie!$L$12:$L$1391,(Saisie!$J$12:$J$1391-Saisie!$I$12:$I$1391))) -> 0 | H41: =SUM(IF(($B41*100+YEAR($B$8)+MONTH(H$8)+MONTH(H$8))/(YEAR($B$8))=Saisie!$L$12:$L$1391,(Saisie!$J$12:$J$1391-Saisie!$I$12:$I$1391))) -> -50 | I41: =SUM(IF(($B41*100+YEAR($B$8)+MONTH(I$8)+MONTH(I$8))/(YEAR($B$8))=Saisie!$L$12:$L$1391,(Saisie!$J$12:$J$1391-Saisie!$I$12:$I$1391))) -> 0 | J41: =SUM(IF(($B41*100+YEAR($B$8)+MONTH(J$8)+MONTH(J$8))/(YEAR($B$8))=Saisie!$L$12:$L$1391,(Saisie!$J$12:$J$1391-Saisie!$I$12:$I$1391))) -> 0 | K41: =SUM(IF(($B41*100+YEAR($B$8)+MONTH(K$8)+MONTH(K$8))/(YEAR($B$8))=Saisie!$L$12:$L$1391,(Saisie!$J$12:$J$1391-Saisie!$I$12:$I$1391))) -> 0 | L41: =SUM(IF(($B41*100+YEAR($B$8)+MONTH(L$8)+MONTH(L$8))/(YEAR($B$8))=Saisie!$L$12:$L$1391,(Saisie!$J$12:$J$1391-Saisie!$I$12:$I$1391))) -> 0 | M41: =SUM(IF(($B41*100+YEAR($B$8)+MONTH(M$8)+MONTH(M$8))/(YEAR($B$8))=Saisie!$L$12:$L$1391,(Saisie!$J$12:$J$1391-Saisie!$I$12:$I$1391))) -> 0 | N41: =SUM(IF(($B41*100+YEAR($B$8)+MONTH(N$8)+MONTH(N$8))/(YEAR($B$8))=Saisie!$L$12:$L$1391,(Saisie!$J$12:$J$1391-Saisie!$I$12:$I$1391))) -> 0 | O41: =SUM(IF(($B41*100+YEAR($B$8)+MONTH(O$8)+MONTH(O$8))/(YEAR($B$8))=Saisie!$L$12:$L$1391,(Saisie!$J$12:$J$1391-Saisie!$I$12:$I$1391))) -> 0 | P41: =SUM(IF(($B41*100+YEAR($B$8)+MONTH(P$8)+MONTH(P$8))/(YEAR($B$8))=Saisie!$L$12:$L$1391,(Saisie!$J$12:$J$1391-Saisie!$I$12:$I$1391))) -> 0 | R41: -50 | T41: 0.004746219636 | U41: =IF(R41=0,"",AVERAGE(IF(E41:P41<>0,E41:P41))) -> -50 | V41: 32- | AI41: 32- | AJ41: =SUM(IF('Liste choisir'!$F$9*$B41*100+(AJ$8)=Saisie!$F$12:$F$1395,(Saisie!$G$12:$G$1395))) -> 0 | AK41: =SUM(IF('Liste choisir'!$F$9*$B41*100+(AK$8)=Saisie!$F$12:$F$1395,(Saisie!$G$12:$G$1395))) -> 0 | AL41: =SUM(IF('Liste choisir'!$F$9*$B41*100+(AL$8)=Saisie!$F$12:$F$1395,(Saisie!$G$12:$G$1395))) -> 0 | AM41: =SUM(IF('Liste choisir'!$F$9*$B41*100+(AM$8)=Saisie!$F$12:$F$1395,(Saisie!$G$12:$G$1395))) -> 0 | AN41: =SUM(IF('Liste choisir'!$F$9*$B41*100+(AN$8)=Saisie!$F$12:$F$1395,(Saisie!$G$12:$G$1395))) -> 0 | AO41: =SUM(IF('Liste choisir'!$F$9*$B41*100+(AO$8)=Saisie!$F$12:$F$1395,(Saisie!$G$12:$G$1395))) -> 0 | AP41: =SUM(IF('Liste choisir'!$F$9*$B41*100+(AP$8)=Saisie!$F$12:$F$1395,(Saisie!$G$12:$G$1395))) -> 0 | AQ41: =SUM(IF('Liste choisir'!$F$9*$B41*100+(AQ$8)=Saisie!$F$12:$F$1395,(Saisie!$G$12:$G$1395))) -> 0 | AR41: =SUM(IF('Liste choisir'!$F$9*$B41*100+(AR$8)=Saisie!$F$12:$F$1395,(Saisie!$G$12:$G$1395))) -> 0 | AS41: =SUM(IF('Liste choisir'!$F$9*$B41*100+(AS$8)=Saisie!$F$12:$F$1395,(Saisie!$G$12:$G$1395))) -> 0 | AT41: =SUM(IF('Liste choisir'!$F$9*$B41*100+(AT$8)=Saisie!$F$12:$F$1395,(Saisie!$G$12:$G$1395))) -> 0 | AU41: =SUM(IF('Liste choisir'!$F$9*$B41*100+(AU$8)=Saisie!$F$12:$F$1395,(Saisie!$G$12:$G$1395))) -> 0 | AV41: 0
B42: ='Liste choisir'!A34 -> 33 | C42: ='Liste choisir'!B34 -> 33-Vêtements - linge | E42: =SUM(IF(($B42*100+YEAR($B$8)+MONTH(E$8)+MONTH(E$8))/(YEAR($B$8))=Saisie!$L$12:$L$1391,(Saisie!$J$12:$J$1391-Saisie!$I$12:$I$1391))) -> -29.2 | F42: =SUM(IF(($B42*100+YEAR($B$8)+MONTH(F$8)+MONTH(F$8))/(YEAR($B$8))=Saisie!$L$12:$L$1391,(Saisie!$J$12:$J$1391-Saisie!$I$12:$I$1391))) -> 0 | G42: =SUM(IF(($B42*100+YEAR($B$8)+MONTH(G$8)+MONTH(G$8))/(YEAR($B$8))=Saisie!$L$12:$L$1391,(Saisie!$J$12:$J$1391-Saisie!$I$12:$I$1391))) -> -156.68 | H42: =SUM(IF(($B42*100+YEAR($B$8)+MONTH(H$8)+MONTH(H$8))/(YEAR($B$8))=Saisie!$L$12:$L$1391,(Saisie!$J$12:$J$1391-Saisie!$I$12:$I$1391))) -> -27.46 | I42: =SUM(IF(($B42*100+YEAR($B$8)+MONTH(I$8)+MONTH(I$8))/(YEAR($B$8))=Saisie!$L$12:$L$1391,(Saisie!$J$12:$J$1391-Saisie!$I$12:$I$1391))) -> 0 | J42: =SUM(IF(($B42*100+YEAR($B$8)+MONTH(J$8)+MONTH(J$8))/(YEAR($B$8))=Saisie!$L$12:$L$1391,(Saisie!$J$12:$J$1391-Saisie!$I$12:$I$1391))) -> 0 | K42: =SUM(IF(($B42*100+YEAR($B$8)+MONTH(K$8)+MONTH(K$8))/(YEAR($B$8))=Saisie!$L$12:$L$1391,(Saisie!$J$12:$J$1391-Saisie!$I$12:$I$1391))) -> 0 | L42: =SUM(IF(($B42*100+YEAR($B$8)+MONTH(L$8)+MONTH(L$8))/(YEAR($B$8))=Saisie!$L$12:$L$1391,(Saisie!$J$12:$J$1391-Saisie!$I$12:$I$1391))) -> 0 | M42: =SUM(IF(($B42*100+YEAR($B$8)+MONTH(M$8)+MONTH(M$8))/(YEAR($B$8))=Saisie!$L$12:$L$1391,(Saisie!$J$12:$J$1391-Saisie!$I$12:$I$1391))) -> 0 | N42: =SUM(IF(($B42*100+YEAR($B$8)+MONTH(N$8)+MONTH(N$8))/(YEAR($B$8))=Saisie!$L$12:$L$1391,(Saisie!$J$12:$J$1391-Saisie!$I$12:$I$1391))) -> 0 | O42: =SUM(IF(($B42*100+YEAR($B$8)+MONTH(O$8)+MONTH(O$8))/(YEAR($B$8))=Saisie!$L$12:$L$1391,(Saisie!$J$12:$J$1391-Saisie!$I$12:$I$1391))) -> 0 | P42: =SUM(IF(($B42*100+YEAR($B$8)+MONTH(P$8)+MONTH(P$8))/(YEAR($B$8))=Saisie!$L$12:$L$1391,(Saisie!$J$12:$J$1391-Saisie!$I$12:$I$1391))) -> 0 | R42: -213.34 | T42: 0.02025116994 | U42: =IF(R42=0,"",AVERAGE(IF(E42:P42<>0,E42:P42))) -> -71.11333333 | V42: 33-Vêtements - linge | AI42: 33-Vêtements - linge | AJ42: =SUM(IF('Liste choisir'!$F$9*$B42*100+(AJ$8)=Saisie!$F$12:$F$1395,(Saisie!$G$12:$G$1395))) -> 0 | AK42: =SUM(IF('Liste choisir'!$F$9*$B42*100+(AK$8)=Saisie!$F$12:$F$1395,(Saisie!$G$12:$G$1395))) -> 0 | AL42: =SUM(IF('Liste choisir'!$F$9*$B42*100+(AL$8)=Saisie!$F$12:$F$1395,(Saisie!$G$12:$G$1395))) -> 0 | AM42: =SUM(IF('Liste choisir'!$F$9*$B42*100+(AM$8)=Saisie!$F$12:$F$1395,(Saisie!$G$12:$G$1395))) -> 0 | AN42: =SUM(IF('Liste choisir'!$F$9*$B42*100+(AN$8)=Saisie!$F$12:$F$1395,(Saisie!$G$12:$G$1395))) -> 0 | AO42: =SUM(IF('Liste choisir'!$F$9*$B42*100+(AO$8)=Saisie!$F$12:$F$1395,(Saisie!$G$12:$G$1395))) -> 0 | AP42: =SUM(IF('Liste choisir'!$F$9*$B42*100+(AP$8)=Saisie!$F$12:$F$1395,(Saisie!$G$12:$G$1395))) -> 0 | AQ42: =SUM(IF('Liste choisir'!$F$9*$B42*100+(AQ$8)=Saisie!$F$12:$F$1395,(Saisie!$G$12:$G$1395))) -> 0 | AR42: =SUM(IF('Liste choisir'!$F$9*$B42*100+(AR$8)=Saisie!$F$12:$F$1395,(Saisie!$G$12:$G$1395))) -> 0 | AS42: =SUM(IF('Liste choisir'!$F$9*$B42*100+(AS$8)=Saisie!$F$12:$F$1395,(Saisie!$G$12:$G$1395))) -> 0 | AT42: =SUM(IF('Liste choisir'!$F$9*$B42*100+(AT$8)=Saisie!$F$12:$F$1395,(Saisie!$G$12:$G$1395))) -> 0 | AU42: =SUM(IF('Liste choisir'!$F$9*$B42*100+(AU$8)=Saisie!$F$12:$F$1395,(Saisie!$G$12:$G$1395))) -> 0 | AV42: 0
B43: ='Liste choisir'!A35 -> 34 | C43: ='Liste choisir'!B35 -> 34-Ameublement | E43: =SUM(IF(($B43*100+YEAR($B$8)+MONTH(E$8)+MONTH(E$8))/(YEAR($B$8))=Saisie!$L$12:$L$1391,(Saisie!$J$12:$J$1391-Saisie!$I$12:$I$1391))) -> -677.97 | F43: =SUM(IF(($B43*100+YEAR($B$8)+MONTH(F$8)+MONTH(F$8))/(YEAR($B$8))=Saisie!$L$12:$L$1391,(Saisie!$J$12:$J$1391-Saisie!$I$12:$I$1391))) -> -271.02 | G43: =SUM(IF(($B43*100+YEAR($B$8)+MONTH(G$8)+MONTH(G$8))/(YEAR($B$8))=Saisie!$L$12:$L$1391,(Saisie!$J$12:$J$1391-Saisie!$I$12:$I$1391))) -> 0 | H43: =SUM(IF(($B43*100+YEAR($B$8)+MONTH(H$8)+MONTH(H$8))/(YEAR($B$8))=Saisie!$L$12:$L$1391,(Saisie!$J$12:$J$1391-Saisie!$I$12:$I$1391))) -> -29.99 | I43: =SUM(IF(($B43*100+YEAR($B$8)+MONTH(I$8)+MONTH(I$8))/(YEAR($B$8))=Saisie!$L$12:$L$1391,(Saisie!$J$12:$J$1391-Saisie!$I$12:$I$1391))) -> 0 | J43: =SUM(IF(($B43*100+YEAR($B$8)+MONTH(J$8)+MONTH(J$8))/(YEAR($B$8))=Saisie!$L$12:$L$1391,(Saisie!$J$12:$J$1391-Saisie!$I$12:$I$1391))) -> 0 | K43: =SUM(IF(($B43*100+YEAR($B$8)+MONTH(K$8)+MONTH(K$8))/(YEAR($B$8))=Saisie!$L$12:$L$1391,(Saisie!$J$12:$J$1391-Saisie!$I$12:$I$1391))) -> 0 | L43: =SUM(IF(($B43*100+YEAR($B$8)+MONTH(L$8)+MONTH(L$8))/(YEAR($B$8))=Saisie!$L$12:$L$1391,(Saisie!$J$12:$J$1391-Saisie!$I$12:$I$1391))) -> 0 | M43: =SUM(IF(($B43*100+YEAR($B$8)+MONTH(M$8)+MONTH(M$8))/(YEAR($B$8))=Saisie!$L$12:$L$1391,(Saisie!$J$12:$J$1391-Saisie!$I$12:$I$1391))) -> 0 | N43: =SUM(IF(($B43*100+YEAR($B$8)+MONTH(N$8)+MONTH(N$8))/(YEAR($B$8))=Saisie!$L$12:$L$1391,(Saisie!$J$12:$J$1391-Saisie!$I$12:$I$1391))) -> 0 | O43: =SUM(IF(($B43*100+YEAR($B$8)+MONTH(O$8)+MONTH(O$8))/(YEAR($B$8))=Saisie!$L$12:$L$1391,(Saisie!$J$12:$J$1391-Saisie!$I$12:$I$1391))) -> 0 | P43: =SUM(IF(($B43*100+YEAR($B$8)+MONTH(P$8)+MONTH(P$8))/(YEAR($B$8))=Saisie!$L$12:$L$1391,(Saisie!$J$12:$J$1391-Saisie!$I$12:$I$1391))) -> 0 | R43: -978.98 | T43: 0.09292908199 | U43: =IF(R43=0,"",AVERAGE(IF(E43:P43<>0,E43:P43))) -> -326.3266667 | V43: 34-Ameublement | AI43: =C43 -> 34-Ameublement | AJ43: =SUM(IF('Liste choisir'!$F$9*$B43*100+(AJ$8)=Saisie!$F$12:$F$1395,(Saisie!$G$12:$G$1395))) -> 0 | AK43: =SUM(IF('Liste choisir'!$F$9*$B43*100+(AK$8)=Saisie!$F$12:$F$1395,(Saisie!$G$12:$G$1395))) -> 0 | AL43: =SUM(IF('Liste choisir'!$F$9*$B43*100+(AL$8)=Saisie!$F$12:$F$1395,(Saisie!$G$12:$G$1395))) -> 0 | AM43: =SUM(IF('Liste choisir'!$F$9*$B43*100+(AM$8)=Saisie!$F$12:$F$1395,(Saisie!$G$12:$G$1395))) -> 0 | AN43: =SUM(IF('Liste choisir'!$F$9*$B43*100+(AN$8)=Saisie!$F$12:$F$1395,(Saisie!$G$12:$G$1395))) -> 0 | AO43: =SUM(IF('Liste choisir'!$F$9*$B43*100+(AO$8)=Saisie!$F$12:$F$1395,(Saisie!$G$12:$G$1395))) -> 0 | AP43: =SUM(IF('Liste choisir'!$F$9*$B43*100+(AP$8)=Saisie!$F$12:$F$1395,(Saisie!$G$12:$G$1395))) -> 0 | AQ43: =SUM(IF('Liste choisir'!$F$9*$B43*100+(AQ$8)=Saisie!$F$12:$F$1395,(Saisie!$G$12:$G$1395))) -> 0 | AR43: =SUM(IF('Liste choisir'!$F$9*$B43*100+(AR$8)=Saisie!$F$12:$F$1395,(Saisie!$G$12:$G$1395))) -> 0 | AS43: =SUM(IF('Liste choisir'!$F$9*$B43*100+(AS$8)=Saisie!$F$12:$F$1395,(Saisie!$G$12:$G$1395))) -> 0 | AT43: =SUM(IF('Liste choisir'!$F$9*$B43*100+(AT$8)=Saisie!$F$12:$F$1395,(Saisie!$G$12:$G$1395))) -> 0 | AU43: =SUM(IF('Liste choisir'!$F$9*$B43*100+(AU$8)=Saisie!$F$12:$F$1395,(Saisie!$G$12:$G$1395))) -> 0 | AV43: 0
B44: ='Liste choisir'!A36 -> 35 | C44: ='Liste choisir'!B36 -> 35-Autres | E44: =SUM(IF(($B44*100+YEAR($B$8)+MONTH(E$8)+MONTH(E$8))/(YEAR($B$8))=Saisie!$L$12:$L$1391,(Saisie!$J$12:$J$1391-Saisie!$I$12:$I$1391))) -> -111.38 | F44: =SUM(IF(($B44*100+YEAR($B$8)+MONTH(F$8)+MONTH(F$8))/(YEAR($B$8))=Saisie!$L$12:$L$1391,(Saisie!$J$12:$J$1391-Saisie!$I$12:$I$1391))) -> 0 | G44: =SUM(IF(($B44*100+YEAR($B$8)+MONTH(G$8)+MONTH(G$8))/(YEAR($B$8))=Saisie!$L$12:$L$1391,(Saisie!$J$12:$J$1391-Saisie!$I$12:$I$1391))) -> -109.08 | H44: =SUM(IF(($B44*100+YEAR($B$8)+MONTH(H$8)+MONTH(H$8))/(YEAR($B$8))=Saisie!$L$12:$L$1391,(Saisie!$J$12:$J$1391-Saisie!$I$12:$I$1391))) -> -7.99 | I44: =SUM(IF(($B44*100+YEAR($B$8)+MONTH(I$8)+MONTH(I$8))/(YEAR($B$8))=Saisie!$L$12:$L$1391,(Saisie!$J$12:$J$1391-Saisie!$I$12:$I$1391))) -> -49.99 | J44: =SUM(IF(($B44*100+YEAR($B$8)+MONTH(J$8)+MONTH(J$8))/(YEAR($B$8))=Saisie!$L$12:$L$1391,(Saisie!$J$12:$J$1391-Saisie!$I$12:$I$1391))) -> 0 | K44: =SUM(IF(($B44*100+YEAR($B$8)+MONTH(K$8)+MONTH(K$8))/(YEAR($B$8))=Saisie!$L$12:$L$1391,(Saisie!$J$12:$J$1391-Saisie!$I$12:$I$1391))) -> 0 | L44: =SUM(IF(($B44*100+YEAR($B$8)+MONTH(L$8)+MONTH(L$8))/(YEAR($B$8))=Saisie!$L$12:$L$1391,(Saisie!$J$12:$J$1391-Saisie!$I$12:$I$1391))) -> 0 | M44: =SUM(IF(($B44*100+YEAR($B$8)+MONTH(M$8)+MONTH(M$8))/(YEAR($B$8))=Saisie!$L$12:$L$1391,(Saisie!$J$12:$J$1391-Saisie!$I$12:$I$1391))) -> 0 | N44: =SUM(IF(($B44*100+YEAR($B$8)+MONTH(N$8)+MONTH(N$8))/(YEAR($B$8))=Saisie!$L$12:$L$1391,(Saisie!$J$12:$J$1391-Saisie!$I$12:$I$1391))) -> 0 | O44: =SUM(IF(($B44*100+YEAR($B$8)+MONTH(O$8)+MONTH(O$8))/(YEAR($B$8))=Saisie!$L$12:$L$1391,(Saisie!$J$12:$J$1391-Saisie!$I$12:$I$1391))) -> 0 | P44: =SUM(IF(($B44*100+YEAR($B$8)+MONTH(P$8)+MONTH(P$8))/(YEAR($B$8))=Saisie!$L$12:$L$1391,(Saisie!$J$12:$J$1391-Saisie!$I$12:$I$1391))) -> 0 | R44: -278.44 | T44: 0.02643074791 | U44: =IF(R44=0,"",AVERAGE(IF(E44:P44<>0,E44:P44))) -> -69.61 | V44: 35-Autres | AI44: 35-Autres | AJ44: =SUM(IF('Liste choisir'!$F$9*$B44*100+(AJ$8)=Saisie!$F$12:$F$1395,(Saisie!$G$12:$G$1395))) -> 0 | AK44: =SUM(IF('Liste choisir'!$F$9*$B44*100+(AK$8)=Saisie!$F$12:$F$1395,(Saisie!$G$12:$G$1395))) -> 0 | AL44: =SUM(IF('Liste choisir'!$F$9*$B44*100+(AL$8)=Saisie!$F$12:$F$1395,(Saisie!$G$12:$G$1395))) -> 0 | AM44: =SUM(IF('Liste choisir'!$F$9*$B44*100+(AM$8)=Saisie!$F$12:$F$1395,(Saisie!$G$12:$G$1395))) -> 0 | AN44: =SUM(IF('Liste choisir'!$F$9*$B44*100+(AN$8)=Saisie!$F$12:$F$1395,(Saisie!$G$12:$G$1395))) -> -30 | AO44: =SUM(IF('Liste choisir'!$F$9*$B44*100+(AO$8)=Saisie!$F$12:$F$1395,(Saisie!$G$12:$G$1395))) -> 0 | AP44: =SUM(IF('Liste choisir'!$F$9*$B44*100+(AP$8)=Saisie!$F$12:$F$1395,(Saisie!$G$12:$G$1395))) -> 0 | AQ44: =SUM(IF('Liste choisir'!$F$9*$B44*100+(AQ$8)=Saisie!$F$12:$F$1395,(Saisie!$G$12:$G$1395))) -> 0 | AR44: =SUM(IF('Liste choisir'!$F$9*$B44*100+(AR$8)=Saisie!$F$12:$F$1395,(Saisie!$G$12:$G$1395))) -> 0 | AS44: =SUM(IF('Liste choisir'!$F$9*$B44*100+(AS$8)=Saisie!$F$12:$F$1395,(Saisie!$G$12:$G$1395))) -> 0 | AT44: =SUM(IF('Liste choisir'!$F$9*$B44*100+(AT$8)=Saisie!$F$12:$F$1395,(Saisie!$G$12:$G$1395))) -> 0 | AU44: =SUM(IF('Liste choisir'!$F$9*$B44*100+(AU$8)=Saisie!$F$12:$F$1395,(Saisie!$G$12:$G$1395))) -> 0 | AV44: -30
B45: ='Liste choisir'!A37 -> 36 | C45: ='Liste choisir'!B37 -> 36- | E45: =SUM(IF(($B45*100+YEAR($B$8)+MONTH(E$8)+MONTH(E$8))/(YEAR($B$8))=Saisie!$L$12:$L$1391,(Saisie!$J$12:$J$1391-Saisie!$I$12:$I$1391))) -> 0 | F45: =SUM(IF(($B45*100+YEAR($B$8)+MONTH(F$8)+MONTH(F$8))/(YEAR($B$8))=Saisie!$L$12:$L$1391,(Saisie!$J$12:$J$1391-Saisie!$I$12:$I$1391))) -> 0 | G45: =SUM(IF(($B45*100+YEAR($B$8)+MONTH(G$8)+MONTH(G$8))/(YEAR($B$8))=Saisie!$L$12:$L$1391,(Saisie!$J$12:$J$1391-Saisie!$I$12:$I$1391))) -> 0 | H45: =SUM(IF(($B45*100+YEAR($B$8)+MONTH(H$8)+MONTH(H$8))/(YEAR($B$8))=Saisie!$L$12:$L$1391,(Saisie!$J$12:$J$1391-Saisie!$I$12:$I$1391))) -> 0 | I45: =SUM(IF(($B45*100+YEAR($B$8)+MONTH(I$8)+MONTH(I$8))/(YEAR($B$8))=Saisie!$L$12:$L$1391,(Saisie!$J$12:$J$1391-Saisie!$I$12:$I$1391))) -> 0 | J45: =SUM(IF(($B45*100+YEAR($B$8)+MONTH(J$8)+MONTH(J$8))/(YEAR($B$8))=Saisie!$L$12:$L$1391,(Saisie!$J$12:$J$1391-Saisie!$I$12:$I$1391))) -> 0 | K45: =SUM(IF(($B45*100+YEAR($B$8)+MONTH(K$8)+MONTH(K$8))/(YEAR($B$8))=Saisie!$L$12:$L$1391,(Saisie!$J$12:$J$1391-Saisie!$I$12:$I$1391))) -> 0 | L45: =SUM(IF(($B45*100+YEAR($B$8)+MONTH(L$8)+MONTH(L$8))/(YEAR($B$8))=Saisie!$L$12:$L$1391,(Saisie!$J$12:$J$1391-Saisie!$I$12:$I$1391))) -> 0 | M45: =SUM(IF(($B45*100+YEAR($B$8)+MONTH(M$8)+MONTH(M$8))/(YEAR($B$8))=Saisie!$L$12:$L$1391,(Saisie!$J$12:$J$1391-Saisie!$I$12:$I$1391))) -> 0 | N45: =SUM(IF(($B45*100+YEAR($B$8)+MONTH(N$8)+MONTH(N$8))/(YEAR($B$8))=Saisie!$L$12:$L$1391,(Saisie!$J$12:$J$1391-Saisie!$I$12:$I$1391))) -> 0 | O45: =SUM(IF(($B45*100+YEAR($B$8)+MONTH(O$8)+MONTH(O$8))/(YEAR($B$8))=Saisie!$L$12:$L$1391,(Saisie!$J$12:$J$1391-Saisie!$I$12:$I$1391))) -> 0 | P45: =SUM(IF(($B45*100+YEAR($B$8)+MONTH(P$8)+MONTH(P$8))/(YEAR($B$8))=Saisie!$L$12:$L$1391,(Saisie!$J$12:$J$1391-Saisie!$I$12:$I$1391))) -> 0 | R45: 0 | T45: 0 | U45: =IF(R45=0,"",AVERAGE(IF(E45:P45<>0,E45:P45))) ->  | V45: 36- | AI45: 36- | AJ45: =SUM(IF('Liste choisir'!$F$9*$B45*100+(AJ$8)=Saisie!$F$12:$F$1395,(Saisie!$G$12:$G$1395))) -> 0 | AK45: =SUM(IF('Liste choisir'!$F$9*$B45*100+(AK$8)=Saisie!$F$12:$F$1395,(Saisie!$G$12:$G$1395))) -> 0 | AL45: =SUM(IF('Liste choisir'!$F$9*$B45*100+(AL$8)=Saisie!$F$12:$F$1395,(Saisie!$G$12:$G$1395))) -> 0 | AM45: =SUM(IF('Liste choisir'!$F$9*$B45*100+(AM$8)=Saisie!$F$12:$F$1395,(Saisie!$G$12:$G$1395))) -> 0 | AN45: =SUM(IF('Liste choisir'!$F$9*$B45*100+(AN$8)=Saisie!$F$12:$F$1395,(Saisie!$G$12:$G$1395))) -> 0 | AO45: =SUM(IF('Liste choisir'!$F$9*$B45*100+(AO$8)=Saisie!$F$12:$F$1395,(Saisie!$G$12:$G$1395))) -> 0 | AP45: =SUM(IF('Liste choisir'!$F$9*$B45*100+(AP$8)=Saisie!$F$12:$F$1395,(Saisie!$G$12:$G$1395))) -> 0 | AQ45: =SUM(IF('Liste choisir'!$F$9*$B45*100+(AQ$8)=Saisie!$F$12:$F$1395,(Saisie!$G$12:$G$1395))) -> 0 | AR45: =SUM(IF('Liste choisir'!$F$9*$B45*100+(AR$8)=Saisie!$F$12:$F$1395,(Saisie!$G$12:$G$1395))) -> 0 | AS45: =SUM(IF('Liste choisir'!$F$9*$B45*100+(AS$8)=Saisie!$F$12:$F$1395,(Saisie!$G$12:$G$1395))) -> 0 | AT45: =SUM(IF('Liste choisir'!$F$9*$B45*100+(AT$8)=Saisie!$F$12:$F$1395,(Saisie!$G$12:$G$1395))) -> 0 | AU45: =SUM(IF('Liste choisir'!$F$9*$B45*100+(AU$8)=Saisie!$F$12:$F$1395,(Saisie!$G$12:$G$1395))) -> 0 | AV45: 0
B46: ='Liste choisir'!A38 -> 37 | C46: ='Liste choisir'!B38 -> 0 | E46: =SUM(IF(($B46*100+YEAR($B$8)+MONTH(E$8)+MONTH(E$8))/(YEAR($B$8))=Saisie!$L$12:$L$1391,(Saisie!$J$12:$J$1391-Saisie!$I$12:$I$1391))) -> 0 | F46: =SUM(IF(($B46*100+YEAR($B$8)+MONTH(F$8)+MONTH(F$8))/(YEAR($B$8))=Saisie!$L$12:$L$1391,(Saisie!$J$12:$J$1391-Saisie!$I$12:$I$1391))) -> 0 | G46: =SUM(IF(($B46*100+YEAR($B$8)+MONTH(G$8)+MONTH(G$8))/(YEAR($B$8))=Saisie!$L$12:$L$1391,(Saisie!$J$12:$J$1391-Saisie!$I$12:$I$1391))) -> 0 | H46: =SUM(IF(($B46*100+YEAR($B$8)+MONTH(H$8)+MONTH(H$8))/(YEAR($B$8))=Saisie!$L$12:$L$1391,(Saisie!$J$12:$J$1391-Saisie!$I$12:$I$1391))) -> 0 | I46: =SUM(IF(($B46*100+YEAR($B$8)+MONTH(I$8)+MONTH(I$8))/(YEAR($B$8))=Saisie!$L$12:$L$1391,(Saisie!$J$12:$J$1391-Saisie!$I$12:$I$1391))) -> 0 | J46: =SUM(IF(($B46*100+YEAR($B$8)+MONTH(J$8)+MONTH(J$8))/(YEAR($B$8))=Saisie!$L$12:$L$1391,(Saisie!$J$12:$J$1391-Saisie!$I$12:$I$1391))) -> 0 | K46: =SUM(IF(($B46*100+YEAR($B$8)+MONTH(K$8)+MONTH(K$8))/(YEAR($B$8))=Saisie!$L$12:$L$1391,(Saisie!$J$12:$J$1391-Saisie!$I$12:$I$1391))) -> 0 | L46: =SUM(IF(($B46*100+YEAR($B$8)+MONTH(L$8)+MONTH(L$8))/(YEAR($B$8))=Saisie!$L$12:$L$1391,(Saisie!$J$12:$J$1391-Saisie!$I$12:$I$1391))) -> 0 | M46: =SUM(IF(($B46*100+YEAR($B$8)+MONTH(M$8)+MONTH(M$8))/(YEAR($B$8))=Saisie!$L$12:$L$1391,(Saisie!$J$12:$J$1391-Saisie!$I$12:$I$1391))) -> 0 | N46: =SUM(IF(($B46*100+YEAR($B$8)+MONTH(N$8)+MONTH(N$8))/(YEAR($B$8))=Saisie!$L$12:$L$1391,(Saisie!$J$12:$J$1391-Saisie!$I$12:$I$1391))) -> 0 | O46: =SUM(IF(($B46*100+YEAR($B$8)+MONTH(O$8)+MONTH(O$8))/(YEAR($B$8))=Saisie!$L$12:$L$1391,(Saisie!$J$12:$J$1391-Saisie!$I$12:$I$1391))) -> 0 | P46: =SUM(IF(($B46*100+YEAR($B$8)+MONTH(P$8)+MONTH(P$8))/(YEAR($B$8))=Saisie!$L$12:$L$1391,(Saisie!$J$12:$J$1391-Saisie!$I$12:$I$1391))) -> 0 | R46: 0 | T46: 0 | U46: =IF(R46=0,"",AVERAGE(IF(E46:P46<>0,E46:P46))) ->  | V46: 0 | AI46: 0 | AJ46: =SUM(IF('Liste choisir'!$F$9*$B46*100+(AJ$8)=Saisie!$F$12:$F$1395,(Saisie!$G$12:$G$1395))) -> 0 | AK46: =SUM(IF('Liste choisir'!$F$9*$B46*100+(AK$8)=Saisie!$F$12:$F$1395,(Saisie!$G$12:$G$1395))) -> 0 | AL46: =SUM(IF('Liste choisir'!$F$9*$B46*100+(AL$8)=Saisie!$F$12:$F$1395,(Saisie!$G$12:$G$1395))) -> 0 | AM46: =SUM(IF('Liste choisir'!$F$9*$B46*100+(AM$8)=Saisie!$F$12:$F$1395,(Saisie!$G$12:$G$1395))) -> 0 | AN46: =SUM(IF('Liste choisir'!$F$9*$B46*100+(AN$8)=Saisie!$F$12:$F$1395,(Saisie!$G$12:$G$1395))) -> 0 | AO46: =SUM(IF('Liste choisir'!$F$9*$B46*100+(AO$8)=Saisie!$F$12:$F$1395,(Saisie!$G$12:$G$1395))) -> 0 | AP46: =SUM(IF('Liste choisir'!$F$9*$B46*100+(AP$8)=Saisie!$F$12:$F$1395,(Saisie!$G$12:$G$1395))) -> 0 | AQ46: =SUM(IF('Liste choisir'!$F$9*$B46*100+(AQ$8)=Saisie!$F$12:$F$1395,(Saisie!$G$12:$G$1395))) -> 0 | AR46: =SUM(IF('Liste choisir'!$F$9*$B46*100+(AR$8)=Saisie!$F$12:$F$1395,(Saisie!$G$12:$G$1395))) -> 0 | AS46: =SUM(IF('Liste choisir'!$F$9*$B46*100+(AS$8)=Saisie!$F$12:$F$1395,(Saisie!$G$12:$G$1395))) -> 0 | AT46: =SUM(IF('Liste choisir'!$F$9*$B46*100+(AT$8)=Saisie!$F$12:$F$1395,(Saisie!$G$12:$G$1395))) -> 0 | AU46: =SUM(IF('Liste choisir'!$F$9*$B46*100+(AU$8)=Saisie!$F$12:$F$1395,(Saisie!$G$12:$G$1395))) -> 0 | AV46: 0
B47: ='Liste choisir'!A39 -> 38 | C47: ='Liste choisir'!B39 -> 38- | E47: =SUM(IF(($B47*100+YEAR($B$8)+MONTH(E$8)+MONTH(E$8))/(YEAR($B$8))=Saisie!$L$12:$L$1391,(Saisie!$J$12:$J$1391-Saisie!$I$12:$I$1391))) -> -323.99 | F47: =SUM(IF(($B47*100+YEAR($B$8)+MONTH(F$8)+MONTH(F$8))/(YEAR($B$8))=Saisie!$L$12:$L$1391,(Saisie!$J$12:$J$1391-Saisie!$I$12:$I$1391))) -> 0 | G47: =SUM(IF(($B47*100+YEAR($B$8)+MONTH(G$8)+MONTH(G$8))/(YEAR($B$8))=Saisie!$L$12:$L$1391,(Saisie!$J$12:$J$1391-Saisie!$I$12:$I$1391))) -> 0 | H47: =SUM(IF(($B47*100+YEAR($B$8)+MONTH(H$8)+MONTH(H$8))/(YEAR($B$8))=Saisie!$L$12:$L$1391,(Saisie!$J$12:$J$1391-Saisie!$I$12:$I$1391))) -> 0 | I47: =SUM(IF(($B47*100+YEAR($B$8)+MONTH(I$8)+MONTH(I$8))/(YEAR($B$8))=Saisie!$L$12:$L$1391,(Saisie!$J$12:$J$1391-Saisie!$I$12:$I$1391))) -> 0 | J47: =SUM(IF(($B47*100+YEAR($B$8)+MONTH(J$8)+MONTH(J$8))/(YEAR($B$8))=Saisie!$L$12:$L$1391,(Saisie!$J$12:$J$1391-Saisie!$I$12:$I$1391))) -> 0 | K47: =SUM(IF(($B47*100+YEAR($B$8)+MONTH(K$8)+MONTH(K$8))/(YEAR($B$8))=Saisie!$L$12:$L$1391,(Saisie!$J$12:$J$1391-Saisie!$I$12:$I$1391))) -> 0 | L47: =SUM(IF(($B47*100+YEAR($B$8)+MONTH(L$8)+MONTH(L$8))/(YEAR($B$8))=Saisie!$L$12:$L$1391,(Saisie!$J$12:$J$1391-Saisie!$I$12:$I$1391))) -> 0 | M47: =SUM(IF(($B47*100+YEAR($B$8)+MONTH(M$8)+MONTH(M$8))/(YEAR($B$8))=Saisie!$L$12:$L$1391,(Saisie!$J$12:$J$1391-Saisie!$I$12:$I$1391))) -> 0 | N47: =SUM(IF(($B47*100+YEAR($B$8)+MONTH(N$8)+MONTH(N$8))/(YEAR($B$8))=Saisie!$L$12:$L$1391,(Saisie!$J$12:$J$1391-Saisie!$I$12:$I$1391))) -> 0 | O47: =SUM(IF(($B47*100+YEAR($B$8)+MONTH(O$8)+MONTH(O$8))/(YEAR($B$8))=Saisie!$L$12:$L$1391,(Saisie!$J$12:$J$1391-Saisie!$I$12:$I$1391))) -> 0 | P47: =SUM(IF(($B47*100+YEAR($B$8)+MONTH(P$8)+MONTH(P$8))/(YEAR($B$8))=Saisie!$L$12:$L$1391,(Saisie!$J$12:$J$1391-Saisie!$I$12:$I$1391))) -> 0 | R47: -323.99 | T47: 0.030754554 | U47: =IF(R47=0,"",AVERAGE(IF(E47:P47<>0,E47:P47))) -> -323.99 | V47: 38- | AI47: 38- | AJ47: =SUM(IF('Liste choisir'!$F$9*$B47*100+(AJ$8)=Saisie!$F$12:$F$1395,(Saisie!$G$12:$G$1395))) -> 0 | AK47: =SUM(IF('Liste choisir'!$F$9*$B47*100+(AK$8)=Saisie!$F$12:$F$1395,(Saisie!$G$12:$G$1395))) -> 0 | AL47: =SUM(IF('Liste choisir'!$F$9*$B47*100+(AL$8)=Saisie!$F$12:$F$1395,(Saisie!$G$12:$G$1395))) -> 0 | AM47: =SUM(IF('Liste choisir'!$F$9*$B47*100+(AM$8)=Saisie!$F$12:$F$1395,(Saisie!$G$12:$G$1395))) -> 0 | AN47: =SUM(IF('Liste choisir'!$F$9*$B47*100+(AN$8)=Saisie!$F$12:$F$1395,(Saisie!$G$12:$G$1395))) -> 0 | AO47: =SUM(IF('Liste choisir'!$F$9*$B47*100+(AO$8)=Saisie!$F$12:$F$1395,(Saisie!$G$12:$G$1395))) -> 0 | AP47: =SUM(IF('Liste choisir'!$F$9*$B47*100+(AP$8)=Saisie!$F$12:$F$1395,(Saisie!$G$12:$G$1395))) -> 0 | AQ47: =SUM(IF('Liste choisir'!$F$9*$B47*100+(AQ$8)=Saisie!$F$12:$F$1395,(Saisie!$G$12:$G$1395))) -> 0 | AR47: =SUM(IF('Liste choisir'!$F$9*$B47*100+(AR$8)=Saisie!$F$12:$F$1395,(Saisie!$G$12:$G$1395))) -> 0 | AS47: =SUM(IF('Liste choisir'!$F$9*$B47*100+(AS$8)=Saisie!$F$12:$F$1395,(Saisie!$G$12:$G$1395))) -> 0 | AT47: =SUM(IF('Liste choisir'!$F$9*$B47*100+(AT$8)=Saisie!$F$12:$F$1395,(Saisie!$G$12:$G$1395))) -> 0 | AU47: =SUM(IF('Liste choisir'!$F$9*$B47*100+(AU$8)=Saisie!$F$12:$F$1395,(Saisie!$G$12:$G$1395))) -> 0 | AV47: 0
B48: ='Liste choisir'!A40 -> 39 | C48: ='Liste choisir'!B40 -> 0 | E48: =SUM(IF(($B48*100+YEAR($B$8)+MONTH(E$8)+MONTH(E$8))/(YEAR($B$8))=Saisie!$L$12:$L$1391,(Saisie!$J$12:$J$1391-Saisie!$I$12:$I$1391))) -> 0 | F48: =SUM(IF(($B48*100+YEAR($B$8)+MONTH(F$8)+MONTH(F$8))/(YEAR($B$8))=Saisie!$L$12:$L$1391,(Saisie!$J$12:$J$1391-Saisie!$I$12:$I$1391))) -> 0 | G48: =SUM(IF(($B48*100+YEAR($B$8)+MONTH(G$8)+MONTH(G$8))/(YEAR($B$8))=Saisie!$L$12:$L$1391,(Saisie!$J$12:$J$1391-Saisie!$I$12:$I$1391))) -> 0 | H48: =SUM(IF(($B48*100+YEAR($B$8)+MONTH(H$8)+MONTH(H$8))/(YEAR($B$8))=Saisie!$L$12:$L$1391,(Saisie!$J$12:$J$1391-Saisie!$I$12:$I$1391))) -> 0 | I48: =SUM(IF(($B48*100+YEAR($B$8)+MONTH(I$8)+MONTH(I$8))/(YEAR($B$8))=Saisie!$L$12:$L$1391,(Saisie!$J$12:$J$1391-Saisie!$I$12:$I$1391))) -> 0 | J48: =SUM(IF(($B48*100+YEAR($B$8)+MONTH(J$8)+MONTH(J$8))/(YEAR($B$8))=Saisie!$L$12:$L$1391,(Saisie!$J$12:$J$1391-Saisie!$I$12:$I$1391))) -> 0 | K48: =SUM(IF(($B48*100+YEAR($B$8)+MONTH(K$8)+MONTH(K$8))/(YEAR($B$8))=Saisie!$L$12:$L$1391,(Saisie!$J$12:$J$1391-Saisie!$I$12:$I$1391))) -> 0 | L48: =SUM(IF(($B48*100+YEAR($B$8)+MONTH(L$8)+MONTH(L$8))/(YEAR($B$8))=Saisie!$L$12:$L$1391,(Saisie!$J$12:$J$1391-Saisie!$I$12:$I$1391))) -> 0 | M48: =SUM(IF(($B48*100+YEAR($B$8)+MONTH(M$8)+MONTH(M$8))/(YEAR($B$8))=Saisie!$L$12:$L$1391,(Saisie!$J$12:$J$1391-Saisie!$I$12:$I$1391))) -> 0 | N48: =SUM(IF(($B48*100+YEAR($B$8)+MONTH(N$8)+MONTH(N$8))/(YEAR($B$8))=Saisie!$L$12:$L$1391,(Saisie!$J$12:$J$1391-Saisie!$I$12:$I$1391))) -> 0 | O48: =SUM(IF(($B48*100+YEAR($B$8)+MONTH(O$8)+MONTH(O$8))/(YEAR($B$8))=Saisie!$L$12:$L$1391,(Saisie!$J$12:$J$1391-Saisie!$I$12:$I$1391))) -> 0 | P48: =SUM(IF(($B48*100+YEAR($B$8)+MONTH(P$8)+MONTH(P$8))/(YEAR($B$8))=Saisie!$L$12:$L$1391,(Saisie!$J$12:$J$1391-Saisie!$I$12:$I$1391))) -> 0 | R48: 0 | T48: 0 | U48: =IF(R48=0,"",AVERAGE(IF(E48:P48<>0,E48:P48))) ->  | V48: 0 | AI48: 0 | AJ48: =SUM(IF('Liste choisir'!$F$9*$B48*100+(AJ$8)=Saisie!$F$12:$F$1395,(Saisie!$G$12:$G$1395))) -> 0 | AK48: =SUM(IF('Liste choisir'!$F$9*$B48*100+(AK$8)=Saisie!$F$12:$F$1395,(Saisie!$G$12:$G$1395))) -> 0 | AL48: =SUM(IF('Liste choisir'!$F$9*$B48*100+(AL$8)=Saisie!$F$12:$F$1395,(Saisie!$G$12:$G$1395))) -> 0 | AM48: =SUM(IF('Liste choisir'!$F$9*$B48*100+(AM$8)=Saisie!$F$12:$F$1395,(Saisie!$G$12:$G$1395))) -> 0 | AN48: =SUM(IF('Liste choisir'!$F$9*$B48*100+(AN$8)=Saisie!$F$12:$F$1395,(Saisie!$G$12:$G$1395))) -> 0 | AO48: =SUM(IF('Liste choisir'!$F$9*$B48*100+(AO$8)=Saisie!$F$12:$F$1395,(Saisie!$G$12:$G$1395))) -> 0 | AP48: =SUM(IF('Liste choisir'!$F$9*$B48*100+(AP$8)=Saisie!$F$12:$F$1395,(Saisie!$G$12:$G$1395))) -> 0 | AQ48: =SUM(IF('Liste choisir'!$F$9*$B48*100+(AQ$8)=Saisie!$F$12:$F$1395,(Saisie!$G$12:$G$1395))) -> 0 | AR48: =SUM(IF('Liste choisir'!$F$9*$B48*100+(AR$8)=Saisie!$F$12:$F$1395,(Saisie!$G$12:$G$1395))) -> 0 | AS48: =SUM(IF('Liste choisir'!$F$9*$B48*100+(AS$8)=Saisie!$F$12:$F$1395,(Saisie!$G$12:$G$1395))) -> 0 | AT48: =SUM(IF('Liste choisir'!$F$9*$B48*100+(AT$8)=Saisie!$F$12:$F$1395,(Saisie!$G$12:$G$1395))) -> 0 | AU48: =SUM(IF('Liste choisir'!$F$9*$B48*100+(AU$8)=Saisie!$F$12:$F$1395,(Saisie!$G$12:$G$1395))) -> 0 | AV48: 0
B49: ='Liste choisir'!A41 -> 40 | C49: ='Liste choisir'!B41 -> 0 | E49: =SUM(IF(($B49*100+YEAR($B$8)+MONTH(E$8)+MONTH(E$8))/(YEAR($B$8))=Saisie!$L$12:$L$1391,(Saisie!$J$12:$J$1391-Saisie!$I$12:$I$1391))) -> 0 | F49: =SUM(IF(($B49*100+YEAR($B$8)+MONTH(F$8)+MONTH(F$8))/(YEAR($B$8))=Saisie!$L$12:$L$1391,(Saisie!$J$12:$J$1391-Saisie!$I$12:$I$1391))) -> 0 | G49: =SUM(IF(($B49*100+YEAR($B$8)+MONTH(G$8)+MONTH(G$8))/(YEAR($B$8))=Saisie!$L$12:$L$1391,(Saisie!$J$12:$J$1391-Saisie!$I$12:$I$1391))) -> 0 | H49: =SUM(IF(($B49*100+YEAR($B$8)+MONTH(H$8)+MONTH(H$8))/(YEAR($B$8))=Saisie!$L$12:$L$1391,(Saisie!$J$12:$J$1391-Saisie!$I$12:$I$1391))) -> 0 | I49: =SUM(IF(($B49*100+YEAR($B$8)+MONTH(I$8)+MONTH(I$8))/(YEAR($B$8))=Saisie!$L$12:$L$1391,(Saisie!$J$12:$J$1391-Saisie!$I$12:$I$1391))) -> 0 | J49: =SUM(IF(($B49*100+YEAR($B$8)+MONTH(J$8)+MONTH(J$8))/(YEAR($B$8))=Saisie!$L$12:$L$1391,(Saisie!$J$12:$J$1391-Saisie!$I$12:$I$1391))) -> 0 | K49: =SUM(IF(($B49*100+YEAR($B$8)+MONTH(K$8)+MONTH(K$8))/(YEAR($B$8))=Saisie!$L$12:$L$1391,(Saisie!$J$12:$J$1391-Saisie!$I$12:$I$1391))) -> 0 | L49: =SUM(IF(($B49*100+YEAR($B$8)+MONTH(L$8)+MONTH(L$8))/(YEAR($B$8))=Saisie!$L$12:$L$1391,(Saisie!$J$12:$J$1391-Saisie!$I$12:$I$1391))) -> 0 | M49: =SUM(IF(($B49*100+YEAR($B$8)+MONTH(M$8)+MONTH(M$8))/(YEAR($B$8))=Saisie!$L$12:$L$1391,(Saisie!$J$12:$J$1391-Saisie!$I$12:$I$1391))) -> 0 | N49: =SUM(IF(($B49*100+YEAR($B$8)+MONTH(N$8)+MONTH(N$8))/(YEAR($B$8))=Saisie!$L$12:$L$1391,(Saisie!$J$12:$J$1391-Saisie!$I$12:$I$1391))) -> 0 | O49: =SUM(IF(($B49*100+YEAR($B$8)+MONTH(O$8)+MONTH(O$8))/(YEAR($B$8))=Saisie!$L$12:$L$1391,(Saisie!$J$12:$J$1391-Saisie!$I$12:$I$1391))) -> 0 | P49: =SUM(IF(($B49*100+YEAR($B$8)+MONTH(P$8)+MONTH(P$8))/(YEAR($B$8))=Saisie!$L$12:$L$1391,(Saisie!$J$12:$J$1391-Saisie!$I$12:$I$1391))) -> 0 | R49: =SUM(E49:P49) -> 0 | T49: =(R49-R49-R49)/($R$10+$R$11)*100% -> 0 | U49: =IF(R49=0,"",AVERAGE(IF(E49:P49<>0,E49:P49))) ->  | V49: =C49 -> 0 | AI49: =C49 -> 0 | AJ49: =SUM(IF('Liste choisir'!$F$9*$B49*100+(AJ$8)=Saisie!$F$12:$F$1395,(Saisie!$G$12:$G$1395))) -> 0 | AK49: =SUM(IF('Liste choisir'!$F$9*$B49*100+(AK$8)=Saisie!$F$12:$F$1395,(Saisie!$G$12:$G$1395))) -> 0 | AL49: =SUM(IF('Liste choisir'!$F$9*$B49*100+(AL$8)=Saisie!$F$12:$F$1395,(Saisie!$G$12:$G$1395))) -> 0 | AM49: =SUM(IF('Liste choisir'!$F$9*$B49*100+(AM$8)=Saisie!$F$12:$F$1395,(Saisie!$G$12:$G$1395))) -> 0 | AN49: =SUM(IF('Liste choisir'!$F$9*$B49*100+(AN$8)=Saisie!$F$12:$F$1395,(Saisie!$G$12:$G$1395))) -> 0 | AO49: =SUM(IF('Liste choisir'!$F$9*$B49*100+(AO$8)=Saisie!$F$12:$F$1395,(Saisie!$G$12:$G$1395))) -> 0 | AP49: =SUM(IF('Liste choisir'!$F$9*$B49*100+(AP$8)=Saisie!$F$12:$F$1395,(Saisie!$G$12:$G$1395))) -> 0 | AQ49: =SUM(IF('Liste choisir'!$F$9*$B49*100+(AQ$8)=Saisie!$F$12:$F$1395,(Saisie!$G$12:$G$1395))) -> 0 | AR49: =SUM(IF('Liste choisir'!$F$9*$B49*100+(AR$8)=Saisie!$F$12:$F$1395,(Saisie!$G$12:$G$1395))) -> 0 | AS49: =SUM(IF('Liste choisir'!$F$9*$B49*100+(AS$8)=Saisie!$F$12:$F$1395,(Saisie!$G$12:$G$1395))) -> 0 | AT49: =SUM(IF('Liste choisir'!$F$9*$B49*100+(AT$8)=Saisie!$F$12:$F$1395,(Saisie!$G$12:$G$1395))) -> 0 | AU49: =SUM(IF('Liste choisir'!$F$9*$B49*100+(AU$8)=Saisie!$F$12:$F$1395,(Saisie!$G$12:$G$1395))) -> 0 | AV49: 0
AK50: =SUM(IF('Liste choisir'!$F$8*$B50*100+(AK$8)=Saisie!#REF!,(Saisie!#REF!))) -> 
E51: =SUM(E10:E49) -> -588.84 | F51: =SUM(F10:F49) -> -38.11 | G51: =SUM(G10:G49) -> -158.81 | H51: =SUM(H10:H49) -> -141.04 | I51: =SUM(I10:I49) -> 276.39 | J51: 0 | K51: 0 | L51: 0 | M51: 0 | N51: 0 | O51: 0 | P51: 0 | R51: =SUM(E51:P51) -> -650.41 | S51: =SUM(S10:S30) -> 0 | AJ51: =SUM(AJ10:AJ50) -> -365 | AL51: 0 | AM51: 0 | AN51: -283 | AO51: 0 | AP51: 0 | AQ51: 0 | AR51: 0 | AS51: 0 | AT51: 0 | AU51: 0 | AV51: -648
E52: =IF((E51*E51)>1,1,0) -> 1 | F52: 1 | G52: 1 | H52: 1 | I52: 1 | J52: 0 | K52: 0 | L52: 0 | M52: 0 | N52: 0 | O52: 0 | P52: 0
AK53: =SUM(IF('Liste choisir'!$F$8*$B53*100+(AK$8)=Saisie!#REF!,(Saisie!#REF!))) -> 
F54: PROVISIONS | J54: =SUM(F55:M74) -> 648
F55: =IF(I55<>0,C10,"") ->  | I55: =AV10*-1 -> 0 | J55: =IF(M55<>0,C30,"") -> 21- | M55: =AV30*-1 -> 23
I56: 0 | J56: =IF(M56<>0,C31,"") ->  | M56: =AV31*-1 -> 0
I57: 0 | M57: 0
I58: 0 | M58: 0
I59: 0 | M59: 0
I60: 0 | M60: 0
I61: 0 | M61: 0
F62: 08-Nourriture - Frais de vie | I62: 80 | M62: 0
F63: 9- | I63: 45 | M63: 0
I64: 0 | M64: 0
I65: 0 | M65: 0
I66: 0 | M66: 0
I67: 0 | M67: 0
F68: =IF(I68<>0,C23,"") ->  | I68: =AV23*-1 -> 0 | M68: 0
I69: 0 | J69: 35-Autres | M69: 30
F70: 16-Carburant | I70: 40 | M70: 0
F71: 17-EDF | I71: 220 | M71: 0
F72: 18-EAU | I72: 50 | M72: 0
F73: 19- | I73: 110 | M73: 0
F74: 20-Autoroute - Transport | I74: 50 | M74: 0
E83: =E10+E11 -> 2032.12 | F83: =F10+F11 -> 2067.31 | G83: 2145.09 | H83: 2145.09 | I83: 2145.09 | J83: 0 | K83: 0 | L83: 0 | M83: 0 | N83: 0 | O83: 0 | P83: 0
C94: Cumul | E94: Livret A | G94: LDD | I94: LEP | K94: CSL | M94: LES | O94: TOTAL
C95: de tous les
C96: comptes | E96: =SUM(E97:F110) -> 22950 | G96: =SUM(G97:H110) -> 12000 | I96: =SUM(I97:J110) -> 7918.82 | K96: =SUM(K97:L110) -> 65282 | M96: =SUM(M97:N110) -> 48586 | O96: =SUM(O97:P110) -> 156736.82
C97: Immobilier | E97: =[2]Cumul!$M$59 -> 3430.28 | G97: =[3]Cumul!$M$59 -> 12000 | I97: =[4]Cumul!$M$59 -> 7700 | K97: =[5]Cumul!$M$59 -> 65282 | M97: =[6]Cumul!$M$64 -> 45010 | O97: =SUM(E97:N97) -> 133422.28
C98: Épargne | E98: =[2]Cumul!$I$53 -> 10600 | M98: =[6]Cumul!$I$58 -> 0 | O98: 10600
C99: Prêt 0% | E99: =[2]Cumul!$I$49 -> 8250 | O99: 8250
C100: Intérêts acquis | E100: =[2]Cumul!$I$46 -> 192.06 | I100: =[4]SAISIE!$I$12 -> 218.82 | O100: 410.88
C101: T. foncière | E101: =[2]Cumul!$I$50 -> 477.66 | M101: =[6]Cumul!$M$56 -> 30 | O101: =SUM(E101:N101) -> 507.66
C102: Impôts revenu | M102: =[6]Cumul!$M$57 -> 400 | O102: =SUM(E102:N102) -> 400
C103: Carte bleue | M103: =[6]Cumul!$I$61 -> 16 | O103: 16
C104: Assurances | M104: =[6]Cumul!$I$64 -> 390 | O104: 390
C105: Complément mutu. | M105: =[6]Cumul!$I$66 -> 210 | O105: 210
C106: Mutuelle Ouma | M106: =[6]Cumul!$M$59 -> 280 | O106: 280
C107: Automobile | M107: =[6]Cumul!$M$60 -> 280 | O107: 280
C108: Vacances | M108: =[6]Cumul!$M$66 -> 1200 | O108: 1200
C109: Voyage | M109: =[6]Cumul!$M$67 -> 600 | O109: 600
C110: Fin d'année | M110: =[6]Cumul!$M$71 -> 170 | O110: 170
C112: État | E112: =IF(E96>=E113,"Complet","") -> Complet | G112: =IF(G96>=G113,"Complet","") -> Complet | I112: =IF(I96>=I113,"Complet","") -> Complet | M112: =IF(M96>=M113,"Complet","") -> 
C113: Plafond | E113: 22950 | G113: 12000 | I113: 7700 | K113: Sans plafond | M113: 50000
C114: Taux actuel | E114: 0.03 | G114: 0.03 | I114: 0.061 | K114: 0.005 | M114: 0.007
C115: Fin de date à E81 | E115: 2023-01-31 | G115: 2023-01-31 | I115: 2023-01-31 | K115: 2023-01-31 | M115: 2023-01-31
C116: E81 >>>>>>>>>>>>> | E116: 0.02 | G116: 0.02 | I116: 0.046 | K116: =K114 -> 0.005 | M116: =M114 -> 0.007
C117: = | E117: =((E96*E116)/365)*(DATEDIF($B$8,(E115),"d")) -> 37.7260274 | G117: =((G96*G116)/365)*(DATEDIF($B$8,(G115),"d")) -> 19.7260274 | I117: =((I96*I116)/365)*(DATEDIF($B$8,(I115),"d")) -> 29.93964822 | K117: =((K96*K116)/365)*(DATEDIF($B$8,(K115),"d")) -> 26.82821918 | M117: =((M96*M116)/365)*(DATEDIF($B$8,(M115),"d")) -> 27.95358904
C118: Début de date à E84 | E118: =E115+1 -> 2023-02-01 | G118: =G115+1 -> 2023-02-01 | I118: =I115+1 -> 2023-02-01 | K118: =K115+1 -> 2023-02-01 | M118: =M115+1 -> 2023-02-01
C119: E84 >>>>>>>>>>>>> | E119: =E114 -> 0.03 | G119: =G114 -> 0.03 | I119: =I114 -> 0.061 | K119: =K114 -> 0.005 | M119: =M114 -> 0.007
C120: = | E120: =((E96+E117)*E119)/365*((DATEDIF(E118,TODAY(),"d"))-10) -> 187.0508118 | G120: =((G96+G117)*G119)/365*((DATEDIF(G118,TODAY(),"d"))-10) -> 97.80434603 | I120: =((I96+I117)*I119)/365*((DATEDIF(I118,TODAY(),"d"))-10) -> 131.5138617 | K120: =((K96+K117)*K119)/365*((DATEDIF(K118,TODAY(),"d"))-10) -> 88.56950676 | M120: =((M96+M117)*M119)/365*((DATEDIF(M118,TODAY(),"d"))-10) -> 92.29991736
C121: Dernier jour de l'année | E121: 2023-12-31 | G121: 2023-12-31 | I121: 2023-12-31 | K121: 2023-12-31 | M121: 2023-12-31
C122: Gain à aujourd'hui | E122: =E117+E120 -> 224.7768392 | G122: =G117+G120 -> 117.5303734 | I122: =I117+I120 -> 161.4535099 | K122: =K117+K120 -> 115.3977259 | M122: =M117+M120 -> 120.2535064 | O122: =SUM(E122:N122) -> 739.4119549
C123: Gain annuel | E123: =+((E96*E119)/365)*DATEDIF((TODAY()),E121,"d") -> 422.5315068 | G123: =+((G96*G119)/365)*DATEDIF((TODAY()),G121,"d") -> 220.9315068 | I123: =+((I96*I119)/365)*DATEDIF((TODAY()),I121,"d") -> 296.4459082 | K123: =+((K96*K119)/365)*DATEDIF((TODAY()),K121,"d") -> 200.3173699 | M123: =+((M96*M119)/365)*DATEDIF((TODAY()),M121,"d") -> 208.7201315 | O123: =SUM(E123:N123) -> 1348.946423
C124: Total avec intérêts | E124: =E96+E122 -> 23174.77684 | G124: =G96+G122 -> 12117.53037 | I124: =I96+I122 -> 8080.27351 | K124: =K96+K122 -> 65397.39773 | M124: =M96+M122 -> 48706.25351 | O124: =O96+O122 -> 157476.232
C126: Intérêts au 07/03/23 | E126: 84.59 | G126: 40 | I126: 70.6 | K126: 40.8 | M126: 53.23 | O126: =SUM(E126:N126) -> 289.22
C127: Intérêts au 01/04/23 | E127: 141.97 | G127: 70 | I127: 110.85 | K127: 68 | M127: 92.96 | O127: =SUM(E127:N127) -> 483.78 | R127: =O127-O126 -> 194.56
C128: Intérêts au 14/05/23 | E128: 199.35 | G128: 100 | I128: 151.11 | K128: 95.2 | M128: 145.06 | O128: =SUM(E128:N128) -> 690.72 | R128: =O128-O127 -> 206.94
C211: pour remettre les formules d'origines des prévis. en non-pointé il faut : | J211: 1 | K211: dans la case rose " pointé en banque " retirer la dernière formule
J212: 2 | K212: dans la case " Non pointé débits " coller cette formule > | P212: cette formule: (('[SAISIE DES OPÉRATIONS 2000.xls]SAISIE'!$I$5-'[SAISIE DES OPÉRATIONS 2000.xls]SAISIE'!$G$5)-SOMME('[SAISIE DES OPÉRATIONS 2000.xls]SAISIE'!$M$8:$M$600))+R42 | R212: .

Sheet Début de mois
A1: Compte courant | W1: hauteur
Y16: ='Liste choisir'!A1 -> LIBELLÉS
Y17: ='Liste choisir'!A2 -> 1 | Z17: ='Liste choisir'!B2 -> 01-Salaire
Y18: ='Liste choisir'!A3 -> 2 | Z18: ='Liste choisir'!B3 -> 02-
Y19: ='Liste choisir'!A4 -> 3 | Z19: ='Liste choisir'!B4 -> 03-
Y20: ='Liste choisir'!A5 -> 4 | Z20: ='Liste choisir'!B5 -> 04-
Y21: ='Liste choisir'!A6 -> 5 | Z21: ='Liste choisir'!B6 -> 05-Loyer
Y22: ='Liste choisir'!A7 -> 6 | Z22: ='Liste choisir'!B7 -> 06-Frais de banque
Y23: ='Liste choisir'!A8 -> 7 | Z23: ='Liste choisir'!B8 -> 07-Cotisation carte bleue
Y24: ='Liste choisir'!A9 -> 8 | Z24: ='Liste choisir'!B9 -> 08-Nourriture - Frais de vie
Y25: ='Liste choisir'!A10 -> 9 | Z25: ='Liste choisir'!B10 -> 9-
Y26: ='Liste choisir'!A11 -> 10 | Z26: ='Liste choisir'!B11 -> 10-Assurances
Y27: ='Liste choisir'!A12 -> 11 | Z27: ='Liste choisir'!B12 -> 11-Mutuelle
Y28: ='Liste choisir'!A13 -> 12 | Z28: ='Liste choisir'!B13 -> 12-
Y29: ='Liste choisir'!A14 -> 13 | Z29: ='Liste choisir'!B14 -> 13-Santé health
Y30: ='Liste choisir'!A15 -> 14 | Z30: ='Liste choisir'!B15 -> 14-Internet
Y31: ='Liste choisir'!A16 -> 15 | Z31: ='Liste choisir'!B16 -> 15-Téléphone
Y32: ='Liste choisir'!A17 -> 16 | Z32: ='Liste choisir'!B17 -> 16-Carburant
Y33: ='Liste choisir'!A18 -> 17 | Z33: ='Liste choisir'!B18 -> 17-EDF
Y34: ='Liste choisir'!A19 -> 18 | Z34: ='Liste choisir'!B19 -> 18-EAU
Y35: ='Liste choisir'!A20 -> 19 | Z35: ='Liste choisir'!B20 -> 19-
Y36: ='Liste choisir'!A21 -> 20 | Z36: ='Liste choisir'!B21 -> 20-Autoroute - Transport
Y37: ='Liste choisir'!A22 -> 21 | Z37: ='Liste choisir'!B22 -> 21-
Y38: ='Liste choisir'!A23 -> 22 | Z38: ='Liste choisir'!B23 -> 22-
Y39: ='Liste choisir'!A24 -> 23 | Z39: ='Liste choisir'!B24 -> 23-High-tech, outils, etc
Y40: ='Liste choisir'!A25 -> 24 | Z40: ='Liste choisir'!B25 -> 24-
Y41: ='Liste choisir'!A26 -> 25 | Z41: ='Liste choisir'!B26 -> 25-
Y42: ='Liste choisir'!A27 -> 26 | Z42: ='Liste choisir'!B27 -> 26-Automobile
Y43: ='Liste choisir'!A28 -> 27 | Z43: ='Liste choisir'!B28 -> 27-
Y44: ='Liste choisir'!A29 -> 28 | Z44: ='Liste choisir'!B29 -> 28-Impôts foncier
Y45: ='Liste choisir'!$A$41 -> 40 | Z45: ='Liste choisir'!B41 -> 0
Y47: ='Liste choisir'!F1 -> MOUVEMENTS
Y48: ='Liste choisir'!F2 -> 1 | Z48: ='Liste choisir'!G2 -> 01-Chèque
Y49: ='Liste choisir'!F3 -> 2 | Z49: ='Liste choisir'!G3 -> 02-Carte
Y50: ='Liste choisir'!F4 -> 3 | Z50: ='Liste choisir'!G4 -> 03-Prélèvement
Y51: ='Liste choisir'!F5 -> 4 | Z51: ='Liste choisir'!G5 -> 04-Internet - PayPal - TIP
Y52: ='Liste choisir'!F6 -> 5 | Z52: ='Liste choisir'!G6 -> 05-Virement reçu
Y53: ='Liste choisir'!F7 -> 6 | Z53: ='Liste choisir'!G7 -> 06-Remise
Y54: ='Liste choisir'!F8 -> 7 | Z54: ='Liste choisir'!G8 -> 07-Retrait distributeur
Y55: ='Liste choisir'!F9 -> 8 | Z55: ='Liste choisir'!G9 -> 08-PROVISIONS
Y57: 1950 lignes cachées à hauteur zéro
W2014: de lignes
A2015: DATES | C2015: MOUVEMENT | D2015: Chèque | F2015: Provisions | G2015: Cumul | H2015: LIBELLE | I2015: DEBIT | J2015: CREDIT | K2015: 1 auto prévis | L2015: Cumul | M2015: Non pointé | N2015: Pointé | O2015: P | P2015: Pointé | Q2015: COMMENTAIRES | W2015: à zéro
A2017: 2023-05-03 | B2017: 5 | C2017: =IF(B2017="","",VLOOKUP(B2017,'Liste choisir'!$F$2:$I$9,2)) -> 05-Virement reçu | E2017: 2 | F2017: =IF(B2017='Liste choisir'!$F$9,'Liste choisir'!$F$9*E2017*100+MONTH($A2017),0) -> 0 | G2017: =IF(B2017='Liste choisir'!$F$9,J2017-I2017,0) -> 0 | H2017: =IF(E2017="","",VLOOKUP(E2017,'Liste choisir'!$A$2:$B$41,2)) -> 02- | J2017: 777.72 | K2017: =IF($B2017='Liste choisir'!$F$9,1,0) -> 0 | L2017: =IF(I2017+J2017=0,"",(E2017*100+(YEAR($A2017)+MONTH($A2017)+MONTH($A2017)))/((YEAR($A2017)))) -> 1.103806228 | M2017: =IF(O2017+K2017>0,I2017,"") ->  | N2017: =IF(O2017+K2017>0,J2017,"") ->  | P2017: =IF(O2017+K2017=0,"",(J2017-I2017)) ->  | Q2017: Reçu de la Caisse de retraite complémentaire Agirc-Arrco pour le mois en cours | R2017: =J2017+J2018 -> 2145.09
A2018: 2023-05-03 | B2018: 5 | C2018: =IF(B2018="","",VLOOKUP(B2018,'Liste choisir'!$F$2:$I$9,2)) -> 05-Virement reçu | E2018: 1 | F2018: =IF(B2018='Liste choisir'!$F$9,'Liste choisir'!$F$9*E2018*100+MONTH($A2018),0) -> 0 | G2018: =IF(B2018='Liste choisir'!$F$9,J2018-I2018,0) -> 0 | H2018: =IF(E2018="","",VLOOKUP(E2018,'Liste choisir'!$A$2:$B$41,2)) -> 01-Salaire | J2018: 1367.37 | K2018: =IF($B2018='Liste choisir'!$F$9,1,0) -> 0 | L2018: 1.054374691 | Q2018: Reçu de la Carsat pour le mois précédent le 10 du mois
A2019: 2023-05-03 | B2019: 3 | C2019: =IF(B2019="","",VLOOKUP(B2019,'Liste choisir'!$F$2:$I$9,2)) -> 03-Prélèvement | E2019: 5 | F2019: =IF(B2019='Liste choisir'!$F$9,'Liste choisir'!$F$9*E2019*100+MONTH($A2019),0) -> 0 | G2019: =IF(B2019='Liste choisir'!$F$9,J2019-I2019,0) -> 0 | H2019: =IF(E2019="","",VLOOKUP(E2019,'Liste choisir'!$A$2:$B$41,2)) -> 05-Loyer | I2019: 710 | K2019: =IF($B2019='Liste choisir'!$F$9,1,0) -> 0 | L2019: =IF(B2019=7,"",(E2019*100+(YEAR($A2019)+MONTH($A2019)+MONTH($A2019)))/((YEAR($A2019)))) -> 1.25210084 | Q2019: Loyer Biscarrosse
A2020: 2023-05-10 | B2020: 3 | C2020: =IF(B2020="","",VLOOKUP(B2020,'Liste choisir'!$F$2:$I$9,2)) -> 03-Prélèvement | E2020: 11 | F2020: =IF(B2020='Liste choisir'!$F$9,'Liste choisir'!$F$9*E2020*100+MONTH($A2020),0) -> 0 | G2020: =IF(B2020='Liste choisir'!$F$9,J2020-I2020,0) -> 0 | H2020: =IF(E2020="","",VLOOKUP(E2020,'Liste choisir'!$A$2:$B$41,2)) -> 11-Mutuelle | I2020: 30 | K2020: =IF($B2020='Liste choisir'!$F$9,1,0) -> 0 | L2020: 1.548690064 | Q2020: Virement sur Cpte Patricia - Mutuelle Malakoff Humanis
A2021: 2023-05-10 | B2021: 3 | C2021: =IF(B2021="","",VLOOKUP(B2021,'Liste choisir'!$F$2:$I$9,2)) -> 03-Prélèvement | E2021: 6 | F2021: =IF(B2021='Liste choisir'!$F$9,'Liste choisir'!$F$9*E2021*100+MONTH($A2021),0) -> 0 | G2021: =IF(B2021='Liste choisir'!$F$9,J2021-I2021,0) -> 0 | H2021: =IF(E2021="","",VLOOKUP(E2021,'Liste choisir'!$A$2:$B$41,2)) -> 06-Frais de banque | I2021: 4.73 | K2021: =IF($B2021='Liste choisir'!$F$9,1,0) -> 0 | L2021: 1.301532378 | Q2021: Compte à composer - Crédit Agricole Murviel
A2022: 2023-05-10 | B2022: 3 | C2022: =IF(B2022="","",VLOOKUP(B2022,'Liste choisir'!$F$2:$I$9,2)) -> 03-Prélèvement | E2022: 15 | F2022: =IF(B2022='Liste choisir'!$F$9,'Liste choisir'!$F$9*E2022*100+MONTH($A2022),0) -> 0 | G2022: =IF(B2022='Liste choisir'!$F$9,J2022-I2022,0) -> 0 | H2022: =IF(E2022="","",VLOOKUP(E2022,'Liste choisir'!$A$2:$B$41,2)) -> 15-Téléphone | I2022: 16.99 | K2022: =IF($B2022='Liste choisir'!$F$9,1,0) -> 0 | L2022: 1.746416214 | Q2022: Téléphone mobile Sosh
A2023: 2023-05-10 | B2023: 3 | C2023: =IF(B2023="","",VLOOKUP(B2023,'Liste choisir'!$F$2:$I$9,2)) -> 03-Prélèvement | E2023: 14 | F2023: =IF(B2023='Liste choisir'!$F$9,'Liste choisir'!$F$9*E2023*100+MONTH($A2023),0) -> 0 | G2023: =IF(B2023='Liste choisir'!$F$9,J2023-I2023,0) -> 0 | H2023: =IF(E2023="","",VLOOKUP(E2023,'Liste choisir'!$A$2:$B$41,2)) -> 14-Internet | I2023: 24.99 | K2023: =IF($B2023='Liste choisir'!$F$9,1,0) -> 0 | L2023: 1.696984676 | Q2023: Internet et télé Sosh
A2024: 2023-05-10 | B2024: 3 | C2024: =IF(B2024="","",VLOOKUP(B2024,'Liste choisir'!$F$2:$I$9,2)) -> 03-Prélèvement | D2024: 510 | E2024: 10 | F2024: =IF(B2024='Liste choisir'!$F$9,'Liste choisir'!$F$9*E2024*100+MONTH($A2024),0) -> 0 | G2024: =IF(B2024='Liste choisir'!$F$9,J2024-I2024,0) -> 0 | H2024: =IF(E2024="","",VLOOKUP(E2024,'Liste choisir'!$A$2:$B$41,2)) -> 10-Assurances | I2024: 72 | K2024: =IF($B2024='Liste choisir'!$F$9,1,0) -> 0 | L2024: 1.499258527 | Q2024: Virement auto sur LES - Assurances | R2024: =SUM(I2024:I2034) -> 510
A2025: 2023-05-10 | B2025: 3 | C2025: =IF(B2025="","",VLOOKUP(B2025,'Liste choisir'!$F$2:$I$9,2)) -> 03-Prélèvement | D2025: =D2024 -> 510 | E2025: 4 | F2025: =IF(B2025='Liste choisir'!$F$9,'Liste choisir'!$F$9*E2025*100+MONTH($A2025),0) -> 0 | G2025: =IF(B2025='Liste choisir'!$F$9,J2025-I2025,0) -> 0 | H2025: =IF(E2025="","",VLOOKUP(E2025,'Liste choisir'!$A$2:$B$41,2)) -> 04- | I2025: 100 | K2025: =IF($B2025='Liste choisir'!$F$9,1,0) -> 0 | L2025: 1.202669303 | Q2025: Virement auto sur LES - Épargne
A2026: 2023-05-10 | B2026: 3 | C2026: =IF(B2026="","",VLOOKUP(B2026,'Liste choisir'!$F$2:$I$9,2)) -> 03-Prélèvement | D2026: =D2025 -> 510 | E2026: 32 | F2026: =IF(B2026='Liste choisir'!$F$9,'Liste choisir'!$F$9*E2026*100+MONTH($A2026),0) -> 0 | G2026: =IF(B2026='Liste choisir'!$F$9,J2026-I2026,0) -> 0 | H2026: =IF(E2026="","",VLOOKUP(E2026,'Liste choisir'!$A$2:$B$41,2)) -> 32- | I2026: 100 | K2026: =IF($B2026='Liste choisir'!$F$9,1,0) -> 0 | L2026: 2.586752348 | Q2026: Virement auto sur LES - Vacances
A2027: 2023-05-10 | B2027: 3 | C2027: =IF(B2027="","",VLOOKUP(B2027,'Liste choisir'!$F$2:$I$9,2)) -> 03-Prélèvement | D2027: 510 | E2027: 32 | F2027: =IF(B2027='Liste choisir'!$F$9,'Liste choisir'!$F$9*E2027*100+MONTH($A2027),0) -> 0 | G2027: =IF(B2027='Liste choisir'!$F$9,J2027-I2027,0) -> 0 | H2027: =IF(E2027="","",VLOOKUP(E2027,'Liste choisir'!$A$2:$B$41,2)) -> 32- | I2027: 50 | K2027: =IF($B2027='Liste choisir'!$F$9,1,0) -> 0 | L2027: 2.586752348 | Q2027: Virement auto sur LES - Voyage
A2028: 2023-05-10 | B2028: 3 | C2028: =IF(B2028="","",VLOOKUP(B2028,'Liste choisir'!$F$2:$I$9,2)) -> 03-Prélèvement | D2028: 510 | E2028: 12 | F2028: =IF(B2028='Liste choisir'!$F$9,'Liste choisir'!$F$9*E2028*100+MONTH($A2028),0) -> 0 | G2028: =IF(B2028='Liste choisir'!$F$9,J2028-I2028,0) -> 0 | H2028: =IF(E2028="","",VLOOKUP(E2028,'Liste choisir'!$A$2:$B$41,2)) -> 12- | I2028: 10 | K2028: =IF($B2028='Liste choisir'!$F$9,1,0) -> 0 | L2028: 1.598121602 | Q2028: Virement auto sur LES - Complément mutuelle
A2029: 2023-05-10 | B2029: 3 | C2029: =IF(B2029="","",VLOOKUP(B2029,'Liste choisir'!$F$2:$I$9,2)) -> 03-Prélèvement | D2029: 510 | E2029: 25 | F2029: =IF(B2029='Liste choisir'!$F$9,'Liste choisir'!$F$9*E2029*100+MONTH($A2029),0) -> 0 | G2029: =IF(B2029='Liste choisir'!$F$9,J2029-I2029,0) -> 0 | H2029: =IF(E2029="","",VLOOKUP(E2029,'Liste choisir'!$A$2:$B$41,2)) -> 25- | I2029: 30 | K2029: =IF($B2029='Liste choisir'!$F$9,1,0) -> 0 | L2029: 2.240731587 | Q2029: Virement auto sur LES - Ma mutuelle pour Ouma
A2030: 2023-05-10 | B2030: 3 | C2030: =IF(B2030="","",VLOOKUP(B2030,'Liste choisir'!$F$2:$I$9,2)) -> 03-Prélèvement | D2030: 510 | E2030: 26 | F2030: =IF(B2030='Liste choisir'!$F$9,'Liste choisir'!$F$9*E2030*100+MONTH($A2030),0) -> 0 | G2030: =IF(B2030='Liste choisir'!$F$9,J2030-I2030,0) -> 0 | H2030: =IF(E2030="","",VLOOKUP(E2030,'Liste choisir'!$A$2:$B$41,2)) -> 26-Automobile | I2030: 20 | K2030: =IF($B2030='Liste choisir'!$F$9,1,0) -> 0 | L2030: 2.290163124 | Q2030: Virement auto sur LES - Entretien voiture
A2031: 2023-05-10 | B2031: 3 | C2031: =IF(B2031="","",VLOOKUP(B2031,'Liste choisir'!$F$2:$I$9,2)) -> 03-Prélèvement | D2031: 510 | E2031: 37 | F2031: =IF(B2031='Liste choisir'!$F$9,'Liste choisir'!$F$9*E2031*100+MONTH($A2031),0) -> 0 | G2031: =IF(B2031='Liste choisir'!$F$9,J2031-I2031,0) -> 0 | H2031: =IF(E2031="","",VLOOKUP(E2031,'Liste choisir'!$A$2:$B$41,2)) -> 0 | I2031: 34 | K2031: =IF($B2031='Liste choisir'!$F$9,1,0) -> 0 | L2031: 2.833910035 | Q2031: Virement auto sur LES - Enfants fin d'année
A2032: 2023-05-10 | B2032: 3 | C2032: =IF(B2032="","",VLOOKUP(B2032,'Liste choisir'!$F$2:$I$9,2)) -> 03-Prélèvement | D2032: 510 | E2032: 7 | F2032: =IF(B2032='Liste choisir'!$F$9,'Liste choisir'!$F$9*E2032*100+MONTH($A2032),0) -> 0 | G2032: =IF(B2032='Liste choisir'!$F$9,J2032-I2032,0) -> 0 | H2032: =IF(E2032="","",VLOOKUP(E2032,'Liste choisir'!$A$2:$B$41,2)) -> 07-Cotisation carte bleue | I2032: 4 | K2032: =IF($B2032='Liste choisir'!$F$9,1,0) -> 0 | L2032: 1.350963915 | Q2032: Virement auto sur LES - Cotisation carte bleue
A2033: 2023-05-10 | B2033: 3 | C2033: =IF(B2033="","",VLOOKUP(B2033,'Liste choisir'!$F$2:$I$9,2)) -> 03-Prélèvement | D2033: 510 | E2033: 22 | F2033: =IF(B2033='Liste choisir'!$F$9,'Liste choisir'!$F$9*E2033*100+MONTH($A2033),0) -> 0 | G2033: =IF(B2033='Liste choisir'!$F$9,J2033-I2033,0) -> 0 | H2033: =IF(E2033="","",VLOOKUP(E2033,'Liste choisir'!$A$2:$B$41,2)) -> 22- | I2033: 10 | K2033: =IF($B2033='Liste choisir'!$F$9,1,0) -> 0 | L2033: =IF(B2033=7,"",(E2033*100+(YEAR($A2033)+MONTH($A2033)+MONTH($A2033)))/((YEAR($A2033)))) -> 2.092436975 | M2033: =IF(O2033+K2033>0,I2033,"") ->  | N2033: =IF(O2033+K2033>0,J2033,"") ->  | P2033: =IF(O2033+K2033=0,"",(J2033-I2033)) ->  | Q2033: Virement auto sur LES - Complément taxe foncière de Lignan fin 2023, ensuite Internet 2024
A2034: 2023-05-10 | B2034: 3 | C2034: =IF(B2034="","",VLOOKUP(B2034,'Liste choisir'!$F$2:$I$9,2)) -> 03-Prélèvement | D2034: 510 | E2034: 23 | F2034: =IF(B2034='Liste choisir'!$F$9,'Liste choisir'!$F$9*E2034*100+MONTH($A2034),0) -> 0 | G2034: =IF(B2034='Liste choisir'!$F$9,J2034-I2034,0) -> 0 | H2034: =IF(E2034="","",VLOOKUP(E2034,'Liste choisir'!$A$2:$B$41,2)) -> 23-High-tech, outils, etc | I2034: 80 | K2034: =IF($B2034='Liste choisir'!$F$9,1,0) -> 0 | L2034: =IF(B2034=7,"",(E2034*100+(YEAR($A2034)+MONTH($A2034)+MONTH($A2034)))/((YEAR($A2034)))) -> 2.141868512 | M2034: =IF(O2034+K2034>0,I2034,"") ->  | N2034: =IF(O2034+K2034>0,J2034,"") ->  | P2034: =IF(O2034+K2034=0,"",(J2034-I2034)) ->  | Q2034: Virement auto sur LES - Impôts subsidiaire
A2035: 2023-05-03 | B2035: 8 | C2035: =IF(B2035="","",VLOOKUP(B2035,'Liste choisir'!$F$2:$I$9,2)) -> 08-PROVISIONS | E2035: 17 | F2035: =IF(B2035='Liste choisir'!$F$9,'Liste choisir'!$F$9*E2035*100+MONTH($A2035),0) -> 13605 | G2035: =IF(B2035='Liste choisir'!$F$9,J2035-I2035,0) -> -120 | H2035: =IF(E2035="","",VLOOKUP(E2035,'Liste choisir'!$A$2:$B$41,2)) -> 17-EDF | I2035: 120 | K2035: =IF($B2035='Liste choisir'!$F$9,1,0) -> 1 | L2035: =IF(B2035=7,"",(E2035*100+(YEAR($A2035)+MONTH($A2035)+MONTH($A2035)))/((YEAR($A2035)))) -> 1.845279288 | M2035: =IF(O2035+K2035>0,I2035,"") -> 120 | N2035: =IF(O2035+K2035>0,J2035,"") -> 0 | P2035: =IF(O2035+K2035=0,"",(J2035-I2035)) -> -120 | Q2035: EDF
A2036: 2023-05-03 | B2036: 8 | C2036: =IF(B2036="","",VLOOKUP(B2036,'Liste choisir'!$F$2:$I$9,2)) -> 08-PROVISIONS | E2036: 18 | F2036: =IF(B2036='Liste choisir'!$F$9,'Liste choisir'!$F$9*E2036*100+MONTH($A2036),0) -> 14405 | G2036: =IF(B2036='Liste choisir'!$F$9,J2036-I2036,0) -> -30 | H2036: =IF(E2036="","",VLOOKUP(E2036,'Liste choisir'!$A$2:$B$41,2)) -> 18-EAU | I2036: 30 | K2036: =IF($B2036='Liste choisir'!$F$9,1,0) -> 1 | L2036: 1.894710826 | M2036: 30 | N2036: 0 | P2036: -30 | Q2036: EAU
A2037: 2023-05-03 | B2037: 8 | C2037: =IF(B2037="","",VLOOKUP(B2037,'Liste choisir'!$F$2:$I$9,2)) -> 08-PROVISIONS | E2037: 8 | F2037: =IF(B2037='Liste choisir'!$F$9,'Liste choisir'!$F$9*E2037*100+MONTH($A2037),0) -> 6405 | G2037: =IF(B2037='Liste choisir'!$F$9,J2037-I2037,0) -> -250 | H2037: =IF(E2037="","",VLOOKUP(E2037,'Liste choisir'!$A$2:$B$41,2)) -> 08-Nourriture - Frais de vie | I2037: 250 | K2037: =IF($B2037='Liste choisir'!$F$9,1,0) -> 1 | L2037: =IF(B2037=7,"",(E2037*100+(YEAR($A2037)+MONTH($A2037)+MONTH($A2037)))/((YEAR($A2037)))) -> 1.400395452 | M2037: =IF(O2037+K2037>0,I2037,"") -> 250 | N2037: =IF(O2037+K2037>0,J2037,"") -> 0 | P2037: =IF(O2037+K2037=0,"",(J2037-I2037)) -> -250 | Q2037: Nourriture
A2038: 2023-05-03 | B2038: 8 | C2038: =IF(B2038="","",VLOOKUP(B2038,'Liste choisir'!$F$2:$I$9,2)) -> 08-PROVISIONS | E2038: 16 | F2038: =IF(B2038='Liste choisir'!$F$9,'Liste choisir'!$F$9*E2038*100+MONTH($A2038),0) -> 12805 | G2038: =IF(B2038='Liste choisir'!$F$9,J2038-I2038,0) -> -170 | H2038: =IF(E2038="","",VLOOKUP(E2038,'Liste choisir'!$A$2:$B$41,2)) -> 16-Carburant | I2038: 170 | K2038: =IF($B2038='Liste choisir'!$F$9,1,0) -> 1 | L2038: 1.795847751 | M2038: 170 | N2038: 0 | P2038: -170 | Q2038: Carburant
A2039: 2023-05-03 | B2039: 8 | C2039: =IF(B2039="","",VLOOKUP(B2039,'Liste choisir'!$F$2:$I$9,2)) -> 08-PROVISIONS | E2039: 24 | F2039: =IF(B2039='Liste choisir'!$F$9,'Liste choisir'!$F$9*E2039*100+MONTH($A2039),0) -> 19205 | G2039: =IF(B2039='Liste choisir'!$F$9,J2039-I2039,0) -> -40 | H2039: =IF(E2039="","",VLOOKUP(E2039,'Liste choisir'!$A$2:$B$41,2)) -> 24- | I2039: 40 | K2039: =IF($B2039='Liste choisir'!$F$9,1,0) -> 1 | L2039: 2.191300049 | M2039: 40 | N2039: 0 | P2039: -40 | Q2039: Croquettes
A2040: 2023-05-03 | B2040: 8 | C2040: =IF(B2040="","",VLOOKUP(B2040,'Liste choisir'!$F$2:$I$9,2)) -> 08-PROVISIONS | E2040: 19 | F2040: =IF(B2040='Liste choisir'!$F$9,'Liste choisir'!$F$9*E2040*100+MONTH($A2040),0) -> 15205 | G2040: =IF(B2040='Liste choisir'!$F$9,J2040-I2040,0) -> -110 | H2040: =IF(E2040="","",VLOOKUP(E2040,'Liste choisir'!$A$2:$B$41,2)) -> 19- | I2040: 110 | K2040: =IF($B2040='Liste choisir'!$F$9,1,0) -> 1 | L2040: 1.944142363 | M2040: 110 | N2040: 0 | P2040: -110 | Q2040: Loisirs Week-end
A2041: 2023-05-03 | B2041: 8 | C2041: =IF(B2041="","",VLOOKUP(B2041,'Liste choisir'!$F$2:$I$9,2)) -> 08-PROVISIONS | E2041: 20 | F2041: =IF(B2041='Liste choisir'!$F$9,'Liste choisir'!$F$9*E2041*100+MONTH($A2041),0) -> 16005 | G2041: =IF(B2041='Liste choisir'!$F$9,J2041-I2041,0) -> -40 | H2041: =IF(E2041="","",VLOOKUP(E2041,'Liste choisir'!$A$2:$B$41,2)) -> 20-Autoroute - Transport | I2041: 40 | K2041: =IF($B2041='Liste choisir'!$F$9,1,0) -> 1 | L2041: 1.9935739 | M2041: 40 | N2041: 0 | P2041: -40 | Q2041: =A2041 -> 2023-05-03
A2042: 2023-05-03 | B2042: 8 | C2042: =IF(B2042="","",VLOOKUP(B2042,'Liste choisir'!$F$2:$I$9,2)) -> 08-PROVISIONS | E2042: 21 | F2042: =IF(B2042='Liste choisir'!$F$9,'Liste choisir'!$F$9*E2042*100+MONTH($A2042),0) -> 16805 | G2042: =IF(B2042='Liste choisir'!$F$9,J2042-I2042,0) -> -25 | H2042: =IF(E2042="","",VLOOKUP(E2042,'Liste choisir'!$A$2:$B$41,2)) -> 21- | I2042: 25 | K2042: =IF($B2042='Liste choisir'!$F$9,1,0) -> 1 | L2042: 2.043005437 | M2042: 25 | N2042: 0 | P2042: -25 | Q2042: Coiffeur
A2043: 2023-05-03 | B2043: 8 | C2043: =IF(B2043="","",VLOOKUP(B2043,'Liste choisir'!$F$2:$I$9,2)) -> 08-PROVISIONS | E2043: 38 | F2043: =IF(B2043='Liste choisir'!$F$9,'Liste choisir'!$F$9*E2043*100+MONTH($A2043),0) -> 30405 | G2043: =IF(B2043='Liste choisir'!$F$9,J2043-I2043,0) -> -60 | H2043: =IF(E2043="","",VLOOKUP(E2043,'Liste choisir'!$A$2:$B$41,2)) -> 38- | I2043: 60 | K2043: =IF($B2043='Liste choisir'!$F$9,1,0) -> 1 | L2043: 2.883341572 | M2043: 60 | N2043: 0 | P2043: -60 | Q2043: Libre / mais continuer à mettre de côté pour changement de mutuelle
C2044: =IF(B2044="","",VLOOKUP(B2044,'Liste choisir'!$F$2:$I$9,2)) ->  | F2044: =IF(B2044='Liste choisir'!$F$9,'Liste choisir'!$F$9*E2044*100+MONTH($A2044),0) -> 0 | G2044: =IF(B2044='Liste choisir'!$F$9,J2044-I2044,0) -> 0 | H2044: =IF(E2044="","",VLOOKUP(E2044,'Liste choisir'!$A$2:$B$41,2)) ->  | K2044: =IF($B2044='Liste choisir'!$F$9,1,0) -> 0 | L2044: =IF(B2044=7,"",(E2044*100+(YEAR($A2044)+MONTH($A2044)+MONTH($A2044)))/((YEAR($A2044)))) -> 1.001052632
C2045: =IF(B2045="","",VLOOKUP(B2045,'Liste choisir'!$F$2:$I$9,2)) ->  | F2045: =IF(B2045='Liste choisir'!$F$9,'Liste choisir'!$F$9*E2045*100+MONTH($A2045),0) -> 0 | G2045: =IF(B2045='Liste choisir'!$F$9,J2045-I2045,0) -> 0 | H2045: =IF(E2045="","",VLOOKUP(E2045,'Liste choisir'!$A$2:$B$41,2)) ->  | K2045: =IF($B2045='Liste choisir'!$F$9,1,0) -> 0 | L2045: 1.001052632
C2046: =IF(B2046="","",VLOOKUP(B2046,'Liste choisir'!$F$2:$I$9,2)) ->  | F2046: =IF(B2046='Liste choisir'!$F$9,'Liste choisir'!$F$9*E2046*100+MONTH($A2046),0) -> 0 | G2046: =IF(B2046='Liste choisir'!$F$9,J2046-I2046,0) -> 0 | H2046: =IF(E2046="","",VLOOKUP(E2046,'Liste choisir'!$A$2:$B$41,2)) ->  | K2046: =IF($B2046='Liste choisir'!$F$9,1,0) -> 0 | L2046: 1.001052632
H2048: € | I2048: =SUM(I2017:I2046) -> 2141.71 | J2048: =SUM(J2017:J2046) -> 2145.09 | N2048: = | Q2048: =J2048-I2048 -> 3.38
A2068: Test
A2069: Test | C2069: Calcul avec "Impôts à la source" de : | H2069: =Détail!$C$22 -> 0.0273 | J2069: =Q2103 -> 6.836784297 | Q2069: Test
A2072: 2023-02-01 | B2072: 5 | C2072: =IF(B2072="","",VLOOKUP(B2072,'Liste choisir'!$F$2:$I$9,2)) -> 05-Virement reçu | E2072: 2 | F2072: =IF(B2072='Liste choisir'!$F$9,'Liste choisir'!$F$9*E2072*100+MONTH($A2072),0) -> 0 | G2072: =IF(B2072='Liste choisir'!$F$9,J2072-I2072,0) -> 0 | H2072: =IF(E2072="","",VLOOKUP(E2072,'Liste choisir'!$A$2:$B$41,2)) -> 02- | J2072: =Détail!H23 -> 771.7205916 | K2072: =IF($B2072='Liste choisir'!$F$9,1,0) -> 0 | L2072: =IF(I2072+J2072=0,"",(E2072*100+(YEAR($A2072)+MONTH($A2072)+MONTH($A2072)))/((YEAR($A2072)))) -> 1.100840336 | M2072: =IF(O2072+K2072>0,I2072,"") ->  | N2072: =IF(O2072+K2072>0,J2072,"") ->  | P2072: =IF(O2072+K2072=0,"",(J2072-I2072)) ->  | Q2072: Reçu de la Caisse de retraite complémentaire Agirc-Arrco pour le mois en cours | R2072: =J2072+J2073 -> 2128.546784
A2073: 2023-02-01 | B2073: 5 | C2073: =IF(B2073="","",VLOOKUP(B2073,'Liste choisir'!$F$2:$I$9,2)) -> 05-Virement reçu | E2073: 1 | F2073: =IF(B2073='Liste choisir'!$F$9,'Liste choisir'!$F$9*E2073*100+MONTH($A2073),0) -> 0 | G2073: =IF(B2073='Liste choisir'!$F$9,J2073-I2073,0) -> 0 | H2073: =IF(E2073="","",VLOOKUP(E2073,'Liste choisir'!$A$2:$B$41,2)) -> 01-Salaire | J2073: =Détail!D23 -> 1356.826193 | K2073: =IF($B2073='Liste choisir'!$F$9,1,0) -> 0 | L2073: 1.051408799 | Q2073: Reçu de la Carsat pour le mois précédent le 10 du mois
A2074: 2023-02-01 | B2074: 3 | C2074: =IF(B2074="","",VLOOKUP(B2074,'Liste choisir'!$F$2:$I$9,2)) -> 03-Prélèvement | E2074: 5 | F2074: =IF(B2074='Liste choisir'!$F$9,'Liste choisir'!$F$9*E2074*100+MONTH($A2074),0) -> 0 | G2074: =IF(B2074='Liste choisir'!$F$9,J2074-I2074,0) -> 0 | H2074: =IF(E2074="","",VLOOKUP(E2074,'Liste choisir'!$A$2:$B$41,2)) -> 05-Loyer | I2074: 710 | K2074: =IF($B2074='Liste choisir'!$F$9,1,0) -> 0 | L2074: =IF(B2074=7,"",(E2074*100+(YEAR($A2074)+MONTH($A2074)+MONTH($A2074)))/((YEAR($A2074)))) -> 1.249134948 | Q2074: Loyer Biscarrosse
A2075: 2023-02-10 | B2075: 3 | C2075: =IF(B2075="","",VLOOKUP(B2075,'Liste choisir'!$F$2:$I$9,2)) -> 03-Prélèvement | E2075: 11 | F2075: =IF(B2075='Liste choisir'!$F$9,'Liste choisir'!$F$9*E2075*100+MONTH($A2075),0) -> 0 | G2075: =IF(B2075='Liste choisir'!$F$9,J2075-I2075,0) -> 0 | H2075: =IF(E2075="","",VLOOKUP(E2075,'Liste choisir'!$A$2:$B$41,2)) -> 11-Mutuelle | I2075: 30 | K2075: =IF($B2075='Liste choisir'!$F$9,1,0) -> 0 | L2075: 1.545724172 | Q2075: Virement sur Cpte Patricia - Mutuelle Malakoff Humanis
A2076: 2023-02-10 | B2076: 3 | C2076: =IF(B2076="","",VLOOKUP(B2076,'Liste choisir'!$F$2:$I$9,2)) -> 03-Prélèvement | E2076: 6 | F2076: =IF(B2076='Liste choisir'!$F$9,'Liste choisir'!$F$9*E2076*100+MONTH($A2076),0) -> 0 | G2076: =IF(B2076='Liste choisir'!$F$9,J2076-I2076,0) -> 0 | H2076: =IF(E2076="","",VLOOKUP(E2076,'Liste choisir'!$A$2:$B$41,2)) -> 06-Frais de banque | I2076: 4.73 | K2076: =IF($B2076='Liste choisir'!$F$9,1,0) -> 0 | L2076: 1.298566485 | Q2076: Compte à composer - Crédit Agricole Murviel
A2077: 2023-02-10 | B2077: 3 | C2077: =IF(B2077="","",VLOOKUP(B2077,'Liste choisir'!$F$2:$I$9,2)) -> 03-Prélèvement | E2077: 15 | F2077: =IF(B2077='Liste choisir'!$F$9,'Liste choisir'!$F$9*E2077*100+MONTH($A2077),0) -> 0 | G2077: =IF(B2077='Liste choisir'!$F$9,J2077-I2077,0) -> 0 | H2077: =IF(E2077="","",VLOOKUP(E2077,'Liste choisir'!$A$2:$B$41,2)) -> 15-Téléphone | I2077: 16.99 | K2077: =IF($B2077='Liste choisir'!$F$9,1,0) -> 0 | L2077: 1.743450321 | Q2077: Téléphone mobile Sosh
A2078: 2023-02-10 | B2078: 3 | C2078: =IF(B2078="","",VLOOKUP(B2078,'Liste choisir'!$F$2:$I$9,2)) -> 03-Prélèvement | E2078: 14 | F2078: =IF(B2078='Liste choisir'!$F$9,'Liste choisir'!$F$9*E2078*100+MONTH($A2078),0) -> 0 | G2078: =IF(B2078='Liste choisir'!$F$9,J2078-I2078,0) -> 0 | H2078: =IF(E2078="","",VLOOKUP(E2078,'Liste choisir'!$A$2:$B$41,2)) -> 14-Internet | I2078: 24.99 | K2078: =IF($B2078='Liste choisir'!$F$9,1,0) -> 0 | L2078: 1.694018784 | Q2078: Internet et télé Sosh
A2079: 2023-02-10 | B2079: 3 | C2079: =IF(B2079="","",VLOOKUP(B2079,'Liste choisir'!$F$2:$I$9,2)) -> 03-Prélèvement | D2079: =R2079 -> 510 | E2079: 10 | F2079: =IF(B2079='Liste choisir'!$F$9,'Liste choisir'!$F$9*E2079*100+MONTH($A2079),0) -> 0 | G2079: =IF(B2079='Liste choisir'!$F$9,J2079-I2079,0) -> 0 | H2079: =IF(E2079="","",VLOOKUP(E2079,'Liste choisir'!$A$2:$B$41,2)) -> 10-Assurances | I2079: 72 | K2079: =IF($B2079='Liste choisir'!$F$9,1,0) -> 0 | L2079: 1.496292635 | Q2079: Virement auto sur LES - Assurances | R2079: =SUM(I2079:I2089) -> 510
A2080: 2023-02-10 | B2080: 3 | C2080: =IF(B2080="","",VLOOKUP(B2080,'Liste choisir'!$F$2:$I$9,2)) -> 03-Prélèvement | D2080: =D2079 -> 510 | E2080: 4 | F2080: =IF(B2080='Liste choisir'!$F$9,'Liste choisir'!$F$9*E2080*100+MONTH($A2080),0) -> 0 | G2080: =IF(B2080='Liste choisir'!$F$9,J2080-I2080,0) -> 0 | H2080: =IF(E2080="","",VLOOKUP(E2080,'Liste choisir'!$A$2:$B$41,2)) -> 04- | I2080: 100 | K2080: =IF($B2080='Liste choisir'!$F$9,1,0) -> 0 | L2080: 1.199703411 | Q2080: Virement auto sur LES - Épargne
A2081: 2023-02-10 | B2081: 3 | C2081: =IF(B2081="","",VLOOKUP(B2081,'Liste choisir'!$F$2:$I$9,2)) -> 03-Prélèvement | D2081: =D2080 -> 510 | E2081: 32 | F2081: =IF(B2081='Liste choisir'!$F$9,'Liste choisir'!$F$9*E2081*100+MONTH($A2081),0) -> 0 | G2081: =IF(B2081='Liste choisir'!$F$9,J2081-I2081,0) -> 0 | H2081: =IF(E2081="","",VLOOKUP(E2081,'Liste choisir'!$A$2:$B$41,2)) -> 32- | I2081: 100 | K2081: =IF($B2081='Liste choisir'!$F$9,1,0) -> 0 | L2081: 2.583786456 | Q2081: Virement auto sur LES - Vacances
A2082: 2023-02-10 | B2082: 3 | C2082: =IF(B2082="","",VLOOKUP(B2082,'Liste choisir'!$F$2:$I$9,2)) -> 03-Prélèvement | D2082: 510 | E2082: 32 | F2082: =IF(B2082='Liste choisir'!$F$9,'Liste choisir'!$F$9*E2082*100+MONTH($A2082),0) -> 0 | G2082: =IF(B2082='Liste choisir'!$F$9,J2082-I2082,0) -> 0 | H2082: =IF(E2082="","",VLOOKUP(E2082,'Liste choisir'!$A$2:$B$41,2)) -> 32- | I2082: 50 | K2082: =IF($B2082='Liste choisir'!$F$9,1,0) -> 0 | L2082: 2.583786456 | Q2082: Virement auto sur LES - Voyage
A2083: 2023-02-10 | B2083: 3 | C2083: =IF(B2083="","",VLOOKUP(B2083,'Liste choisir'!$F$2:$I$9,2)) -> 03-Prélèvement | D2083: 510 | E2083: 12 | F2083: =IF(B2083='Liste choisir'!$F$9,'Liste choisir'!$F$9*E2083*100+MONTH($A2083),0) -> 0 | G2083: =IF(B2083='Liste choisir'!$F$9,J2083-I2083,0) -> 0 | H2083: =IF(E2083="","",VLOOKUP(E2083,'Liste choisir'!$A$2:$B$41,2)) -> 12- | I2083: 10 | K2083: =IF($B2083='Liste choisir'!$F$9,1,0) -> 0 | L2083: 1.595155709 | Q2083: Virement auto sur LES - Complément mutuelle
A2084: 2023-02-10 | B2084: 3 | C2084: =IF(B2084="","",VLOOKUP(B2084,'Liste choisir'!$F$2:$I$9,2)) -> 03-Prélèvement | D2084: =D2079 -> 510 | E2084: 25 | F2084: =IF(B2084='Liste choisir'!$F$9,'Liste choisir'!$F$9*E2084*100+MONTH($A2084),0) -> 0 | G2084: =IF(B2084='Liste choisir'!$F$9,J2084-I2084,0) -> 0 | H2084: =IF(E2084="","",VLOOKUP(E2084,'Liste choisir'!$A$2:$B$41,2)) -> 25- | I2084: 30 | K2084: =IF($B2084='Liste choisir'!$F$9,1,0) -> 0 | L2084: 2.237765695 | Q2084: Virement auto sur LES - Ma mutuelle pour Ouma
A2085: 2023-02-10 | B2085: 3 | C2085: =IF(B2085="","",VLOOKUP(B2085,'Liste choisir'!$F$2:$I$9,2)) -> 03-Prélèvement | D2085: =D2083 -> 510 | E2085: 26 | F2085: =IF(B2085='Liste choisir'!$F$9,'Liste choisir'!$F$9*E2085*100+MONTH($A2085),0) -> 0 | G2085: =IF(B2085='Liste choisir'!$F$9,J2085-I2085,0) -> 0 | H2085: =IF(E2085="","",VLOOKUP(E2085,'Liste choisir'!$A$2:$B$41,2)) -> 26-Automobile | I2085: 20 | K2085: =IF($B2085='Liste choisir'!$F$9,1,0) -> 0 | L2085: 2.287197232 | Q2085: Virement auto sur LES - Entretien voiture
A2086: 2023-02-10 | B2086: 3 | C2086: =IF(B2086="","",VLOOKUP(B2086,'Liste choisir'!$F$2:$I$9,2)) -> 03-Prélèvement | D2086: 510 | E2086: 37 | F2086: =IF(B2086='Liste choisir'!$F$9,'Liste choisir'!$F$9*E2086*100+MONTH($A2086),0) -> 0 | G2086: =IF(B2086='Liste choisir'!$F$9,J2086-I2086,0) -> 0 | H2086: =IF(E2086="","",VLOOKUP(E2086,'Liste choisir'!$A$2:$B$41,2)) -> 0 | I2086: 34 | K2086: =IF($B2086='Liste choisir'!$F$9,1,0) -> 0 | L2086: 2.830944142 | Q2086: Virement auto sur LES - Enfants fin d'année
A2087: 2023-02-10 | B2087: 3 | C2087: =IF(B2087="","",VLOOKUP(B2087,'Liste choisir'!$F$2:$I$9,2)) -> 03-Prélèvement | D2087: 510 | E2087: 7 | F2087: =IF(B2087='Liste choisir'!$F$9,'Liste choisir'!$F$9*E2087*100+MONTH($A2087),0) -> 0 | G2087: =IF(B2087='Liste choisir'!$F$9,J2087-I2087,0) -> 0 | H2087: =IF(E2087="","",VLOOKUP(E2087,'Liste choisir'!$A$2:$B$41,2)) -> 07-Cotisation carte bleue | I2087: 4 | K2087: =IF($B2087='Liste choisir'!$F$9,1,0) -> 0 | L2087: 1.347998023 | Q2087: Virement auto sur LES - Cotisation carte bleue
A2088: 2023-02-10 | B2088: 8 | C2088: =IF(B2088="","",VLOOKUP(B2088,'Liste choisir'!$F$2:$I$9,2)) -> 08-PROVISIONS | D2088: 510 | E2088: 22 | F2088: =IF(B2088='Liste choisir'!$F$9,'Liste choisir'!$F$9*E2088*100+MONTH($A2088),0) -> 17602 | G2088: =IF(B2088='Liste choisir'!$F$9,J2088-I2088,0) -> -10 | H2088: =IF(E2088="","",VLOOKUP(E2088,'Liste choisir'!$A$2:$B$41,2)) -> 22- | I2088: 10 | K2088: =IF($B2088='Liste choisir'!$F$9,1,0) -> 1 | L2088: 2.089471083 | M2088: 10 | N2088: 0 | P2088: -10 | Q2088: Virement auto sur LES - Complément taxe foncière de Lignan fin 2023, ensuite Internet 2024
A2089: 2023-02-10 | B2089: 8 | C2089: =IF(B2089="","",VLOOKUP(B2089,'Liste choisir'!$F$2:$I$9,2)) -> 08-PROVISIONS | D2089: 510 | E2089: 23 | F2089: =IF(B2089='Liste choisir'!$F$9,'Liste choisir'!$F$9*E2089*100+MONTH($A2089),0) -> 18402 | G2089: =IF(B2089='Liste choisir'!$F$9,J2089-I2089,0) -> -80 | H2089: =IF(E2089="","",VLOOKUP(E2089,'Liste choisir'!$A$2:$B$41,2)) -> 23-High-tech, outils, etc | I2089: 80 | K2089: =IF($B2089='Liste choisir'!$F$9,1,0) -> 1 | L2089: 2.13890262 | M2089: 80 | N2089: 0 | P2089: -80 | Q2089: Virement auto sur LES - Impôts subsidiaire
A2090: 2023-02-10 | B2090: 8 | C2090: =IF(B2090="","",VLOOKUP(B2090,'Liste choisir'!$F$2:$I$9,2)) -> 08-PROVISIONS | E2090: 17 | F2090: =IF(B2090='Liste choisir'!$F$9,'Liste choisir'!$F$9*E2090*100+MONTH($A2090),0) -> 13602 | G2090: =IF(B2090='Liste choisir'!$F$9,J2090-I2090,0) -> -120 | H2090: =IF(E2090="","",VLOOKUP(E2090,'Liste choisir'!$A$2:$B$41,2)) -> 17-EDF | I2090: 120 | K2090: =IF($B2090='Liste choisir'!$F$9,1,0) -> 1 | L2090: 1.842313396 | M2090: 120 | N2090: 0 | P2090: -120 | Q2090: EDF
A2091: 2023-02-10 | B2091: 8 | C2091: =IF(B2091="","",VLOOKUP(B2091,'Liste choisir'!$F$2:$I$9,2)) -> 08-PROVISIONS | E2091: 18 | F2091: =IF(B2091='Liste choisir'!$F$9,'Liste choisir'!$F$9*E2091*100+MONTH($A2091),0) -> 14402 | G2091: =IF(B2091='Liste choisir'!$F$9,J2091-I2091,0) -> -30 | H2091: =IF(E2091="","",VLOOKUP(E2091,'Liste choisir'!$A$2:$B$41,2)) -> 18-EAU | I2091: 30 | K2091: =IF($B2091='Liste choisir'!$F$9,1,0) -> 1 | L2091: 1.891744933 | M2091: 30 | N2091: 0 | P2091: -30 | Q2091: EAU
A2092: 2023-02-10 | B2092: 8 | C2092: =IF(B2092="","",VLOOKUP(B2092,'Liste choisir'!$F$2:$I$9,2)) -> 08-PROVISIONS | E2092: 8 | F2092: =IF(B2092='Liste choisir'!$F$9,'Liste choisir'!$F$9*E2092*100+MONTH($A2092),0) -> 6402 | G2092: =IF(B2092='Liste choisir'!$F$9,J2092-I2092,0) -> -250 | H2092: =IF(E2092="","",VLOOKUP(E2092,'Liste choisir'!$A$2:$B$41,2)) -> 08-Nourriture - Frais de vie | I2092: 250 | K2092: =IF($B2092='Liste choisir'!$F$9,1,0) -> 1 | L2092: 1.39742956 | M2092: 250 | N2092: 0 | P2092: -250 | Q2092: Nourriture
A2093: 2023-02-10 | B2093: 8 | C2093: =IF(B2093="","",VLOOKUP(B2093,'Liste choisir'!$F$2:$I$9,2)) -> 08-PROVISIONS | E2093: 16 | F2093: =IF(B2093='Liste choisir'!$F$9,'Liste choisir'!$F$9*E2093*100+MONTH($A2093),0) -> 12802 | G2093: =IF(B2093='Liste choisir'!$F$9,J2093-I2093,0) -> -170 | H2093: =IF(E2093="","",VLOOKUP(E2093,'Liste choisir'!$A$2:$B$41,2)) -> 16-Carburant | I2093: 170 | K2093: =IF($B2093='Liste choisir'!$F$9,1,0) -> 1 | L2093: 1.792881859 | M2093: 170 | N2093: 0 | P2093: -170 | Q2093: Carburant
A2094: 2023-02-10 | B2094: 8 | C2094: =IF(B2094="","",VLOOKUP(B2094,'Liste choisir'!$F$2:$I$9,2)) -> 08-PROVISIONS | E2094: 24 | F2094: =IF(B2094='Liste choisir'!$F$9,'Liste choisir'!$F$9*E2094*100+MONTH($A2094),0) -> 19202 | G2094: =IF(B2094='Liste choisir'!$F$9,J2094-I2094,0) -> -40 | H2094: =IF(E2094="","",VLOOKUP(E2094,'Liste choisir'!$A$2:$B$41,2)) -> 24- | I2094: 40 | K2094: =IF($B2094='Liste choisir'!$F$9,1,0) -> 1 | L2094: 2.188334157 | M2094: 40 | N2094: 0 | P2094: -40 | Q2094: Croquettes
A2095: 2023-02-10 | B2095: 8 | C2095: =IF(B2095="","",VLOOKUP(B2095,'Liste choisir'!$F$2:$I$9,2)) -> 08-PROVISIONS | E2095: 19 | F2095: =IF(B2095='Liste choisir'!$F$9,'Liste choisir'!$F$9*E2095*100+MONTH($A2095),0) -> 15202 | G2095: =IF(B2095='Liste choisir'!$F$9,J2095-I2095,0) -> -100 | H2095: =IF(E2095="","",VLOOKUP(E2095,'Liste choisir'!$A$2:$B$41,2)) -> 19- | I2095: 100 | K2095: =IF($B2095='Liste choisir'!$F$9,1,0) -> 1 | L2095: 1.941176471 | M2095: 100 | N2095: 0 | P2095: -100 | Q2095: Loisirs Week-end
A2096: 2023-02-10 | B2096: 8 | C2096: =IF(B2096="","",VLOOKUP(B2096,'Liste choisir'!$F$2:$I$9,2)) -> 08-PROVISIONS | E2096: 20 | F2096: =IF(B2096='Liste choisir'!$F$9,'Liste choisir'!$F$9*E2096*100+MONTH($A2096),0) -> 16002 | G2096: =IF(B2096='Liste choisir'!$F$9,J2096-I2096,0) -> -40 | H2096: =IF(E2096="","",VLOOKUP(E2096,'Liste choisir'!$A$2:$B$41,2)) -> 20-Autoroute - Transport | I2096: 40 | K2096: =IF($B2096='Liste choisir'!$F$9,1,0) -> 1 | L2096: 1.990608008 | M2096: 40 | N2096: 0 | P2096: -40 | Q2096: =A2096 -> 2023-02-10
A2097: 2023-02-10 | B2097: 8 | C2097: =IF(B2097="","",VLOOKUP(B2097,'Liste choisir'!$F$2:$I$9,2)) -> 08-PROVISIONS | E2097: 21 | F2097: =IF(B2097='Liste choisir'!$F$9,'Liste choisir'!$F$9*E2097*100+MONTH($A2097),0) -> 16802 | G2097: =IF(B2097='Liste choisir'!$F$9,J2097-I2097,0) -> -25 | H2097: =IF(E2097="","",VLOOKUP(E2097,'Liste choisir'!$A$2:$B$41,2)) -> 21- | I2097: 25 | K2097: =IF($B2097='Liste choisir'!$F$9,1,0) -> 1 | L2097: 2.040039545 | M2097: 25 | N2097: 0 | P2097: -25 | Q2097: Coiffeur
C2098: =IF(B2098="","",VLOOKUP(B2098,'Liste choisir'!$F$2:$I$9,2)) ->  | E2098: 38 | F2098: =IF(B2098='Liste choisir'!$F$9,'Liste choisir'!$F$9*E2098*100+MONTH($A2098),0) -> 0 | G2098: =IF(B2098='Liste choisir'!$F$9,J2098-I2098,0) -> 0 | H2098: =IF(E2098="","",VLOOKUP(E2098,'Liste choisir'!$A$2:$B$41,2)) -> 38- | I2098: 50 | K2098: =IF($B2098='Liste choisir'!$F$9,1,0) -> 0 | L2098: 3.001052632 | Q2098: Libre / mais continuer à mettre de côté pour changement de mutuelle
C2099: =IF(B2099="","",VLOOKUP(B2099,'Liste choisir'!$F$2:$I$9,2)) ->  | F2099: =IF(B2099='Liste choisir'!$F$9,'Liste choisir'!$F$9*E2099*100+MONTH($A2099),0) -> 0 | G2099: =IF(B2099='Liste choisir'!$F$9,J2099-I2099,0) -> 0 | H2099: =IF(E2099="","",VLOOKUP(E2099,'Liste choisir'!$A$2:$B$41,2)) ->  | K2099: =IF($B2099='Liste choisir'!$F$9,1,0) -> 0 | L2099: 1.001052632
C2101: =IF(B2101="","",VLOOKUP(B2101,'Liste choisir'!$F$2:$I$9,2)) ->  | F2101: =IF(B2101='Liste choisir'!$F$9,'Liste choisir'!$F$9*E2101*100+MONTH($A2101),0) -> 0 | G2101: =IF(B2101='Liste choisir'!$F$9,J2101-I2101,0) -> 0 | H2101: =IF(E2101="","",VLOOKUP(E2101,'Liste choisir'!$A$2:$B$41,2)) ->  | K2101: =IF($B2101='Liste choisir'!$F$9,1,0) -> 0 | L2101: 1.001052632
H2103: € | I2103: =SUM(I2072:I2101) -> 2121.71 | J2103: =SUM(J2072:J2101) -> 2128.546784 | N2103: = | Q2103: =J2103-I2103 -> 6.836784297
A2108: LARGEUR DES COLONNES
A2109: 9.43 | B2109: 3 | C2109: 24 | D2109: 10 | E2109: 3 | H2109: 24 | I2109: 12 | J2109: 12 | O2109: 2 | Q2109: 55

Sheet Détail
B2: RETRAITE
B4: Carsat | F4: Agirc-Arrco | J4: Total mensuel | M4: Total annuel
B5: Brut | D5: 1370.73 | F5: Brut | H5: 805.44 | J5: =D5+H5 -> 2176.17 | M5: =J5*12 -> 26114.04
B6: Enfants | D6: 137.07 | F6: Enfants | H6: 60.88 | J6: =D6+H6 -> 197.95 | M6: =J6*12 -> 2375.4
B7: Total brut | D7: =D5+D6 -> 1507.8 | F7: Total brut | G7: 0.05116 | H7: =H5+H6 -> 866.32 | J7: =D7+H7 -> 2374.12 | M7: =J7*12 -> 28489.44
B9: CASA | C9: 0.003 | D9: =D7*C9 -> 4.5234 | F9: COTAM | G9: 0.01 | H9: =H5*G9 -> 8.0544 | J9: Charges sociales | M9: Charges sociales
F10: CRDS | G10: 0.005 | H10: =H7*G10 -> 4.3316 | J10: = | M10: =
B11: CSG impos. | C11: 0.02399 | D11: =D7*C11 -> 36.172122 | F11: CSG impos. | G11: 0.042 | H11: =H7*G11 -> 36.38544 | J11: =H14+D14 -> 183.701585 | M11: =J11*12 -> 2204.41902
B12: CSG non impos. | C12: 0.041995 | D12: =D7*C12 -> 63.320061 | F12: CSG non impos. | G12: 0.024 | H12: =H7*G12 -> 20.79168
B13: Dette sociale | C13: 0.00499 | D13: =D7*C13 -> 7.523922 | F13: CSA | G13: 0.003 | H13: =H7*G13 -> 2.59896
B14: Totale charges | D14: =SUM(D9:D13) -> 111.539505 | F14: Totale charges | H14: =SUM(H9:H13) -> 72.16208
J15: Net avant impôts | M15: Net avant impôts
B16: Net - (Avant impôts) | D16: =D7-D14 -> 1396.260495 | F16: Net - (Avant impôts) | H16: =H7-H14 -> 794.15792 | J16: =D16+H16 -> 2190.418415 | M16: =J16*12 -> 26285.02098
B17: Impôts | C17: 0.0273 | D17: =(D16+(D9+D11+D13))*C17 -> 39.43430233 | F17: Impôts | G17: =C17 -> 0.0273 | H17: =(H16+(H10+H12+H13))*G17 -> 22.43732837 | J17: =D17+H17 -> 61.8716307 | M17: Voir tableau cumul Carsat/Agirc
B18: Net perçu | D18: =D16-D17 -> 1356.826193 | F18: Net perçu | H18: =H16-H17 -> 771.7205916 | J18: =D18+H18 -> 2128.546784 | M18: =J18*12 -> 25542.56141
J19: =(J16-J18)/J16 -> 0.02824648947
B20: = (Pour calcul de l'impôt retenu à la source) à ajouter au Net avant impôts * par le taux
B22: Impôts avec : | C22: 0.0273 | D22: =(D16+(D9+D11+D13))*C22 -> 39.43430233 | F22: Impôts avec : | G22: =C22 -> 0.0273 | H22: =(H16+(H10+H12+H13))*G22 -> 22.43732837 | J22: =H22+D22 -> 61.8716307 | M22: =J22*12 -> 742.4595684
C23: Net perçu | D23: =D16-D22 -> 1356.826193 | G23: Net perçu | H23: =H16-H22 -> 771.7205916 | J23: =H23+D23 -> 2128.546784 | M23: =J23*12 -> 25542.56141
C24: ≠ | D24: =D23-D18 -> 0 | G24: ≠ | H24: =H23-H18 -> 0 | J24: =H24+D24 -> 0 | M24: =J24*12 -> 0
B33: ASSURANCES
D35: Annuel | I35: Échéances | N35: Mensuel
B36: Maison | C36: Aréas | D36: 252 | H36: Prélèvement | I36: Août | L36: = | N36: =D36/12 -> 21
B37: Kamiq | C37: Maif | D37: 555.01 | E37: =SUM(D37:D39) -> 617.55 | H37: Prélèvement | I37: Janvier | L37: = | N37: =D37/12 -> 46.25083333
B38: Ass. Corporelle | C38: Maif | D38: 48.53 | H38: Prélèvement | I38: Janvier | L38: = | N38: =D38/12 -> 4.044166667
B39: Frais | C39: Maif | D39: 14.01 | H39: Prélèvement | I39: Janvier | N39: =D39/12 -> 1.1675
D40: =SUM(D36:D39) -> 869.55 | N40: =SUM(N36:N39) -> 72.4625
B47: ENFANTS FIN D'ANNÉE
D49: Annuel | F49: Parents | H49: Enfants | N49: Mensuel
B50: Freddy - Gwendo | D50: =F50+I50+I51 -> 240 | F50: 100 | H50: Maélou | I50: 70 | N50: =D50/12 -> 20
H51: Lino | I51: 70
B53: Jordan - Audrey | D53: =F53+I53+J53 -> 170 | F53: 100 | H53: Marius | I53: 70 | N53: =D53/12 -> 14.16666667
D54: =SUM(D50:D53) -> 410 | F54: =SUM(F50:F53) -> 200 | H54: =I50+I53+I51 -> 210 | N54: =SUM(N50:N53) -> 34.16666667
B71: IMPÔTS
F73: Mensuel | G73: Annuel | J73: Mensuel | K73: Annuel
B74: Impôt sur Revenus | D74: avec : | E74: 0.037 | F74: =(D16+(D9+D11+D13))*E74+(H16+(H10+H12+H13))*E74 -> 83.85532366 | G74: =((D16+(D9+D11+D13))*E74+(H16+(H10+H12+H13))*E74)*12 -> 1006.263884 | I74: 0.048 | J74: =(D16+(D9+D11+D13))*I74+(H16+(H10+H12+H13))*I74 -> 108.7852848 | K74: =((D16+(D9+D11+D13))*I74+(H16+(H10+H12+H13))*I74)*12 -> 1305.423417
L75: Mensuel | M75: Annuelle
B76: Taxe Foncière | D76: Dernière payée en 2022 | F76: Supprimée pour 2023 | H76: A payer le | I76: 2019-10-15 | K76: Provision | L76: =G76/12 -> 0 | M76: =L76*12 -> 0
B78: Taxe d'habitation | D78: Dernière payée en 2021 | F78: Supprimée pour 2022 | H78: A payer le | I78: 2019-11-15 | K78: Provision | L78: =G78/12 -> 0 | M78: =L78*12 -> 0
G80: =SUM(G74:G78) -> 1006.263884 | L80: =SUM(L76:L78) -> 0 | M80: =SUM(M76:M78) -> 0

Sheet Liste choisir
A1: LIBELLÉS | B1: All | F1: MOUVEMENTS
A2: 1 | B2: 01-Salaire | F2: 1 | G2: 01-Chèque
A3: 2 | B3: 02- | F3: 2 | G3: 02-Carte
A4: 3 | B4: 03- | F4: 3 | G4: 03-Prélèvement
A5: 4 | B5: 04- | F5: 4 | G5: 04-Internet - PayPal - TIP
A6: 5 | B6: 05-Loyer | F6: 5 | G6: 05-Virement reçu
A7: 6 | B7: 06-Frais de banque | F7: 6 | G7: 06-Remise
A8: 7 | B8: 07-Cotisation carte bleue | F8: 7 | G8: 07-Retrait distributeur
A9: 8 | B9: 08-Nourriture - Frais de vie | F9: 8 | G9: 08-PROVISIONS
A10: 9 | B10: 9- | F10: 10 | G10: 10-Bloqué
A11: 10 | B11: 10-Assurances
A12: 11 | B12: 11-Mutuelle
A13: 12 | B13: 12-
A14: 13 | B14: 13-Santé health
A15: 14 | B15: 14-Internet
A16: 15 | B16: 15-Téléphone
A17: 16 | B17: 16-Carburant
A18: 17 | B18: 17-EDF
A19: 18 | B19: 18-EAU
A20: 19 | B20: 19-
A21: 20 | B21: 20-Autoroute - Transport
A22: 21 | B22: 21-
A23: 22 | B23: 22-
A24: 23 | B24: 23-High-tech, outils, etc
A25: 24 | B25: 24-
A26: 25 | B26: 25-
A27: 26 | B27: 26-Automobile
A28: 27 | B28: 27-
A29: 28 | B29: 28-Impôts foncier
A30: 29 | B30: 29-
A31: 30 | B31: 30-
A32: 31 | B32: 31-Vacances
A33: 32 | B33: 32-
A34: 33 | B34: 33-Vêtements - linge
A35: 34 | B35: 34-Ameublement
A36: 35 | B36: 35-Autres
A37: 36 | B37: 36-
A38: 37
A39: 38 | B39: 38-
A40: 39
A41: 40

Sheet Changement d'année
A1: Pour mise à jour lors des changement d'année
B3: Montant à modifier >>>>>>>>>> | E3: 656.77 | F3: Solde pointé en banque | H3: =Saisie!D5 -> 316.6
F4: Solde disponible | H4: =Saisie!D7 -> 6.36
B5: MÉTHODE A SUIVRE pour obtenir le fichier de l'année en cours sans l'année précédente
B6: (Exemple, nous sommes en 2010, on veut retirer 2009)
A8: 1 | B8: Copier le fichier qu'on utilise quotidiennement sur le bureau et le renommer Exemple: on le renomme ''a''
A10: 2 | B10: Fermer le fichier que nous somme entrain de lire et
A12: 3 | B12: Ouvrir ce fichier: ''a''
A14: 4 | B14: Dans ce fichier "a", effacer les lignes de l'année précédente mais pas les Provisions (Par exemple toute l'année 2009,
B15: il ne doit rester que les lignes de 2010) + les sommes de côté)
A17: 5 | B17: Toujours dans ce fichier ''a'':
B18: Effacer la somme en rose (cellule E3) ci-dessus
A20: 6 | B20: Toujours dans ce fichier ''a'':
B21: Noter la nouvelle somme en vert sur un papier (cellule H3) ci-dessus
A23: 7 | B23: Aller dans notre dossier ''Comptes'' puis copier le fichier qu'on utilise quotidiennement (celui avec les 2 années)
B24: le coller dans un Nouveau dossier sur le bureau (Nouveau dossier est important pour la suite)
A26: 8 | B26: Ouvrir le fichier du nouveau dossier
A28: 9 | B28: Noter sur un papier la somme en vert (cellule H3) de ce fichier (c'est-à-dire le solde pointé en banque actuellement.
A30: 10 | B30: Soustraire de ce montant la somme notée précédemment sur un papier, celle du fichier "a"
B31: Par exemple: 1188.00 - 702.00 = 486.00 ou 568.97 - -87.80 = 656.77
A33: 11 | B33: Saisir ce résultat dans la cellule Rose du fichier ''a''
A35: 12 | B35: On retrouve alors le vrai solde en banque qu'on avait auparavent ainsi que le solde disponible
A37: 13 | B37: A ce stade, fermer l'ancien fichier sans rien enregistrer, celui qui se trouve dans Nouveau dossier
A39: 14 | B39: Enregistrer ce fichier ''a''
A41: 15 | B41: Fermer le fichier ''a''
A43: 16 | B43: A ce stade, ne pas supprimer le Nouveau dossier
A45: 17 | B45: Renommer le fichier ''a'' comme précedemment: Exemple ''Compte courant'' et le coller à sa place définitive dans le dossier Comptes
B46: Voilà, le fichier de l'année en cours terminé. (Ici celui de l'année 2010)
B49: MÉTHODE A SUIVRE pour obtenir le fichier de l'année précédente afin de pouvoir l'archiver
B50: (Exemple, nous sommes en 2010, on veut archiver 2009)
A52: 1 | B52: Ouvrir l'ancien fichier qui servait précédemment celui qui se trouve dans "Nouveau dossier sur le bureau"
A54: 2 | B54: Effacer toute les lignes de l'année en cours (dans cette exemple, l'année 2010) ainsi que les Provisions
A56: 3 | B56: Entregistrer sous: Exemple 2009 et l'archiver.
A58: 4 | B58: A ce stade, on peut supprimer le Nouveau dosser
B59: Voilà, le fichier de l'année précédente est terminé. (Ici celui de l'année 2009)

Sheet FormulaireLES
E1: Formulaire de saisie
E3: les
E6: Mouvements | T6: Libellés
E7: ='Liste choisir'!G2 -> 01-Chèque | T7: ='Liste choisir'!B2 -> 01-Salaire | V7: ='Liste choisir'!B22 -> 21-
E8: ='Liste choisir'!G3 -> 02-Carte | T8: ='Liste choisir'!B3 -> 02- | V8: ='Liste choisir'!B23 -> 22-
E9: ='Liste choisir'!G4 -> 03-Prélèvement | T9: ='Liste choisir'!B4 -> 03- | V9: ='Liste choisir'!B24 -> 23-High-tech, outils, etc
E10: ='Liste choisir'!G5 -> 04-Internet - PayPal - TIP | T10: ='Liste choisir'!B5 -> 04- | V10: ='Liste choisir'!B25 -> 24-
E11: ='Liste choisir'!G6 -> 05-Virement reçu | T11: ='Liste choisir'!B6 -> 05-Loyer | V11: ='Liste choisir'!B26 -> 25-
E12: ='Liste choisir'!G7 -> 06-Remise | L12: =IF(J12=0,"",VLOOKUP(J12,'Liste choisirLES'!$F$2:$G$10,2)) ->  | T12: ='Liste choisir'!B7 -> 06-Frais de banque | V12: ='Liste choisir'!B27 -> 26-Automobile
E13: ='Liste choisir'!G8 -> 07-Retrait distributeur | T13: ='Liste choisir'!B8 -> 07-Cotisation carte bleue | V13: ='Liste choisir'!B28 -> 27-
E14: ='Liste choisir'!G9 -> 08-PROVISIONS | T14: ='Liste choisir'!B9 -> 08-Nourriture - Frais de vie | V14: ='Liste choisir'!B29 -> 28-Impôts foncier
T15: ='Liste choisir'!B10 -> 9- | V15: ='Liste choisir'!B30 -> 29-
T16: ='Liste choisir'!B11 -> 10-Assurances | V16: ='Liste choisir'!B31 -> 30-
T17: ='Liste choisir'!B12 -> 11-Mutuelle | V17: ='Liste choisir'!B32 -> 31-Vacances
T18: ='Liste choisir'!B13 -> 12- | V18: ='Liste choisir'!B33 -> 32-
T19: ='Liste choisir'!B14 -> 13-Santé health | V19: ='Liste choisir'!B34 -> 33-Vêtements - linge
L20: =IF(J20=0,"",VLOOKUP(J20,'Liste choisirLES'!$A$2:$B$41,2)) ->  | T20: ='Liste choisir'!B15 -> 14-Internet | V20: ='Liste choisir'!B35 -> 34-Ameublement
T21: ='Liste choisir'!B16 -> 15-Téléphone | V21: ='Liste choisir'!B36 -> 35-Autres
T22: ='Liste choisir'!B17 -> 16-Carburant | V22: ='Liste choisir'!B37 -> 36-
T23: ='Liste choisir'!B18 -> 17-EDF | V23: ='Liste choisir'!B38 -> 0
T24: ='Liste choisir'!B19 -> 18-EAU | V24: ='Liste choisir'!B39 -> 38-
T25: ='Liste choisir'!B20 -> 19- | V25: ='Liste choisir'!B40 -> 0
T26: ='Liste choisir'!B21 -> 20-Autoroute - Transport | V26: ='Liste choisir'!B41 -> 0
AC38: 0.96

Sheet SaisieLES
A1: Largeur des colonnes
A2: 9.43 | B2: 3 | C2: 23 | D2: 8.86 | E2: 3 | F2: zéro | G2: zéro | H2: 24.14 | I2: 11.57 | J2: 11.57 | K2: zéro | L2: zéro | M2: zéro | N2: zéro | O2: 2 | P2: zéro | Q2: 69.57 | R2: 14.29
A3: Totaux des colonnes
A4: Formule initiale colonne L11 >>> SI(B13=7;"";(E13*100+(ANNEE($A13)+MOIS($A13)+MOIS($A13)))/((ANNEE($A13)))) - (Afin de ne pas avoir les provisions dans le tableau Cumul) | G4: =SUM(G12:G1060) -> -5176 | I4: =SUM(I12:I1060) -> 7066 | J4: =SUM(J12:J1060) -> 11676 | P4: =SUM(P12:P1060) -> -5176
C5: Pointé en banque | D5: =(P4-G4) -> 0 | H5: Compte LES | I5: Provisions | J5: =CumulLES!H7 -> 3576 | T5: LES | U5: D:\DOSSIER GILLES\COMPTES\CRÉDIT AGRICOLE MURVIEL\LES Livret Engagé Sociétaire.xlsm
H6: All | T6: LDD | U6: D:\DOSSIER GILLES\COMPTES\CRÉDIT AGRICOLE MURVIEL\LDD.xlsm
A7: Disponible sur le compte hors provisions | D7: =D5+((J4-I4)-(P4-G4)) -> 4610 | T7: LEP | U7: D:\DOSSIER GILLES\COMPTES\CRÉDIT AGRICOLE MURVIEL\LEP.xlsm
A8: Disponible sur le compte avec provisions | D8: =J5+D7 -> 8186 | G8: =SUM(G12:G43) -> -5176 | H8: =SUMIF($H$11:$H$1714,H6,$J$11:$J$1714)-SUMIF($H$11:$H$1714,H6,$I$11:$I$1714) -> 0 | T8: CSL | U8: D:\DOSSIER GILLES\COMPTES\CRÉDIT AGRICOLE MURVIEL\CSL Livret Compte Sur Livret (sans plafond).xlsm
A9: DATES | B9: > | C9: MOUVEMENT | D9: N° chèque | F9: Prévisions | G9: Cumul prévis | I9: DEBIT | K9: 1 auto prévis | L9: Cumul | M9: pointé débit | N9: pointé crédit | O9: 0.5 | P9: tous pointés | T9: Livret A | U9: D:\DOSSIER GILLES\COMPTES\CRÉDIT AGRICOLE MURVIEL\Livret A.xlsm
A12: 2023-01-06 | B12: 8 | C12: =IF(B12="","",VLOOKUP(B12,'Liste choisirLES'!$F$2:$G$10,2)) -> 08-PROVISIONS | E12: 30 | F12: =IF(B12='Liste choisirLES'!$F$9,'Liste choisirLES'!$F$9*E12*100+MONTH($A12),0) -> 24001 | G12: =IF(B12='Liste choisirLES'!$F$9,J12-I12,0) -> -1600 | H12: =IF(E12="","",VLOOKUP(E12,'Liste choisirLES'!$A$2:$B$41,2)) -> 30- | I12: 1600 | K12: =IF($B12='Liste choisir'!$F$9,1,0) -> 1 | L12: =IF(I12+J12=0,"",(E12*100+(YEAR($A12)+MONTH($A12)+MONTH($A12)))/((YEAR($A12)))) -> 2.48393475 | M12: =IF(O12+K12>0,I12,"") -> 1600 | N12: =IF(O12+K12>0,J12,"") -> 0 | P12: =IF(O12+K12=0,"",(J12-I12)) -> -1600
A13: 2023-01-10 | B13: 8 | C13: =IF(B13="","",VLOOKUP(B13,'Liste choisirLES'!$F$2:$G$10,2)) -> 08-PROVISIONS | E13: 4 | F13: =IF(B13='Liste choisirLES'!$F$9,'Liste choisirLES'!$F$9*E13*100+MONTH($A13),0) -> 3201 | G13: =IF(B13='Liste choisirLES'!$F$9,J13-I13,0) -> 0 | H13: =IF(E13="","",VLOOKUP(E13,'Liste choisirLES'!$A$2:$B$41,2)) -> 04- | K13: =IF($B13='Liste choisir'!$F$9,1,0) -> 1 | L13: =IF(I13+J13=0,"",(E13*100+(YEAR($A13)+MONTH($A13)+MONTH($A13)))/((YEAR($A13)))) ->  | M13: 0 | N13: 0 | P13: 0
A14: 2023-01-12 | B14: 8 | C14: =IF(B14="","",VLOOKUP(B14,'Liste choisirLES'!$F$2:$G$10,2)) -> 08-PROVISIONS | E14: 10 | F14: =IF(B14='Liste choisir'!$F$9,'Liste choisir'!$F$9*E14*100+MONTH($A14),0) -> 8001 | G14: =IF(B14='Liste choisir'!$F$9,J14-I14,0) -> -390 | H14: =IF(E14="","",VLOOKUP(E14,'Liste choisirLES'!$A$2:$B$41,2)) -> 10-Assurances | I14: 390 | K14: =IF($B14='Liste choisir'!$F$9,1,0) -> 1 | L14: =IF(I14+J14=0,"",(E14*100+(YEAR($A14)+MONTH($A14)+MONTH($A14)))/((YEAR($A14)))) -> 1.495304004 | M14: 390 | N14: 0 | P14: -390
A15: 2023-01-13 | B15: 8 | C15: =IF(B15="","",VLOOKUP(B15,'Liste choisirLES'!$F$2:$G$10,2)) -> 08-PROVISIONS | E15: 7 | F15: =IF(B15='Liste choisir'!$F$9,'Liste choisir'!$F$9*E15*100+MONTH($A15),0) -> 5601 | G15: =IF(B15='Liste choisir'!$F$9,J15-I15,0) -> -16 | H15: =IF(E15="","",VLOOKUP(E15,'Liste choisirLES'!$A$2:$B$41,2)) -> 07-Cotisation carte bleue | I15: 16 | K15: =IF($B15='Liste choisir'!$F$9,1,0) -> 1 | L15: =IF(B15=7,"",(E15*100+(YEAR($A15)+MONTH($A15)+MONTH($A15)))/((YEAR($A15)))) -> 1.347009392 | M15: 16 | N15: 0 | P15: -16
A16: 2023-01-13 | B16: 8 | C16: =IF(B16="","",VLOOKUP(B16,'Liste choisirLES'!$F$2:$G$10,2)) -> 08-PROVISIONS | E16: 12 | F16: =IF(B16='Liste choisir'!$F$9,'Liste choisir'!$F$9*E16*100+MONTH($A16),0) -> 9601 | G16: =IF(B16='Liste choisir'!$F$9,J16-I16,0) -> -210 | H16: =IF(E16="","",VLOOKUP(E16,'Liste choisirLES'!$A$2:$B$41,2)) -> 12- | I16: 210 | K16: =IF($B16='Liste choisir'!$F$9,1,0) -> 1 | L16: =IF(B16=7,"",(E16*100+(YEAR($A16)+MONTH($A16)+MONTH($A16)))/((YEAR($A16)))) -> 1.594167079 | M16: 210 | N16: 0 | P16: -210
A17: 2023-01-13 | B17: 8 | C17: =IF(B17="","",VLOOKUP(B17,'Liste choisirLES'!$F$2:$G$10,2)) -> 08-PROVISIONS | E17: 22 | F17: =IF(B17='Liste choisir'!$F$9,'Liste choisir'!$F$9*E17*100+MONTH($A17),0) -> 17601 | G17: =IF(B17='Liste choisir'!$F$9,J17-I17,0) -> -30 | H17: =IF(E17="","",VLOOKUP(E17,'Liste choisirLES'!$A$2:$B$41,2)) -> 22- | I17: 30 | K17: =IF($B17='Liste choisir'!$F$9,1,0) -> 1 | L17: =IF(B17=7,"",(E17*100+(YEAR($A17)+MONTH($A17)+MONTH($A17)))/((YEAR($A17)))) -> 2.088482452 | M17: 30 | N17: 0 | P17: -30
A18: 2023-01-13 | B18: 8 | C18: =IF(B18="","",VLOOKUP(B18,'Liste choisirLES'!$F$2:$G$10,2)) -> 08-PROVISIONS | E18: 23 | F18: =IF(B18='Liste choisir'!$F$9,'Liste choisir'!$F$9*E18*100+MONTH($A18),0) -> 18401 | G18: =IF(B18='Liste choisir'!$F$9,J18-I18,0) -> -400 | H18: =IF(E18="","",VLOOKUP(E18,'Liste choisirLES'!$A$2:$B$41,2)) -> 23-High-tech, outils, etc | I18: 400 | K18: =IF($B18='Liste choisir'!$F$9,1,0) -> 1 | L18: =IF(B18=7,"",(E18*100+(YEAR($A18)+MONTH($A18)+MONTH($A18)))/((YEAR($A18)))) -> 2.137913989 | M18: 400 | N18: 0 | P18: -400
A19: 2023-01-13 | B19: 8 | C19: =IF(B19="","",VLOOKUP(B19,'Liste choisirLES'!$F$2:$G$10,2)) -> 08-PROVISIONS | E19: 25 | F19: =IF(B19='Liste choisir'!$F$9,'Liste choisir'!$F$9*E19*100+MONTH($A19),0) -> 20001 | G19: =IF(B19='Liste choisir'!$F$9,J19-I19,0) -> -280 | H19: =IF(E19="","",VLOOKUP(E19,'Liste choisirLES'!$A$2:$B$41,2)) -> 25- | I19: 280 | K19: =IF($B19='Liste choisir'!$F$9,1,0) -> 1 | L19: =IF(B19=7,"",(E19*100+(YEAR($A19)+MONTH($A19)+MONTH($A19)))/((YEAR($A19)))) -> 2.236777064 | M19: 280 | N19: 0 | P19: -280
A20: 2023-01-13 | B20: 8 | C20: =IF(B20="","",VLOOKUP(B20,'Liste choisirLES'!$F$2:$G$10,2)) -> 08-PROVISIONS | E20: 26 | F20: =IF(B20='Liste choisir'!$F$9,'Liste choisir'!$F$9*E20*100+MONTH($A20),0) -> 20801 | G20: =IF(B20='Liste choisir'!$F$9,J20-I20,0) -> -280 | H20: =IF(E20="","",VLOOKUP(E20,'Liste choisirLES'!$A$2:$B$41,2)) -> 26-Automobile | I20: 280 | K20: =IF($B20='Liste choisir'!$F$9,1,0) -> 1 | L20: =IF(I20+J20=0,"",(E20*100+(YEAR($A20)+MONTH($A20)+MONTH($A20)))/((YEAR($A20)))) -> 2.286208601 | M20: 280 | N20: 0 | P20: -280
A21: 2023-01-13 | B21: 8 | C21: =IF(B21="","",VLOOKUP(B21,'Liste choisirLES'!$F$2:$G$10,2)) -> 08-PROVISIONS | E21: 32 | F21: =IF(B21='Liste choisir'!$F$9,'Liste choisir'!$F$9*E21*100+MONTH($A21),0) -> 25601 | G21: =IF(B21='Liste choisir'!$F$9,J21-I21,0) -> -1200 | H21: =IF(E21="","",VLOOKUP(E21,'Liste choisirLES'!$A$2:$B$41,2)) -> 32- | I21: 1200 | K21: =IF($B21='Liste choisir'!$F$9,1,0) -> 1 | L21: =IF(I21+J21=0,"",(E21*100+(YEAR($A21)+MONTH($A21)+MONTH($A21)))/((YEAR($A21)))) -> 2.582797825 | M21: 1200 | N21: 0 | P21: -1200
A22: 2023-01-13 | B22: 8 | C22: =IF(B22="","",VLOOKUP(B22,'Liste choisirLES'!$F$2:$G$10,2)) -> 08-PROVISIONS | E22: 33 | F22: =IF(B22='Liste choisir'!$F$9,'Liste choisir'!$F$9*E22*100+MONTH($A22),0) -> 26401 | G22: =IF(B22='Liste choisir'!$F$9,J22-I22,0) -> -600 | H22: =IF(E22="","",VLOOKUP(E22,'Liste choisirLES'!$A$2:$B$41,2)) -> 33-Vêtements - linge | I22: 600 | K22: =IF($B22='Liste choisir'!$F$9,1,0) -> 1 | L22: =IF(B22=7,"",(E22*100+(YEAR($A22)+MONTH($A22)+MONTH($A22)))/((YEAR($A22)))) -> 2.632229362 | M22: 600 | N22: 0 | P22: -600
A23: 2023-01-13 | B23: 8 | C23: =IF(B23="","",VLOOKUP(B23,'Liste choisirLES'!$F$2:$G$10,2)) -> 08-PROVISIONS | E23: 37 | F23: =IF(B23='Liste choisir'!$F$9,'Liste choisir'!$F$9*E23*100+MONTH($A23),0) -> 29601 | G23: =IF(B23='Liste choisir'!$F$9,J23-I23,0) -> -170 | H23: =IF(E23="","",VLOOKUP(E23,'Liste choisirLES'!$A$2:$B$41,2)) -> 0 | I23: 170 | K23: =IF($B23='Liste choisir'!$F$9,1,0) -> 1 | L23: =IF(I23+J23=0,"",(E23*100+(YEAR($A23)+MONTH($A23)+MONTH($A23)))/((YEAR($A23)))) -> 2.829955512 | M23: 170 | N23: 0 | P23: -170
A24: 2023-12-31 | B24: 8 | C24: =IF(B24="","",VLOOKUP(B24,'Liste choisirLES'!$F$2:$G$10,2)) -> 08-PROVISIONS | F24: =IF(B24='Liste choisir'!$F$9,'Liste choisir'!$F$9*E24*100+MONTH($A24),0) -> 12 | G24: =IF(B24='Liste choisir'!$F$9,J24-I24,0) -> 0 | H24: =IF(E24="","",VLOOKUP(E24,'Liste choisirLES'!$A$2:$B$41,2)) ->  | K24: =IF($B24='Liste choisir'!$F$9,1,0) -> 1 | M24: 0 | N24: 0 | P24: 0
A25: 2022-12-07 | B25: 5 | C25: =IF(B25="","",VLOOKUP(B25,'Liste choisirLES'!$F$2:$G$10,2)) -> 05-Virement reçu | E25: 3 | F25: =IF(B25='Liste choisir'!$F$9,'Liste choisir'!$F$9*E25*100+MONTH($A25),0) -> 0 | G25: =IF(B25='Liste choisir'!$F$9,J25-I25,0) -> 0 | H25: =IF(E25="","",VLOOKUP(E25,'Liste choisirLES'!$A$2:$B$41,2)) -> 03- | J25: 10 | K25: =IF($B25='Liste choisir'!$F$9,1,0) -> 0 | L25: 1.160237389
A26: 2023-01-06 | B26: 5 | C26: =IF(B26="","",VLOOKUP(B26,'Liste choisirLES'!$F$2:$G$10,2)) -> 05-Virement reçu | E26: 3 | F26: =IF(B26='Liste choisir'!$F$9,'Liste choisir'!$F$9*E26*100+MONTH($A26),0) -> 0 | G26: =IF(B26='Liste choisir'!$F$9,J26-I26,0) -> 0 | H26: =IF(E26="","",VLOOKUP(E26,'Liste choisirLES'!$A$2:$B$41,2)) -> 03- | J26: 5000 | K26: =IF($B26='Liste choisir'!$F$9,1,0) -> 0 | L26: 1.149283243
A27: 2023-01-12 | B27: 5 | C27: =IF(B27="","",VLOOKUP(B27,'Liste choisirLES'!$F$2:$G$10,2)) -> 05-Virement reçu | E27: 3 | F27: =IF(B27='Liste choisir'!$F$9,'Liste choisir'!$F$9*E27*100+MONTH($A27),0) -> 0 | G27: =IF(B27='Liste choisir'!$F$9,J27-I27,0) -> 0 | H27: =IF(E27="","",VLOOKUP(E27,'Liste choisirLES'!$A$2:$B$41,2)) -> 03- | J27: 1200 | K27: =IF($B27='Liste choisir'!$F$9,1,0) -> 0 | L27: 1.149283243
A28: 2023-01-12 | B28: 5 | C28: =IF(B28="","",VLOOKUP(B28,'Liste choisirLES'!$F$2:$G$10,2)) -> 05-Virement reçu | E28: 3 | F28: =IF(B28='Liste choisir'!$F$9,'Liste choisir'!$F$9*E28*100+MONTH($A28),0) -> 0 | G28: =IF(B28='Liste choisir'!$F$9,J28-I28,0) -> 0 | H28: =IF(E28="","",VLOOKUP(E28,'Liste choisirLES'!$A$2:$B$41,2)) -> 03- | J28: 3757 | K28: =IF($B28='Liste choisir'!$F$9,1,0) -> 0 | L28: 1.149283243
A29: 2023-01-13 | B29: 3 | C29: =IF(B29="","",VLOOKUP(B29,'Liste choisirLES'!$F$2:$G$10,2)) -> 03-Prélèvement | E29: 3 | F29: =IF(B29='Liste choisir'!$F$9,'Liste choisir'!$F$9*E29*100+MONTH($A29),0) -> 0 | G29: =IF(B29='Liste choisir'!$F$9,J29-I29,0) -> 0 | H29: =IF(E29="","",VLOOKUP(E29,'Liste choisirLES'!$A$2:$B$41,2)) -> 03- | I29: 35 | K29: =IF($B29='Liste choisir'!$F$9,1,0) -> 0 | L29: 1.149283243
A30: 2023-01-20 | B30: 3 | C30: =IF(B30="","",VLOOKUP(B30,'Liste choisirLES'!$F$2:$G$10,2)) -> 03-Prélèvement | E30: 1 | F30: =IF(B30='Liste choisir'!$F$9,'Liste choisir'!$F$9*E30*100+MONTH($A30),0) -> 0 | G30: =IF(B30='Liste choisir'!$F$9,J30-I30,0) -> 0 | H30: =IF(E30="","",VLOOKUP(E30,'Liste choisirLES'!$A$2:$B$41,2)) -> 01-Salaire | I30: 100 | K30: =IF($B30='Liste choisir'!$F$9,1,0) -> 0 | L30: 1.050420168
A31: 2023-01-20 | B31: 3 | C31: =IF(B31="","",VLOOKUP(B31,'Liste choisirLES'!$F$2:$G$10,2)) -> 03-Prélèvement | E31: 1 | F31: =IF(B31='Liste choisir'!$F$9,'Liste choisir'!$F$9*E31*100+MONTH($A31),0) -> 0 | G31: =IF(B31='Liste choisir'!$F$9,J31-I31,0) -> 0 | H31: =IF(E31="","",VLOOKUP(E31,'Liste choisirLES'!$A$2:$B$41,2)) -> 01-Salaire | I31: 100 | K31: =IF($B31='Liste choisir'!$F$9,1,0) -> 0 | L31: 1.050420168
A32: 2023-01-26 | B32: 3 | C32: =IF(B32="","",VLOOKUP(B32,'Liste choisirLES'!$F$2:$G$10,2)) -> 03-Prélèvement | E32: 3 | F32: =IF(B32='Liste choisir'!$F$9,'Liste choisir'!$F$9*E32*100+MONTH($A32),0) -> 0 | G32: =IF(B32='Liste choisir'!$F$9,J32-I32,0) -> 0 | H32: =IF(E32="","",VLOOKUP(E32,'Liste choisirLES'!$A$2:$B$41,2)) -> 03- | I32: 159 | K32: =IF($B32='Liste choisir'!$F$9,1,0) -> 0 | L32: 1.149283243
A33: 2023-01-26 | B33: 3 | C33: =IF(B33="","",VLOOKUP(B33,'Liste choisirLES'!$F$2:$G$10,2)) -> 03-Prélèvement | E33: 3 | F33: =IF(B33='Liste choisir'!$F$9,'Liste choisir'!$F$9*E33*100+MONTH($A33),0) -> 0 | G33: =IF(B33='Liste choisir'!$F$9,J33-I33,0) -> 0 | H33: =IF(E33="","",VLOOKUP(E33,'Liste choisirLES'!$A$2:$B$41,2)) -> 03- | I33: 801 | K33: =IF($B33='Liste choisir'!$F$9,1,0) -> 0 | L33: 1.149283243
A34: 2023-01-30 | B34: 3 | C34: =IF(B34="","",VLOOKUP(B34,'Liste choisirLES'!$F$2:$G$10,2)) -> 03-Prélèvement | E34: 3 | F34: =IF(B34='Liste choisir'!$F$9,'Liste choisir'!$F$9*E34*100+MONTH($A34),0) -> 0 | G34: =IF(B34='Liste choisir'!$F$9,J34-I34,0) -> 0 | H34: =IF(E34="","",VLOOKUP(E34,'Liste choisirLES'!$A$2:$B$41,2)) -> 03- | I34: 140 | K34: =IF($B34='Liste choisir'!$F$9,1,0) -> 0 | L34: 1.149283243
A35: 2023-02-06 | B35: 3 | C35: =IF(B35="","",VLOOKUP(B35,'Liste choisirLES'!$F$2:$G$10,2)) -> 03-Prélèvement | E35: 3 | F35: =IF(B35='Liste choisir'!$F$9,'Liste choisir'!$F$9*E35*100+MONTH($A35),0) -> 0 | G35: =IF(B35='Liste choisir'!$F$9,J35-I35,0) -> 0 | H35: =IF(E35="","",VLOOKUP(E35,'Liste choisirLES'!$A$2:$B$41,2)) -> 03- | I35: 255 | K35: =IF($B35='Liste choisir'!$F$9,1,0) -> 0 | L35: 1.150271873
A36: 2023-02-09 | B36: 5 | C36: =IF(B36="","",VLOOKUP(B36,'Liste choisirLES'!$F$2:$G$10,2)) -> 05-Virement reçu | D36: 269 | E36: 9 | F36: =IF(B36='Liste choisir'!$F$9,'Liste choisir'!$F$9*E36*100+MONTH($A36),0) -> 0 | G36: =IF(B36='Liste choisir'!$F$9,J36-I36,0) -> 0 | H36: =IF(E36="","",VLOOKUP(E36,'Liste choisirLES'!$A$2:$B$41,2)) -> 9- | J36: 100 | K36: =IF($B36='Liste choisir'!$F$9,1,0) -> 0 | L36: 1.446861097
A37: 2023-02-09 | B37: 5 | C37: =IF(B37="","",VLOOKUP(B37,'Liste choisirLES'!$F$2:$G$10,2)) -> 05-Virement reçu | D37: 269 | E37: 9 | F37: =IF(B37='Liste choisir'!$F$9,'Liste choisir'!$F$9*E37*100+MONTH($A37),0) -> 0 | G37: =IF(B37='Liste choisir'!$F$9,J37-I37,0) -> 0 | H37: =IF(E37="","",VLOOKUP(E37,'Liste choisirLES'!$A$2:$B$41,2)) -> 9- | J37: 71 | K37: =IF($B37='Liste choisir'!$F$9,1,0) -> 0 | L37: 1.446861097
A38: 2023-02-09 | B38: 5 | C38: =IF(B38="","",VLOOKUP(B38,'Liste choisirLES'!$F$2:$G$10,2)) -> 05-Virement reçu | D38: 269 | E38: 9 | F38: =IF(B38='Liste choisir'!$F$9,'Liste choisir'!$F$9*E38*100+MONTH($A38),0) -> 0 | G38: =IF(B38='Liste choisir'!$F$9,J38-I38,0) -> 0 | H38: =IF(E38="","",VLOOKUP(E38,'Liste choisirLES'!$A$2:$B$41,2)) -> 9- | J38: 34 | K38: =IF($B38='Liste choisir'!$F$9,1,0) -> 0 | L38: 1.446861097
A39: 2023-02-09 | B39: 5 | C39: =IF(B39="","",VLOOKUP(B39,'Liste choisirLES'!$F$2:$G$10,2)) -> 05-Virement reçu | D39: 269 | E39: 9 | F39: =IF(B39='Liste choisir'!$F$9,'Liste choisir'!$F$9*E39*100+MONTH($A39),0) -> 0 | G39: =IF(B39='Liste choisir'!$F$9,J39-I39,0) -> 0 | H39: =IF(E39="","",VLOOKUP(E39,'Liste choisirLES'!$A$2:$B$41,2)) -> 9- | J39: 30 | K39: =IF($B39='Liste choisir'!$F$9,1,0) -> 0 | L39: 1.446861097
A40: 2023-02-09 | B40: 5 | C40: =IF(B40="","",VLOOKUP(B40,'Liste choisirLES'!$F$2:$G$10,2)) -> 05-Virement reçu | D40: 269 | E40: 9 | F40: =IF(B40='Liste choisir'!$F$9,'Liste choisir'!$F$9*E40*100+MONTH($A40),0) -> 0 | G40: =IF(B40='Liste choisir'!$F$9,J40-I40,0) -> 0 | H40: =IF(E40="","",VLOOKUP(E40,'Liste choisirLES'!$A$2:$B$41,2)) -> 9- | J40: 25 | K40: =IF($B40='Liste choisir'!$F$9,1,0) -> 0 | L40: 1.446861097
A41: 2023-02-09 | B41: 5 | C41: =IF(B41="","",VLOOKUP(B41,'Liste choisirLES'!$F$2:$G$10,2)) -> 05-Virement reçu | D41: 269 | E41: 9 | F41: =IF(B41='Liste choisir'!$F$9,'Liste choisir'!$F$9*E41*100+MONTH($A41),0) -> 0 | G41: =IF(B41='Liste choisir'!$F$9,J41-I41,0) -> 0 | H41: =IF(E41="","",VLOOKUP(E41,'Liste choisirLES'!$A$2:$B$41,2)) -> 9- | J41: 5 | K41: =IF($B41='Liste choisir'!$F$9,1,0) -> 0 | L41: 1.446861097
A42: 2023-02-09 | B42: 5 | C42: =IF(B42="","",VLOOKUP(B42,'Liste choisirLES'!$F$2:$G$10,2)) -> 05-Virement reçu | D42: 269 | E42: 9 | F42: =IF(B42='Liste choisir'!$F$9,'Liste choisir'!$F$9*E42*100+MONTH($A42),0) -> 0 | G42: =IF(B42='Liste choisir'!$F$9,J42-I42,0) -> 0 | H42: =IF(E42="","",VLOOKUP(E42,'Liste choisirLES'!$A$2:$B$41,2)) -> 9- | J42: 4 | K42: =IF($B42='Liste choisir'!$F$9,1,0) -> 0 | L42: 1.446861097
A43: 2023-02-14 | B43: 3 | C43: =IF(B43="","",VLOOKUP(B43,'Liste choisirLES'!$F$2:$G$10,2)) -> 03-Prélèvement | E43: 3 | F43: =IF(B43='Liste choisir'!$F$9,'Liste choisir'!$F$9*E43*100+MONTH($A43),0) -> 0 | G43: =IF(B43='Liste choisir'!$F$9,J43-I43,0) -> 0 | H43: =IF(E43="","",VLOOKUP(E43,'Liste choisirLES'!$A$2:$B$41,2)) -> 03- | I43: 16 | K43: =IF($B43='Liste choisir'!$F$9,1,0) -> 0 | L43: 1.150271873
A44: 2023-03-10 | B44: 5 | C44: =IF(B44="","",VLOOKUP(B44,'Liste choisirLES'!$F$2:$G$10,2)) -> 05-Virement reçu | D44: 530 | E44: 9 | F44: =IF(B44='Liste choisir'!$F$9,'Liste choisir'!$F$9*E44*100+MONTH($A44),0) -> 0 | G44: =IF(B44='Liste choisir'!$F$9,J44-I44,0) -> 0 | H44: =IF(E44="","",VLOOKUP(E44,'Liste choisirLES'!$A$2:$B$41,2)) -> 9- | J44: 72 | K44: =IF($B44='Liste choisir'!$F$9,1,0) -> 0 | L44: =IF(I44+J44=0,"",(E44*100+(YEAR($A44)+MONTH($A44)+MONTH($A44)))/((YEAR($A44)))) -> 1.447849728 | M44: =IF(O44+K44>0,I44,"") ->  | N44: =IF(O44+K44>0,J44,"") ->  | P44: =IF(O44+K44=0,"",(J44-I44)) -> 
A45: 2023-03-10 | B45: 5 | C45: =IF(B45="","",VLOOKUP(B45,'Liste choisirLES'!$F$2:$G$10,2)) -> 05-Virement reçu | D45: 530 | E45: 9 | F45: =IF(B45='Liste choisir'!$F$9,'Liste choisir'!$F$9*E45*100+MONTH($A45),0) -> 0 | G45: =IF(B45='Liste choisir'!$F$9,J45-I45,0) -> 0 | H45: =IF(E45="","",VLOOKUP(E45,'Liste choisirLES'!$A$2:$B$41,2)) -> 9- | J45: 100 | K45: =IF($B45='Liste choisir'!$F$9,1,0) -> 0 | L45: 1.447849728
A46: 2023-03-10 | B46: 5 | C46: =IF(B46="","",VLOOKUP(B46,'Liste choisirLES'!$F$2:$G$10,2)) -> 05-Virement reçu | D46: 530 | E46: 9 | F46: =IF(B46='Liste choisir'!$F$9,'Liste choisir'!$F$9*E46*100+MONTH($A46),0) -> 0 | G46: =IF(B46='Liste choisir'!$F$9,J46-I46,0) -> 0 | H46: =IF(E46="","",VLOOKUP(E46,'Liste choisirLES'!$A$2:$B$41,2)) -> 9- | J46: 100 | K46: =IF($B46='Liste choisir'!$F$9,1,0) -> 0 | L46: 1.447849728
A47: 2023-03-10 | B47: 5 | C47: =IF(B47="","",VLOOKUP(B47,'Liste choisirLES'!$F$2:$G$10,2)) -> 05-Virement reçu | D47: 530 | E47: 9 | F47: =IF(B47='Liste choisir'!$F$9,'Liste choisir'!$F$9*E47*100+MONTH($A47),0) -> 0 | G47: =IF(B47='Liste choisir'!$F$9,J47-I47,0) -> 0 | H47: =IF(E47="","",VLOOKUP(E47,'Liste choisirLES'!$A$2:$B$41,2)) -> 9- | J47: 50 | K47: =IF($B47='Liste choisir'!$F$9,1,0) -> 0 | L47: 1.447849728
A48: 2023-03-10 | B48: 5 | C48: =IF(B48="","",VLOOKUP(B48,'Liste choisirLES'!$F$2:$G$10,2)) -> 05-Virement reçu | D48: 530 | E48: 9 | F48: =IF(B48='Liste choisir'!$F$9,'Liste choisir'!$F$9*E48*100+MONTH($A48),0) -> 0 | G48: =IF(B48='Liste choisir'!$F$9,J48-I48,0) -> 0 | H48: =IF(E48="","",VLOOKUP(E48,'Liste choisirLES'!$A$2:$B$41,2)) -> 9- | J48: 10 | K48: =IF($B48='Liste choisir'!$F$9,1,0) -> 0 | L48: 1.447849728
A49: 2023-03-10 | B49: 5 | C49: =IF(B49="","",VLOOKUP(B49,'Liste choisirLES'!$F$2:$G$10,2)) -> 05-Virement reçu | D49: 530 | E49: 9 | F49: =IF(B49='Liste choisir'!$F$9,'Liste choisir'!$F$9*E49*100+MONTH($A49),0) -> 0 | G49: =IF(B49='Liste choisir'!$F$9,J49-I49,0) -> 0 | H49: =IF(E49="","",VLOOKUP(E49,'Liste choisirLES'!$A$2:$B$41,2)) -> 9- | J49: 30 | K49: =IF($B49='Liste choisir'!$F$9,1,0) -> 0 | L49: 1.447849728
A50: 2023-03-10 | B50: 5 | C50: =IF(B50="","",VLOOKUP(B50,'Liste choisirLES'!$F$2:$G$10,2)) -> 05-Virement reçu | D50: 530 | E50: 9 | F50: =IF(B50='Liste choisir'!$F$9,'Liste choisir'!$F$9*E50*100+MONTH($A50),0) -> 0 | G50: =IF(B50='Liste choisir'!$F$9,J50-I50,0) -> 0 | H50: =IF(E50="","",VLOOKUP(E50,'Liste choisirLES'!$A$2:$B$41,2)) -> 9- | J50: 20 | K50: =IF($B50='Liste choisir'!$F$9,1,0) -> 0 | L50: 1.447849728
A51: 2023-03-10 | B51: 5 | C51: =IF(B51="","",VLOOKUP(B51,'Liste choisirLES'!$F$2:$G$10,2)) -> 05-Virement reçu | D51: 530 | E51: 9 | F51: =IF(B51='Liste choisir'!$F$9,'Liste choisir'!$F$9*E51*100+MONTH($A51),0) -> 0 | G51: =IF(B51='Liste choisir'!$F$9,J51-I51,0) -> 0 | H51: =IF(E51="","",VLOOKUP(E51,'Liste choisirLES'!$A$2:$B$41,2)) -> 9- | J51: 34 | K51: =IF($B51='Liste choisir'!$F$9,1,0) -> 0 | L51: 1.447849728
A52: 2023-03-10 | B52: 5 | C52: =IF(B52="","",VLOOKUP(B52,'Liste choisirLES'!$F$2:$G$10,2)) -> 05-Virement reçu | D52: 530 | E52: 9 | F52: =IF(B52='Liste choisir'!$F$9,'Liste choisir'!$F$9*E52*100+MONTH($A52),0) -> 0 | G52: =IF(B52='Liste choisir'!$F$9,J52-I52,0) -> 0 | H52: =IF(E52="","",VLOOKUP(E52,'Liste choisirLES'!$A$2:$B$41,2)) -> 9- | J52: 4 | K52: =IF($B52='Liste choisir'!$F$9,1,0) -> 0 | L52: 1.447849728
A53: 2023-03-10 | B53: 5 | C53: =IF(B53="","",VLOOKUP(B53,'Liste choisirLES'!$F$2:$G$10,2)) -> 05-Virement reçu | D53: 530 | E53: 9 | F53: =IF(B53='Liste choisir'!$F$9,'Liste choisir'!$F$9*E53*100+MONTH($A53),0) -> 0 | G53: =IF(B53='Liste choisir'!$F$9,J53-I53,0) -> 0 | H53: =IF(E53="","",VLOOKUP(E53,'Liste choisirLES'!$A$2:$B$41,2)) -> 9- | J53: 10 | K53: =IF($B53='Liste choisir'!$F$9,1,0) -> 0 | L53: 1.447849728
A54: 2023-03-10 | B54: 5 | C54: =IF(B54="","",VLOOKUP(B54,'Liste choisirLES'!$F$2:$G$10,2)) -> 05-Virement reçu | D54: 530 | E54: 9 | F54: =IF(B54='Liste choisir'!$F$9,'Liste choisir'!$F$9*E54*100+MONTH($A54),0) -> 0 | G54: =IF(B54='Liste choisir'!$F$9,J54-I54,0) -> 0 | H54: =IF(E54="","",VLOOKUP(E54,'Liste choisirLES'!$A$2:$B$41,2)) -> 9- | J54: 100 | K54: =IF($B54='Liste choisir'!$F$9,1,0) -> 0 | L54: 1.447849728
A55: 2023-03-15 | B55: 3 | C55: =IF(B55="","",VLOOKUP(B55,'Liste choisirLES'!$F$2:$G$10,2)) -> 03-Prélèvement | E55: 1 | F55: =IF(B55='Liste choisir'!$F$9,'Liste choisir'!$F$9*E55*100+MONTH($A55),0) -> 0 | G55: =IF(B55='Liste choisir'!$F$9,J55-I55,0) -> 0 | H55: =IF(E55="","",VLOOKUP(E55,'Liste choisirLES'!$A$2:$B$41,2)) -> 01-Salaire | I55: 19 | K55: =IF($B55='Liste choisir'!$F$9,1,0) -> 0 | L55: 1.05239743
A56: 2023-04-09 | B56: 3 | C56: =IF(B56="","",VLOOKUP(B56,'Liste choisirLES'!$F$2:$G$10,2)) -> 03-Prélèvement | D56: 530 | E56: 4 | F56: =IF(B56='Liste choisir'!$F$9,'Liste choisir'!$F$9*E56*100+MONTH($A56),0) -> 0 | G56: =IF(B56='Liste choisir'!$F$9,J56-I56,0) -> 0 | H56: =IF(E56="","",VLOOKUP(E56,'Liste choisirLES'!$A$2:$B$41,2)) -> 04- | J56: 100 | K56: =IF($B56='Liste choisir'!$F$9,1,0) -> 0 | L56: 1.201680672
A57: 2023-04-09 | B57: 3 | C57: =IF(B57="","",VLOOKUP(B57,'Liste choisirLES'!$F$2:$G$10,2)) -> 03-Prélèvement | D57: 530 | E57: 7 | F57: =IF(B57='Liste choisir'!$F$9,'Liste choisir'!$F$9*E57*100+MONTH($A57),0) -> 0 | G57: =IF(B57='Liste choisir'!$F$9,J57-I57,0) -> 0 | H57: =IF(E57="","",VLOOKUP(E57,'Liste choisirLES'!$A$2:$B$41,2)) -> 07-Cotisation carte bleue | J57: 4 | K57: =IF($B57='Liste choisir'!$F$9,1,0) -> 0 | L57: 1.349975284
A58: 2023-04-09 | B58: 3 | C58: =IF(B58="","",VLOOKUP(B58,'Liste choisirLES'!$F$2:$G$10,2)) -> 03-Prélèvement | D58: 530 | E58: 10 | F58: =IF(B58='Liste choisir'!$F$9,'Liste choisir'!$F$9*E58*100+MONTH($A58),0) -> 0 | G58: =IF(B58='Liste choisir'!$F$9,J58-I58,0) -> 0 | H58: =IF(E58="","",VLOOKUP(E58,'Liste choisirLES'!$A$2:$B$41,2)) -> 10-Assurances | J58: 72 | K58: =IF($B58='Liste choisir'!$F$9,1,0) -> 0 | L58: 1.498269896
A59: 2023-04-09 | B59: 3 | C59: =IF(B59="","",VLOOKUP(B59,'Liste choisirLES'!$F$2:$G$10,2)) -> 03-Prélèvement | D59: 530 | E59: 12 | F59: =IF(B59='Liste choisir'!$F$9,'Liste choisir'!$F$9*E59*100+MONTH($A59),0) -> 0 | G59: =IF(B59='Liste choisir'!$F$9,J59-I59,0) -> 0 | H59: =IF(E59="","",VLOOKUP(E59,'Liste choisirLES'!$A$2:$B$41,2)) -> 12- | J59: 10 | K59: =IF($B59='Liste choisir'!$F$9,1,0) -> 0 | L59: 1.597132971
A60: 2023-04-09 | B60: 3 | C60: =IF(B60="","",VLOOKUP(B60,'Liste choisirLES'!$F$2:$G$10,2)) -> 03-Prélèvement | D60: 530 | E60: 22 | F60: =IF(B60='Liste choisir'!$F$9,'Liste choisir'!$F$9*E60*100+MONTH($A60),0) -> 0 | G60: =IF(B60='Liste choisir'!$F$9,J60-I60,0) -> 0 | H60: =IF(E60="","",VLOOKUP(E60,'Liste choisirLES'!$A$2:$B$41,2)) -> 22- | J60: 10 | K60: =IF($B60='Liste choisir'!$F$9,1,0) -> 0 | L60: 2.091448344
A61: 2023-04-09 | B61: 3 | C61: =IF(B61="","",VLOOKUP(B61,'Liste choisirLES'!$F$2:$G$10,2)) -> 03-Prélèvement | D61: 530 | E61: 23 | F61: =IF(B61='Liste choisir'!$F$9,'Liste choisir'!$F$9*E61*100+MONTH($A61),0) -> 0 | G61: =IF(B61='Liste choisir'!$F$9,J61-I61,0) -> 0 | H61: =IF(E61="","",VLOOKUP(E61,'Liste choisirLES'!$A$2:$B$41,2)) -> 23-High-tech, outils, etc | J61: 100 | K61: =IF($B61='Liste choisir'!$F$9,1,0) -> 0 | L61: 2.140879881
